Workbook

Sheet FAME Persistence2 (hidden)
A1: 57 | B1: Gráficos
A2: Base original | B2: $B$9 | C2: A1:A96 | D2: 2962.151231 | E2: 2015-01-22T15:04:55 | F2: TRUE | G2: F029.DER.FLU.AFPMLV.M | H2: 2007 | I2: 2014 | J2: 0 | K2: Monthly | L2: FALSE | M2: FALSE | N2: FALSE
A3: Base original | B3: $C$9 | C3: A1:A96 | D3: 1056.030171 | E3: 2015-01-22T15:04:55 | F3: TRUE | G3: F029.DER.FLU.AFPMLC.M | H3: 2007 | I3: 2014 | J3: 0 | K3: Monthly | L3: FALSE | M3: FALSE | N3: FALSE
A4: Base original | B4: $D$9 | C4: A1:A96 | D4: 1378.614178 | E4: 2015-01-22T15:04:55 | F4: TRUE | G4: F029.DER.FLU.ENFMLV.M | H4: 2007 | I4: 2014 | J4: 0 | K4: Monthly | L4: FALSE | M4: FALSE | N4: FALSE
A5: Base original | B5: $E$9 | C5: A1:A96 | D5: 2150.119217 | E5: 2015-01-22T15:04:56 | F5: TRUE | G5: F029.DER.FLU.ENFMLC.M | H5: 2007 | I5: 2014 | J5: 0 | K5: Monthly | L5: FALSE | M5: FALSE | N5: FALSE
A6: Base original | B6: $F$9 | C6: A1:A96 | D6: 324.887796 | E6: 2015-01-22T15:04:56 | F6: TRUE | G6: F029.DER.FLU.CDSMLV.M | H6: 2007 | I6: 2014 | J6: 0 | K6: Monthly | L6: FALSE | M6: FALSE | N6: FALSE
A7: Base original | B7: $G$9 | C7: A1:A96 | D7: 44.296747 | E7: 2015-01-22T15:04:56 | F7: TRUE | G7: F029.DER.FLU.CDSMLC.M | H7: 2007 | I7: 2014 | J7: 0 | K7: Monthly | L7: FALSE | M7: FALSE | N7: FALSE
A8: Base original | B8: $H$9 | C8: A1:A96 | D8: 872.129052 | E8: 2015-01-22T15:04:56 | F8: TRUE | G8: F029.DER.FLU.CBVMLV.M | H8: 2007 | I8: 2014 | J8: 0 | K8: Monthly | L8: FALSE | M8: FALSE | N8: FALSE
A9: Base original | B9: $I$9 | C9: A1:A96 | D9: 1981.579447 | E9: 2015-01-22T15:04:56 | F9: TRUE | G9: F029.DER.FLU.CBVMLC.M | H9: 2007 | I9: 2014 | J9: 0 | K9: Monthly | L9: FALSE | M9: FALSE | N9: FALSE
A10: Base original | B10: $J$9 | C10: A1:A96 | D10: 245.332627 | E10: 2015-01-22T15:04:56 | F10: TRUE | G10: F029.DER.FLU.FMMLV.M | H10: 2007 | I10: 2014 | J10: 0 | K10: Monthly | L10: FALSE | M10: FALSE | N10: FALSE
A11: Base original | B11: $K$9 | C11: A1:A96 | D11: 29.335 | E11: 2015-01-22T15:04:56 | F11: TRUE | G11: F029.DER.FLU.FMMLC.M | H11: 2007 | I11: 2014 | J11: 0 | K11: Monthly | L11: FALSE | M11: FALSE | N11: FALSE
A12: Base original | B12: $L$9 | C12: A1:A96 | D12: 2322.058877 | E12: 2015-01-22T15:04:56 | F12: TRUE | G12: F029.DER.FLU.OMLV.M | H12: 2007 | I12: 2014 | J12: 0 | K12: Monthly | L12: FALSE | M12: FALSE | N12: FALSE
A13: Base original | B13: $M$9 | C13: A1:A96 | D13: 896.8575858 | E13: 2015-01-22T15:04:56 | F13: TRUE | G13: F029.DER.FLU.OMLC.M | H13: 2007 | I13: 2014 | J13: 0 | K13: Monthly | L13: FALSE | M13: FALSE | N13: FALSE
A14: Base original | B14: $N$9 | C14: A1:A96 | D14: 10415.73229 | E14: 2015-01-22T15:04:56 | F14: TRUE | G14: F029.DER.PFL.CCTME.M | H14: 2007 | I14: 2014 | J14: 0 | K14: Monthly | L14: FALSE | M14: FALSE | N14: FALSE
A15: Base original | B15: $O$9 | C15: A1:A96 | D15: 14395.10542 | E15: 2015-01-22T15:04:57 | F15: TRUE | G15: F029.DER.PFL.CVTME.M | H15: 2007 | I15: 2014 | J15: 0 | K15: Monthly | L15: FALSE | M15: FALSE | N15: FALSE
A16: Base original | B16: $P$9 | C16: A1:A96 | D16: 12784.84088 | E16: 2015-01-22T15:04:57 | F16: TRUE | G16: F029.FWD.STO.AFPMLV.M | H16: 2007 | I16: 2014 | J16: 0 | K16: Monthly | L16: FALSE | M16: FALSE | N16: FALSE
A17: Base original | B17: $Q$9 | C17: A1:A96 | D17: 996.9728841 | E17: 2015-01-22T15:04:57 | F17: TRUE | G17: F029.FWD.STO.AFPMLC.M | H17: 2007 | I17: 2014 | J17: 0 | K17: Monthly | L17: FALSE | M17: FALSE | N17: FALSE
A18: Base original | B18: $R$9 | C18: A1:A96 | D18: 11787.868 | E18: 2015-01-22T15:04:57 | F18: TRUE | G18: F029.FWD.STO.MLAFP.M | H18: 2007 | I18: 2014 | J18: 0 | K18: Monthly | L18: FALSE | M18: FALSE | N18: FALSE
A19: Base original | B19: $S$9 | C19: A1:A96 | D19: 1951.406784 | E19: 2015-01-22T15:04:57 | F19: TRUE | G19: F029.FWD.STO.ENFMLV.M | H19: 2007 | I19: 2014 | J19: 0 | K19: Monthly | L19: FALSE | M19: FALSE | N19: FALSE
A20: Base original | B20: $T$9 | C20: A1:A96 | D20: 3808.237097 | E20: 2015-01-22T15:04:57 | F20: TRUE | G20: F029.FWD.STO.ENFMLC.M | H20: 2007 | I20: 2014 | J20: 0 | K20: Monthly | L20: FALSE | M20: FALSE | N20: FALSE
A21: Base original | B21: $U$9 | C21: A1:A96 | D21: -1856.830313 | E21: 2015-01-22T15:04:57 | F21: TRUE | G21: F029.FWD.STO.MLENF.M | H21: 2007 | I21: 2014 | J21: 0 | K21: Monthly | L21: FALSE | M21: FALSE | N21: FALSE
A22: Base original | B22: $V$9 | C22: A1:A96 | D22: 668.99142 | E22: 2015-01-22T15:04:57 | F22: TRUE | G22: F029.FWD.STO.CDSMLV.M | H22: 2007 | I22: 2014 | J22: 0 | K22: Monthly | L22: FALSE | M22: FALSE | N22: FALSE
A23: Base original | B23: $W$9 | C23: A1:A96 | D23: 26.859748 | E23: 2015-01-22T15:04:57 | F23: TRUE | G23: F029.FWD.STO.CDSMLC.M | H23: 2007 | I23: 2014 | J23: 0 | K23: Monthly | L23: FALSE | M23: FALSE | N23: FALSE
A24: Base original | B24: $X$9 | C24: A1:A96 | D24: 642.131672 | E24: 2015-01-22T15:04:57 | F24: TRUE | G24: F029.FWD.STO.MLCDS.M | H24: 2007 | I24: 2014 | J24: 0 | K24: Monthly | L24: FALSE | M24: FALSE | N24: FALSE
A25: Base original | B25: $Y$9 | C25: A1:A96 | D25: 581.997155 | E25: 2015-01-22T15:04:57 | F25: TRUE | G25: F029.FWD.STO.CBVMLV.M | H25: 2007 | I25: 2014 | J25: 0 | K25: Monthly | L25: FALSE | M25: FALSE | N25: FALSE
A26: Base original | B26: $Z$9 | C26: A1:A96 | D26: 1114.077257 | E26: 2015-01-22T15:04:58 | F26: TRUE | G26: F029.FWD.STO.CBVMLC.M | H26: 2007 | I26: 2014 | J26: 0 | K26: Monthly | L26: FALSE | M26: FALSE | N26: FALSE
A27: Base original | B27: $AA$9 | C27: A1:A96 | D27: -532.080102 | E27: 2015-01-22T15:04:58 | F27: TRUE | G27: F029.FWD.STO.MLCBV.M | H27: 2007 | I27: 2014 | J27: 0 | K27: Monthly | L27: FALSE | M27: FALSE | N27: FALSE
A28: Base original | B28: $AB$9 | C28: A1:A96 | D28: 276.252826 | E28: 2015-01-22T15:04:58 | F28: TRUE | G28: F029.FWD.STO.FMMLV.M | H28: 2007 | I28: 2014 | J28: 0 | K28: Monthly | L28: FALSE | M28: FALSE | N28: FALSE
A29: Base original | B29: $AC$9 | C29: A1:A96 | D29: 33.094014 | E29: 2015-01-22T15:04:58 | F29: TRUE | G29: F029.FWD.STO.FMMLC.M | H29: 2007 | I29: 2014 | J29: 0 | K29: Monthly | L29: FALSE | M29: FALSE | N29: FALSE
A30: Base original | B30: $AD$9 | C30: A1:A96 | D30: 243.158812 | E30: 2015-01-22T15:04:58 | F30: TRUE | G30: F029.FWD.STO.MLFM.M | H30: 2007 | I30: 2014 | J30: 0 | K30: Monthly | L30: FALSE | M30: FALSE | N30: FALSE
A31: Base original | B31: $AE$9 | C31: A1:A96 | D31: 3614.754245 | E31: 2015-01-22T15:04:58 | F31: TRUE | G31: F029.FWD.STO.OMLV.M | H31: 2007 | I31: 2014 | J31: 0 | K31: Monthly | L31: FALSE | M31: FALSE | N31: FALSE
A32: Base original | B32: $AF$9 | C32: A1:A96 | D32: 5776.21883 | E32: 2015-01-22T15:04:58 | F32: TRUE | G32: F029.FWD.STO.OMLC.M | H32: 2007 | I32: 2014 | J32: 0 | K32: Monthly | L32: FALSE | M32: FALSE | N32: FALSE
A33: Base original | B33: $AG$9 | C33: A1:A96 | D33: -2161.464585 | E33: 2015-01-22T15:04:58 | F33: TRUE | G33: F029.FWD.STO.MLO.M | H33: 2007 | I33: 2014 | J33: 0 | K33: Monthly | L33: FALSE | M33: FALSE | N33: FALSE
A34: Base original | B34: $AH$9 | C34: A1:A96 | D34: 19878.24331 | E34: 2015-01-22T15:04:58 | F34: TRUE | G34: F029.DER.STO.CCTML.M | H34: 2007 | I34: 2014 | J34: 0 | K34: Monthly | L34: FALSE | M34: FALSE | N34: FALSE
A35: Base original | B35: $AI$9 | C35: A1:A96 | D35: 11755.45983 | E35: 2015-01-22T15:04:58 | F35: TRUE | G35: F029.DER.STO.CVTML.M | H35: 2007 | I35: 2014 | J35: 0 | K35: Monthly | L35: FALSE | M35: FALSE | N35: FALSE
A36: Base original | B36: $AJ$9 | C36: A1:A96 | D36: 20609.02253 | E36: 2015-01-22T15:04:58 | F36: TRUE | G36: F029.DER.STO.CI.M | H36: 2007 | I36: 2014 | J36: 0 | K36: Monthly | L36: FALSE | M36: FALSE | N36: FALSE
A37: Base original | B37: $AK$9 | C37: A1:A96 | D37: 8122.737652 | E37: 2015-01-22T15:04:58 | F37: TRUE | G37: F029.FWD.STO.ML.M | H37: 2007 | I37: 2014 | J37: 0 | K37: Monthly | L37: FALSE | M37: FALSE | N37: FALSE
A38: Base original | B38: $AL$9 | C38: A1:A96 | D38: 10777.17456 | E38: 2015-01-22T15:04:59 | F38: TRUE | G38: F029.DER.STO.CCTME.M | H38: 2007 | I38: 2014 | J38: 0 | K38: Monthly | L38: FALSE | M38: FALSE | N38: FALSE
A39: Base original | B39: $AM$9 | C39: A1:A96 | D39: 19959.35217 | E39: 2015-01-22T15:04:59 | F39: TRUE | G39: F029.DER.STO.CVTME.M | H39: 2007 | I39: 2014 | J39: 0 | K39: Monthly | L39: FALSE | M39: FALSE | N39: FALSE
A40: Base original | B40: $AN$9 | C40: A1:A96 | D40: -9182.177608 | E40: 2015-01-22T15:04:59 | F40: TRUE | G40: F029.FWD.STO.ME.M | H40: 2007 | I40: 2014 | J40: 0 | K40: Monthly | L40: FALSE | M40: FALSE | N40: FALSE
A41: Base original | B41: $AO$9 | C41: A1:A96 | D41: -1059.439956 | E41: 2015-01-22T15:04:59 | F41: TRUE | G41: F029.FWD.STO.Z.M | H41: 2007 | I41: 2014 | J41: 0 | K41: Monthly | L41: FALSE | M41: FALSE | N41: FALSE
A42: Base original | B42: $AP$9 | C42: A1:A96 | D42: 1050.057719 | E42: 2015-01-22T15:04:59 | F42: TRUE | G42: F029.SPT.FLU.AFPSV.M | H42: 2007 | I42: 2014 | J42: 0 | K42: Monthly | L42: FALSE | M42: FALSE | N42: FALSE
A43: Base original | B43: $AQ$9 | C43: A1:A96 | D43: 1169.065329 | E43: 2015-01-22T15:04:59 | F43: TRUE | G43: F029.SPT.FLU.AFPSC.M | H43: 2007 | I43: 2014 | J43: 0 | K43: Monthly | L43: FALSE | M43: FALSE | N43: FALSE
A44: Base original | B44: $AR$9 | C44: A1:A96 | D44: 3012.275183 | E44: 2015-01-22T15:04:59 | F44: TRUE | G44: F029.SPT.FLU.ENFSV.M | H44: 2007 | I44: 2014 | J44: 0 | K44: Monthly | L44: FALSE | M44: FALSE | N44: FALSE
A45: Base original | B45: $AS$9 | C45: A1:A96 | D45: 2787.046022 | E45: 2015-01-22T15:04:59 | F45: TRUE | G45: F029.SPT.FLU.ENFSC.M | H45: 2007 | I45: 2014 | J45: 0 | K45: Monthly | L45: FALSE | M45: FALSE | N45: FALSE
A46: Base original | B46: $AT$9 | C46: A1:A96 | D46: 20.21946071 | E46: 2015-01-22T15:04:59 | F46: TRUE | G46: F029.SPT.FLU.CDSSV.M | H46: 2007 | I46: 2014 | J46: 0 | K46: Monthly | L46: FALSE | M46: FALSE | N46: FALSE
A47: Base original | B47: $AU$9 | C47: A1:A96 | D47: 36.6622212 | E47: 2015-01-22T15:04:59 | F47: TRUE | G47: F029.SPT.FLU.CDSSC.M | H47: 2007 | I47: 2014 | J47: 0 | K47: Monthly | L47: FALSE | M47: FALSE | N47: FALSE
A48: Base original | B48: $AV$9 | C48: A1:A96 | D48: 4545.210892 | E48: 2015-01-22T15:05:00 | F48: TRUE | G48: F029.SPT.FLU.CBVSV.M | H48: 2007 | I48: 2014 | J48: 0 | K48: Monthly | L48: FALSE | M48: FALSE | N48: FALSE
A49: Base original | B49: $AW$9 | C49: A1:A96 | D49: 4253.789108 | E49: 2015-01-22T15:05:00 | F49: TRUE | G49: F029.SPT.FLU.CBVSC.M | H49: 2007 | I49: 2014 | J49: 0 | K49: Monthly | L49: FALSE | M49: FALSE | N49: FALSE
A50: Base original | B50: $AX$9 | C50: A1:A96 | D50: 48.67053684 | E50: 2015-01-22T15:05:00 | F50: TRUE | G50: F029.SPT.FLU.FMSV.M | H50: 2007 | I50: 2014 | J50: 0 | K50: Monthly | L50: FALSE | M50: FALSE | N50: FALSE
A51: Base original | B51: $AY$9 | C51: A1:A96 | D51: 225.6788062 | E51: 2015-01-22T15:05:00 | F51: TRUE | G51: F029.SPT.FLU.FMSC.M | H51: 2007 | I51: 2014 | J51: 0 | K51: Monthly | L51: FALSE | M51: FALSE | N51: FALSE
A52: Base original | B52: $AZ$9 | C52: A1:A96 | D52: 1349.957317 | E52: 2015-01-22T15:05:00 | F52: TRUE | G52: F029.SPT.FLU.OSV.M | H52: 2007 | I52: 2014 | J52: 0 | K52: Monthly | L52: FALSE | M52: FALSE | N52: FALSE
A53: Base original | B53: $BA$9 | C53: A1:A96 | D53: 1072.993304 | E53: 2015-01-22T15:05:00 | F53: TRUE | G53: F029.SPT.FLU.OSC.M | H53: 2007 | I53: 2014 | J53: 0 | K53: Monthly | L53: FALSE | M53: FALSE | N53: FALSE
A54: Base original | B54: $BB$9 | C54: A1:A96 | D54: 613.8614618 | E54: 2015-01-22T15:05:00 | F54: TRUE | G54: F029.SPT.FLU.CCTME.M | H54: 2007 | I54: 2014 | J54: 0 | K54: Monthly | L54: FALSE | M54: FALSE | N54: FALSE
A55: Base original | B55: $BC$9 | C55: A1:A96 | D55: 679.3752101 | E55: 2015-01-22T15:05:00 | F55: TRUE | G55: F029.SPT.FLU.CVTME.M | H55: 2007 | I55: 2014 | J55: 0 | K55: Monthly | L55: FALSE | M55: FALSE | N55: FALSE
A56: Base original | B56: $BD$9 | C56: A1:A96 | D56: -353.4621339 | E56: 2015-01-22T15:05:00 | F56: TRUE | G56: F029.SPT.STO.82.M | H56: 2007 | I56: 2014 | J56: 0 | K56: Monthly | L56: FALSE | M56: FALSE | N56: FALSE
A57: Base original | B57: $BE$9 | C57: A1:A96 | D57: -1059.439956 | E57: 2015-01-22T15:05:00 | F57: TRUE | G57: F029.FWD.STO.Z.M | H57: 2007 | I57: 2014 | J57: 0 | K57: Monthly | L57: FALSE | M57: FALSE | N57: FALSE
A58: Base original | B58: $BF$9 | C58: A1:A96 | D58: -1412.90209 | E58: 2015-01-22T15:05:00 | F58: TRUE | G58: F029.FS.STO.80.M | H58: 2007 | I58: 2014 | J58: 0 | K58: Monthly | L58: FALSE | M58: FALSE | N58: FALSE

Sheet Gráficos
A1: 2012-01-01 | C1: Gráfico 1: Derivados posiciones netas, | H1: Gráfico 2: Derivado, suscripciones del | M1: Gráfico 3: Spot, transacciones del
A2: 2014-12-01 | C2: del Mercado Cambiario Formal, según contraparte* (G1) | H2: Mercado Cambiario Formal, según contraparte (G2). | M2: Mercado Cambiario Formal, según contraparte (G3).
C3: (millones de dólares) | H3: (millones de dólares) | M3: (millones de dólares)
C17: Fuentes: Banco Central de Chile | H17: Fuente: Banco Central de Chile | M17: Fuentes: Banco Central de Chile
C18: * Posición Neta se lee en eje derecho
A21: Anexo gráficos(*)
C22: Posiciones netas (spot más derivado) del Mercado | H22: Derivados. Posiciones netas del Mercado | M22: Derivados. Posiciones netas del Mercado | R22: Derivados. Posiciones netas del Mercado
C23: Cambiario Formal. | H23: Cambiario Formal con Sector Externo. | M23: Cambiario Formal con Sectores Locales. | R23: Cambiario Formal con Fondos de Pensiones.
C24: (millones de dólares) | H24: (millones de dólares) | M24: (millones de dólares) | R24: (millones de dólares)
C38: Fuente: Banco Central de Chile. | H38: Fuente: Banco Central de Chile. | M38: Fuente: Banco Central de Chile. | R38: Fuente: Banco Central de Chile.
C40: Derivados. Posiciones netas del Mercado | H40: Derivados. Posiciones netas del Mercado | M40: Derivados. Posiciones netas del Mercado | R40: Derivados. Posiciones netas del Mercado
C41: Cambiario Formal con Empresas del Sector Real. | H41: Cambiario Formal con Compañías de Seguros. | M41: Cambiario Formal con Corredoras y FFMM. | R41: Cambiario Formal con Otros Sectores.
C42: (millones de dólares) | H42: (millones de dólares) | M42: (millones de dólares) | R42: (millones de dólares)
C56: Fuente: Banco Central de Chile. | H56: Fuente: Banco Central de Chile. | M56: Fuente: Banco Central de Chile. | R56: Fuente: Banco Central de Chile.
C58: (*)La Posición neta total se presenta en el eje derecho del gráfico.
C62: Notas:
C74: Glosario:
C117: Gráficos Informe:

Sheet Base original
B1: DERIVADOS | AP1: SPOT | BD1: TOTAL
B2: SUSCRIPCIONES | P2: POSICIONES | AP2: TRANSACCIONES | BD2: POSICIONES | BF2: NETA TOTAL
B3: LOCAL | N3: EXTERNO | P3: LOCAL | AL3: EXTERNO | AO3: NETA TOTAL | AP3: LOCAL | BB3: EXTERNO | BD3: SPOT | BE3: DERIVADO
B4: Fondos de Pensiones | D4: Empresas Sector Real | F4: Compañias de Seguros | H4: Corredoras | J4: FFMM | L4: Otros Sectores | N4: Sector Externo | P4: Fondos de Pensiones | S4: Empresas Sector Real | V4: Compañias de seguros | Y4: Corredoras | AB4: FFMM | AE4: Otros Sectores | AH4: TOTAL LOCAL | AL4: Sector Externo | AP4: Fondos de Pensiones | AR4: Empresas Sector Real | AT4: Compañias de seguros | AV4: Corredoras | AX4: FFMM | AZ4: Otros Sectores | BB4: Sector Externo
B5: compras | C5: ventas | D5: compras | E5: ventas | F5: compras | G5: ventas | H5: compras | I5: ventas | J5: compras | K5: ventas | L5: compras | M5: ventas | N5: compras | O5: ventas | P5: compras | Q5: ventas | R5: neta | S5: compras | T5: ventas | U5: neta | V5: compras | W5: ventas | X5: neta | Y5: compras | Z5: ventas | AA5: neta | AB5: compras | AC5: ventas | AD5: neta | AE5: compras | AF5: ventas | AG5: neta | AH5: compras | AI5: ventas | AJ5: Interbancario | AK5: neta | AL5: compras | AM5: ventas | AN5: neta | AP5: compras | AQ5: ventas | AR5: compras | AS5: ventas | AT5: compras | AU5: ventas | AV5: compras | AW5: ventas | AX5: compras | AY5: ventas | AZ5: compras | BA5: ventas | BB5: compras | BC5: ventas
B6: millones de USD
B7: Fuente: Banco Central de Chile
B8: F029.DER.FLU.AFPMLV.M | C8: F029.DER.FLU.AFPMLC.M | D8: F029.DER.FLU.ENFMLV.M | E8: F029.DER.FLU.ENFMLC.M | F8: F029.DER.FLU.CDSMLV.M | G8: F029.DER.FLU.CDSMLC.M | H8: F029.DER.FLU.CBVMLV.M | I8: F029.DER.FLU.CBVMLC.M | J8: F029.DER.FLU.FMMLV.M | K8: F029.DER.FLU.FMMLC.M | L8: F029.DER.FLU.OMLV.M | M8: F029.DER.FLU.OMLC.M | N8: F029.DER.PFL.CCTME.M | O8: F029.DER.PFL.CVTME.M | P8: F029.FWD.STO.AFPMLV.M | Q8: F029.FWD.STO.AFPMLC.M | R8: F029.FWD.STO.MLAFP.M | S8: F029.FWD.STO.ENFMLV.M | T8: F029.FWD.STO.ENFMLC.M | U8: F029.FWD.STO.MLENF.M | V8: F029.FWD.STO.CDSMLV.M | W8: F029.FWD.STO.CDSMLC.M | X8: F029.FWD.STO.MLCDS.M | Y8: F029.FWD.STO.CBVMLV.M | Z8: F029.FWD.STO.CBVMLC.M | AA8: F029.FWD.STO.MLCBV.M | AB8: F029.FWD.STO.FMMLV.M | AC8: F029.FWD.STO.FMMLC.M | AD8: F029.FWD.STO.MLFM.M | AE8: F029.FWD.STO.OMLV.M | AF8: F029.FWD.STO.OMLC.M | AG8: F029.FWD.STO.MLO.M | AH8: F029.DER.STO.CCTML.M | AI8: F029.DER.STO.CVTML.M | AJ8: F029.DER.STO.CI.M | AK8: F029.FWD.STO.ML.M | AL8: F029.DER.STO.CCTME.M | AM8: F029.DER.STO.CVTME.M | AN8: F029.FWD.STO.ME.M | AO8: F029.FWD.STO.Z.M | AP8: F029.SPT.FLU.AFPSV.M | AQ8: F029.SPT.FLU.AFPSC.M | AR8: F029.SPT.FLU.ENFSV.M | AS8: F029.SPT.FLU.ENFSC.M | AT8: F029.SPT.FLU.CDSSV.M | AU8: F029.SPT.FLU.CDSSC.M | AV8: F029.SPT.FLU.CBVSV.M | AW8: F029.SPT.FLU.CBVSC.M | AX8: F029.SPT.FLU.FMSV.M | AY8: F029.SPT.FLU.FMSC.M | AZ8: F029.SPT.FLU.OSV.M | BA8: F029.SPT.FLU.OSC.M | BB8: F029.SPT.FLU.CCTME.M | BC8: F029.SPT.FLU.CVTME.M | BD8: F029.SPT.STO.82.M | BE8: F029.FWD.STO.Z.M | BF8: F029.FS.STO.80.M
A9: 2007-01-01 | B9: =[1]!FAMEData(B8, "2007", "2014", 0,"Monthly", "Down", "No Heading", "Normal") -> 2962.151231 | C9: =[1]!FAMEData(C8, "2007", "2014", 0,"Monthly", "Down", "No Heading", "Normal") -> 1056.030171 | D9: =[1]!FAMEData(D8, "2007", "2014", 0,"Monthly", "Down", "No Heading", "Normal") -> 1378.614178 | E9: =[1]!FAMEData(E8, "2007", "2014", 0,"Monthly", "Down", "No Heading", "Normal") -> 2150.119217 | F9: =[1]!FAMEData(F8, "2007", "2014", 0,"Monthly", "Down", "No Heading", "Normal") -> 324.887796 | G9: =[1]!FAMEData(G8, "2007", "2014", 0,"Monthly", "Down", "No Heading", "Normal") -> 44.296747 | H9: =[1]!FAMEData(H8, "2007", "2014", 0,"Monthly", "Down", "No Heading", "Normal") -> 872.129052 | I9: =[1]!FAMEData(I8, "2007", "2014", 0,"Monthly", "Down", "No Heading", "Normal") -> 1981.579447 | J9: =[1]!FAMEData(J8, "2007", "2014", 0,"Monthly", "Down", "No Heading", "Normal") -> 245.332627 | K9: =[1]!FAMEData(K8, "2007", "2014", 0,"Monthly", "Down", "No Heading", "Normal") -> 29.335 | L9: =[1]!FAMEData(L8, "2007", "2014", 0,"Monthly", "Down", "No Heading", "Normal") -> 2322.058877 | M9: =[1]!FAMEData(M8, "2007", "2014", 0,"Monthly", "Down", "No Heading", "Normal") -> 896.8575858 | N9: =[1]!FAMEData(N8, "2007", "2014", 0,"Monthly", "Down", "No Heading", "Normal") -> 10415.73229 | O9: =[1]!FAMEData(O8, "2007", "2014", 0,"Monthly", "Down", "No Heading", "Normal") -> 14395.10542 | P9: =[1]!FAMEData(P8, "2007", "2014", 0,"Monthly", "Down", "No Heading", "Normal") -> 12784.84088 | Q9: =[1]!FAMEData(Q8, "2007", "2014", 0,"Monthly", "Down", "No Heading", "Normal") -> 996.9728841 | R9: =[1]!FAMEData(R8, "2007", "2014", 0,"Monthly", "Down", "No Heading", "Normal") -> 11787.868 | S9: =[1]!FAMEData(S8, "2007", "2014", 0,"Monthly", "Down", "No Heading", "Normal") -> 1951.406784 | T9: =[1]!FAMEData(T8, "2007", "2014", 0,"Monthly", "Down", "No Heading", "Normal") -> 3808.237097 | U9: =[1]!FAMEData(U8, "2007", "2014", 0,"Monthly", "Down", "No Heading", "Normal") -> -1856.830313 | V9: =[1]!FAMEData(V8, "2007", "2014", 0,"Monthly", "Down", "No Heading", "Normal") -> 668.99142 | W9: =[1]!FAMEData(W8, "2007", "2014", 0,"Monthly", "Down", "No Heading", "Normal") -> 26.859748 | X9: =[1]!FAMEData(X8, "2007", "2014", 0,"Monthly", "Down", "No Heading", "Normal") -> 642.131672 | Y9: =[1]!FAMEData(Y8, "2007", "2014", 0,"Monthly", "Down", "No Heading", "Normal") -> 581.997155 | Z9: =[1]!FAMEData(Z8, "2007", "2014", 0,"Monthly", "Down", "No Heading", "Normal") -> 1114.077257 | AA9: =[1]!FAMEData(AA8, "2007", "2014", 0,"Monthly", "Down", "No Heading", "Normal") -> -532.080102 | AB9: =[1]!FAMEData(AB8, "2007", "2014", 0,"Monthly", "Down", "No Heading", "Normal") -> 276.252826 | AC9: =[1]!FAMEData(AC8, "2007", "2014", 0,"Monthly", "Down", "No Heading", "Normal") -> 33.094014 | AD9: =[1]!FAMEData(AD8, "2007", "2014", 0,"Monthly", "Down", "No Heading", "Normal") -> 243.158812 | AE9: =[1]!FAMEData(AE8, "2007", "2014", 0,"Monthly", "Down", "No Heading", "Normal") -> 3614.754245 | AF9: =[1]!FAMEData(AF8, "2007", "2014", 0,"Monthly", "Down", "No Heading", "Normal") -> 5776.21883 | AG9: =[1]!FAMEData(AG8, "2007", "2014", 0,"Monthly", "Down", "No Heading", "Normal") -> -2161.464585 | AH9: =[1]!FAMEData(AH8, "2007", "2014", 0,"Monthly", "Down", "No Heading", "Normal") -> 19878.24331 | AI9: =[1]!FAMEData(AI8, "2007", "2014", 0,"Monthly", "Down", "No Heading", "Normal") -> 11755.45983 | AJ9: =[1]!FAMEData(AJ8, "2007", "2014", 0,"Monthly", "Down", "No Heading", "Normal") -> 20609.02253 | AK9: =[1]!FAMEData(AK8, "2007", "2014", 0,"Monthly", "Down", "No Heading", "Normal") -> 8122.737652 | AL9: =[1]!FAMEData(AL8, "2007", "2014", 0,"Monthly", "Down", "No Heading", "Normal") -> 10777.17456 | AM9: =[1]!FAMEData(AM8, "2007", "2014", 0,"Monthly", "Down", "No Heading", "Normal") -> 19959.35217 | AN9: =[1]!FAMEData(AN8, "2007", "2014", 0,"Monthly", "Down", "No Heading", "Normal") -> -9182.177608 | AO9: =[1]!FAMEData(AO8, "2007", "2014", 0,"Monthly", "Down", "No Heading", "Normal") -> -1059.439956 | AP9: =[1]!FAMEData(AP8, "2007", "2014", 0,"Monthly", "Down", "No Heading", "Normal") -> 1050.057719 | AQ9: =[1]!FAMEData(AQ8, "2007", "2014", 0,"Monthly", "Down", "No Heading", "Normal") -> 1169.065329 | AR9: =[1]!FAMEData(AR8, "2007", "2014", 0,"Monthly", "Down", "No Heading", "Normal") -> 3012.275183 | AS9: =[1]!FAMEData(AS8, "2007", "2014", 0,"Monthly", "Down", "No Heading", "Normal") -> 2787.046022 | AT9: =[1]!FAMEData(AT8, "2007", "2014", 0,"Monthly", "Down", "No Heading", "Normal") -> 20.21946071 | AU9: =[1]!FAMEData(AU8, "2007", "2014", 0,"Monthly", "Down", "No Heading", "Normal") -> 36.6622212 | AV9: =[1]!FAMEData(AV8, "2007", "2014", 0,"Monthly", "Down", "No Heading", "Normal") -> 4545.210892 | AW9: =[1]!FAMEData(AW8, "2007", "2014", 0,"Monthly", "Down", "No Heading", "Normal") -> 4253.789108 | AX9: =[1]!FAMEData(AX8, "2007", "2014", 0,"Monthly", "Down", "No Heading", "Normal") -> 48.67053684 | AY9: =[1]!FAMEData(AY8, "2007", "2014", 0,"Monthly", "Down", "No Heading", "Normal") -> 225.6788062 | AZ9: =[1]!FAMEData(AZ8, "2007", "2014", 0,"Monthly", "Down", "No Heading", "Normal") -> 1349.957317 | BA9: =[1]!FAMEData(BA8, "2007", "2014", 0,"Monthly", "Down", "No Heading", "Normal") -> 1072.993304 | BB9: =[1]!FAMEData(BB8, "2007", "2014", 0,"Monthly", "Down", "No Heading", "Normal") -> 613.8614618 | BC9: =[1]!FAMEData(BC8, "2007", "2014", 0,"Monthly", "Down", "No Heading", "Normal") -> 679.3752101 | BD9: =[1]!FAMEData(BD8, "2007", "2014", 0,"Monthly", "Down", "No Heading", "Normal") -> -353.4621339 | BE9: =[1]!FAMEData(BE8, "2007", "2014", 0,"Monthly", "Down", "No Heading", "Normal") -> -1059.439956 | BF9: =[1]!FAMEData(BF8, "2007", "2014", 0,"Monthly", "Down", "No Heading", "Normal") -> -1412.90209
A10: 2007-02-01 | B10: 2786.132238 | C10: 618.0955553 | D10: 698.5161 | E10: 2017.364943 | F10: 217.16249 | G10: 67.634134 | H10: 759.860938 | I10: 1531.204115 | J10: 191.2158054 | K10: 62.2047368 | L10: 1062.472559 | M10: 162.8316558 | N10: 8398.857952 | O10: 11663.17086 | P10: 12941.42113 | Q10: 955.6322492 | R10: 11985.78888 | S10: 1833.1538 | T10: 3909.745509 | U10: -2076.591708 | V10: 715.061164 | W10: 53.246659 | X10: 661.814505 | Y10: 720.1836771 | Z10: 1364.440123 | AA10: -644.256446 | AB10: 263.939912 | AC10: 57.894628 | AD10: 206.045284 | AE10: 3326.776457 | AF10: 5606.632632 | AG10: -2279.856176 | AH10: 19800.53614 | AI10: 11947.5918 | AJ10: 19164.15131 | AK10: 7852.944338 | AL10: 9855.776537 | AM10: 18195.52621 | AN10: -8339.749673 | AO10: -486.805335 | AP10: 640.0560583 | AQ10: 662.9973597 | AR10: 2378.286055 | AS10: 2410.975829 | AT10: 25.07502547 | AU10: 83.75556613 | AV10: 3805.952528 | AW10: 3784.047472 | AX10: 23.68683263 | AY10: 253.4889674 | AZ10: 1330.460927 | BA10: 1161.499064 | BB10: 473.5320173 | BC10: 482.4457418 | BD10: -481.38 | BE10: -486.805335 | BF10: -968.185335
A11: 2007-03-01 | B11: 3688.251478 | C11: 641.8189217 | D11: 806.7037975 | E11: 2096.029402 | F11: 302.7372081 | G11: 108.5902223 | H11: 783.820345 | I11: 977.910093 | J11: 247.8552965 | K11: 66.60419593 | L11: 1408.626275 | M11: 648.5556139 | N11: 8896.933487 | O11: 16275.10854 | P11: 13329.76216 | Q11: 987.1266039 | R11: 12342.63556 | S11: 1728.632826 | T11: 3981.457059 | U11: -2252.824233 | V11: 742.609072 | W11: 61.178497 | X11: 681.430575 | Y11: 720.695236 | Z11: 1219.102083 | AA11: -498.406847 | AB11: 259.8679417 | AC11: 69.45217173 | AD11: 190.41577 | AE11: 2892.861984 | AF11: 4519.087625 | AG11: -1626.225641 | AH11: 19674.42922 | AI11: 10837.40404 | AJ11: 17778.5812 | AK11: 8837.025188 | AL11: 9171.88302 | AM11: 18042.29911 | AN11: -8870.416094 | AO11: -33.390906 | AP11: 834.9981043 | AQ11: 929.5448377 | AR11: 2850.212658 | AS11: 3179.715331 | AT11: 66.98920523 | AU11: 113.6046466 | AV11: 4979.722775 | AW11: 4640.277225 | AX11: 81.64659583 | AY11: 133.5842286 | AZ11: 1412.178425 | BA11: 966.4497583 | BB11: 364.2252791 | BC11: 693.933973 | BD11: -793.29 | BE11: -33.390906 | BF11: -826.680906
A12: 2007-04-01 | B12: 3532.010808 | C12: 585.0707561 | D12: 646.1754096 | E12: 2868.448761 | F12: 326.446349 | G12: 103.671771 | H12: 446.87612 | I12: 1130.239 | J12: 221.2060758 | K12: 74.400197 | L12: 788.4163946 | M12: 1305.954811 | N12: 8778.713807 | O12: 8871.178373 | P12: 13407.12179 | Q12: 968.3022565 | R12: 12438.81954 | S12: 1441.379601 | T12: 4892.302938 | U12: -3450.923337 | V12: 727.029491 | W12: 22 | X12: 705.029491 | Y12: 447.2271692 | Z12: 1495.674548 | AA12: -1048.447379 | AB12: 204.2365283 | AC12: 72.31929225 | AD12: 131.917236 | AE12: 2218.95857 | AF12: 4308.160025 | AG12: -2089.201455 | AH12: 18445.95315 | AI12: 11758.75906 | AJ12: 18371.59066 | AK12: 6687.194092 | AL12: 8711.346615 | AM12: 16293.55348 | AN12: -7582.206861 | AO12: -895.012769 | AP12: 932.8463419 | AQ12: 928.1931751 | AR12: 2992.632665 | AS12: 2565.740191 | AT12: 49.73127992 | AU12: 85.66665878 | AV12: 3851.95083 | AW12: 3833.04917 | AX12: 76.42850996 | AY12: 180.0165309 | AZ12: 1104.839788 | BA12: 1050.181509 | BB12: 601.1013167 | BC12: 558.2527654 | BD12: -387 | BE12: -895.012769 | BF12: -1282.012769
A13: 2007-05-01 | B13: 4614.877157 | C13: 1847.815988 | D13: 967.2664183 | E13: 2947.002406 | F13: 571.4820406 | G13: 209.897997 | H13: 932.375557 | I13: 1268.344268 | J13: 289.8392577 | K13: 44.08783016 | L13: 2886.155988 | M13: 1121.181089 | N13: 9453.15068 | O13: 11098.0867 | P13: 14013.0341 | Q13: 1299.661215 | R13: 12713.37289 | S13: 1525.603032 | T13: 5284.054369 | U13: -3758.451337 | V13: 832.806466 | W13: 82.183038 | X13: 750.623428 | Y13: 683.7212473 | Z13: 1443.544817 | AA13: -759.82357 | AB13: 254.7985402 | AC13: 57.77631416 | AD13: 197.022226 | AE13: 2930.784705 | AF13: 4009.663146 | AG13: -1078.878442 | AH13: 20240.74809 | AI13: 12176.8829 | AJ13: 20670.40344 | AK13: 8063.865194 | AL13: 10204.01055 | AM13: 18254.14573 | AN13: -8050.135185 | AO13: 13.730009 | AP13: 1168.335556 | AQ13: 1229.262214 | AR13: 3580.327239 | AS13: 4016.038852 | AT13: 62.4530255 | AU13: 94.6217111 | AV13: 5602.368138 | AW13: 5556.631862 | AX13: 76.58919676 | AY13: 242.7953557 | AZ13: 1967.145789 | BA13: 2531.585174 | BB13: 850.6762655 | BC13: 655.434831 | BD13: -1397 | BE13: 13.730009 | BF13: -1383.269991
A14: 2007-06-01 | B14: 4112.858781 | C14: 773.365 | D14: 1182.835358 | E14: 2038.509914 | F14: 407.250917 | G14: 72.404468 | H14: 740.5674616 | I14: 1203.871549 | J14: 346.9757732 | K14: 64.02287203 | L14: 3865.832589 | M14: 1083.108078 | N14: 10288.88494 | O14: 13183.82535 | P14: 13912.98254 | Q14: 880.7897089 | R14: 13032.19284 | S14: 1892.011154 | T14: 4854.561158 | U14: -2962.550005 | V14: 868.114102 | W14: 58.196013 | X14: 809.918089 | Y14: 743.1023709 | Z14: 1393.480769 | AA14: -650.378398 | AB14: 327.212874 | AC14: 56.75722903 | AD14: 270.455645 | AE14: 2990.735699 | AF14: 3777.919702 | AG14: -787.1840023 | AH14: 20734.15874 | AI14: 11021.70458 | AJ14: 21353.25965 | AK14: 9712.454162 | AL14: 10223.63885 | AM14: 18062.48704 | AN14: -7838.848186 | AO14: 1873.605976 | AP14: 1608.480142 | AQ14: 1736.349957 | AR14: 2747.55892 | AS14: 3368.455262 | AT14: 39.25508188 | AU14: 124.8509593 | AV14: 4924.206144 | AW14: 4710.793856 | AX14: 77.60819055 | AY14: 417.6096407 | AZ14: 3548.554243 | BA14: 3611.298819 | BB14: 654.1041333 | BC14: 540.1215067 | BD14: -2293.49 | BE14: 1873.605976 | BF14: -419.884024
A15: 2007-07-01 | B15: 5178.806808 | C15: 1192.83 | D15: 805.0524113 | E15: 3708.522439 | F15: 357.857774 | G15: 152.606317 | H15: 880.439839 | I15: 1603.079691 | J15: 302.0512755 | K15: 114.5645642 | L15: 2747.151519 | M15: 1444.696994 | N15: 11136.03032 | O15: 12933.30024 | P15: 14909.85614 | Q15: 911.2865529 | R15: 13998.56959 | S15: 1930.295596 | T15: 5770.383025 | U15: -3840.087429 | V15: 918.436632 | W15: 99.598387 | X15: 818.838245 | Y15: 977.0888882 | Z15: 1587.50461 | AA15: -610.415722 | AB15: 324.9218918 | AC15: 78.37553283 | AD15: 246.546359 | AE15: 3008.417052 | AF15: 4235.979872 | AG15: -1227.56282 | AH15: 22069.0162 | AI15: 12683.12798 | AJ15: 22071.98258 | AK15: 9385.888215 | AL15: 11774.71452 | AM15: 18586.53351 | AN15: -6811.818992 | AO15: 2574.069223 | AP15: 1773.689608 | AQ15: 1765.097259 | AR15: 2978.702505 | AS15: 3654.986939 | AT15: 88.65310161 | AU15: 112.9989618 | AV15: 5549.334871 | AW15: 5537.665129 | AX15: 68.95506486 | AY15: 450.0238817 | AZ15: 3004.929894 | BA15: 2636.718428 | BB15: 655.773956 | BC15: 674.0894022 | BD15: -2994.28 | BE15: 2574.069223 | BF15: -420.210777
A16: 2007-08-01 | B16: 6764.722241 | C16: 2176.543292 | D16: 1705.978522 | E16: 2695.172765 | F16: 439.751416 | G16: 168.275125 | H16: 822.939317 | I16: 1814.30179 | J16: 372.9335304 | K16: 131.8320152 | L16: 2781.182225 | M16: 2061.300775 | N16: 13610.91704 | O16: 15262.34587 | P16: 17355.09278 | Q16: 1080.993193 | R16: 16274.09959 | S16: 2365.162693 | T16: 5663.878377 | U16: -3298.715684 | V16: 1007.472947 | W16: 137.659144 | X16: 869.813803 | Y16: 915.4524823 | Z16: 1490.742468 | AA16: -575.289986 | AB16: 368.8673395 | AC16: 118.5533935 | AD16: 250.313946 | AE16: 3004.170498 | AF16: 4255.083944 | AG16: -1250.913446 | AH16: 25016.21874 | AI16: 12746.91052 | AJ16: 22544.52217 | AK16: 12269.30822 | AL16: 12739.61812 | AM16: 20087.67463 | AN16: -7348.056517 | AO16: 4921.251698 | AP16: 1405.928747 | AQ16: 3681.265015 | AR16: 3793.747921 | AS16: 3597.998446 | AT16: 89.00714277 | AU16: 191.5013862 | AV16: 6461.379426 | AW16: 6151.620574 | AX16: 267.7484685 | AY16: 531.0242401 | AZ16: 1517.202326 | BA16: 1668.639208 | BB16: 962.8375954 | BC16: 918.8011294 | BD16: -5240.3 | BE16: 4921.251698 | BF16: -319.048302
A17: 2007-09-01 | B17: 4024.92804 | C17: 1436.573 | D17: 979.0757476 | E17: 3879.336801 | F17: 370.887966 | G17: 87.443805 | H17: 348.623041 | I17: 1468.374625 | J17: 257.2912051 | K17: 78.04201399 | L17: 1217.220445 | M17: 2387.926268 | N17: 14136.9725 | O17: 12081.68146 | P17: 18491.97506 | Q17: 1240.900476 | R17: 17251.07459 | S17: 1774.791245 | T17: 6792.201715 | U17: -5017.41047 | V17: 984.458392 | W17: 138.47 | X17: 845.988392 | Y17: 687.0588492 | Z17: 1861.900174 | AA17: -1174.841325 | AB17: 340.4114492 | AC17: 128.7058432 | AD17: 211.705606 | AE17: 2824.283844 | AF17: 4839.538652 | AG17: -2015.254807 | AH17: 25102.97884 | AI17: 15001.71686 | AJ17: 23363.092 | AK17: 10101.26197 | AL17: 15156.35318 | AM17: 19561.86725 | AN17: -4405.514076 | AO17: 5695.747894 | AP17: 559.1699976 | AQ17: 686.2075834 | AR17: 2819.53172 | AS17: 3157.676393 | AT17: 88.82555128 | AU17: 56.21935002 | AV17: 4285.45647 | AW17: 4228.54353 | AX17: 90.01882899 | AY17: 63.57390871 | AZ17: 980.1381573 | BA17: 1217.717644 | BB17: 564.9456684 | BC17: 526.4515912 | BD17: -5823 | BE17: 5695.747894 | BF17: -127.252106
A18: 2007-10-01 | B18: 6152.701577 | C18: 2562.908807 | D18: 1128.670305 | E18: 4847.134326 | F18: 386.331654 | G18: 231.844212 | H18: 789.683503 | I18: 1878.7136 | J18: 347.3935249 | K18: 139.2490761 | L18: 1629.938838 | M18: 2703.607224 | N18: 14052.26346 | O18: 13992.84079 | P18: 20660.87543 | Q18: 1798.517665 | R18: 18862.35776 | S18: 1956.244273 | T18: 7638.915278 | U18: -5682.671005 | V18: 1072.486021 | W18: 215.653214 | X18: 856.832807 | Y18: 727.5485723 | Z18: 1849.455158 | AA18: -1121.906586 | AB18: 377.7665128 | AC18: 168.4085228 | AD18: 209.35799 | AE18: 2668.414251 | AF18: 5233.392492 | AG18: -2564.978241 | AH18: 27463.33506 | AI18: 16904.34233 | AJ18: 24435.46572 | AK18: 10559.36846 | AL18: 17523.76062 | AM18: 22037.57663 | AN18: -4513.816011 | AO18: 6045.552447 | AP18: 1290.461788 | AQ18: 1430.483864 | AR18: 4304.698243 | AS18: 4691.127699 | AT18: 77.38971102 | AU18: 61.16859178 | AV18: 5478.598833 | AW18: 5409.401167 | AX18: 151.0126687 | AY18: 219.2719928 | AZ18: 1242.035043 | BA18: 1673.903199 | BB18: 1198.199536 | BC18: 848.0634865 | BD18: -6413 | BE18: 6045.552447 | BF18: -367.447553
A19: 2007-11-01 | B19: 5519.584434 | C19: 2496.662922 | D19: 1919.542854 | E19: 3123.036129 | F19: 394.265897 | G19: 88.972564 | H19: 855.602 | I19: 1527.286626 | J19: 382.4195169 | K19: 71.39565106 | L19: 1937.048956 | M19: 1892.049277 | N19: 11755.30102 | O19: 15871.51205 | P19: 22194.50513 | Q19: 2080.514355 | R19: 20113.99077 | S19: 2641.470442 | T19: 6974.811394 | U19: -4333.340952 | V19: 955.299492 | W19: 119.452056 | X19: 835.847436 | Y19: 991.6896968 | Z19: 1656.350526 | AA19: -664.660829 | AB19: 431.7122505 | AC19: 86.61110652 | AD19: 345.101144 | AE19: 2781.245199 | AF19: 5205.445793 | AG19: -2424.200594 | AH19: 29995.92221 | AI19: 16123.18523 | AJ19: 25492.30491 | AK19: 13873.11271 | AL19: 17563.54149 | AM19: 26263.7146 | AN19: -8700.173115 | AO19: 5172.93959 | AP19: 584.1272256 | AQ19: 587.2994434 | AR19: 4163.825443 | AS19: 3969.82672 | AT19: 113.2096942 | AU19: 78.66310637 | AV19: 5492.626445 | AW19: 5130.373555 | AX19: 158.9479325 | AY19: 161.0885241 | AZ19: 1566.978082 | BA19: 1669.410639 | BB19: 943.9176855 | BC19: 824.4480115 | BD19: -5814 | BE19: 5172.93959 | BF19: -641.06041
A20: 2007-12-01 | B20: 4292.355861 | C20: 2734.280541 | D20: 1569.101361 | E20: 3642.640402 | F20: 384.196092 | G20: 149.505038 | H20: 333.563871 | I20: 1082.214374 | J20: 232.9688869 | K20: 208.9658422 | L20: 976.285425 | M20: 1837.172682 | N20: 11240.10988 | O20: 10376.94327 | P20: 22711.69246 | Q20: 2425.418366 | R20: 20286.27409 | S20: 1843.860791 | T20: 6992.056619 | U20: -5148.195828 | V20: 929.226418 | W20: 127.43 | X20: 801.796418 | Y20: 761.242394 | Z20: 1757.856679 | AA20: -996.614285 | AB20: 382.7188365 | AC20: 160.4818275 | AD20: 222.237009 | AE20: 2190.340001 | AF20: 5365.509109 | AG20: -3175.169108 | AH20: 28819.0809 | AI20: 16828.7526 | AJ20: 23657.8154 | AK20: 11989.96977 | AL20: 17861.73957 | AM20: 24642.4787 | AN20: -6780.739128 | AO20: 5209.230645 | AP20: 454.5801367 | AQ20: 645.5756193 | AR20: 4582.423637 | AS20: 4746.387256 | AT20: 122.9893646 | AU20: 108.9621412 | AV20: 4424.868271 | AW20: 4270.131729 | AX20: 208.4277343 | AY20: 328.879703 | AZ20: 2065.055662 | BA20: 2001.282378 | BB20: 651.6346559 | BC20: 681.2311737 | BD20: -6177.363971 | BE20: 5209.230645 | BF20: -968.133326
A21: 2008-01-01 | B21: 5559.072183 | C21: 3172.594856 | D21: 1775.603886 | E21: 5062.198532 | F21: 432.863934 | G21: 210.43097 | H21: 709.526983 | I21: 1386.752419 | J21: 235.709598 | K21: 287.7827993 | L21: 1291.004968 | M21: 1612.279819 | N21: 12714.32633 | O21: 13279.86875 | P21: 24138.2759 | Q21: 3084.110265 | R21: 21054.16564 | S21: 1605.54901 | T21: 7775.606496 | U21: -6170.057487 | V21: 889.037698 | W21: 138.734809 | X21: 750.302889 | Y21: 868.870206 | Z21: 1841.610837 | AA21: -972.740631 | AB21: 289.7254054 | AC21: 260.2015164 | AD21: 29.523889 | AE21: 2173.714101 | AF21: 5361.527766 | AG21: -3187.813665 | AH21: 29965.17232 | AI21: 18461.79169 | AJ21: 22708.83444 | AK21: 11503.0221 | AL21: 21711.87981 | AM21: 27941.6293 | AN21: -6229.749484 | AO21: 5273.27262 | AP21: 238.0235682 | AQ21: 714.8141588 | AR21: 4542.112472 | AS21: 4953.438166 | AT21: 113.6397386 | AU21: 92.86535045 | AV21: 5454.52631 | AW21: 4841.47369 | AX21: 325.3391352 | AY21: 209.4968265 | AZ21: 1862.491752 | BA21: 1815.058659 | BB21: 923.9476875 | BC21: 738.4731491 | BD21: -5988.39 | BE21: 5273.27262 | BF21: -715.11738
A22: 2008-02-01 | B22: 5635.448954 | C22: 4848.048843 | D22: 1368.864385 | E22: 3428.668269 | F22: 396.074413 | G22: 144.2883106 | H22: 334.270039 | I22: 951.111873 | J22: 235.8817976 | K22: 246.9260992 | L22: 1241.746947 | M22: 1105.920504 | N22: 8807.401284 | O22: 7893.812227 | P22: 24744.21376 | Q22: 4402.897327 | R22: 20341.31643 | S22: 1633.394516 | T22: 8101.56211 | U22: -6468.167594 | V22: 911.945673 | W22: 140.515707 | X22: 771.429966 | Y22: 577.663677 | Z22: 1572.029301 | AA22: -994.365624 | AB22: 338.935375 | AC22: 320.530293 | AD22: 18.405082 | AE22: 2375.329959 | AF22: 5265.255252 | AG22: -2889.925293 | AH22: 30581.48296 | AI22: 19802.78999 | AJ22: 23092.12619 | AK22: 10778.33444 | AL22: 19449.14734 | AM22: 24316.44009 | AN22: -4867.29274 | AO22: 5911.0417 | AP22: 779.4962002 | AQ22: 1249.51303 | AR22: 3787.827057 | AS22: 4592.455672 | AT22: 87.44596394 | AU22: 155.0744471 | AV22: 3622.410889 | AW22: 3025.589111 | AX22: 139.7189451 | AY22: 91.22343997 | AZ22: 1067.943567 | BA22: 878.3741882 | BB22: 835.4839771 | BC22: 693.9901112 | BD22: -6474.641479 | BE22: 5911.0417 | BF22: -563.599779
A23: 2008-03-01 | B23: 8610.802023 | C23: 3656.607 | D23: 1588.307242 | E23: 3612.298813 | F23: 538.976117 | G23: 160.906812 | H23: 800.655423 | I23: 1058.108858 | J23: 302.2998522 | K23: 164.4453111 | L23: 1823.120874 | M23: 1607.234949 | N23: 10330.33913 | O23: 13231.73306 | P23: 27320.66899 | Q23: 4897.291065 | R23: 22423.37792 | S23: 1972.743713 | T23: 8053.735238 | U23: -6080.991525 | V23: 951.41747 | W23: 114.000142 | X23: 837.417328 | Y23: 675.152083 | Z23: 1317.614235 | AA23: -642.462152 | AB23: 326.7208599 | AC23: 275.9372289 | AD23: 50.783631 | AE23: 2810.601924 | AF23: 4951.955081 | AG23: -2141.353157 | AH23: 34057.30504 | AI23: 19610.53299 | AJ23: 25690.24142 | AK23: 14446.67927 | AL23: 17936.68767 | AM23: 24780.10583 | AN23: -6843.418161 | AO23: 7603.261112 | AP23: 402.3440115 | AQ23: 1560.392075 | AR23: 5355.67731 | AS23: 4750.266533 | AT23: 87.80043346 | AU23: 125.3146534 | AV23: 5006.432277 | AW23: 4607.567723 | AX23: 155.0752653 | AY23: 71.29209004 | AZ23: 399.9923896 | BA23: 1285.414895 | BB23: 1522.122091 | BC23: 1185.262029 | BD23: -7128 | BE23: 7603.261112 | BF23: 475.261112
A24: 2008-04-01 | B24: 7127.079536 | C24: 3409.959303 | D24: 1561.113995 | E24: 5465.544607 | F24: 508.868754 | G24: 160.016779 | H24: 517.8440726 | I24: 952.8733544 | J24: 314.7559 | K24: 152.0595907 | L24: 1698.134168 | M24: 1879.333271 | N24: 8636.907502 | O24: 13278.2529 | P24: 27484.21475 | Q24: 4743.639828 | R24: 22740.57492 | S24: 2214.943424 | T24: 8609.200172 | U24: -6394.256748 | V24: 1028.353877 | W24: 156.483882 | X24: 871.869995 | Y24: 562.9359075 | Z24: 1064.394229 | AA24: -501.458322 | AB24: 274.5664997 | AC24: 174.6517407 | AD24: 99.914759 | AE24: 2737.064602 | AF24: 4859.004518 | AG24: -2121.939916 | AH24: 34302.07906 | AI24: 19607.37437 | AJ24: 25896.12759 | AK24: 14694.61191 | AL24: 13760.44006 | AM24: 21541.55052 | AN24: -7781.142171 | AO24: 6913.469743 | AP24: 658.6733386 | AQ24: 1640.095084 | AR24: 6266.296819 | AS24: 5720.287429 | AT24: 173.5632829 | AU24: 73.92482455 | AV24: 4904.45303 | AW24: 4014.54697 | AX24: 186.6590342 | AY24: 122.760776 | AZ24: 1430.201119 | BA24: 2278.65513 | BB24: 1296.487347 | BC24: 1205.089786 | BD24: -7337.254888 | BE24: 6913.469743 | BF24: -423.7851451
A25: 2008-05-01 | B25: 8102.060836 | C25: 3469.216871 | D25: 1432.255193 | E25: 4340.174844 | F25: 316.488346 | G25: 100.225264 | H25: 530.0113711 | I25: 842.5328969 | J25: 229.856719 | K25: 138.1764639 | L25: 1666.849572 | M25: 1294.982976 | N25: 7264.072465 | O25: 9835.761578 | P25: 28897.01747 | Q25: 4805.627848 | R25: 24091.38962 | S25: 2242.724816 | T25: 8857.27855 | U25: -6614.553734 | V25: 929.900994 | W25: 48.210663 | X25: 881.690331 | Y25: 510.1308861 | Z25: 843.7208031 | AA25: -333.589917 | AB25: 283.9124994 | AC25: 168.3039294 | AD25: 115.60857 | AE25: 2846.179165 | AF25: 4440.069906 | AG25: -1593.890742 | AH25: 35709.86583 | AI25: 19163.2117 | AJ25: 24145.03121 | AK25: 16546.56135 | AL25: 13043.64308 | AM25: 21035.2631 | AN25: -7991.620016 | AO25: 8554.941333 | AP25: 796.753565 | AQ25: 1651.434245 | AR25: 4987.380798 | AS25: 5404.72037 | AT25: 108.4869397 | AU25: 76.88379849 | AV25: 4293.816431 | AW25: 3582.183569 | AX25: 184.5361005 | AY25: 362.6694877 | AZ25: 966.6855933 | BA25: 2419.150732 | BB25: 1206.177323 | BC25: 906.1077978 | BD25: -9076.78 | BE25: 8554.941333 | BF25: -521.838667
A26: 2008-06-01 | B26: 8051.761521 | C26: 4701.518521 | D26: 2293.405752 | E26: 4300.230205 | F26: 327.444594 | G26: 92.125264 | H26: 735.9605204 | I26: 918.5572486 | J26: 376.082683 | K26: 196.527163 | L26: 2313.715712 | M26: 1413.626222 | N26: 10192.93711 | O26: 13118.66317 | P26: 28684.86408 | Q26: 5763.822928 | R26: 22921.04116 | S26: 2984.069836 | T26: 8364.711208 | U26: -5380.641372 | V26: 992.906026 | W26: 68.078972 | X26: 924.827054 | Y26: 647.6082172 | Z26: 810.8088812 | AA26: -163.200664 | AB26: 414.768682 | AC26: 188.267789 | AD26: 226.500893 | AE26: 3126.387378 | AF26: 4152.533531 | AG26: -1026.146153 | AH26: 36850.60422 | AI26: 19348.22331 | AJ26: 26204.44302 | AK26: 17502.55388 | AL26: 15814.8398 | AM26: 24082.82139 | AN26: -8267.98159 | AO26: 9234.572286 | AP26: 1180.849355 | AQ26: 389.9225937 | AR26: 5500.44226 | AS26: 5700.080482 | AT26: 103.3822 | AU26: 92.61923287 | AV26: 4805.84208 | AW26: 4220.15792 | AX26: 209.6826117 | AY26: 254.4155555 | AZ26: 1039.181055 | BA26: 2854.047687 | BB26: 1047.777386 | BC26: 1145.40653 | BD26: -9809.34 | BE26: 9234.572286 | BF26: -574.767714
A27: 2008-07-01 | B27: 8350.009285 | C27: 5327.599796 | D27: 1598.479433 | E27: 5364.947411 | F27: 339.9457 | G27: 83.081093 | H27: 331.438188 | I27: 965.57504 | J27: 262.3512182 | K27: 246.1256087 | L27: 1984.293602 | M27: 1533.560255 | N27: 11602.16028 | O27: 11761.63226 | P27: 28373.10609 | Q27: 6440.594395 | R27: 21932.5117 | S27: 3105.43453 | T27: 8312.656378 | U27: -5207.221848 | V27: 997.05571 | W27: 37.45 | X27: 959.60571 | Y27: 441.4074377 | Z27: 748.3698227 | AA27: -306.962385 | AB27: 357.0284994 | AC27: 299.9968544 | AD27: 57.031645 | AE27: 2913.618573 | AF27: 4264.2504 | AG27: -1350.631827 | AH27: 36187.65084 | AI27: 20103.31785 | AJ27: 26291.53646 | AK27: 16084.50596 | AL27: 16623.2281 | AM27: 23303.885 | AN27: -6680.6569 | AO27: 9403.849061 | AP27: 2712.135841 | AQ27: 1297.142465 | AR27: 5002.517271 | AS27: 5731.55231 | AT27: 101.3648482 | AU27: 117.1096735 | AV27: 5186.740137 | AW27: 6336.259863 | AX27: 260.7689904 | AY27: 170.7582877 | AZ27: 1700.882773 | BA27: 1324.688364 | BB27: 975.0598144 | BC27: 859.8890376 | BD27: -9723.03 | BE27: 9403.849061 | BF27: -319.180939
A28: 2008-08-01 | B28: 5689.565052 | C28: 3904.208552 | D28: 1778.620852 | E28: 4461.249893 | F28: 322.5399505 | G28: 90.576335 | H28: 600.728134 | I28: 901.35589 | J28: 221.8241398 | K28: 163.9267646 | L28: 3227.226496 | M28: 1001.872187 | N28: 9656.936526 | O28: 11501.68706 | P28: 26517.73857 | Q28: 5458.83937 | R28: 21058.8992 | S28: 3544.844359 | T28: 8568.212477 | U28: -5023.368118 | V28: 952.343305 | W28: 26.95 | X28: 925.393305 | Y28: 650.021662 | Z28: 961.69847 | AA28: -311.676808 | AB28: 368.0920891 | AC28: 252.0718041 | AD28: 116.020285 | AE28: 3544.750645 | AF28: 3995.920209 | AG28: -451.1695642 | AH28: 35577.79063 | AI28: 19263.69233 | AJ28: 25403.69583 | AK28: 16314.27126 | AL28: 16085.3195 | AM28: 22707.18447 | AN28: -6621.864972 | AO28: 9692.40629 | AP28: 1153.92911 | AQ28: 1308.950654 | AR28: 5313.179082 | AS28: 5909.385129 | AT28: 129.9940673 | AU28: 78.68060523 | AV28: 4361.150075 | AW28: 4022.849925 | AX28: 307.0784552 | AY28: 513.8054815 | AZ28: 2280.065321 | BA28: 2701.875177 | BB28: 761.9254325 | BC28: 640.7830298 | BD28: -10585.45 | BE28: 9692.40629 | BF28: -893.04371
A29: 2008-09-01 | B29: 5155.331967 | C29: 2119.118588 | D29: 1662.917314 | E29: 4173.025013 | F29: 298.1682165 | G29: 113.716263 | H29: 877.9833811 | I29: 1156.907001 | J29: 288.8148996 | K29: 330.5268319 | L29: 4640.780837 | M29: 1483.024851 | N29: 8113.564037 | O29: 11677.08561 | P29: 24848.1632 | Q29: 3793.384337 | R29: 21054.77886 | S29: 3284.104288 | T29: 8138.704243 | U29: -4854.599955 | V29: 908.429932 | W29: 45.55 | X29: 862.879932 | Y29: 904.4084706 | Z29: 1057.452951 | AA29: -153.04448 | AB29: 398.0425324 | AC29: 361.9159934 | AD29: 36.126539 | AE29: 3215.059607 | AF29: 4025.327736 | AG29: -810.2681288 | AH29: 33558.20803 | AI29: 17422.33526 | AJ29: 23649.76924 | AK29: 16136.31149 | AL29: 15176.31144 | AM29: 22193.00926 | AN29: -7016.697822 | AO29: 9119.613664 | AP29: 1245.702054 | AQ29: 952.712313 | AR29: 5965.286779 | AS29: 5943.813532 | AT29: 185.9571366 | AU29: 100.8837705 | AV29: 4840.101596 | AW29: 4639.898404 | AX29: 325.8211073 | AY29: 182.8093612 | AZ29: 5992.251338 | BA29: 5898.757566 | BB29: 1167.296031 | BC29: 693.5750526 | BD29: -9238.78 | BE29: 9119.613664 | BF29: -119.166336
A30: 2008-10-01 | B30: 2150.071104 | C30: 2423.258985 | D30: 3110.94622 | E30: 3762.315051 | F30: 449.6912517 | G30: 81.61724721 | H30: 698.2653515 | I30: 717.2410135 | J30: 338.7877244 | K30: 225.6194374 | L30: 2378.489235 | M30: 1510.578 | N30: 6565.794877 | O30: 8816.783899 | P30: 20822.91442 | Q30: 3666.986373 | R30: 17155.92805 | S30: 4810.272558 | T30: 7778.721943 | U30: -2968.449384 | V30: 871.314303 | W30: 26.113 | X30: 845.201303 | Y30: 987.1762134 | Z30: 1097.59857 | AA30: -110.422357 | AB30: 346.6921591 | AC30: 271.1334131 | AD30: 75.558746 | AE30: 2909.510736 | AF30: 3462.499731 | AG30: -552.9889946 | AH30: 30747.88039 | AI30: 16303.05303 | AJ30: 20332.71535 | AK30: 14445.26607 | AL30: 12180.20391 | AM30: 19277.76027 | AN30: -7097.556357 | AO30: 7347.709712 | AP30: 1388.00131 | AQ30: 1221.145594 | AR30: 4907.29272 | AS30: 4917.047156 | AT30: 95.79684582 | AU30: 107.8543921 | AV30: 5447.083291 | AW30: 4902.916709 | AX30: 484.5025231 | AY30: 322.7289214 | AZ30: 4161.267708 | BA30: 3713.936217 | BB30: 1330.30738 | BC30: 1273.90101 | BD30: -7963.79 | BE30: 7347.709712 | BF30: -616.080288
A31: 2008-11-01 | B31: 2785.754 | C31: 1144.6349 | D31: 1838.462877 | E31: 3369.962847 | F31: 284.734531 | G31: 84.22602778 | H31: 365.5399429 | I31: 524.8440171 | J31: 171.8518231 | K31: 127.3042639 | L31: 1075.847163 | M31: 1702.556096 | N31: 3767.299721 | O31: 4407.371497 | P31: 20030.1237 | Q31: 3220.158273 | R31: 16809.96543 | S31: 4557.793029 | T31: 7379.937857 | U31: -2822.144828 | V31: 860.092174 | W31: 44.663 | X31: 815.429174 | Y31: 871.0075622 | Z31: 1008.936629 | AA31: -137.929067 | AB31: 243.0010855 | AC31: 192.8231315 | AD31: 50.177954 | AE31: 2869.905739 | AF31: 4089.157969 | AG31: -1219.25223 | AH31: 29431.92329 | AI31: 15935.67686 | AJ31: 18657.82949 | AK31: 13496.68514 | AL31: 11190.76208 | AM31: 17653.21752 | AN31: -6462.455442 | AO31: 7034.229699 | AP31: 796.0153331 | AQ31: 1347.87319 | AR31: 4781.505379 | AS31: 4208.165609 | AT31: 63.94038079 | AU31: 95.99669621 | AV31: 4442.635356 | AW31: 4428.364644 | AX31: 405.0451183 | AY31: 385.2230917 | AZ31: 2022.797455 | BA31: 1157.474091 | BB31: 966.3001967 | BC31: 936.692678 | BD31: -7018.72 | BE31: 7034.229699 | BF31: 15.509699
A32: 2008-12-01 | B32: 3792.649719 | C32: 1168.760719 | D32: 1087.222567 | E32: 3376.710535 | F32: 246.4395 | G32: 98.65 | H32: 360.9102443 | I32: 445.86128 | J32: 138.8762354 | K32: 76.76574803 | L32: 1423.397884 | M32: 920.0752711 | N32: 3267.625498 | O32: 4230.159863 | P32: 19398.3317 | Q32: 2472.289273 | R32: 16926.04243 | S32: 3964.322583 | T32: 6642.440291 | U32: -2678.117708 | V32: 909.204418 | W32: 84.013 | X32: 825.191418 | Y32: 711.9782616 | Z32: 793.9190136 | AA32: -81.940752 | AB32: 135.0827658 | AC32: 106.0417698 | AD32: 29.040996 | AE32: 2437.376201 | AF32: 3745.826973 | AG32: -1308.450771 | AH32: 27556.29593 | AI32: 13844.53032 | AJ32: 16082.45321 | AK32: 13711.47007 | AL32: 9711.959965 | AM32: 15979.83165 | AN32: -6267.871687 | AO32: 7443.598386 | AP32: 796.0569914 | AQ32: 1320.326072 | AR32: 4333.87643 | AS32: 4884.156546 | AT32: 55.63060158 | AU32: 73.44428192 | AV32: 3877.109799 | AW32: 3802.890201 | AX32: 861.6614239 | AY32: 799.3385761 | AZ32: 2428.855682 | BA32: 1360.626075 | BB32: 784.0391187 | BC32: 847.3382495 | BD32: -6939 | BE32: 7443.598386 | BF32: 504.598386
A33: 2009-01-01 | B33: 4877.434442 | C33: 2278.525123 | D33: 1432.448368 | E33: 4041.375827 | F33: 275.506729 | G33: 65.032288 | H33: 224.0560439 | I33: 721.405078 | J33: 108.728182 | K33: 103.6208712 | L33: 1264.68848 | M33: 620.5457787 | N33: 5567.701653 | O33: 7379.844188 | P33: 18996.37938 | Q33: 2327.193418 | R33: 16669.18597 | S33: 3504.769501 | T33: 6936.978247 | U33: -3432.208745 | V33: 868.935891 | W33: 50.671288 | X33: 818.264603 | Y33: 568.473039 | Z33: 792.23401 | AA33: -223.760971 | AB33: 125.473683 | AC33: 139.26752 | AD33: -13.793837 | AE33: 2579.809646 | AF33: 3044.045417 | AG33: -464.2357716 | AH33: 26643.84114 | AI33: 13290.3899 | AJ33: 17765.73367 | AK33: 13353.15569 | AL33: 11517.01074 | AM33: 17475.04104 | AN33: -5958.030304 | AO33: 7395.125388 | AP33: 643.5617135 | AQ33: 957.3320485 | AR33: 4604.220283 | AS33: 4268.324437 | AT33: 170.7559047 | AU33: 83.62905548 | AV33: 3235.25158 | AW33: 3325.74842 | AX33: 688.45626 | AY33: 655.54374 | AZ33: 983.0193908 | BA33: 1030.468111 | BB33: 1204.822754 | BC33: 1138.214189 | BD33: -6960.17 | BE33: 7395.125388 | BF33: 434.955388
A34: 2009-02-01 | B34: 5056.482432 | C34: 3298.915573 | D34: 688.7436759 | E34: 3172.002504 | F34: 253.6255037 | G34: 47.104848 | H34: 388.3603019 | I34: 593.7717345 | J34: 103.2345155 | K34: 114.2364502 | L34: 657.349283 | M34: 637.6375387 | N34: 6140.322643 | O34: 8886.837819 | P34: 18629.96528 | Q34: 2612.646037 | R34: 16017.31925 | S34: 3191.943897 | T34: 7247.119279 | U34: -4055.175381 | V34: 879.064327 | W34: 40.04196 | X34: 839.022367 | Y34: 570.9039863 | Z34: 805.8203203 | AA34: -234.916334 | AB34: 151.1929278 | AC34: 171.5123248 | AD34: -20.319397 | AE34: 2592.238182 | AF34: 2830.419789 | AG34: -238.1816076 | AH34: 26015.3086 | AI34: 13707.55971 | AJ34: 17589.24482 | AK34: 12307.45336 | AL34: 12228.73313 | AM34: 18947.24633 | AN34: -6718.513205 | AO34: 5588.940151 | AP34: 941.4250566 | AQ34: 481.4056824 | AR34: 3312.560866 | AS34: 3231.207395 | AT34: 80.8923997 | AU34: 73.9407869 | AV34: 2620.40501 | AW34: 2562.59499 | AX34: 723.5399845 | AY34: 680.4600155 | AZ34: 757.9230422 | BA34: 633.1126727 | BB34: 647.2262832 | BC34: 578.2384569 | BD34: -6071.05 | BE34: 5588.940151 | BF34: -482.109849
A35: 2009-03-01 | B35: 3995.142188 | C35: 1842.523461 | D35: 1145.908411 | E35: 3007.386361 | F35: 313.8426502 | G35: 115.965351 | H35: 337.4071721 | I35: 653.087958 | J35: 89.74764274 | K35: 98.20049886 | L35: 972.0638603 | M35: 640.7328799 | N35: 5922.149307 | O35: 6957.97824 | P35: 17454.65798 | Q35: 1757.074813 | R35: 15697.58316 | S35: 3141.252359 | T35: 6984.757462 | U35: -3843.505103 | V35: 945.868065 | W35: 83.313 | X35: 862.555065 | Y35: 565.8491587 | Z35: 831.4289447 | AA35: -265.579786 | AB35: 141.2164065 | AC35: 179.2868245 | AD35: -38.070418 | AE35: 2491.354131 | AF35: 2615.122926 | AG35: -123.7687949 | AH35: 24740.1981 | AI35: 12450.98397 | AJ35: 17270.08597 | AK35: 12289.18433 | AL35: 12795.75319 | AM35: 18546.24921 | AN35: -5750.496019 | AO35: 6538.688311 | AP35: 495.1610249 | AQ35: 870.4099711 | AR35: 3759.396031 | AS35: 3935.731943 | AT35: 183.4369662 | AU35: 128.2563497 | AV35: 4552.938389 | AW35: 4338.061611 | AX35: 473.5849843 | AY35: 407.0679739 | AZ35: 815.8270669 | BA35: 243.3202633 | BB35: 932.1652703 | BC35: 1143.321887 | BD35: -5861.65 | BE35: 6538.688311 | BF35: 677.038311
A36: 2009-04-01 | B36: 4589.918653 | C36: 1627.427653 | D36: 1192.553686 | E36: 2636.914753 | F36: 210.78199 | G36: 45.825868 | H36: 187.7635045 | I36: 411.650558 | J36: 115.3117269 | K36: 80.85680109 | L36: 747.5929151 | M36: 741.2091849 | N36: 5199.600849 | O36: 6872.526575 | P36: 17464.27786 | Q36: 1212.417011 | R36: 16251.86085 | S36: 3161.706578 | T36: 6880.19771 | U36: -3718.491132 | V36: 904.06857 | W36: 35.438868 | X36: 868.629702 | Y36: 497.0899038 | Z36: 821.5734458 | AA36: -324.483542 | AB36: 165.5759179 | AC36: 214.9025359 | AD36: -49.326618 | AE36: 2228.98944 | AF36: 2605.684109 | AG36: -376.694669 | AH36: 24421.70827 | AI36: 11770.21368 | AJ36: 16803.14027 | AK36: 12651.46479 | AL36: 11419.48262 | AM36: 18347.14936 | AN36: -6927.666738 | AO36: 5723.798056 | AP36: 392.4431571 | AQ36: 1201.31315 | AR36: 3623.026753 | AS36: 3407.264493 | AT36: 107.7782967 | AU36: 102.0843596 | AV36: 4488.823443 | AW36: 4127.176557 | AX36: 500.7073 | AY36: 474.5204487 | AZ36: 1822.862696 | BA36: 618.1434953 | BB36: 689.8086986 | BC36: 938.3574964 | BD36: -5148.97 | BE36: 5723.798056 | BF36: 574.828056
A37: 2009-05-01 | B37: 6710.36657 | C37: 2551.496539 | D37: 1034.770612 | E37: 2938.851447 | F37: 250.2526901 | G37: 46.104244 | H37: 197.665026 | I37: 560.6935974 | J37: 116.0582457 | K37: 107.4952772 | L37: 751.9733818 | M37: 453.7836424 | N37: 4586.304419 | O37: 5488.013414 | P37: 19807.88967 | Q37: 1701.425436 | R37: 18106.46423 | S37: 3055.251302 | T37: 6920.711145 | U37: -3865.459843 | V37: 933.664925 | W37: 44.424032 | X37: 889.240893 | Y37: 409.9552081 | Z37: 709.2969631 | AA37: -299.341755 | AB37: 153.1956182 | AC37: 187.2150522 | AD37: -34.019434 | AE37: 2411.927037 | AF37: 2606.326422 | AG37: -194.3993852 | AH37: 26771.88376 | AI37: 12169.39905 | AJ37: 17689.80559 | AK37: 14602.45492 | AL37: 11339.27638 | AM37: 18249.05097 | AN37: -6909.774591 | AO37: 7692.680326 | AP37: 257.8902087 | AQ37: 1987.266906 | AR37: 3415.325358 | AS37: 3858.282119 | AT37: 82.22404267 | AU37: 99.07580643 | AV37: 3910.002894 | AW37: 3956.997106 | AX37: 352.3898433 | AY37: 443.1860747 | AZ37: 1384.976172 | BA37: 779.1442493 | BB37: 594.8708717 | BC37: 770.3977383 | BD37: -7032.54 | BE37: 7692.680326 | BF37: 660.140326
A38: 2009-06-01 | B38: 7857.284 | C38: 3157.113 | D38: 1142.358435 | E38: 4013.05955 | F38: 423.769538 | G38: 142.719723 | H38: 256.648262 | I38: 386.3388372 | J38: 147.7535345 | K38: 148.9704489 | L38: 1890.372994 | M38: 1533.847802 | N38: 6403.343511 | O38: 7811.402023 | P38: 21214.46167 | Q38: 1506.184936 | R38: 19708.27673 | S38: 3133.329676 | T38: 7687.460101 | U38: -4554.130425 | V38: 1028.530615 | W38: 128.593809 | X38: 899.936806 | Y38: 437.1584603 | Z38: 706.7881543 | AA38: -269.629694 | AB38: 158.864978 | AC38: 213.219729 | AD38: -54.354751 | AE38: 2606.29014 | AF38: 3161.85055 | AG38: -555.5604101 | AH38: 28578.63554 | AI38: 13404.09728 | AJ38: 18842.42527 | AK38: 15174.77422 | AL38: 12046.3677 | AM38: 18826.04665 | AN38: -6779.678951 | AO38: 8395.095267 | AP38: 157.4719278 | AQ38: 1639.637394 | AR38: 4111.46085 | AS38: 4833.361796 | AT38: 156.7759274 | AU38: 133.772593 | AV38: 3818.257912 | AW38: 3920.742088 | AX38: 137.5192849 | AY38: 344.3943199 | AZ38: 4449.585351 | BA38: 2236.844283 | BB38: 1002.422437 | BC38: 1264.907526 | BD38: -7571.41 | BE38: 8395.095267 | BF38: 823.685267
A39: 2009-07-01 | B39: 8248.149 | C39: 2070.896 | D39: 924.0335974 | E39: 3757.894853 | F39: 579.40248 | G39: 53.101425 | H39: 339.2463571 | I39: 574.9714418 | J39: 170.5091445 | K39: 120.4990353 | L39: 886.1747201 | M39: 187.574698 | N39: 6646.492275 | O39: 9790.716478 | P39: 23024.28301 | Q39: 1214.141936 | R39: 21810.14107 | S39: 2847.183922 | T39: 8155.675841 | U39: -5308.491918 | V39: 1012.362897 | W39: 41.214425 | X39: 971.148472 | Y39: 330.4055084 | Z39: 313.9877814 | AA39: 16.417727 | AB39: 219.9091175 | AC39: 224.5954795 | AD39: -4.686362 | AE39: 2840.650175 | AF39: 3162.929288 | AG39: -322.2791127 | AH39: 30274.79463 | AI39: 13112.54475 | AJ39: 20172.26913 | AK39: 17162.48583 | AL39: 12361.64655 | AM39: 20847.14955 | AN39: -8485.503 | AO39: 8676.98283 | AP39: 464.9134928 | AQ39: 2043.971988 | AR39: 4897.38343 | AS39: 4523.8686 | AT39: 156.3143478 | AU39: 154.6190428 | AV39: 4578.132823 | AW39: 4417.867177 | AX39: 134.0952443 | AY39: 230.0914277 | AZ39: 1313.499596 | BA39: 539.45806 | BB39: 871.5513863 | BC39: 899.7037045 | BD39: -7964.89 | BE39: 8676.98283 | BF39: 712.09283
A40: 2009-08-01 | B40: 8024.063 | C40: 1962.518 | D40: 1028.635548 | E40: 3939.79297 | F40: 641.2500839 | G40: 73.67362797 | H40: 325.282128 | I40: 437.993658 | J40: 208.7616599 | K40: 203.258158 | L40: 2255.863068 | M40: 282.1533987 | N40: 7500.346442 | O40: 11382.96544 | P40: 23308.66494 | Q40: 759.963936 | R40: 22548.70101 | S40: 2906.118797 | T40: 8357.117838 | U40: -5450.999041 | V40: 1001.621634 | W40: 43.238425 | X40: 958.383209 | Y40: 308.1355886 | Z40: 300.7029196 | AA40: 7.432669 | AB40: 263.7435469 | AC40: 282.2463429 | AD40: -18.502796 | AE40: 3404.554684 | AF40: 2835.705699 | AG40: 568.8489853 | AH40: 31192.83919 | AI40: 12578.97516 | AJ40: 19881.36069 | AK40: 18614.09999 | AL40: 13402.09351 | AM40: 22911.15386 | AN40: -9509.060353 | AO40: 9105.039637 | AP40: 252.845167 | AQ40: 1418.442203 | AR40: 4653.053176 | AS40: 4818.673655 | AT40: 125.9595295 | AU40: 114.3983166 | AV40: 4542.8323 | AW40: 4105.1677 | AX40: 211.821432 | AY40: 445.5351761 | AZ40: 2667.074989 | BA40: 1769.952099 | BB40: 616.3921714 | BC40: 471.0408507 | BD40: -8035.64 | BE40: 9105.039637 | BF40: 1069.399637
A41: 2009-09-01 | B41: 9676.009694 | C41: 4038.892994 | D41: 971.4403781 | E41: 4227.225944 | F41: 602.66073 | G41: 129.805599 | H41: 536.1387326 | I41: 753.1152034 | J41: 282.0713648 | K41: 179.4457288 | L41: 2292.983525 | M41: 812.9554942 | N41: 9336.104789 | O41: 12600.26474 | P41: 25189.62764 | Q41: 1536.316933 | R41: 23653.3107 | S41: 2759.674535 | T41: 8080.811207 | U41: -5321.136672 | V41: 1032.932314 | W41: 66.513 | X41: 966.419314 | Y41: 567.9258254 | Z41: 547.6365994 | AA41: 20.289226 | AB41: 289.9015629 | AC41: 259.9752389 | AD41: 29.926324 | AE41: 3348.014023 | AF41: 2679.086561 | AG41: 668.9274611 | AH41: 33188.0759 | AI41: 13170.33954 | AJ41: 18027.27248 | AK41: 20017.23805 | AL41: 14414.671 | AM41: 23461.49698 | AN41: -9046.825979 | AO41: 10970.41207 | AP41: 254.3639555 | AQ41: 2351.045898 | AR41: 4717.479678 | AS41: 5598.839402 | AT41: 99.82742814 | AU41: 137.6382276 | AV41: 4056.641493 | AW41: 4091.358507 | AX41: 242.7297663 | AY41: 582.2848097 | AZ41: 5060.209891 | BA41: 4506.744951 | BB41: 1192.151204 | BC41: 860.4982043 | BD41: -10540.35563 | BE41: 10970.41207 | BF41: 430.0564402
A42: 2009-10-01 | B42: 8267.43324 | C42: 2374.5672 | D42: 1307.680629 | E42: 4732.974786 | F42: 589.53758 | G42: 62.051435 | H42: 445.8611761 | I42: 761.5965189 | J42: 436.4552363 | K42: 203.7775801 | L42: 2267.721167 | M42: 756.7915442 | N42: 9231.911403 | O42: 11719.21527 | P42: 26551.69474 | Q42: 807.442936 | R42: 25744.2518 | S42: 3020.394213 | T42: 9456.856701 | U42: -6436.462488 | V42: 997.675025 | W42: 30.470935 | X42: 967.20409 | Y42: 527.4661383 | Z42: 631.2341423 | AA42: -103.768004 | AB42: 362.3941028 | AC42: 313.7251298 | AD42: 48.668973 | AE42: 3570.108521 | AF42: 2938.587316 | AG42: 631.5212048 | AH42: 35029.73274 | AI42: 14178.31716 | AJ42: 20529.5298 | AK42: 20850.91728 | AL42: 15819.39051 | AM42: 24430.03802 | AN42: -8610.647512 | AO42: 12240.26977 | AP42: 185.3656625 | AQ42: 2264.37157 | AR42: 5129.821854 | AS42: 4603.445078 | AT42: 106.0268636 | AU42: 157.2212384 | AV42: 4564.147588 | AW42: 4724.852412 | AX42: 222.5353961 | AY42: 752.8212625 | AZ42: 2995.651296 | BA42: 1967.859663 | BB42: 878.567004 | BC42: 830.9287756 | BD42: -11785.72169 | BE42: 12240.26977 | BF42: 454.5480782
A43: 2009-11-01 | B43: 9760.136 | C43: 2352.711 | D43: 1043.988127 | E43: 6155.395143 | F43: 596.303808 | G43: 168.696192 | H43: 201.4196997 | I43: 682.5803003 | J43: 410.9220404 | K43: 287.0779596 | L43: 1546.728007 | M43: 1092.830023 | N43: 9280.871914 | O43: 11807.60529 | P43: 30140.92856 | Q43: 1541.410936 | R43: 28599.51762 | S43: 2830.08336 | T43: 11337.47383 | U43: -8507.390472 | V43: 1044.928507 | W43: 63.000541 | X43: 981.9279658 | Y43: 287.392548 | Z43: 480.1336906 | AA43: -192.7411426 | AB43: 543.2846609 | AC43: 346.8260698 | AD43: 196.4585911 | AE43: 3398.991864 | AF43: 3014.81454 | AG43: 384.1773236 | AH43: 38245.6095 | AI43: 16783.65961 | AJ43: 21628.95552 | AK43: 21461.4516 | AL43: 17585.55687 | AM43: 24964.48242 | AN43: -7378.925553 | AO43: 14082.52604 | AP43: 249.4953281 | AQ43: 3155.504672 | AR43: 5666.143256 | AS43: 5673.285582 | AT43: 214.258123 | AU43: 162.741877 | AV43: 4411.307616 | AW43: 4648.692384 | AX43: 348.2218508 | AY43: 461.7781492 | AZ43: 2036.061847 | BA43: 1152.552695 | BB43: 1299.787616 | BC43: 915.2960546 | BD43: -13735.20796 | BE43: 14082.52604 | BF43: 347.3180844
A44: 2009-12-01 | B44: 7125.559774 | C44: 2815.69093 | D44: 1199.79846 | E44: 4693.099771 | F44: 587.187655 | G44: 144.812345 | H44: 197.018457 | I44: 437.981543 | J44: 241.084442 | K44: 244.915558 | L44: 2892.726881 | M44: 2592.839607 | N44: 6047.333488 | O44: 10766.2133 | P44: 30051.81177 | Q44: 2526.470306 | R44: 27525.34146 | S44: 2472.009455 | T44: 9022.277866 | U44: -6550.268411 | V44: 1344.775861 | W44: 76.775861 | X44: 1268 | Y44: 235.1457022 | Z44: 422.1457022 | AA44: -187 | AB44: 405.7470575 | AC44: 336.7470575 | AD44: 69 | AE44: 3189.225464 | AF44: 3810.254467 | AG44: -621.029003 | AH44: 37698.71531 | AI44: 16194.67126 | AJ44: 19398.4694 | AK44: 21503.8115 | AL44: 14334.05038 | AM44: 21688.07014 | AN44: -7354.019752 | AO44: 14149.79174 | AP44: 921.9582427 | AQ44: 1522.041757 | AR44: 7091.085107 | AS44: 8534.29312 | AT44: 146.6460646 | AU44: 115.3539354 | AV44: 4281.951057 | AW44: 4042.048943 | AX44: 340.874865 | AY44: 349.125135 | AZ44: 5026.084233 | BA44: 3470.893694 | BB44: 2380.89704 | BC44: 1834.035069 | BD44: -13402.35271 | BE44: 14149.79174 | BF44: 747.791743
A45: 2010-01-01 | B45: 7740.380923 | C45: 3949.934923 | D45: 1970.724487 | E45: 4939.107926 | F45: 893.73441 | G45: 113.26559 | H45: 286.3724209 | I45: 718.6275791 | J45: 374.1478862 | K45: 294.8521138 | L45: 1890.41995 | M45: 1066.006407 | N45: 8553.017082 | O45: 9954.306393 | P45: 30317.77285 | Q45: 3762.15893 | R45: 26555.61392 | S45: 5671.424356 | T45: 10887.41309 | U45: -5215.988739 | V45: 1739.865497 | W45: 77.028386 | X45: 1662.837111 | Y45: 368.1316749 | Z45: 615.9392725 | AA45: -247.8075976 | AB45: 531.9804236 | AC45: 451.7248895 | AD45: 80.25553407 | AE45: 1034.884619 | AF45: 2524.107027 | AG45: -1489.222408 | AH45: 39664.05942 | AI45: 18318.3716 | AJ45: 23091.84464 | AK45: 21345.55113 | AL45: 17355.05169 | AM45: 24659.88856 | AN45: -7304.836869 | AO45: 14040.71426 | AP45: 290.4400005 | AQ45: 1910.250905 | AR45: 5792.28613 | AS45: 4947.975629 | AT45: 250.5256402 | AU45: 274.2357038 | AV45: 4291.399178 | AW45: 3884.834812 | AX45: 394.277643 | AY45: 401.2941977 | AZ45: 1289.288648 | BA45: 1133.485201 | BB45: 1076.932728 | BC45: 655.4869481 | BD45: -13206.46763 | BE45: 14040.71426 | BF45: 834.714257
A46: 2010-02-01 | B46: 4562.457 | C46: 4212.546 | D46: 1698.946543 | E46: 3505.665422 | F46: 656.6805608 | G46: 138.737105 | H46: 276.4872879 | I46: 447.218513 | J46: 162.419785 | K46: 197.3569952 | L46: 1945.651566 | M46: 1285.166871 | N46: 8223.054141 | O46: 8314.307066 | P46: 26362.367 | Q46: 3369.76893 | R46: 22992.59807 | S46: 6293.921429 | T46: 10829.7009 | U46: -4535.779475 | V46: 1752.727413 | W46: 77.678386 | X46: 1675.049027 | Y46: 449.6797811 | Z46: 566.5572601 | AA46: -116.877479 | AB46: 490.9556924 | AC46: 423.3101693 | AD46: 67.64552306 | AE46: 1060.701914 | AF46: 2392.3386 | AG46: -1331.636686 | AH46: 36410.35323 | AI46: 17659.35425 | AJ46: 21707.10676 | AK46: 18750.86228 | AL46: 17650.8488 | AM46: 24001.36311 | AN46: -6350.514311 | AO46: 12400.34797 | AP46: 598.083458 | AQ46: 555.861023 | AR46: 4381.457978 | AS46: 4179.669404 | AT46: 429.002951 | AU46: 400.2697194 | AV46: 3233.076523 | AW46: 3118.293926 | AX46: 292.0569704 | AY46: 242.9626021 | AZ46: 1386.357888 | BA46: 670.7283292 | BB46: 1141.200115 | BC46: 1070.32949 | BD46: -11975.66687 | BE46: 12400.34797 | BF46: 424.6810986
A47: 2010-03-01 | B47: 7000.780672 | C47: 2452.342 | D47: 1728.192624 | E47: 4646.342244 | F47: 858.0621162 | G47: 226.9378838 | H47: 341.6784777 | I47: 594.3215223 | J47: 337.2744202 | K47: 97.72557982 | L47: 2583.058383 | M47: 1684.64021 | N47: 8374.221924 | O47: 9135.134244 | P47: 25813.83251 | Q47: 2632.92693 | R47: 23180.90558 | S47: 6713.608881 | T47: 10384.62508 | U47: -3671.016201 | V47: 1569.544969 | W47: 109.933157 | X47: 1459.611812 | Y47: 518.9173959 | Z47: 569.1423454 | AA47: -50.22494945 | AB47: 492.8162478 | AC47: 320.9515782 | AD47: 171.8646696 | AE47: 1424.276347 | AF47: 1800.021148 | AG47: -375.7448016 | AH47: 36532.99635 | AI47: 15817.60024 | AJ47: 22937.38819 | AK47: 20715.52516 | AL47: 18336.55005 | AM47: 25411.6119 | AN47: -7075.061847 | AO47: 13640.46331 | AP47: 676.076214 | AQ47: 1323.322914 | AR47: 5760.667853 | AS47: 6554.219958 | AT47: 663.7965482 | AU47: 386.7336588 | AV47: 4867.514442 | AW47: 5159.704608 | AX47: 202.8615497 | AY47: 349.7601676 | AZ47: 1350.221918 | BA47: 1456.083291 | BB47: 1347.427859 | BC47: 1127.36429 | BD47: -13464.09273 | BE47: 13640.46331 | BF47: 176.3705804
A48: 2010-04-01 | B48: 5048.943 | C48: 1733.791004 | D48: 1392.08505 | E48: 3977.963035 | F48: 812.4458353 | G48: 188.5541647 | H48: 253.2837467 | I48: 569.7162533 | J48: 377.960868 | K48: 82.03913195 | L48: 2079.124235 | M48: 2031.221199 | N48: 10602.31583 | O48: 11750.30071 | P48: 24666.98911 | Q48: 1933.065934 | R48: 22733.92317 | S48: 6272.806459 | T48: 10495.85857 | U48: -4223.052113 | V48: 1599.955503 | W48: 134.996021 | X48: 1464.959482 | Y48: 435.4132062 | Z48: 551.3698746 | AA48: -115.9566684 | AB48: 519.5767351 | AC48: 306.5369397 | AD48: 213.0397954 | AE48: 1608.588697 | AF48: 2506.079409 | AG48: -897.4907116 | AH48: 35103.32971 | AI48: 15927.90675 | AJ48: 22323.49091 | AK48: 19175.552 | AL48: 21090.1872 | AM48: 28119.17165 | AN48: -7028.984453 | AO48: 12146.56755 | AP48: 518.8358287 | AQ48: 1038.164171 | AR48: 5152.062357 | AS48: 4548.323636 | AT48: 676.4722499 | AU48: 436.5277501 | AV48: 4773.835194 | AW48: 4592.164806 | AX48: 182.4076193 | AY48: 376.5923807 | AZ48: 2230.009173 | BA48: 1035.527364 | BB48: 754.1095114 | BC48: 1118.744561 | BD48: -12311.63 | BE48: 12146.56755 | BF48: -165.062449
A49: 2010-05-01 | B49: 5517.196781 | C49: 5095.766472 | D49: 2466.484904 | E49: 3673.920119 | F49: 897.1894018 | G49: 197.8105982 | H49: 334.538769 | I49: 676.4612309 | J49: 282.4804925 | K49: 156.5195075 | L49: 2092.814616 | M49: 2040.410687 | N49: 10146.99942 | O49: 10866.3026 | P49: 25432.01694 | Q49: 5016.216353 | R49: 20415.80059 | S49: 7255.000298 | T49: 10172.36459 | U49: -2917.364288 | V49: 1684.584913 | W49: 183.7657582 | X49: 1500.819155 | Y49: 523.9539583 | Z49: 569.9317212 | AA49: -45.97776292 | AB49: 529.9704101 | AC49: 334.2341654 | AD49: 195.7362447 | AE49: 1121.66154 | AF49: 2721.707976 | AG49: -1600.046436 | AH49: 36547.18806 | AI49: 18998.22056 | AJ49: 23295.67419 | AK49: 17549.09654 | AL49: 23384.58933 | AM49: 29813.04678 | AN49: -6428.457449 | AO49: 11120.63909 | AP49: 2466.48238 | AQ49: 1083.51762 | AR49: 4595.807241 | AS49: 5236.497873 | AT49: 669.419153 | AU49: 583.580847 | AV49: 5520.932188 | AW49: 5161.067812 | AX49: 304.1488275 | AY49: 232.8511725 | AZ49: 1336.88749 | BA49: 1025.740436 | BB49: 1324.922244 | BC49: 1715.572286 | BD49: -11145.01277 | BE49: 11120.63909 | BF49: -24.37368126
A50: 2010-06-01 | B50: 6494.653348 | C50: 2523.413897 | D50: 1685.601842 | E50: 4032.638499 | F50: 954.3970417 | G50: 264.6029583 | H50: 306.62903 | I50: 511.2968313 | J50: 389.1948794 | K50: 106.3683193 | L50: 2784.648552 | M50: 1485.959797 | N50: 10496.82223 | O50: 12071.60919 | P50: 26942.44157 | Q50: 5510.220711 | R50: 21432.22086 | S50: 7177.709309 | T50: 9709.612222 | U50: -2531.902912 | V50: 1755.955265 | W50: 215.442386 | X50: 1540.512879 | Y50: 563.0303315 | Z50: 522.8257956 | AA50: 40.20453587 | AB50: 539.7404176 | AC50: 255.2767181 | AD50: 284.4636995 | AE50: 1526.676197 | AF50: 2322.460468 | AG50: -795.7842711 | AH50: 38505.55309 | AI50: 18535.8383 | AJ50: 23918.48367 | AK50: 19970.10958 | AL50: 24435.88816 | AM50: 30863.2951 | AN50: -6427.406941 | AO50: 13542.70264 | AP50: 798.9558 | AQ50: 2161.686769 | AR50: 4621.567135 | AS50: 5378.117425 | AT50: 523.2077448 | AU50: 508.7568552 | AV50: 5049.598313 | AW50: 5219.564687 | AX50: 175.4889884 | AY50: 231.6604166 | AZ50: 1210.381496 | BA50: 1254.041518 | BB50: 932.4077657 | BC50: 905.3516377 | BD50: -13475.91 | BE50: 13542.70264 | BF50: 66.792639
A51: 2010-07-01 | B51: 7853.099225 | C51: 3748.639343 | D51: 1137.766616 | E51: 5067.289334 | F51: 952.9795989 | G51: 261.3704011 | H51: 202.7486186 | I51: 756.2513814 | J51: 257.9110949 | K51: 284.0889051 | L51: 2712.68292 | M51: 1849.322318 | N51: 10293.07941 | O51: 9966.849644 | P51: 27088.56216 | Q51: 4969.834694 | R51: 22118.72746 | S51: 6477.44023 | T51: 10862.51762 | U51: -4385.07739 | V51: 1817.300348 | W51: 238.7001861 | X51: 1578.600162 | Y51: 432.9181791 | Z51: 517.4846571 | AA51: -84.56647796 | AB51: 492.1016492 | AC51: 339.267077 | AD51: 152.8345722 | AE51: 1478.982904 | AF51: 2774.792156 | AG51: -1295.809252 | AH51: 37787.30547 | AI51: 19702.59639 | AJ51: 22743.69857 | AK51: 18085.10387 | AL51: 25546.95025 | AM51: 29968.50875 | AN51: -4421.558494 | AO51: 13663.54538 | AP51: 546.6323473 | AQ51: 2184.626792 | AR51: 5099.71748 | AS51: 5295.269959 | AT51: 971.5694377 | AU51: 764.6974583 | AV51: 4732.585318 | AW51: 5078.897049 | AX51: 379.9563401 | AY51: 323.1831732 | AZ51: 1504.060598 | BA51: 951.7594166 | BB51: 1171.149796 | BC51: 952.4668945 | BD51: -14598.23939 | BE51: 13663.54538 | BF51: -934.694016
A52: 2010-08-01 | B52: 8152.332003 | C52: 6176.2025 | D52: 1560.88147 | E52: 5949.881168 | F52: 881.7674733 | G52: 608.3383847 | H52: 156.6375702 | I52: 694.4653775 | J52: 253.761 | K52: 284.2855003 | L52: 2396.014526 | M52: 2036.317558 | N52: 13603.94384 | O52: 11915.51106 | P52: 28288.82878 | Q52: 5482.840639 | R52: 22805.98814 | S52: 6440.067931 | T52: 11833.87421 | U52: -5393.806276 | V52: 1649.852101 | W52: 197.3717079 | X52: 1452.480393 | Y52: 387.5248249 | Z52: 645.3465501 | AA52: -257.8217251 | AB52: 531.5640642 | AC52: 322.292844 | AD52: 209.2712202 | AE52: 862.368229 | AF52: 2508.846432 | AG52: -1646.478203 | AH52: 38160.20593 | AI52: 20990.57238 | AJ52: 26539.22955 | AK52: 17170.02835 | AL52: 29612.43467 | AM52: 32335.43332 | AN52: -2722.998647 | AO52: 14447.0297 | AP52: 913.1210858 | AQ52: 1351.730931 | AR52: 6096.863728 | AS52: 6227.954407 | AT52: 1044.746003 | AU52: 775.2478605 | AV52: 5046.040209 | AW52: 5653.076951 | AX52: 413.949453 | AY52: 449.6481483 | AZ52: 2050.818153 | BA52: 1000.149869 | BB52: 1519.070735 | BC52: 1515.472867 | BD52: -14727.62 | BE52: 14447.0297 | BF52: -280.590302
A53: 2010-09-01 | B53: 6456.878175 | C53: 5369.766809 | D53: 987.4331403 | E53: 5574.953295 | F53: 606.7075147 | G53: 195.3065217 | H53: 157.2597021 | I53: 533.2488873 | J53: 188.1745734 | K53: 126.9990317 | L53: 2789.646262 | M53: 2832.208192 | N53: 11790.07634 | O53: 9289.201233 | P53: 26996.29278 | Q53: 4428.167088 | R53: 22568.1257 | S53: 6121.356335 | T53: 11974.25369 | U53: -5852.897358 | V53: 1756.951521 | W53: 202.467032 | X53: 1554.484489 | Y53: 291.6319219 | Z53: 664.2957428 | AA53: -372.6638209 | AB53: 458.2513823 | AC53: 262.2270057 | AD53: 196.0243766 | AE53: 801.3921299 | AF53: 2655.073978 | AG53: -1853.681849 | AH53: 36425.87607 | AI53: 20186.48454 | AJ53: 26752.50228 | AK53: 16239.05206 | AL53: 29989.93322 | AM53: 30083.93768 | AN53: -94.004458 | AO53: 16145.04761 | AP53: 295.3410769 | AQ53: 1551.974629 | AR53: 5570.53805 | AS53: 6370.3357 | AT53: 828.7154122 | AU53: 581.5201428 | AV53: 4142.655944 | AW53: 4837.622883 | AX53: 267.8310037 | AY53: 250.0422531 | AZ53: 2101.235054 | BA53: 883.5181925 | BB53: 1681.393927 | BC53: 1844.34282 | BD53: -15923 | BE53: 16145.04761 | BF53: 221.757605
A54: 2010-10-01 | B54: 8787.362837 | C54: 5444.465886 | D54: 1033.71169 | E54: 5493.998864 | F54: 304.8980905 | G54: 283.7255626 | H54: 343.1319226 | I54: 344.0531826 | J54: 314.9420066 | K54: 345.6529644 | L54: 2535.951968 | M54: 1997.53489 | N54: 12388.15446 | O54: 15998.52535 | P54: 27694.9805 | Q54: 3343.056419 | R54: 24351.92408 | S54: 5897.445933 | T54: 13174.584 | U54: -7277.138068 | V54: 1685.997003 | W54: 131.3192298 | X54: 1554.677773 | Y54: 373.7711405 | Z54: 680.9597494 | AA54: -307.1886089 | AB54: 563.9227068 | AC54: 422.8994053 | AD54: 141.0233015 | AE54: 635.8611869 | AF54: 2643.747925 | AG54: -2007.886738 | AH54: 36851.97847 | AI54: 20396.56673 | AJ54: 27763.3081 | AK54: 16455.07227 | AL54: 31872.43917 | AM54: 32854.78962 | AN54: -982.35045 | AO54: 15472.72182 | AP54: 471.0336063 | AQ54: 1709.01785 | AR54: 5842.17255 | AS54: 5493.890161 | AT54: 861.0991676 | AU54: 614.3222594 | AV54: 4124.229715 | AW54: 4802.225948 | AX54: 624.5868575 | AY54: 620.4132545 | AZ54: 1884.107338 | BA54: 1172.695635 | BB54: 1727.80817 | BC54: 1459.651353 | BD54: -16299.16949 | BE54: 15472.72182 | BF54: -826.4476669
A55: 2010-11-01 | B55: 6020.107147 | C55: 4074.275214 | D55: 1633.839065 | E55: 4918.336638 | F55: 596.3035037 | G55: 207.2725725 | H55: 229.0098379 | I55: 344.4668852 | J55: 326.9464844 | K55: 270.4503486 | L55: 2155.612296 | M55: 2347.208262 | N55: 13115.64671 | O55: 13917.7746 | P55: 27388.81197 | Q55: 3016.490261 | R55: 24372.32171 | S55: 5953.667462 | T55: 12846.61655 | U55: -6892.94909 | V55: 1780.182012 | W55: 122.0638242 | X55: 1658.118188 | Y55: 328.7651288 | Z55: 662.0805977 | AA55: -333.3154689 | AB55: 550.8304262 | AC55: 386.3711983 | AD55: 164.4592279 | AE55: 643.2243703 | AF55: 2524.847206 | AG55: -1881.622836 | AH55: 36645.48137 | AI55: 19558.46964 | AJ55: 26231.09706 | AK55: 17086.67227 | AL55: 31188.03799 | AM55: 32643.01668 | AN55: -1454.978691 | AO55: 15631.69358 | AP55: 1226.969162 | AQ55: 656.1372747 | AR55: 5985.545114 | AS55: 5834.0659 | AT55: 772.7429438 | AU55: 661.2149642 | AV55: 4917.244493 | AW55: 5312.503667 | AX55: 872.8352282 | AY55: 1036.811111 | AZ55: 2100.5672 | BA55: 1052.697526 | BB55: 1476.006288 | BC55: 1490.857919 | BD55: -15038.73069 | BE55: 15631.69358 | BF55: 592.9628929
A56: 2010-12-01 | B56: 6885.500538 | C56: 6082.401776 | D56: 1842.987269 | E56: 5802.888556 | F56: 601.6192073 | G56: 291.5627969 | H56: 131.0910666 | I56: 336.9307449 | J56: 295.1380398 | K56: 220.2305429 | L56: 3474.704993 | M56: 3743.477755 | N56: 13091.71192 | O56: 10199.13671 | P56: 27440.77808 | Q56: 3981.527661 | R56: 23459.25042 | S56: 6142.280216 | T56: 12902.70202 | U56: -6760.421803 | V56: 1863.439024 | W56: 138.5219391 | X56: 1724.917085 | Y56: 266.3011844 | Z56: 669.4982955 | AA56: -403.1971111 | AB56: 576.4798561 | AC56: 258.797553 | AD56: 317.6823031 | AE56: 563.2113592 | AF56: 2437.774542 | AG56: -1874.563183 | AH56: 36852.48972 | AI56: 20388.82201 | AJ56: 27417.10652 | AK56: 16463.63759 | AL56: 30417.33998 | AM56: 29997.56285 | AN56: 419.777131 | AO56: 16883.41472 | AP56: 861.8974286 | AQ56: 621.8703584 | AR56: 5779.851449 | AS56: 7912.950267 | AT56: 885.4242086 | AU56: 664.9103803 | AV56: 7085.859989 | AW56: 6369.890061 | AX56: 1149.967931 | AY56: 1255.077622 | AZ56: 484.4611853 | BA56: 1194.229541 | BB56: 2147.865423 | BC56: 2151.110851 | BD56: -16836.23654 | BE56: 16883.41472 | BF56: 47.17817812
A57: 2011-01-01 | B57: 8490.279641 | C57: 6278.056818 | D57: 2744.083423 | E57: 6052.326262 | F57: 764.161896 | G57: 214.0845316 | H57: 274.3129025 | I57: 253.8215198 | J57: 223.574 | K57: 214.7711571 | L57: 3052.716944 | M57: 2322.140874 | N57: 14064.85969 | O57: 18910.97864 | P57: 28318.011 | Q57: 4101.103 | R57: 24216.908 | S57: 7353.061993 | T57: 13867.73124 | U57: -6514.669244 | V57: 1989.112451 | W57: 167.438224 | X57: 1821.674227 | Y57: 337.5671972 | Z57: 471.8686222 | AA57: -134.301425 | AB57: 575.6474459 | AC57: 306.9162025 | AD57: 268.7312434 | AE57: 1528.044793 | AF57: 2724.345295 | AG57: -1196.300502 | AH57: 40101.44488 | AI57: 21639.40258 | AJ57: 29031.17594 | AK57: 18462.01218 | AL57: 34371.88355 | AM57: 36860.18637 | AN57: -2488.302812 | AO57: 15973.70937 | AP57: 1085.268376 | AQ57: 1476.008034 | AR57: 7356.822517 | AS57: 5326.854279 | AT57: 549.4795234 | AU57: 362.0629835 | AV57: 4895.738611 | AW57: 4654.747286 | AX57: 875.7277966 | AY57: 911.9835924 | AZ57: 1742.87232 | BA57: 2901.256594 | BB57: 1994.679941 | BC57: 1906.797129 | BD57: -15899.57257 | BE57: 15973.70937 | BF57: 74.13679826
A58: 2011-02-01 | B58: 6984.961915 | C58: 5538.081026 | D58: 1504.114723 | E58: 4548.744492 | F58: 553.892835 | G58: 233.202081 | H58: 127.402156 | I58: 251.0444461 | J58: 194.3849905 | K58: 85.64244046 | L58: 1876.891714 | M58: 1636.689488 | N58: 12257.58882 | O58: 13753.0913 | P58: 28445.21288 | Q58: 4268.297 | R58: 24176.91588 | S58: 7264.383035 | T58: 14297.01826 | U58: -7032.635224 | V58: 2036.210387 | W58: 146.3656982 | X58: 1889.844689 | Y58: 270.5444398 | Z58: 391.1207143 | AA58: -120.5762745 | AB58: 586.8549815 | AC58: 197.627465 | AD58: 389.2275165 | AE58: 1479.889956 | AF58: 2415.662873 | AG58: -935.7729165 | AH58: 40083.09568 | AI58: 21716.09201 | AJ58: 28132.40442 | AK58: 18366.8777 | AL58: 32357.79213 | AM58: 34521.54476 | AN58: -2163.752636 | AO58: 16203.12506 | AP58: 1336.197189 | AQ58: 1030.549482 | AR58: 5414.496359 | AS58: 4328.757676 | AT58: 309.4927166 | AU58: 252.0181559 | AV58: 3620.491235 | AW58: 3694.443153 | AX58: 1154.438318 | AY58: 1307.593753 | AZ58: 890.5910446 | BA58: 2950.118373 | BB58: 2493.135864 | BC58: 2197.199089 | BD58: -16450.52652 | BE58: 16203.12506 | BF58: -247.4014551
A59: 2011-03-01 | B59: 9383.193984 | C59: 7583.0385 | D59: 1852.238865 | E59: 4213.363733 | F59: 601.7754462 | G59: 265.9801122 | H59: 265.5964495 | I59: 357.5444472 | J59: 363.659346 | K59: 145.8008282 | L59: 1936.95819 | M59: 2032.638375 | N59: 16213.91887 | O59: 18600.05942 | P59: 28440.4526 | Q59: 5176.2655 | R59: 23264.1871 | S59: 7106.159678 | T59: 13173.34578 | U59: -6067.186098 | V59: 2002.006746 | W59: 132.5982701 | X59: 1869.408476 | Y59: 325.7763802 | Z59: 398.4434625 | AA59: -72.66708227 | AB59: 637.998298 | AC59: 197.46626 | AD59: 440.532038 | AE59: 1341.191817 | AF59: 2412.868441 | AG59: -1071.676624 | AH59: 39853.58552 | AI59: 21490.98771 | AJ59: 33332.47645 | AK59: 18362.70877 | AL59: 34675.20619 | AM59: 37547.62817 | AN59: -2872.421979 | AO59: 15490.28679 | AP59: 3009.884677 | AQ59: 2156.027813 | AR59: 6225.670491 | AS59: 6298.144309 | AT59: 480.2199401 | AU59: 292.6759851 | AV59: 5791.423035 | AW59: 5867.457835 | AX59: 1435.798559 | AY59: 1266.404635 | AZ59: 1620.839737 | BA59: 2947.708372 | BB59: 2127.296827 | BC59: 1316.399419 | BD59: -15931.42629 | BE59: 15490.28679 | BF59: -441.1395007
A60: 2011-04-01 | B60: 8479.124156 | C60: 5724.854775 | D60: 1925.218286 | E60: 5249.774591 | F60: 590.7201271 | G60: 183.2902398 | H60: 220.8977368 | I60: 445.1000107 | J60: 270.655 | K60: 303.9514792 | L60: 2047.243547 | M60: 2272.037165 | N60: 15684.21553 | O60: 17025.52551 | P60: 28816.8384 | Q60: 4654.129687 | R60: 24162.70872 | S60: 7107.231958 | T60: 13768.82155 | U60: -6661.589596 | V60: 2056.752271 | W60: 202.734599 | X60: 1854.017672 | Y60: 326.3369186 | Z60: 473.5180426 | AA60: -147.181124 | AB60: 686.7267252 | AC60: 281.8608417 | AD60: 404.8658835 | AE60: 1062.768058 | AF60: 2615.190256 | AG60: -1552.422198 | AH60: 40056.65433 | AI60: 21996.25498 | AJ60: 34014.03329 | AK60: 18060.0103 | AL60: 33439.94486 | AM60: 34707.08825 | AN60: -1267.143395 | AO60: 16792.86691 | AP60: 1408.802458 | AQ60: 1111.620136 | AR60: 6497.071724 | AS60: 5495.540632 | AT60: 565.9798103 | AU60: 267.8793756 | AV60: 4596.39733 | AW60: 4934.25634 | AX60: 1821.391787 | AY60: 1752.292632 | AZ60: 1998.8457 | BA60: 3479.323189 | BB60: 1304.673224 | BC60: 1174.659291 | BD60: -15861.45019 | BE60: 16792.86691 | BF60: 931.4167122
A61: 2011-05-01 | B61: 8780.712785 | C61: 6830.3125 | D61: 1947.643026 | E61: 4977.267456 | F61: 512.134464 | G61: 260.636099 | H61: 359.5999854 | I61: 517.9512623 | J61: 268.1144615 | K61: 427.6526748 | L61: 2967.274911 | M61: 2426.96978 | N61: 18399.74429 | O61: 19733.70825 | P61: 29224.48491 | Q61: 4860.538687 | R61: 24363.94622 | S61: 6879.838377 | T61: 13728.15222 | U61: -6848.313841 | V61: 1991.1335 | W61: 174.815017 | X61: 1816.318483 | Y61: 390.8276789 | Z61: 477.3167931 | AA61: -86.48911416 | AB61: 641.9834507 | AC61: 317.7939916 | AD61: 324.1894591 | AE61: 1454.580063 | AF61: 2525.565694 | AG61: -1070.98563 | AH61: 40582.84798 | AI61: 22084.1824 | AJ61: 36067.34504 | AK61: 18498.27653 | AL61: 36194.70562 | AM61: 37826.3805 | AN61: -1631.674881 | AO61: 16866.60165 | AP61: 1806.033663 | AQ61: 1935.115222 | AR61: 8209.571041 | AS61: 8065.83844 | AT61: 393.946912 | AU61: 290.3851241 | AV61: 6610.610328 | AW61: 7350.716762 | AX61: 2628.851334 | AY61: 2499.260553 | AZ61: 1677.001868 | BA61: 2351.671937 | BB61: 2698.680055 | BC61: 1712.224038 | BD61: -16200.95534 | BE61: 16866.60165 | BF61: 665.6463046
A62: 2011-06-01 | B62: 6544.480601 | C62: 7170.032607 | D62: 2049.096589 | E62: 4976.098888 | F62: 380.0488638 | G62: 236.9298383 | H62: 271.1241257 | I62: 468.0033281 | J62: 291.5908526 | K62: 323.1831416 | L62: 1880.489632 | M62: 1754.977297 | N62: 15417.03184 | O62: 18763.4734 | P62: 28769.10701 | Q62: 6578.938294 | R62: 22190.16872 | S62: 7087.319853 | T62: 13152.95903 | U62: -6065.639181 | V62: 2119.427703 | W62: 237.0263873 | X62: 1882.401316 | Y62: 298.1881788 | Z62: 360.8306807 | AA62: -62.64250187 | AB62: 630.2043122 | AC62: 306.8426127 | AD62: 323.3616995 | AE62: 1386.082873 | AF62: 2387.583712 | AG62: -1001.500839 | AH62: 40290.32993 | AI62: 23024.18072 | AJ62: 36734.04923 | AK62: 17266.02591 | AL62: 33553.01923 | AM62: 35760.59773 | AN62: -2207.578509 | AO62: 15058.4474 | AP62: 2088.667472 | AQ62: 742.127006 | AR62: 7592.327315 | AS62: 8967.56653 | AT62: 354.9301691 | AU62: 240.6303823 | AV62: 6616.642023 | AW62: 7793.892777 | AX62: 2640.451554 | AY62: 2417.550281 | AZ62: 1663.012688 | BA62: 286.5218657 | BB62: 2403.027392 | BC62: 1561.907883 | BD62: -14772 | BE62: 15058.4474 | BF62: 286.447404
A63: 2011-07-01 | B63: 6282.264138 | C63: 7143.120588 | D63: 1303.371929 | E63: 5685.515021 | F63: 475.1746742 | G63: 218.3038438 | H63: 284.7682489 | I63: 355.5494259 | J63: 296.2871033 | K63: 141.9637081 | L63: 2042.942835 | M63: 2020.676139 | N63: 16639.40134 | O63: 16269.3384 | P63: 27748.34449 | Q63: 7959.573343 | R63: 19788.77114 | S63: 6567.414578 | T63: 13654.12632 | U63: -7086.711743 | V63: 2127.513244 | W63: 271.381335 | X63: 1856.131909 | Y63: 278.1325412 | Z63: 291.6110515 | AA63: -13.47851032 | AB63: 635.9413039 | AC63: 318.3164026 | AD63: 317.6249013 | AE63: 1322.372703 | AF63: 2143.811497 | AG63: -821.4387941 | AH63: 38679.71886 | AI63: 24638.81995 | AJ63: 35747.69002 | AK63: 14040.77561 | AL63: 34642.16795 | AM63: 33940.37086 | AN63: 701.797089 | AO63: 14742.5727 | AP63: 2595.547117 | AQ63: 560.0181805 | AR63: 6979.783186 | AS63: 7273.410834 | AT63: 419.868173 | AU63: 233.0336249 | AV63: 6604.613941 | AW63: 6478.11775 | AX63: 596.0402218 | AY63: 441.4428752 | AZ63: 492.4863917 | BA63: 2847.922746 | BB63: 1634.443564 | BC63: 1498.641324 | BD63: -14793 | BE63: 14742.5727 | BF63: -50.4273
A64: 2011-08-01 | B64: 8779.1288 | C64: 11447.28384 | D64: 2545.803202 | E64: 4137.887822 | F64: 704.8984471 | G64: 303.5048769 | H64: 393.2227688 | I64: 318.92893 | J64: 374.344249 | K64: 273.417453 | L64: 2430.598378 | M64: 1650.339621 | N64: 15789.93151 | O64: 18003.13988 | P64: 26899.06447 | Q64: 11373.52904 | R64: 15525.53542 | S64: 7470.53914 | T64: 12628.38314 | U64: -5157.843996 | V64: 2121.169195 | W64: 323.7119211 | X64: 1797.457274 | Y64: 279.4630696 | Z64: 233.901228 | AA64: 45.56184155 | AB64: 768.317353 | AC64: 431.0721555 | AD64: 337.2451976 | AE64: 1572.287063 | AF64: 1956.24869 | AG64: -383.9616271 | AH64: 39110.84029 | AI64: 26946.84617 | AJ64: 37510.959 | AK64: 12164.29241 | AL64: 33977.94936 | AM64: 34305.9356 | AN64: -327.98624 | AO64: 11836.30617 | AP64: 5222.889333 | AQ64: 1136.902369 | AR64: 7332.739583 | AS64: 7538.36827 | AT64: 348.0268148 | AU64: 301.3496505 | AV64: 7435.155122 | AW64: 7944.242598 | AX64: 657.217448 | AY64: 316.2061216 | AZ64: 1471.775524 | BA64: 2286.815576 | BB64: 1514.068746 | BC64: 1803.61053 | BD64: -12155 | BE64: 11836.30617 | BF64: -318.693834
A65: 2011-09-01 | B65: 9932.434244 | C65: 8595.316656 | D65: 4281.800056 | E65: 4650.376173 | F65: 784.4642867 | G65: 341.6249823 | H65: 456.7182173 | I65: 313.8167061 | J65: 238.6972122 | K65: 235.6787107 | L65: 2614.336902 | M65: 2051.274013 | N65: 13551.75814 | O65: 18988.88666 | P65: 24262.92081 | Q65: 10354.32019 | R65: 13908.60062 | S65: 9565.671058 | T65: 11985.19537 | U65: -2419.524308 | V65: 2060.851505 | W65: 258.8515052 | X65: 1802 | Y65: 456.925051 | Z65: 276.851673 | AA65: 180.073378 | AB65: 572.211413 | AC65: 394.6396841 | AD65: 177.5717289 | AE65: 2510.395933 | AF65: 1701.839022 | AG65: 808.5569109 | AH65: 39428.97577 | AI65: 24971.69744 | AJ65: 38089.42609 | AK65: 14456.84077 | AL65: 29848.58863 | AM65: 35112.67667 | AN65: -5264.088032 | AO65: 9192.752735 | AP65: 3409.319967 | AQ65: 1162.916782 | AR65: 9916.392346 | AS65: 9736.909968 | AT65: 280.5194282 | AU65: 316.0265292 | AV65: 6572.006888 | AW65: 7038.433972 | AX65: 470.1338685 | AY65: 269.3720618 | AZ65: 1873.220277 | BA65: 265.2766412 | BB65: 2740.919398 | BC65: 3248.003358 | BD65: -8891 | BE65: 9192.752735 | BF65: 301.752735
A66: 2011-10-01 | B66: 9838.546562 | C66: 7978.991531 | D66: 2342.635604 | E66: 5290.844004 | F66: 703.3411543 | G66: 305.8380847 | H66: 217.7356359 | I66: 251.8361505 | J66: 249.320906 | K66: 166.3252299 | L66: 2860.733191 | M66: 2776.726767 | N66: 16605.92501 | O66: 17221.86943 | P66: 23181.90991 | Q66: 9087.400156 | R66: 14094.50975 | S66: 9905.018104 | T66: 12217.95387 | U66: -2312.935763 | V66: 2166.47481 | W66: 315.7099315 | X66: 1850.764878 | Y66: 394.1989258 | Z66: 291.8705786 | AA66: 102.3283472 | AB66: 548.8506611 | AC66: 397.232914 | AD66: 151.6177471 | AE66: 2243.752059 | AF66: 1391.393253 | AG66: 852.3588066 | AH66: 38440.20447 | AI66: 23701.5607 | AJ66: 35918.09741 | AK66: 14738.28622 | AL66: 31739.50536 | AM66: 35408.70596 | AN66: -3669.200603 | AO66: 11069.08561 | AP66: 2499.620477 | AQ66: 2855.579999 | AR66: 8315.846511 | AS66: 9517.968564 | AT66: 303.8385878 | AU66: 236.0712254 | AV66: 6530.169957 | AW66: 6239.479013 | AX66: 273.8535085 | AY66: 171.5088113 | AZ66: 2707.811814 | BA66: 3049.445706 | BB66: 1795.41124 | BC66: 1596.546695 | BD66: -10062 | BE66: 11069.08561 | BF66: 1007.085613
A67: 2011-11-01 | B67: 10333.0134 | C67: 7885.841175 | D67: 2425.862011 | E67: 4707.051541 | F67: 860.5630892 | G67: 323.4042158 | H67: 331.4078952 | I67: 228.9164391 | J67: 170.9641501 | K67: 362.5935563 | L67: 2576.971967 | M67: 2060.688071 | N67: 13184.14124 | O67: 15575.54417 | P67: 23308.82184 | Q67: 9088.934375 | R67: 14219.88747 | S67: 10225.20025 | T67: 12385.20045 | U67: -2160.0002 | V67: 2297.917267 | W67: 269.9172666 | X67: 2028 | Y67: 468.2497988 | Z67: 313.2497988 | AA67: 155 | AB67: 546.0908656 | AC67: 373.0908656 | AD67: 173 | AE67: 2497.052886 | AF67: 1718.800031 | AG67: 778.252855 | AH67: 39343.33291 | AI67: 24149.19279 | AJ67: 36795.91813 | AK67: 15194.31138 | AL67: 29525.19035 | AM67: 34422.66621 | AN67: -4897.475863 | AO67: 10296.83552 | AP67: 1440.204073 | AQ67: 1850.449176 | AR67: 6622.608723 | AS67: 6319.748597 | AT67: 265.3836793 | AU67: 350.4747631 | AV67: 6489.879311 | AW67: 6469.177559 | AX67: 597.7912263 | AY67: 539.1557397 | AZ67: 1940.821789 | BA67: 2358.328503 | BB67: 1676.172439 | BC67: 1191.68523 | BD67: -10110 | BE67: 10296.83552 | BF67: 186.8355195
A68: 2011-12-01 | B68: 7460.38149 | C68: 5561.8612 | D68: 2189.431827 | E68: 5100.855945 | F68: 669.8582453 | G68: 289.1890845 | H68: 220.1847409 | I68: 228.2289341 | J68: 221.28909 | K68: 241.834155 | L68: 2701.119012 | M68: 1907.110004 | N68: 12180.19635 | O68: 13905.19301 | P68: 21117.12006 | Q68: 7271.2772 | R68: 13845.84286 | S68: 9763.799839 | T68: 10981.32305 | U68: -1217.523208 | V68: 2088.385229 | W68: 245.3852285 | X68: 1843 | Y68: 384.1476896 | Z68: 288.506301 | AA68: 95.64138857 | AB68: 487.14501 | AC68: 310.6572057 | AD68: 176.4878043 | AE68: 3173.464313 | AF68: 2068.191678 | AG68: 1105.272635 | AH68: 37014.06214 | AI68: 21165.34066 | AJ68: 32295.5083 | AK68: 15848.72147 | AL68: 27389.56575 | AM68: 33755.76712 | AN68: -6366.201374 | AO68: 9482.520101 | AP68: 2069.898243 | AQ68: 2316.139895 | AR68: 7430.975598 | AS68: 8159.497497 | AT68: 300.8869619 | AU68: 188.305078 | AV68: 6550.026604 | AW68: 6428.651976 | AX68: 498.8410632 | AY68: 425.2988034 | AZ68: 2670.611013 | BA68: 2788.177243 | BB68: 2569.705371 | BC68: 1452.83278 | BD68: -9850.06 | BE68: 9482.520101 | BF68: -367.5398994
A69: 2012-01-01 | B69: 10051.92163 | C69: 7807.07 | D69: 2278.537935 | E69: 5611.938114 | F69: 780.467072 | G69: 260.535305 | H69: 183.1919212 | I69: 328.8246633 | J69: 182.2876462 | K69: 98.4857528 | L69: 2518.945582 | M69: 2381.984463 | N69: 13248.45716 | O69: 15144.95457 | P69: 21076.8563 | Q69: 6696.957 | R69: 14379.8993 | S69: 9930.712988 | T69: 12182.84502 | U69: -2252.132035 | V69: 2159.982701 | W69: 249.0120918 | X69: 1910.970609 | Y69: 305.9193213 | Z69: 357.444995 | AA69: -51.52567365 | AB69: 514.3952569 | AC69: 255.3952569 | AD69: 259 | AE69: 3221.322993 | AF69: 2445.097244 | AG69: 776.2257492 | AH69: 37209.18956 | AI69: 22186.75161 | AJ69: 32983.27728 | AK69: 15022.43795 | AL69: 29621.44353 | AM69: 34705.18553 | AN69: -5083.741997 | AO69: 9938.695953 | AP69: 1066.173874 | AQ69: 2078.305258 | AR69: 7007.121757 | AS69: 7185.801041 | AT69: 184.967909 | AU69: 241.059111 | AV69: 6388.384271 | AW69: 5833.472349 | AX69: 202.4734066 | AY69: 238.2381999 | AZ69: 1591.134788 | BA69: 2342.819776 | BB69: 1857.494872 | BC69: 1635.552518 | BD69: -11089.76692 | BE69: 9938.695953 | BF69: -1151.070971
A70: 2012-02-01 | B70: 8491.674204 | C70: 6499.508469 | D70: 1152.475731 | E70: 4174.292855 | F70: 768.684556 | G70: 267.852276 | H70: 136.4623733 | I70: 167.990767 | J70: 168.7796213 | K70: 88.76827438 | L70: 3515.876597 | M70: 2162.029258 | N70: 13935.33609 | O70: 15225.15981 | P70: 21696.87497 | Q70: 6972.729283 | R70: 14724.14568 | S70: 9281.656608 | T70: 12283.00538 | U70: -3001.348774 | V70: 2189.397971 | W70: 255.3979708 | X70: 1934 | Y70: 220.3415473 | Z70: 304.4062684 | AA70: -84.06472106 | AB70: 494.8945263 | AC70: 217.5169265 | AD70: 277.3775998 | AE70: 3582.383117 | AF70: 2416.123109 | AG70: 1166.260008 | AH70: 37465.54874 | AI70: 22449.17894 | AJ70: 32392.79544 | AK70: 15016.46071 | AL70: 31057.29171 | AM70: 35383.65743 | AN70: -4326.365713 | AO70: 10690.095 | AP70: 1334.435437 | AQ70: 1390.536711 | AR70: 6312.185162 | AS70: 6281.3486 | AT70: 121.742571 | AU70: 116.2272586 | AV70: 5310.743179 | AW70: 4990.675061 | AX70: 194.3517261 | AY70: 221.1505678 | AZ70: 1980.308934 | BA70: 3065.896455 | BB70: 1901.023856 | BC70: 1584.492683 | BD70: -11618.57025 | BE70: 10690.095 | BF70: -928.4752503
A71: 2012-03-01 | B71: 9240.562995 | C71: 6171.31239 | D71: 2105.756248 | E71: 4699.477194 | F71: 815.927353 | G71: 268.898901 | H71: 262.6555002 | I71: 201.9689701 | J71: 264.9622309 | K71: 56.30011937 | L71: 5126.840419 | M71: 2974.384529 | N71: 14153.42253 | O71: 17746.67809 | P71: 22257.56888 | Q71: 6256.5945 | R71: 16000.97438 | S71: 9394.30276 | T71: 12207.74904 | U71: -2813.446281 | V71: 2223.826511 | W71: 233.9050538 | X71: 1989.921457 | Y71: 263.8863995 | Z71: 304.3713229 | AA71: -40.48492341 | AB71: 524.9328899 | AC71: 161.0991815 | AD71: 363.8337084 | AE71: 4351.60568 | AF71: 2521.605261 | AG71: 1830.000419 | AH71: 39016.12312 | AI71: 21685.32436 | AJ71: 33951.07581 | AK71: 17330.79875 | AL71: 30235.38575 | AM71: 36941.938 | AN71: -6706.552255 | AO71: 10624.2465 | AP71: 816.0820363 | AQ71: 2730.260647 | AR71: 8582.144433 | AS71: 8383.43628 | AT71: 202.7507105 | AU71: 199.6895366 | AV71: 5497.438125 | AW71: 5186.856285 | AX71: 171.6798368 | AY71: 261.9261136 | AZ71: 2489.937304 | BA71: 1422.798941 | BB71: 3480.424196 | BC71: 2909.19937 | BD71: -11353.71959 | BE71: 10624.2465 | BF71: -729.4730889
A72: 2012-04-01 | B72: 7229.61951 | C72: 6522.744821 | D72: 1566.858147 | E72: 4624.801343 | F72: 651.7919076 | G72: 212.7244384 | H72: 174.81176 | I72: 201.6958291 | J72: 156.770095 | K72: 64.04 | L72: 2324.438696 | M72: 2524.993569 | N72: 11186.18048 | O72: 14605.41522 | P72: 21252.83665 | Q72: 6241.8945 | R72: 15010.94215 | S72: 9146.927168 | T72: 12292.59884 | U72: -3145.671671 | V72: 2182.326768 | W72: 158.2616144 | X72: 2024.065154 | Y72: 217.4678763 | Z72: 297.5347404 | AA72: -80.06686408 | AB72: 517.1064316 | AC72: 160.1064316 | AD72: 357 | AE72: 3603.650516 | AF72: 2704.643785 | AG72: 899.0067312 | AH72: 36920.31541 | AI72: 21855.03991 | AJ72: 33800.50852 | AK72: 15065.2755 | AL72: 28971.40234 | AM72: 35845.9449 | AN72: -6874.542563 | AO72: 8190.732932 | AP72: 1806.926368 | AQ72: 1219.166397 | AR72: 7826.324844 | AS72: 7406.174474 | AT72: 179.388186 | AU72: 238.4509588 | AV72: 5587.947382 | AW72: 5421.634738 | AX72: 133.9220974 | AY72: 164.5884671 | AZ72: 2077.527472 | BA72: 1743.916475 | BB72: 1945.414444 | BC72: 1351.37225 | BD72: -9456.308797 | BE72: 8190.732932 | BF72: -1265.575868
A73: 2012-05-01 | B73: 9829.223106 | C73: 7672.573106 | D73: 3905.201482 | E73: 5190.283352 | F73: 701.6700888 | G73: 307.7130842 | H73: 427.7502802 | I73: 268.6132098 | J73: 169.3661384 | K73: 188.5410948 | L73: 5922.68407 | M73: 3129.329528 | N73: 13261.23585 | O73: 19525.21219 | P73: 22188.34312 | Q73: 7561.869503 | R73: 14626.47361 | S73: 10991.83789 | T73: 12453.99955 | U73: -1462.16166 | V73: 2407.531886 | W73: 191.1977324 | X73: 2216.334154 | Y73: 443.1201378 | Z73: 370.5672585 | AA73: 72.55287926 | AB73: 505.4392924 | AC73: 249.4392924 | AD73: 256 | AE73: 5629.593498 | AF73: 2155.201848 | AG73: 3474.39165 | AH73: 42165.86582 | AI73: 22982.27518 | AJ73: 38716.871 | AK73: 19183.59064 | AL73: 31588.37241 | AM73: 42471.61537 | AN73: -10883.24296 | AO73: 8300.347675 | AP73: 1736.310088 | AQ73: 1339.650908 | AR73: 8430.884569 | AS73: 7418.17722 | AT73: 259.0112657 | AU73: 264.1717012 | AV73: 7125.834447 | AW73: 7334.150413 | AX73: 199.0596761 | AY73: 97.78224972 | AZ73: 2773.067055 | BA73: 3020.245169 | BB73: 2462.990842 | BC73: 2544.431946 | BD73: -8478.453387 | BE73: 8300.347675 | BF73: -178.1057253
A74: 2012-06-01 | B74: 8715.55058 | C74: 7871.121092 | D74: 2150.609188 | E74: 4893.958116 | F74: 742.5260867 | G74: 375.8915213 | H74: 212.0648631 | I74: 252.4440452 | J74: 215.3283954 | K74: 106.1570698 | L74: 4984.277109 | M74: 2954.726459 | N74: 16511.84798 | O74: 20992.1429 | P74: 21342.95716 | Q74: 7567.8207 | R74: 13775.13646 | S74: 10794.9009 | T74: 12038.5674 | U74: -1243.666503 | V74: 2427.348176 | W74: 170.1566357 | X74: 2257.19154 | Y74: 375.3889611 | Z74: 374.7557691 | AA74: 0.63319196 | AB74: 530.3245647 | AC74: 224.7106568 | AD74: 305.6139079 | AE74: 5689.29553 | AF74: 2749.306286 | AG74: 2939.989244 | AH74: 41160.21529 | AI74: 23125.31745 | AJ74: 37554.40374 | AK74: 18034.89784 | AL74: 31552.26759 | AM74: 42477.69478 | AN74: -10925.42718 | AO74: 7109.470654 | AP74: 1831.902587 | AQ74: 1591.027554 | AR74: 7430.245635 | AS74: 8661.197504 | AT74: 300.2792325 | AU74: 307.1682604 | AV74: 8439.267629 | AW74: 8824.258621 | AX74: 263.8589788 | AY74: 213.2133711 | AZ74: 3446.561135 | BA74: 2250.928711 | BB74: 3558.26103 | BC74: 3345.920216 | BD74: -8114.574 | BE74: 7109.470654 | BF74: -1005.103346
A75: 2012-07-01 | B75: 9892.731937 | C75: 7799.53456 | D75: 2055.318946 | E75: 5224.330662 | F75: 862.9606641 | G75: 405.951296 | H75: 205.9993704 | I75: 276.5047242 | J75: 133.2456383 | K75: 117.5221241 | L75: 3630.808168 | M75: 2841.055571 | N75: 14956.52152 | O75: 17406.22753 | P75: 21520.75488 | Q75: 7405.381084 | R75: 14115.3738 | S75: 10295.74874 | T75: 12498.15314 | U75: -2202.404402 | V75: 2494.287292 | W75: 210.1127204 | X75: 2284.174572 | Y75: 338.0011695 | Z75: 407.2644197 | AA75: -69.26325015 | AB75: 504.8445647 | AC75: 226.9203553 | AD75: 277.9242094 | AE75: 5564.747299 | AF75: 2334.485874 | AG75: 3230.261426 | AH75: 40718.38395 | AI75: 23082.31759 | AJ75: 38181.92015 | AK75: 17636.06635 | AL75: 32310.88847 | AM75: 42112.88615 | AN75: -9801.99768 | AO75: 7834.068674 | AP75: 2134.523439 | AQ75: 1940.022151 | AR75: 8096.476272 | AS75: 8577.684359 | AT75: 218.884173 | AU75: 345.0511236 | AV75: 6211.275808 | AW75: 6893.287662 | AX75: 140.6252272 | AY75: 146.7159663 | AZ75: 1841.826532 | BA75: 1899.953995 | BB75: 2790.267395 | BC75: 2038.24873 | BD75: -8776.7 | BE75: 7834.068674 | BF75: -942.6313259
A76: 2012-08-01 | B76: 8747.546287 | C76: 6298.646287 | D76: 1695.382021 | E76: 5738.633058 | F76: 783.9419545 | G76: 358.3693039 | H76: 205.5070758 | I76: 279.819448 | J76: 211.110262 | K76: 150.1415336 | L76: 6778.545708 | M76: 4650.573037 | N76: 15721.23713 | O76: 19452.48392 | P76: 20519.80392 | Q76: 5935.334072 | R76: 14584.46985 | S76: 9485.66818 | T76: 13097.34205 | U76: -3611.673873 | V76: 2478.634698 | W76: 206.2750373 | X76: 2272.359661 | Y76: 275.9154718 | Z76: 396.8044923 | AA76: -120.8890205 | AB76: 496.1169951 | AC76: 152.1490001 | AD76: 343.967995 | AE76: 7465.215721 | AF76: 4842.37547 | AG76: 2622.840251 | AH76: 40721.35499 | AI76: 24630.28012 | AJ76: 36516.32088 | AK76: 16091.07486 | AL76: 30343.28779 | AM76: 40457.15532 | AN76: -10113.86753 | AO76: 5977.207334 | AP76: 1378.353209 | AQ76: 1607.11608 | AR76: 10545.32645 | AS76: 8775.979125 | AT76: 193.0006254 | AU76: 155.0817504 | AV76: 5993.879738 | AW76: 6633.344599 | AX76: 174.9415908 | AY76: 171.4868192 | AZ76: 3021.80451 | BA76: 3251.082112 | BB76: 2071.874208 | BC76: 1674.728529 | BD76: -7696.22 | BE76: 5977.207334 | BF76: -1719.012666
A77: 2012-09-01 | B77: 9174.0721 | C77: 8129.341397 | D77: 1890.265363 | E77: 5576.731297 | F77: 570.3912673 | G77: 241.014 | H77: 151.6698615 | I77: 182.1619882 | J77: 276.2704376 | K77: 194.6315415 | L77: 4074.11988 | M77: 1854.664819 | N77: 14221.37314 | O77: 16301.20249 | P77: 20143.32077 | Q77: 6641.300362 | R77: 13502.02041 | S77: 9531.272175 | T77: 13790.22429 | U77: -4258.952115 | V77: 2495.470631 | W77: 206.6340524 | X77: 2288.836578 | Y77: 219.4124776 | Z77: 307.6483953 | AA77: -88.23591776 | AB77: 526.9618177 | AC77: 195.2910721 | AD77: 331.6707455 | AE77: 6788.550475 | AF77: 3417.67388 | AG77: 3370.876595 | AH77: 39704.98835 | AI77: 24558.77205 | AJ77: 36331.21478 | AK77: 15146.2163 | AL77: 31814.91966 | AM77: 39897.92178 | AN77: -8083.002122 | AO77: 7063.214175 | AP77: 1389.724249 | AQ77: 1657.724194 | AR77: 8404.667799 | AS77: 7695.499195 | AT77: 153.6511418 | AU77: 197.4107248 | AV77: 4673.758401 | AW77: 5366.540191 | AX77: 219.9101541 | AY77: 239.8191469 | AZ77: 967.376267 | BA77: 941.8426609 | BB77: 2233.36339 | BC77: 1837.943675 | BD77: -7572.678906 | BE77: 7063.214175 | BF77: -509.4647307
A78: 2012-10-01 | B78: 12841.6572 | C78: 10043.8072 | D78: 3406.625036 | E78: 7504.194673 | F78: 673.7913568 | G78: 307.4722873 | H78: 234.2722565 | I78: 251.2460721 | J78: 154.2973808 | K78: 76.14488362 | L78: 4623.158865 | M78: 1929.531655 | N78: 18809.48439 | O78: 22967.56887 | P78: 21943.13557 | Q78: 7015.6575 | R78: 14927.47807 | S78: 9317.591371 | T78: 13669.75188 | U78: -4352.160507 | V78: 2447.529452 | W78: 154.5397905 | X78: 2292.989662 | Y78: 253.0609773 | Z78: 306.6882876 | AA78: -53.62731025 | AB78: 504.4344811 | AC78: 128.7963037 | AD78: 375.6381773 | AE78: 5861.657453 | AF78: 2392.751365 | AG78: 3468.906088 | AH78: 40327.40931 | AI78: 23668.18512 | AJ78: 35696.62212 | AK78: 16659.22418 | AL78: 34106.3858 | AM78: 42656.83127 | AN78: -8550.445462 | AO78: 8108.778719 | AP78: 877.8600876 | AQ78: 2191.110111 | AR78: 9513.063395 | AS78: 9496.902114 | AT78: 203.2813464 | AU78: 240.6372398 | AV78: 7645.567825 | AW78: 7960.219973 | AX78: 438.4601052 | AY78: 371.8683125 | AZ78: 1388.186 | BA78: 1371.974934 | BB78: 1575.386321 | BC78: 1994.02023 | BD78: -9465.765874 | BE78: 8108.778719 | BF78: -1356.987155
A79: 2012-11-01 | B79: 10043.87215 | C79: 8330.498147 | D79: 3518.153908 | E79: 8297.846618 | F79: 865.8358792 | G79: 395.4272545 | H79: 295.8955136 | I79: 246.29595 | J79: 255.7905568 | K79: 163.8958482 | L79: 5845.342525 | M79: 3407.827592 | N79: 17500.04972 | O79: 20275.27973 | P79: 21457.58052 | Q79: 6127.311 | R79: 15330.26952 | S79: 9187.765828 | T79: 14699.17504 | U79: -5511.409208 | V79: 2725.912244 | W79: 305.4802809 | X79: 2420.431963 | Y79: 333.310536 | Z79: 330.0913243 | AA79: 3.21921161 | AB79: 498.5887505 | AC79: 152.3502559 | AD79: 346.2384946 | AE79: 7394.522963 | AF79: 3620.507273 | AG79: 3774.015691 | AH79: 41597.68085 | AI79: 25234.91517 | AJ79: 37943.95411 | AK79: 16362.76568 | AL79: 35492.71257 | AM79: 42537.81151 | AN79: -7045.098937 | AO79: 9317.66674 | AP79: 388.290767 | AQ79: 2003.163049 | AR79: 9314.402296 | AS79: 9383.326192 | AT79: 158.2975836 | AU79: 325.4658107 | AV79: 6795.953764 | AW79: 6934.623421 | AX79: 334.5414759 | AY79: 188.8487719 | AZ79: 3339.679923 | BA79: 2711.959572 | BB79: 1677.358413 | BC79: 1736.116661 | BD79: -10742.0048 | BE79: 9317.66674 | BF79: -1424.338063
A80: 2012-12-01 | B80: 5824.856017 | C80: 7663.689674 | D80: 3618.883616 | E80: 8172.355438 | F80: 694.200459 | G80: 339.577364 | H80: 229.530704 | I80: 264.960043 | J80: 187.9285895 | K80: 82.96553 | L80: 4176.2719 | M80: 2759.647222 | N80: 13162.17014 | O80: 13568.78197 | P80: 19914.69541 | Q80: 7876.77 | R80: 12037.92541 | S80: 8770.581627 | T80: 14343.78384 | U80: -5573.202217 | V80: 2606.167706 | W80: 90.61272741 | X80: 2515.554978 | Y80: 260.5912224 | Z80: 276.3426913 | AA80: -15.75146889 | AB80: 546.739587 | AC80: 161.0346986 | AD80: 385.7048884 | AE80: 7217.402862 | AF80: 3011.595191 | AG80: 4205.80767 | AH80: 39316.17841 | AI80: 25760.13915 | AJ80: 33736.81787 | AK80: 13556.03926 | AL80: 32555.94734 | AM80: 36821.23587 | AN80: -4265.288526 | AO80: 9290.750733 | AP80: 1000.999178 | AQ80: 1375.61342 | AR80: 11904.32321 | AS80: 12597.48755 | AT80: 126.3422587 | AU80: 219.6459936 | AV80: 5335.870693 | AW80: 5531.274462 | AX80: 172.2962231 | AY80: 213.7568973 | AZ80: 3450.967558 | BA80: 2038.227558 | BB80: 2469.87827 | BC80: 2257.744699 | BD80: -10519 | BE80: 9290.750733 | BF80: -1228.249267
A81: 2013-01-01 | B81: 9356.463551 | C81: 10005.67684 | D81: 3030.693233 | E81: 9203.890804 | F81: 680.989732 | G81: 396.8387546 | H81: 234.5431213 | I81: 320.6419335 | J81: 158.4998281 | K81: 60.86763538 | L81: 4816.686078 | M81: 2806.122708 | N81: 17837.53252 | O81: 17252.12718 | P81: 18512.02437 | Q81: 7246.04 | R81: 11265.98437 | S81: 8396.94598 | T81: 15120.79341 | U81: -6723.847428 | V81: 2714.248003 | W81: 239.231922 | X81: 2475.016081 | Y81: 224.4885061 | Z81: 257.4887617 | AA81: -33.00025566 | AB81: 519.3516093 | AC81: 140.4749836 | AD81: 378.8766257 | AE81: 6679.144005 | AF81: 2408.745574 | AG81: 4270.398431 | AH81: 37046.20247 | AI81: 25412.77465 | AJ81: 35505.84763 | AK81: 11633.42782 | AL81: 36662.9673 | AM81: 37897.07825 | AN81: -1234.110947 | AO81: 10399.31688 | AP81: 832.1 | AQ81: 3367.935792 | AR81: 11200.99759 | AS81: 10651.90884 | AT81: 278.9938568 | AU81: 244.1205893 | AV81: 6163.471139 | AW81: 6681.889383 | AX81: 178.3436726 | AY81: 222.6888313 | AZ81: 1931.585746 | BA81: 1050.010503 | BB81: 3093.887971 | BC81: 1973.05224 | BD81: -11024 | BE81: 10399.31688 | BF81: -624.6831232
A82: 2013-02-01 | B82: 6535.390346 | C82: 6205.437047 | D82: 5125.066227 | E82: 6500.566176 | F82: 909.8139779 | G82: 485.6894953 | H82: 106.7672762 | I82: 138.8 | J82: 235.3891963 | K82: 32.24681694 | L82: 5105.439322 | M82: 2963.155223 | N82: 17045.32666 | O82: 17752.44441 | P82: 17701.74125 | Q82: 6838.557006 | R82: 10863.18425 | S82: 9401.654131 | T82: 14559.12907 | U82: -5157.474937 | V82: 2803.429806 | W82: 198.7328867 | X82: 2604.696919 | Y82: 186.1352763 | Z82: 215.6654065 | AA82: -29.53013022 | AB82: 495.1578508 | AC82: 106.8936562 | AD82: 388.2641947 | AE82: 6595.417889 | AF82: 2425.530523 | AG82: 4169.887366 | AH82: 37183.53621 | AI82: 24344.50855 | AJ82: 36414.73018 | AK82: 12839.02766 | AL82: 36627.47102 | AM82: 39404.70699 | AN82: -2777.235977 | AO82: 10061.79168 | AP82: 1647.662 | AQ82: 1769.03444 | AR82: 10530.64652 | AS82: 10143.85649 | AT82: 254.5256303 | AU82: 396.9939322 | AV82: 3756.565199 | AW82: 3956.332836 | AX82: 130.3758974 | AY82: 182.5488778 | AZ82: 1596.321628 | BA82: 1081.201359 | BB82: 2014.880895 | BC82: 1467.262179 | BD82: -10086.47568 | BE82: 10061.79168 | BF82: -24.68399916
A83: 2013-03-01 | B83: 6388.755821 | C83: 5976.943294 | D83: 5374.761381 | E83: 8516.442171 | F83: 621.9932747 | G83: 308.5590098 | H83: 229.471607 | I83: 238.5716693 | J83: 129.8127217 | K83: 75.13738203 | L83: 3558.108257 | M83: 1981.766921 | N83: 16990.2514 | O83: 18282.06777 | P83: 15237.76572 | Q83: 4770.709 | R83: 10467.05672 | S83: 9431.16591 | T83: 13877.20346 | U83: -4446.03755 | V83: 2898.744571 | W83: 224.8223641 | X83: 2673.922207 | Y83: 209.0838821 | Z83: 217.4985373 | AA83: -8.41465518 | AB83: 515.2158277 | AC83: 121.5308118 | AD83: 393.6850159 | AE83: 5559.833884 | AF83: 2038.168332 | AG83: 3521.665552 | AH83: 33851.80979 | AI83: 21249.93251 | AJ83: 36116.44927 | AK83: 12601.87729 | AL83: 35155.63303 | AM83: 38796.26618 | AN83: -3640.633157 | AO83: 8961.244131 | AP83: 913.6114452 | AQ83: 922.8883835 | AR83: 13284.05244 | AS83: 13908.96637 | AT83: 99.36356683 | AU83: 173.3595197 | AV83: 5422.218984 | AW83: 5615.055044 | AX83: 259.4053429 | AY83: 272.1193956 | AZ83: 1694.074865 | BA83: 1369.987864 | BB83: 2675.242144 | BC83: 2386.59728 | BD83: -10398.54703 | BE83: 8961.244131 | BF83: -1437.302903
A84: 2013-04-01 | B84: 9662.509412 | C84: 10662.88272 | D84: 6841.175916 | E84: 9623.251519 | F84: 785.8944579 | G84: 603.000514 | H84: 377.063896 | I84: 551.5084261 | J84: 407.4422154 | K84: 198.0893427 | L84: 5132.700183 | M84: 2742.249089 | N84: 22340.31206 | O84: 24004.45144 | P84: 15454.08428 | Q84: 7193.433 | R84: 8260.651279 | S84: 9704.704771 | T84: 14419.47248 | U84: -4714.767709 | V84: 2926.653413 | W84: 230.709208 | X84: 2695.944205 | Y84: 271.6242987 | Z84: 330.7139596 | AA84: -59.08966085 | AB84: 710.0470374 | AC84: 197.2017636 | AD84: 512.8452738 | AE84: 6222.245468 | AF84: 1977.853485 | AG84: 4244.391983 | AH84: 35289.35927 | AI84: 24349.3839 | AJ84: 38580.94595 | AK84: 10939.97537 | AL84: 38002.07463 | AM84: 43322.37939 | AN84: -5320.304764 | AO84: 5619.670607 | AP84: 3712.754384 | AQ84: 853.0398229 | AR84: 13387.13915 | AS84: 13593.53526 | AT84: 196.4009677 | AU84: 234.1131812 | AV84: 6547.283453 | AW84: 6378.624914 | AX84: 225.0640835 | AY84: 341.9286466 | AZ84: 922.8773305 | BA84: 1801.755035 | BB84: 3708.619566 | BC84: 2007.999243 | BD84: -6948.024602 | BE84: 5619.670607 | BF84: -1328.353995
A85: 2013-05-01 | B85: 10741.28855 | C85: 7482.059523 | D85: 8319.432997 | E85: 9425.195992 | F85: 844.6493928 | G85: 434.2633494 | H85: 515.5263867 | I85: 270.8761 | J85: 437.3366559 | K85: 62.24644702 | L85: 5583.923435 | M85: 2805.074389 | N85: 17935.88417 | O85: 29327.74959 | P85: 17820.49724 | Q85: 7385.354214 | R85: 10435.14302 | S85: 11246.39697 | T85: 14044.8158 | U85: -2798.418834 | V85: 3056.221718 | W85: 184.4649285 | X85: 2871.756789 | Y85: 352.5687355 | Z85: 199.0541011 | AA85: 153.5146343 | AB85: 908.4601091 | AC85: 146.5455243 | AD85: 761.9145848 | AE85: 7389.438056 | AF85: 2530.407473 | AG85: 4859.030583 | AH85: 40773.58282 | AI85: 24490.64204 | AJ85: 43247.00256 | AK85: 16282.94078 | AL85: 34487.30193 | AM85: 47519.10483 | AN85: -13031.8029 | AO85: 3251.137879 | AP85: 1792.389097 | AQ85: 1838.099315 | AR85: 14300.2148 | AS85: 12528.36885 | AT85: 260.3044785 | AU85: 334.0997843 | AV85: 8526.831099 | AW85: 8131.138747 | AX85: 230.4206879 | AY85: 453.0411586 | AZ85: 1371.877487 | BA85: 1247.313796 | BB85: 2690.346332 | BC85: 1837.847645 | BD85: -4178.726017 | BE85: 3251.137879 | BF85: -927.5881382
A86: 2013-06-01 | B86: 10509.02467 | C86: 7721.017668 | D86: 3671.217879 | E86: 5521.787226 | F86: 1055.243466 | G86: 666.3295173 | H86: 328.937253 | I86: 445.859178 | J86: 406.6248935 | K86: 100.947 | L86: 5982.952907 | M86: 2805.001925 | N86: 20661.88136 | O86: 24575.30074 | P86: 16340.89444 | Q86: 6704.781 | R86: 9636.113438 | S86: 11684.59243 | T86: 13215.59854 | U86: -1531.00611 | V86: 3201.607703 | W86: 221.2390511 | X86: 2980.368652 | Y86: 288.8971479 | Z86: 278.5142215 | AA86: 10.38292639 | AB86: 942.4294745 | AC86: 184.9149866 | AD86: 757.5144879 | AE86: 6641.846783 | AF86: 2002.822482 | AG86: 4639.024301 | AH86: 39100.26797 | AI86: 22607.87028 | AJ86: 43685.39653 | AK86: 16492.3977 | AL86: 34359.44086 | AM86: 48482.26453 | AN86: -14122.82367 | AO86: 2369.574028 | AP86: 1671.018509 | AQ86: 1206.373413 | AR86: 8683.753743 | AS86: 9497.998331 | AT86: 177.5601861 | AU86: 527.8178062 | AV86: 7852.728393 | AW86: 8107.778282 | AX86: 839.9218502 | AY86: 907.2820361 | AZ86: 3947.544821 | BA86: 1409.091383 | BB86: 2154.9683 | BC86: 2559.628901 | BD86: -3033.609425 | BE86: 2369.574028 | BF86: -664.035397
A87: 2013-07-01 | B87: 10728.4151 | C87: 9216.544993 | D87: 3590.730548 | E87: 4831.344723 | F87: 791.2441241 | G87: 354.3253694 | H87: 414.4200903 | I87: 279.348253 | J87: 630.0705691 | K87: 154.7142337 | L87: 3515.376089 | M87: 2226.977741 | N87: 20655.949 | O87: 22835.50909 | P87: 16993.00841 | Q87: 7208.200566 | R87: 9784.807844 | S87: 12192.64349 | T87: 13205.48839 | U87: -1012.844902 | V87: 3137.028813 | W87: 123.9190139 | X87: 3013.109799 | Y87: 262.1724901 | Z87: 150.3282215 | AA87: 111.8442686 | AB87: 841.1412321 | AC87: 158.8322568 | AD87: 682.3089753 | AE87: 5794.059726 | AF87: 1681.415304 | AG87: 4112.644422 | AH87: 39220.05416 | AI87: 22528.18375 | AJ87: 43437.8068 | AK87: 16691.87041 | AL87: 32988.15616 | AM87: 45719.83966 | AN87: -12731.6835 | AO87: 3960.186909 | AP87: 1835.425068 | AQ87: 3300.534986 | AR87: 8885.923666 | AS87: 10029.60241 | AT87: 136.4134362 | AU87: 178.8503564 | AV87: 8017.079655 | AW87: 8438.389344 | AX87: 1335.575027 | AY87: 1306.172636 | AZ87: 1854.662462 | BA87: 563.2823677 | BB87: 1968.281371 | BC87: 1870.442629 | BD87: -4780.091921 | BE87: 3960.186909 | BF87: -819.9050117
A88: 2013-08-01 | B88: 7704.378972 | C88: 7828.994972 | D88: 4373.686307 | E88: 6311.95749 | F88: 907.7506986 | G88: 249.1955198 | H88: 229.1617084 | I88: 246.403108 | J88: 435.1241054 | K88: 209.9432999 | L88: 3422.334017 | M88: 2871.840332 | N88: 18514.40839 | O88: 19025.04562 | P88: 16030.58861 | Q88: 7670.705 | R88: 8359.883606 | S88: 12808.78799 | T88: 13653.58476 | U88: -844.7967703 | V88: 3224.282115 | W88: 115.9529111 | X88: 3108.329204 | Y88: 258.5786483 | Z88: 206.5522215 | AA88: 52.02642678 | AB88: 868.3196672 | AC88: 279.9713107 | AD88: 588.3483565 | AE88: 6090.635633 | AF88: 2510.237834 | AG88: 3580.3978 | AH88: 39281.19266 | AI88: 24437.00404 | AJ88: 45793.8244 | AK88: 14844.18862 | AL88: 32239.92613 | AM88: 43725.53315 | AN88: -11485.60702 | AO88: 3358.581601 | AP88: 3228.410856 | AQ88: 1447.619795 | AR88: 9561.54669 | AS88: 10520.30557 | AT88: 248.0959093 | AU88: 324.439325 | AV88: 6553.56479 | AW88: 6861.921899 | AX88: 939.2116566 | AY88: 902.2526036 | AZ88: 1674.436401 | BA88: 1738.129718 | BB88: 1579.612415 | BC88: 1645.992182 | BD88: -4445.09 | BE88: 3358.581601 | BF88: -1086.508399
A89: 2013-09-01 | B89: 8698.47037 | C89: 7455.64037 | D89: 2144.148188 | E89: 5677.475136 | F89: 826.4511598 | G89: 309.3070531 | H89: 202.4322326 | I89: 221.65597 | J89: 192.4368064 | K89: 154.1683793 | L89: 2597.032566 | M89: 1716.177818 | N89: 21092.71021 | O89: 18528.09412 | P89: 17668.75604 | Q89: 10303.7995 | R89: 7364.956541 | S89: 10980.5876 | T89: 14348.16485 | U89: -3367.577243 | V89: 3366.529363 | W89: 181.8825597 | X89: 3184.646803 | Y89: 246.0483541 | Z89: 213.1852925 | AA89: 32.86306162 | AB89: 597.615286 | AC89: 220.7689891 | AD89: 376.8462969 | AE89: 5527.844219 | AF89: 2358.022387 | AG89: 3169.821832 | AH89: 38387.38087 | AI89: 27625.82358 | AJ89: 40630.08022 | AK89: 10761.55729 | AL89: 36616.88082 | AM89: 44134.94862 | AN89: -7518.067803 | AO89: 3243.489489 | AP89: 3346.992593 | AQ89: 4331.792436 | AR89: 8494.848466 | AS89: 8362.110796 | AT89: 167.048734 | AU89: 265.7904066 | AV89: 5033.272404 | AW89: 5590.246965 | AX89: 819.79043 | AY89: 560.9767859 | AZ89: 1451.605134 | BA89: 1311.874664 | BB89: 2214.600756 | BC89: 1830.355223 | BD89: -5152.87818 | BE89: 3243.489489 | BF89: -1909.388691
A90: 2013-10-01 | B90: 7196.374184 | C90: 5289.767184 | D90: 2651.309239 | E90: 6275.495442 | F90: 826.9656336 | G90: 271.7405424 | H90: 235.767953 | I90: 372.2151053 | J90: 435.3338044 | K90: 139.9311943 | L90: 4363.31978 | M90: 4099.749273 | N90: 16660.35502 | O90: 18527.85991 | P90: 15948 | Q90: 7626 | R90: 8322 | S90: 10460.03615 | T90: 14599.42605 | U90: -4139.389906 | V90: 3368.464019 | W90: 202.7032516 | X90: 3165.760767 | Y90: 245.7250745 | Z90: 216.4462557 | AA90: 29.27881874 | AB90: 680.657452 | AC90: 201.6832188 | AD90: 478.9742332 | AE90: 6077.689366 | AF90: 2914.597999 | AG90: 3163.091368 | AH90: 36780.57206 | AI90: 25760.85678 | AJ90: 36749.81682 | AK90: 11019.71528 | AL90: 31987.8196 | AM90: 39431.6614 | AN90: -7443.841805 | AO90: 3575.873476 | AP90: 1950.305454 | AQ90: 2306.190429 | AR90: 9336.45435 | AS90: 9472.076719 | AT90: 137.1850507 | AU90: 189.2556894 | AV90: 6609.295154 | AW90: 6830.056422 | AX90: 827.276189 | AY90: 933.401011 | AZ90: 1229.290413 | BA90: 1069.554562 | BB90: 1991.922565 | BC90: 1702.727349 | BD90: -5615.583983 | BE90: 3575.873476 | BF90: -2039.710507
A91: 2013-11-01 | B91: 10557.93 | C91: 5094.62 | D91: 3934.043155 | E91: 6122.530134 | F91: 944.1750879 | G91: 258.2115791 | H91: 316.882458 | I91: 223.3252649 | J91: 308.6642493 | K91: 92.45411452 | L91: 4129.19092 | M91: 2747.052773 | N91: 17370.74971 | O91: 21567.35962 | P91: 19842.67758 | Q91: 8375 | R91: 11467.67758 | S91: 11561.71589 | T91: 14840.98878 | U91: -3279.272895 | V91: 3599.55993 | W91: 177.0017936 | X91: 3422.558136 | Y91: 270.1895795 | Z91: 160.4295044 | AA91: 109.7600751 | AB91: 810.1697224 | AC91: 264.7989575 | AD91: 545.3707649 | AE91: 6317.263038 | AF91: 2405.059652 | AG91: 3912.203386 | AH91: 42401.57573 | AI91: 26223.27869 | AJ91: 43053.06856 | AK91: 16178.29704 | AL91: 35115.48686 | AM91: 46839.77531 | AN91: -11724.28845 | AO91: 4454.00859 | AP91: 1298.102077 | AQ91: 3960.367209 | AR91: 11137.21148 | AS91: 9618.915958 | AT91: 173.281499 | AU91: 308.8282042 | AV91: 8096.200102 | AW91: 7796.768448 | AX91: 233.947819 | AY91: 262.3299889 | AZ91: 1345.430019 | BA91: 1418.115583 | BB91: 1545.906416 | BC91: 1613.000976 | BD91: -6789.258449 | BE91: 4454.00859 | BF91: -2335.24986
A92: 2013-12-01 | B92: 6951.741164 | C92: 3988.161164 | D92: 3005.856874 | E92: 5822.014024 | F92: 943.9305442 | G92: 272.6413719 | H92: 242.7241 | I92: 338.4549144 | J92: 195.8274653 | K92: 58.659847 | L92: 3289.476124 | M92: 2320.710288 | N92: 14937.75265 | O92: 16170.25369 | P92: 20092.16836 | Q92: 7818 | R92: 12274.16836 | S92: 10957.82401 | T92: 13260.54711 | U92: -2302.723095 | V92: 3707.082825 | W92: 243.0940035 | X92: 3463.988821 | Y92: 244.3472215 | Z92: 261.5409608 | AA92: -17.19373931 | AB92: 711.7310239 | AC92: 262.4970292 | AD92: 449.2339947 | AE92: 6272.781969 | AF92: 2485.719458 | AG92: 3787.062511 | AH92: 41985.93541 | AI92: 24331.39856 | AJ92: 39093.50824 | AK92: 17654.53686 | AL92: 31660.35495 | AM92: 43120.72532 | AN92: -11460.37037 | AO92: 6194.166491 | AP92: 1744.787837 | AQ92: 1692.55773 | AR92: 12500.67609 | AS92: 13207.18687 | AT92: 96.02084039 | AU92: 289.6527867 | AV92: 6346.111643 | AW92: 6817.771146 | AX92: 270.0327377 | AY92: 253.2483001 | AZ92: 1820.67474 | BA92: 1438.096368 | BB92: 2193.736705 | BC92: 2416.616966 | BD92: -7899.34975 | BE92: 6194.166491 | BF92: -1705.183259
A93: 2014-01-01 | B93: 10091.5663 | C93: 7362.92998 | D93: 3891.068937 | E93: 7373.616791 | F93: 1210.864157 | G93: 497.5906073 | H93: 381.468 | I93: 281.0267879 | J93: 452.6807142 | K93: 124.5958744 | L93: 3781.763147 | M93: 2815.810266 | N93: 18374.18822 | O93: 23822.20218 | P93: 21214.96368 | Q93: 9262.185 | R93: 11952.77868 | S93: 11610.28106 | T93: 13418.85418 | U93: -1808.573127 | V93: 3868.80164 | W93: 247.7498403 | X93: 3621.0518 | Y93: 356.276 | Z93: 248.7349888 | AA93: 107.5410112 | AB93: 590.9849906 | AC93: 145.7645002 | AD93: 445.2204904 | AE93: 6739.612202 | AF93: 2572.059025 | AG93: 4167.553177 | AH93: 44380.91957 | AI93: 25895.34754 | AJ93: 42288.08995 | AK93: 18485.57203 | AL93: 34049.844 | AM93: 49141.51106 | AN93: -15091.66706 | AO93: 3393.904965 | AP93: 3017.179869 | AQ93: 1237.548809 | AR93: 11124.10954 | AS93: 10452.53804 | AT93: 253.0991439 | AU93: 423.1961222 | AV93: 6283.083062 | AW93: 6323.927779 | AX93: 223.4681972 | AY93: 348.9908006 | AZ93: 1654.954536 | BA93: 1200.608324 | BB93: 1703.33724 | BC93: 1752.791062 | BD93: -5396.749174 | BE93: 3393.904965 | BF93: -2002.844209
A94: 2014-02-01 | B94: 8938.428504 | C94: 6427.868504 | D94: 2767.390393 | E94: 6838.158277 | F94: 1189.946333 | G94: 272.528074 | H94: 233.816 | I94: 265.641 | J94: 245.6764309 | K94: 76.52975229 | L94: 3211.739273 | M94: 2437.437469 | N94: 16970.84323 | O94: 17609.6511 | P94: 23469.93756 | Q94: 10517.1265 | R94: 12952.81105 | S94: 11758.61269 | T94: 13552.38609 | U94: -1794 | V94: 4000.98867 | W94: 245.3372038 | X94: 3754.651471 | Y94: 364.988 | Z94: 331.0513086 | AA94: 33.93669141 | AB94: 641.2784096 | AC94: 154.7176412 | AD94: 486.5607684 | AE94: 6794.619926 | AF94: 2781.29825 | AG94: 4013.321676 | AH94: 47030.42526 | AI94: 27581.917 | AJ94: 42613.43126 | AK94: 19448.50826 | AL94: 32481.08287 | AM94: 48184.77723 | AN94: -15703.69436 | AO94: 3744.813893 | AP94: 1135.277238 | AQ94: 962.6776547 | AR94: 11785.65618 | AS94: 11519.13321 | AT94: 212.2031836 | AU94: 278.82068 | AV94: 5217.362975 | AW94: 5289.2799 | AX94: 107.3288372 | AY94: 212.28252 | AZ94: 825.67303 | BA94: 1018.5196 | BB94: 1544.856541 | BC94: 1994.585902 | BD94: -5824.331346 | BE94: 3744.813893 | BF94: -2079.517453
A95: 2014-03-01 | B95: 7348.67727 | C95: 5823.97227 | D95: 2763.862122 | E95: 8523.181424 | F95: 997.7442239 | G95: 391.0482728 | H95: 274.2155 | I95: 370.9516511 | J95: 205.6684668 | K95: 112.919117 | L95: 4579.446342 | M95: 2856.203921 | N95: 19486.75409 | O95: 17418.52221 | P95: 23453.47284 | Q95: 11015.123 | R95: 12438.34984 | S95: 11654.56737 | T95: 13818.87715 | U95: -2164.309782 | V95: 3985.451828 | W95: 182.3720731 | X95: 3803.079755 | Y95: 379.3 | Z95: 441.2769648 | AA95: -61.97696481 | AB95: 617.1918583 | AC95: 188.5902462 | AD95: 428.6016122 | AE95: 6579.663411 | AF95: 2609.807883 | AG95: 3969.855528 | AH95: 46669.64731 | AI95: 28256.04732 | AJ95: 44744.4958 | AK95: 18413.59999 | AL95: 34940.60131 | AM95: 47951.92654 | AN95: -13011.32523 | AO95: 5402.274759 | AP95: 932.6000353 | AQ95: 1146.385858 | AR95: 12228.41605 | AS95: 12721.71633 | AT95: 313.5028179 | AU95: 266.7716781 | AV95: 6696.047796 | AW95: 6965.632381 | AX95: 162.1950494 | AY95: 255.9003095 | AZ95: 1648.263783 | BA95: 1403.558068 | BB95: 1920.339382 | BC95: 2117.601984 | BD95: -6490.341714 | BE95: 5402.274759 | BF95: -1088.066955
A96: 2014-04-01 | B96: 9841.897595 | C96: 8087.852595 | D96: 3886.454671 | E96: 8031.965902 | F96: 1233.655887 | G96: 393.1307078 | H96: 278.604 | I96: 254.2441689 | J96: 425.0771123 | K96: 81.730965 | L96: 2558.028472 | M96: 2263.615692 | N96: 21337.95528 | O96: 22723.49692 | P96: 23317.11948 | Q96: 11540.6666 | R96: 11776.45288 | S96: 12729.30949 | T96: 13686.1703 | U96: -956.8608103 | V96: 4035.513305 | W96: 192.056982 | X96: 3843.456323 | Y96: 342.107 | Z96: 329.5809364 | AA96: 12.52606356 | AB96: 770.001348 | AC96: 213.7348773 | AD96: 556.2664707 | AE96: 5971.849342 | AF96: 1823.481338 | AG96: 4148.368004 | AH96: 47165.89996 | AI96: 27785.69103 | AJ96: 44690.03321 | AK96: 19380.20893 | AL96: 37151.18395 | AM96: 51444.59167 | AN96: -14293.40772 | AO96: 5086.801213 | AP96: 950.0870799 | AQ96: 1559.410186 | AR96: 13982.04623 | AS96: 13298.88284 | AT96: 212.2031356 | AU96: 163.2181001 | AV96: 6249.719719 | AW96: 6250.165219 | AX96: 357.270531 | AY96: 483.294076 | AZ96: 2094.169124 | BA96: 1424.033271 | BB96: 2152.659694 | BC96: 1715.044754 | BD96: -5501.337996 | BE96: 5086.801213 | BF96: -414.5367831
A97: 2014-05-01 | B97: 7961.857294 | C97: 7365.304903 | D97: 2892.652729 | E97: 7003.247435 | F97: 1355.583636 | G97: 573.768964 | H97: 288.458317 | I97: 379.5729121 | J97: 321.5336503 | K97: 106.97 | L97: 3364.228666 | M97: 1492.899834 | N97: 21596.80365 | O97: 18662.3757 | P97: 22097.78833 | Q97: 11334.745 | R97: 10763.04333 | S97: 12425.32051 | T97: 13843.70023 | U97: -1418.379724 | V97: 4069.845926 | W97: 236.5478741 | X97: 3833.298052 | Y97: 287.490317 | Z97: 380.9918474 | AA97: -93.50153035 | AB97: 695.6912888 | AC97: 212.353899 | AD97: 483.3373898 | AE97: 5704.227548 | AF97: 2040.342687 | AG97: 3663.884861 | AH97: 45280.36392 | AI97: 28048.68154 | AJ97: 45679.06101 | AK97: 17231.68238 | AL97: 38580.4428 | AM97: 48168.82326 | AN97: -9588.380452 | AO97: 7643.301924 | AP97: 411.6312461 | AQ97: 1233.814751 | AR97: 10766.88559 | AS97: 11858.12079 | AT97: 374.363965 | AU97: 403.2114666 | AV97: 5264.475499 | AW97: 5690.196282 | AX97: 512.2711706 | AY97: 527.1607685 | AZ97: 1351.197264 | BA97: 1289.50809 | BB97: 2536.209591 | BC97: 2380.998409 | BD97: -7409.789131 | BE97: 7643.301924 | BF97: 233.5127925
A98: 2014-06-01 | B98: 8366.390112 | C98: 6556.030242 | D98: 2104.207047 | E98: 5837.817573 | F98: 1329.159281 | G98: 432.506913 | H98: 225.4350327 | I98: 261.6718709 | J98: 175.7544338 | K98: 150.643177 | L98: 2426.996076 | M98: 1341.682497 | N98: 18793.50296 | O98: 18562.65514 | P98: 22050.20366 | Q98: 10565.195 | R98: 11485.00866 | S98: 11609.02513 | T98: 13835.65488 | U98: -2226.629744 | V98: 4195.0808 | W98: 213.6149906 | X98: 3981.46581 | Y98: 260.8943497 | Z98: 316.1036751 | AA98: -55.20932542 | AB98: 639.1120676 | AC98: 317.825879 | AD98: 321.2861886 | AE98: 5493.836563 | AF98: 1664.815286 | AG98: 3829.021277 | AH98: 44248.15257 | AI98: 26913.20971 | AJ98: 42300.77633 | AK98: 17334.94287 | AL98: 36612.18729 | AM98: 45554.44686 | AN98: -8942.259571 | AO98: 8392.683295 | AP98: 719.6956267 | AQ98: 1908.095713 | AR98: 9402.068609 | AS98: 9405.271841 | AT98: 171.9031383 | AU98: 196.8908268 | AV98: 5673.050225 | AW98: 5942.333581 | AX98: 353.5585303 | AY98: 296.5486387 | AZ98: 1370.075709 | BA98: 1318.918485 | BB98: 1871.392934 | BC98: 1607.105556 | BD98: -8601.610913 | BE98: 8392.683295 | BF98: -208.9276189
A99: 2014-07-01 | B99: 8554.688816 | C99: 5923.469356 | D99: 2732.856838 | E99: 8056.56512 | F99: 1712.003795 | G99: 432.1016565 | H99: 364.0399544 | I99: 266.4696661 | J99: 300.9356486 | K99: 102.232059 | L99: 3002.121948 | M99: 1320.666422 | N99: 14494.36172 | O99: 16370.45761 | P99: 23189.7692 | Q99: 10758.57436 | R99: 12431.19485 | S99: 11697.18291 | T99: 14751.34104 | U99: -3054.158121 | V99: 4601.979247 | W99: 249.2423757 | X99: 4352.736872 | Y99: 327.7851181 | Z99: 282.6431629 | AA99: 45.14195517 | AB99: 676.356863 | AC99: 300.477938 | AD99: 375.878925 | AE99: 5515.076699 | AF99: 1388.437434 | AG99: 4126.639265 | AH99: 46008.15004 | AI99: 27730.7163 | AJ99: 42548.20257 | AK99: 18277.43374 | AL99: 34227.91055 | AM99: 44828.44654 | AN99: -10600.53599 | AO99: 7676.897756 | AP99: 840.0009815 | AQ99: 1794.987149 | AR99: 11851.94465 | AS99: 10714.95642 | AT99: 160.817376 | AU99: 480.899771 | AV99: 6178.899248 | AW99: 6313.997092 | AX99: 190.2896629 | AY99: 259.3615042 | AZ99: 1387.169525 | BA99: 1475.57002 | BB99: 1877.153196 | BC99: 1301.878576 | BD99: -8696.146909 | BE99: 7676.897756 | BF99: -1019.249153
A100: 2014-08-01 | B100: 10802.87844 | C100: 7161.676887 | D100: 2961.876884 | E100: 7400.139071 | F100: 1611.122119 | G100: 692.5102612 | H100: 334.009139 | I100: 360.3430518 | J100: 392.4982991 | K100: 120.048093 | L100: 2435.930226 | M100: 1516.003213 | N100: 16239.68874 | O100: 17887.26331 | P100: 23011.23901 | Q100: 10397.793 | R100: 12613.44601 | S100: 11882.45016 | T100: 14746.76652 | U100: -2864.316361 | V100: 4590.656137 | W100: 430.8803195 | X100: 4159.775817 | Y100: 393.9250769 | Z100: 357.2849547 | AA100: 36.64012221 | AB100: 785.1257485 | AC100: 255.662244 | AD100: 529.4635045 | AE100: 5391.897596 | AF100: 1638.412526 | AG100: 3753.48507 | AH100: 46055.7114 | AI100: 27884.56662 | AJ100: 44646.72484 | AK100: 18171.14478 | AL100: 34384.02217 | AM100: 44606.74875 | AN100: -10222.72658 | AO100: 7948.418196 | AP100: 1766.069599 | AQ100: 2469.935179 | AR100: 9844.763207 | AS100: 10835.83367 | AT100: 266.9821405 | AU100: 326.8424572 | AV100: 6208.995834 | AW100: 6365.617154 | AX100: 193.8449601 | AY100: 439.1290292 | AZ100: 2377.982752 | BA100: 1235.086597 | BB100: 1647.849864 | BC100: 992.391973 | BD100: -8949.379039 | BE100: 7948.418196 | BF100: -1000.960843
A101: 2014-09-01 | B101: 7596.378391 | C101: 5009.206259 | D101: 2590.719234 | E101: 6905.172996 | F101: 2030.476592 | G101: 726.3754437 | H101: 254.542 | I101: 268.5883102 | J101: 366.2714326 | K101: 110.218799 | L101: 2228.097282 | M101: 1439.972289 | N101: 18747.78504 | O101: 18830.51691 | P101: 23367.57545 | Q101: 10181.563 | R101: 13186.01245 | S101: 11995.63946 | T101: 14637.80431 | U101: -2642.164849 | V101: 4779.930047 | W101: 350.7958018 | X101: 4429.134245 | Y101: 307.6360769 | Z101: 319.9095627 | AA101: -12.27348579 | AB101: 716.2644535 | AC101: 245.003043 | AD101: 471.2614105 | AE101: 4695.079485 | AF101: 1566.509516 | AG101: 3128.569969 | AH101: 45862.12497 | AI101: 27301.58523 | AJ101: 46659.1691 | AK101: 18560.53974 | AL101: 37014.56126 | AM101: 46749.63726 | AN101: -9735.076007 | AO101: 8825.463734 | AP101: 875.6935121 | AQ101: 1429.612146 | AR101: 12101.05402 | AS101: 12693.73739 | AT101: 371.7314609 | AU101: 481.9027378 | AV101: 5781.648167 | AW101: 5983.337806 | AX101: 309.2443944 | AY101: 371.2514317 | AZ101: 1788.088371 | BA101: 1089.213277 | BB101: 2124.488 | BC101: 2272.080733 | BD101: -9614.690149 | BE101: 8825.463734 | BF101: -789.2264158
A102: 2014-10-01 | B102: 10284.17264 | C102: 7666.604854 | D102: 2649.762559 | E102: 7623.193135 | F102: 1539.885358 | G102: 614.0969789 | H102: 235.8374131 | I102: 294.6286336 | J102: 232.81711 | K102: 165.8715604 | L102: 2109.852595 | M102: 1623.686334 | N102: 19193.98602 | O102: 18005.98856 | P102: 24386.96356 | Q102: 11130.048 | R102: 13256.91556 | S102: 12551.60742 | T102: 15954.85077 | U102: -3403.243352 | V102: 4874.571019 | W102: 419.5079234 | X102: 4455.063096 | Y102: 256.1303671 | Z102: 344.6404375 | AA102: -88.51007039 | AB102: 587.2482437 | AC102: 335.0967224 | AD102: 252.1515212 | AE102: 3254.173992 | AF102: 1525.473954 | AG102: 1728.700038 | AH102: 45910.6946 | AI102: 29709.61781 | AJ102: 49007.42493 | AK102: 16201.07679 | AL102: 35669.28128 | AM102: 42335.50653 | AN102: -6666.225244 | AO102: 9534.851547 | AP102: 838.6505805 | AQ102: 1678.535707 | AR102: 10236.29884 | AS102: 10361.62182 | AT102: 366.4242416 | AU102: 508.1445215 | AV102: 6862.298974 | AW102: 7252.233993 | AX102: 565.6418165 | AY102: 296.476073 | AZ102: 2638.339336 | BA102: 1015.667101 | BB102: 1705.686711 | BC102: 1775.531659 | BD102: -9701.394488 | BE102: 9534.851547 | BF102: -166.5429408
A103: 2014-11-01 | B103: 7512.397909 | C103: 5544.395636 | D103: 3511.506202 | E103: 5929.88807 | F103: 1244.976989 | G103: 233.0612262 | H103: 347.4851196 | I103: 240.3578142 | J103: 550.6551961 | K103: 47.532058 | L103: 2024.778976 | M103: 1092.811059 | N103: 14900.2042 | O103: 21555.03267 | P103: 23564.32899 | Q103: 10737.69551 | R103: 12826.63348 | S103: 12975.25765 | T103: 15500.80567 | U103: -2525.548022 | V103: 4910.309503 | W103: 148.2275122 | X103: 4762.081991 | Y103: 316.5737766 | Z103: 295.291583 | AA103: 21.2821936 | AB103: 774.5905465 | AC103: 256.509986 | AD103: 518.0805605 | AE103: 3188.421775 | AF103: 1208.67411 | AG103: 1979.747665 | AH103: 45729.48224 | AI103: 28147.20437 | AJ103: 50057.15965 | AK103: 17582.27786 | AL103: 34848.50526 | AM103: 45080.98366 | AN103: -10232.4784 | AO103: 7349.799465 | AP103: 1200.639127 | AQ103: 2686.592934 | AR103: 10167.47341 | AS103: 7610.73661 | AT103: 321.268577 | AU103: 492.4956122 | AV103: 5844.641466 | AW103: 5457.006328 | AX103: 186.5799138 | AY103: 447.763211 | AZ103: 2144.719907 | BA103: 823.7708952 | BB103: 1306.128766 | BC103: 1278.297175 | BD103: -7451.585254 | BE103: 7349.799465 | BF103: -101.7857884
A104: 2014-12-01 | B104: 8395.098294 | C104: 7308.167538 | D104: 3445.280263 | E104: 5789.682821 | F104: 1437.932141 | G104: 498.0046229 | H104: 177.2342388 | I104: 235.457368 | J104: 770.3263103 | K104: 111.9719893 | L104: 1727.115556 | M104: 1395.909489 | N104: 17240.42366 | O104: 18495.38233 | P104: 24340.25205 | Q104: 12932.78942 | R104: 11407.46264 | S104: 11529.77672 | T104: 14346.84941 | U104: -2817.072697 | V104: 5235.416514 | W104: 323.9686783 | X104: 4911.447835 | Y104: 229.5242483 | Z104: 237.2075431 | AA104: -7.683294767 | AB104: 686.8070988 | AC104: 234.881331 | AD104: 451.9257678 | AE104: 3016.469769 | AF104: 1039.657436 | AG104: 1976.812334 | AH104: 45038.2464 | AI104: 29115.35382 | AJ104: 45887.23563 | AK104: 15922.89258 | AL104: 33333.71014 | AM104: 42923.51528 | AN104: -9589.80514 | AO104: 6333.087444 | AP104: 3374.430798 | AQ104: 1056.77994 | AR104: 10312.24335 | AS104: 10509.87753 | AT104: 350.3212396 | AU104: 474.4218848 | AV104: 5199.501307 | AW104: 5307.665666 | AX104: 819.6323635 | AY104: 757.7144079 | AZ104: 2372.15036 | BA104: 1588.450285 | BB104: 1900.817618 | BC104: 3737.655022 | BD104: -6464.192717 | BE104: 6333.087444 | BF104: -131.1052737

Sheet Base gráficos 1
B1: DERIVADOS | U1: SPOT
B2: SUSCRIPCIONES | R2: POSICIONES | U2: SUSCRIPCIONES | AJ2: TOTAL
B3: LOCAL | O3: EXTERNO | Q3: TOTAL | R3: LOCAL | U3: LOCAL | AH3: EXTERNO
B4: Fondos de Pensiones | D4: Empresas sector real | F4: Compañias de seguros | H4: Corredoras | I4: FFMM | J4: Corredoras y FFMM | M4: Otros Sectores | O4: Sector Externo | R4: Corredoras y FFMM | U4: Fondos de Pensiones | W4: Empresas sector real | Y4: Compañias de seguros | AA4: Corredoras | AB4: FFMM | AC4: Corredoras y FFMM | AF4: Otros Sectores | AH4: Sector Externo
B5: ventas | C5: Total | D5: ventas | E5: Total | F5: ventas | G5: Total | H5: ventas | I5: ventas | J5: Total Compras | K5: Total Ventas | L5: Total | M5: ventas | N5: Total | O5: ventas | P5: Total | R5: compras brutas | S5: ventas brutas | T5: neta | U5: ventas | V5: Total | W5: ventas | X5: Total | Y5: ventas | Z5: Total | AA5: ventas | AB5: ventas | AC5: Total Compras | AD5: Total Ventas | AE5: Total | AF5: ventas | AG5: Total | AH5: ventas | AI5: Total
B6: millones de USD
B7: Negativo (*-1) | C7: compra más venta | D7: Negativo (*-1) | E7: compra más venta | F7: Negativo (*-1) | G7: compra más venta | H7: Negativo (*-1) | I7: compra más venta | J7: Suma Corredoras y FFMM | K7: Suma Corredoras y FFMM Negativo (*-1) | L7: compra más venta | M7: Negativo (*-1) | N7: compra más venta | O7: Negativo (*-1) | P7: compra más venta | R7: Suma Corredoras y FFMM | S7: Suma Corredoras y FFMM | U7: Negativo (*-1) | V7: compra más venta | W7: Negativo (*-1) | X7: compra más venta | Y7: Negativo (*-1) | Z7: compra más venta | AA7: Negativo (*-1) | AB7: Negativo (*-1) | AC7: Suma Corredoras y FFMM | AD7: Suma Corredoras y FFMM Negativo (*-1) | AE7: compra más venta | AF7: Negativo (*-1) | AG7: compra más venta | AH7: Negativo (*-1) | AI7: compra más venta
A9: =+'Base original'!A9 -> 2007-01-01 | B9: =+'Base original'!C9*-1 -> -1056.030171 | C9: =+'Base original'!B9+'Base original'!C9 -> 4018.181402 | D9: =+'Base original'!E9*-1 -> -2150.119217 | E9: =+'Base original'!D9+'Base original'!E9 -> 3528.733395 | F9: =+'Base original'!G9*-1 -> -44.296747 | G9: =+'Base original'!F9+'Base original'!G9 -> 369.184543 | H9: =+'Base original'!I9*-1 -> -1981.579447 | I9: =+'Base original'!K9*-1 -> -29.335 | J9: =+'Base original'!H9+'Base original'!J9 -> 1117.461679 | K9: =+H9+I9 -> -2010.914447 | L9: =+J9-K9 -> 3128.376126 | M9: =+'Base original'!M9*-1 -> -896.8575858 | N9: =+'Base original'!L9+'Base original'!M9 -> 3218.916463 | O9: =+'Base original'!O9*-1 -> -14395.10542 | P9: =+'Base original'!N9+'Base original'!O9 -> 24810.83771 | Q9: =+C9+E9+G9+L9+N9+P9 -> 39074.22964 | R9: =+'Base original'!Y9+'Base original'!AB9 -> 858.249981 | S9: =+'Base original'!Z9+'Base original'!AC9 -> 1147.171271 | T9: =+'Base original'!AD9+'Base original'!AA9 -> -288.92129 | U9: =+'Base original'!AQ9*-1 -> -1169.065329 | V9: =+'Base original'!AP9+'Base original'!AQ9 -> 2219.123048 | W9: =+'Base original'!AS9*-1 -> -2787.046022 | X9: =+'Base original'!AR9+'Base original'!AS9 -> 5799.321205 | Y9: =+'Base original'!AU9*-1 -> -36.6622212 | Z9: =+'Base original'!AT9+'Base original'!AU9 -> 56.88168191 | AA9: =+'Base original'!AW9*-1 -> -4253.789108 | AB9: =+'Base original'!AY9*-1 -> -225.6788062 | AC9: =+'Base original'!AV9+'Base original'!AX9 -> 4593.881429 | AD9: =+AB9+AA9 -> -4479.467914 | AE9: =+AC9-AD9 -> 9073.349343 | AF9: =+'Base original'!BA9*-1 -> -1072.993304 | AG9: =+'Base original'!AZ9+'Base original'!BA9 -> 2422.950621 | AH9: =+'Base original'!BC9*-1 -> -679.3752101 | AI9: =+'Base original'!BB9+'Base original'!BC9 -> 1293.236672 | AJ9: =+V9+X9+Z9+AE9+AG9+AI9 -> 20864.86257
A10: =+'Base original'!A10 -> 2007-02-01 | B10: =+'Base original'!C10*-1 -> -618.0955553 | C10: =+'Base original'!B10+'Base original'!C10 -> 3404.227793 | D10: =+'Base original'!E10*-1 -> -2017.364943 | E10: =+'Base original'!D10+'Base original'!E10 -> 2715.881043 | F10: =+'Base original'!G10*-1 -> -67.634134 | G10: =+'Base original'!F10+'Base original'!G10 -> 284.796624 | H10: =+'Base original'!I10*-1 -> -1531.204115 | I10: =+'Base original'!K10*-1 -> -62.2047368 | J10: =+'Base original'!H10+'Base original'!J10 -> 951.0767435 | K10: -1593.408852 | L10: =+J10-K10 -> 2544.485595 | M10: =+'Base original'!M10*-1 -> -162.8316558 | N10: =+'Base original'!L10+'Base original'!M10 -> 1225.304214 | O10: =+'Base original'!O10*-1 -> -11663.17086 | P10: =+'Base original'!N10+'Base original'!O10 -> 20062.02881 | Q10: =+C10+E10+G10+L10+N10+P10 -> 30236.72408 | R10: =+'Base original'!Y10+'Base original'!AB10 -> 984.123589 | S10: =+'Base original'!Z10+'Base original'!AC10 -> 1422.334751 | T10: =+'Base original'!AD10+'Base original'!AA10 -> -438.211162 | U10: =+'Base original'!AQ10*-1 -> -662.9973597 | V10: =+'Base original'!AP10+'Base original'!AQ10 -> 1303.053418 | W10: =+'Base original'!AS10*-1 -> -2410.975829 | X10: =+'Base original'!AR10+'Base original'!AS10 -> 4789.261884 | Y10: =+'Base original'!AU10*-1 -> -83.75556613 | Z10: =+'Base original'!AT10+'Base original'!AU10 -> 108.8305916 | AA10: =+'Base original'!AW10*-1 -> -3784.047472 | AB10: =+'Base original'!AY10*-1 -> -253.4889674 | AC10: =+'Base original'!AV10+'Base original'!AX10 -> 3829.639361 | AD10: -4037.536439 | AE10: =+AC10-AD10 -> 7867.1758 | AF10: =+'Base original'!BA10*-1 -> -1161.499064 | AG10: =+'Base original'!AZ10+'Base original'!BA10 -> 2491.959991 | AH10: =+'Base original'!BC10*-1 -> -482.4457418 | AI10: =+'Base original'!BB10+'Base original'!BC10 -> 955.9777591 | AJ10: =+V10+X10+Z10+AE10+AG10+AI10 -> 17516.25944
A11: =+'Base original'!A11 -> 2007-03-01 | B11: =+'Base original'!C11*-1 -> -641.8189217 | C11: =+'Base original'!B11+'Base original'!C11 -> 4330.0704 | D11: =+'Base original'!E11*-1 -> -2096.029402 | E11: =+'Base original'!D11+'Base original'!E11 -> 2902.7332 | F11: =+'Base original'!G11*-1 -> -108.5902223 | G11: =+'Base original'!F11+'Base original'!G11 -> 411.3274304 | H11: =+'Base original'!I11*-1 -> -977.910093 | I11: =+'Base original'!K11*-1 -> -66.60419593 | J11: =+'Base original'!H11+'Base original'!J11 -> 1031.675641 | K11: -1044.514289 | L11: 2076.18993 | M11: =+'Base original'!M11*-1 -> -648.5556139 | N11: =+'Base original'!L11+'Base original'!M11 -> 2057.181889 | O11: =+'Base original'!O11*-1 -> -16275.10854 | P11: =+'Base original'!N11+'Base original'!O11 -> 25172.04203 | Q11: 36949.54487 | R11: =+'Base original'!Y11+'Base original'!AB11 -> 980.5631778 | S11: =+'Base original'!Z11+'Base original'!AC11 -> 1288.554255 | T11: =+'Base original'!AD11+'Base original'!AA11 -> -307.991077 | U11: =+'Base original'!AQ11*-1 -> -929.5448377 | V11: =+'Base original'!AP11+'Base original'!AQ11 -> 1764.542942 | W11: =+'Base original'!AS11*-1 -> -3179.715331 | X11: =+'Base original'!AR11+'Base original'!AS11 -> 6029.92799 | Y11: =+'Base original'!AU11*-1 -> -113.6046466 | Z11: =+'Base original'!AT11+'Base original'!AU11 -> 180.5938518 | AA11: =+'Base original'!AW11*-1 -> -4640.277225 | AB11: =+'Base original'!AY11*-1 -> -133.5842286 | AC11: =+'Base original'!AV11+'Base original'!AX11 -> 5061.369371 | AD11: -4773.861453 | AE11: 9835.230824 | AF11: =+'Base original'!BA11*-1 -> -966.4497583 | AG11: =+'Base original'!AZ11+'Base original'!BA11 -> 2378.628183 | AH11: =+'Base original'!BC11*-1 -> -693.933973 | AI11: =+'Base original'!BB11+'Base original'!BC11 -> 1058.159252 | AJ11: 21247.08304
A12: =+'Base original'!A12 -> 2007-04-01 | B12: =+'Base original'!C12*-1 -> -585.0707561 | C12: =+'Base original'!B12+'Base original'!C12 -> 4117.081564 | D12: =+'Base original'!E12*-1 -> -2868.448761 | E12: =+'Base original'!D12+'Base original'!E12 -> 3514.62417 | F12: =+'Base original'!G12*-1 -> -103.671771 | G12: =+'Base original'!F12+'Base original'!G12 -> 430.11812 | H12: =+'Base original'!I12*-1 -> -1130.239 | I12: =+'Base original'!K12*-1 -> -74.400197 | J12: =+'Base original'!H12+'Base original'!J12 -> 668.0821958 | K12: -1204.639197 | L12: 1872.721393 | M12: =+'Base original'!M12*-1 -> -1305.954811 | N12: =+'Base original'!L12+'Base original'!M12 -> 2094.371206 | O12: =+'Base original'!O12*-1 -> -8871.178373 | P12: =+'Base original'!N12+'Base original'!O12 -> 17649.89218 | Q12: 29678.80863 | R12: =+'Base original'!Y12+'Base original'!AB12 -> 651.4636975 | S12: =+'Base original'!Z12+'Base original'!AC12 -> 1567.993841 | T12: =+'Base original'!AD12+'Base original'!AA12 -> -916.530143 | U12: =+'Base original'!AQ12*-1 -> -928.1931751 | V12: =+'Base original'!AP12+'Base original'!AQ12 -> 1861.039517 | W12: =+'Base original'!AS12*-1 -> -2565.740191 | X12: =+'Base original'!AR12+'Base original'!AS12 -> 5558.372856 | Y12: =+'Base original'!AU12*-1 -> -85.66665878 | Z12: =+'Base original'!AT12+'Base original'!AU12 -> 135.3979387 | AA12: =+'Base original'!AW12*-1 -> -3833.04917 | AB12: =+'Base original'!AY12*-1 -> -180.0165309 | AC12: =+'Base original'!AV12+'Base original'!AX12 -> 3928.37934 | AD12: -4013.065701 | AE12: 7941.445041 | AF12: =+'Base original'!BA12*-1 -> -1050.181509 | AG12: =+'Base original'!AZ12+'Base original'!BA12 -> 2155.021297 | AH12: =+'Base original'!BC12*-1 -> -558.2527654 | AI12: =+'Base original'!BB12+'Base original'!BC12 -> 1159.354082 | AJ12: 18810.63073
A13: =+'Base original'!A13 -> 2007-05-01 | B13: =+'Base original'!C13*-1 -> -1847.815988 | C13: =+'Base original'!B13+'Base original'!C13 -> 6462.693145 | D13: =+'Base original'!E13*-1 -> -2947.002406 | E13: =+'Base original'!D13+'Base original'!E13 -> 3914.268824 | F13: =+'Base original'!G13*-1 -> -209.897997 | G13: =+'Base original'!F13+'Base original'!G13 -> 781.3800376 | H13: =+'Base original'!I13*-1 -> -1268.344268 | I13: =+'Base original'!K13*-1 -> -44.08783016 | J13: =+'Base original'!H13+'Base original'!J13 -> 1222.214815 | K13: -1312.432098 | L13: 2534.646913 | M13: =+'Base original'!M13*-1 -> -1121.181089 | N13: =+'Base original'!L13+'Base original'!M13 -> 4007.337077 | O13: =+'Base original'!O13*-1 -> -11098.0867 | P13: =+'Base original'!N13+'Base original'!O13 -> 20551.23739 | Q13: 38251.56338 | R13: =+'Base original'!Y13+'Base original'!AB13 -> 938.5197874 | S13: =+'Base original'!Z13+'Base original'!AC13 -> 1501.321131 | T13: =+'Base original'!AD13+'Base original'!AA13 -> -562.801344 | U13: =+'Base original'!AQ13*-1 -> -1229.262214 | V13: =+'Base original'!AP13+'Base original'!AQ13 -> 2397.59777 | W13: =+'Base original'!AS13*-1 -> -4016.038852 | X13: =+'Base original'!AR13+'Base original'!AS13 -> 7596.366092 | Y13: =+'Base original'!AU13*-1 -> -94.6217111 | Z13: =+'Base original'!AT13+'Base original'!AU13 -> 157.0747366 | AA13: =+'Base original'!AW13*-1 -> -5556.631862 | AB13: =+'Base original'!AY13*-1 -> -242.7953557 | AC13: =+'Base original'!AV13+'Base original'!AX13 -> 5678.957334 | AD13: -5799.427218 | AE13: 11478.38455 | AF13: =+'Base original'!BA13*-1 -> -2531.585174 | AG13: =+'Base original'!AZ13+'Base original'!BA13 -> 4498.730963 | AH13: =+'Base original'!BC13*-1 -> -655.434831 | AI13: =+'Base original'!BB13+'Base original'!BC13 -> 1506.111097 | AJ13: 27634.26521
A14: =+'Base original'!A14 -> 2007-06-01 | B14: =+'Base original'!C14*-1 -> -773.365 | C14: =+'Base original'!B14+'Base original'!C14 -> 4886.223781 | D14: =+'Base original'!E14*-1 -> -2038.509914 | E14: =+'Base original'!D14+'Base original'!E14 -> 3221.345272 | F14: =+'Base original'!G14*-1 -> -72.404468 | G14: =+'Base original'!F14+'Base original'!G14 -> 479.655385 | H14: =+'Base original'!I14*-1 -> -1203.871549 | I14: =+'Base original'!K14*-1 -> -64.02287203 | J14: =+'Base original'!H14+'Base original'!J14 -> 1087.543235 | K14: -1267.894421 | L14: 2355.437656 | M14: =+'Base original'!M14*-1 -> -1083.108078 | N14: =+'Base original'!L14+'Base original'!M14 -> 4948.940667 | O14: =+'Base original'!O14*-1 -> -13183.82535 | P14: =+'Base original'!N14+'Base original'!O14 -> 23472.71029 | Q14: 39364.31305 | R14: =+'Base original'!Y14+'Base original'!AB14 -> 1070.315245 | S14: =+'Base original'!Z14+'Base original'!AC14 -> 1450.237998 | T14: =+'Base original'!AD14+'Base original'!AA14 -> -379.922753 | U14: =+'Base original'!AQ14*-1 -> -1736.349957 | V14: =+'Base original'!AP14+'Base original'!AQ14 -> 3344.830099 | W14: =+'Base original'!AS14*-1 -> -3368.455262 | X14: =+'Base original'!AR14+'Base original'!AS14 -> 6116.014181 | Y14: =+'Base original'!AU14*-1 -> -124.8509593 | Z14: =+'Base original'!AT14+'Base original'!AU14 -> 164.1060412 | AA14: =+'Base original'!AW14*-1 -> -4710.793856 | AB14: =+'Base original'!AY14*-1 -> -417.6096407 | AC14: =+'Base original'!AV14+'Base original'!AX14 -> 5001.814334 | AD14: -5128.403497 | AE14: 10130.21783 | AF14: =+'Base original'!BA14*-1 -> -3611.298819 | AG14: =+'Base original'!AZ14+'Base original'!BA14 -> 7159.853061 | AH14: =+'Base original'!BC14*-1 -> -540.1215067 | AI14: =+'Base original'!BB14+'Base original'!BC14 -> 1194.22564 | AJ14: 28109.24685
A15: =+'Base original'!A15 -> 2007-07-01 | B15: =+'Base original'!C15*-1 -> -1192.83 | C15: =+'Base original'!B15+'Base original'!C15 -> 6371.636808 | D15: =+'Base original'!E15*-1 -> -3708.522439 | E15: =+'Base original'!D15+'Base original'!E15 -> 4513.57485 | F15: =+'Base original'!G15*-1 -> -152.606317 | G15: =+'Base original'!F15+'Base original'!G15 -> 510.464091 | H15: =+'Base original'!I15*-1 -> -1603.079691 | I15: =+'Base original'!K15*-1 -> -114.5645642 | J15: =+'Base original'!H15+'Base original'!J15 -> 1182.491115 | K15: -1717.644255 | L15: 2900.13537 | M15: =+'Base original'!M15*-1 -> -1444.696994 | N15: =+'Base original'!L15+'Base original'!M15 -> 4191.848513 | O15: =+'Base original'!O15*-1 -> -12933.30024 | P15: =+'Base original'!N15+'Base original'!O15 -> 24069.33056 | Q15: 42556.99019 | R15: =+'Base original'!Y15+'Base original'!AB15 -> 1302.01078 | S15: =+'Base original'!Z15+'Base original'!AC15 -> 1665.880143 | T15: =+'Base original'!AD15+'Base original'!AA15 -> -363.869363 | U15: =+'Base original'!AQ15*-1 -> -1765.097259 | V15: =+'Base original'!AP15+'Base original'!AQ15 -> 3538.786867 | W15: =+'Base original'!AS15*-1 -> -3654.986939 | X15: =+'Base original'!AR15+'Base original'!AS15 -> 6633.689444 | Y15: =+'Base original'!AU15*-1 -> -112.9989618 | Z15: =+'Base original'!AT15+'Base original'!AU15 -> 201.6520634 | AA15: =+'Base original'!AW15*-1 -> -5537.665129 | AB15: =+'Base original'!AY15*-1 -> -450.0238817 | AC15: =+'Base original'!AV15+'Base original'!AX15 -> 5618.289936 | AD15: -5987.68901 | AE15: 11605.97895 | AF15: =+'Base original'!BA15*-1 -> -2636.718428 | AG15: =+'Base original'!AZ15+'Base original'!BA15 -> 5641.648322 | AH15: =+'Base original'!BC15*-1 -> -674.0894022 | AI15: =+'Base original'!BB15+'Base original'!BC15 -> 1329.863358 | AJ15: 28951.619
A16: =+'Base original'!A16 -> 2007-08-01 | B16: =+'Base original'!C16*-1 -> -2176.543292 | C16: =+'Base original'!B16+'Base original'!C16 -> 8941.265533 | D16: =+'Base original'!E16*-1 -> -2695.172765 | E16: =+'Base original'!D16+'Base original'!E16 -> 4401.151286 | F16: =+'Base original'!G16*-1 -> -168.275125 | G16: =+'Base original'!F16+'Base original'!G16 -> 608.026541 | H16: =+'Base original'!I16*-1 -> -1814.30179 | I16: =+'Base original'!K16*-1 -> -131.8320152 | J16: =+'Base original'!H16+'Base original'!J16 -> 1195.872847 | K16: -1946.133805 | L16: 3142.006653 | M16: =+'Base original'!M16*-1 -> -2061.300775 | N16: =+'Base original'!L16+'Base original'!M16 -> 4842.483 | O16: =+'Base original'!O16*-1 -> -15262.34587 | P16: =+'Base original'!N16+'Base original'!O16 -> 28873.26291 | Q16: 50808.19592 | R16: =+'Base original'!Y16+'Base original'!AB16 -> 1284.319822 | S16: =+'Base original'!Z16+'Base original'!AC16 -> 1609.295862 | T16: =+'Base original'!AD16+'Base original'!AA16 -> -324.97604 | U16: =+'Base original'!AQ16*-1 -> -3681.265015 | V16: =+'Base original'!AP16+'Base original'!AQ16 -> 5087.193762 | W16: =+'Base original'!AS16*-1 -> -3597.998446 | X16: =+'Base original'!AR16+'Base original'!AS16 -> 7391.746367 | Y16: =+'Base original'!AU16*-1 -> -191.5013862 | Z16: =+'Base original'!AT16+'Base original'!AU16 -> 280.508529 | AA16: =+'Base original'!AW16*-1 -> -6151.620574 | AB16: =+'Base original'!AY16*-1 -> -531.0242401 | AC16: =+'Base original'!AV16+'Base original'!AX16 -> 6729.127894 | AD16: -6682.644814 | AE16: 13411.77271 | AF16: =+'Base original'!BA16*-1 -> -1668.639208 | AG16: =+'Base original'!AZ16+'Base original'!BA16 -> 3185.841534 | AH16: =+'Base original'!BC16*-1 -> -918.8011294 | AI16: =+'Base original'!BB16+'Base original'!BC16 -> 1881.638725 | AJ16: 31238.70163
A17: =+'Base original'!A17 -> 2007-09-01 | B17: =+'Base original'!C17*-1 -> -1436.573 | C17: =+'Base original'!B17+'Base original'!C17 -> 5461.50104 | D17: =+'Base original'!E17*-1 -> -3879.336801 | E17: =+'Base original'!D17+'Base original'!E17 -> 4858.412549 | F17: =+'Base original'!G17*-1 -> -87.443805 | G17: =+'Base original'!F17+'Base original'!G17 -> 458.331771 | H17: =+'Base original'!I17*-1 -> -1468.374625 | I17: =+'Base original'!K17*-1 -> -78.04201399 | J17: =+'Base original'!H17+'Base original'!J17 -> 605.9142461 | K17: -1546.416639 | L17: 2152.330885 | M17: =+'Base original'!M17*-1 -> -2387.926268 | N17: =+'Base original'!L17+'Base original'!M17 -> 3605.146713 | O17: =+'Base original'!O17*-1 -> -12081.68146 | P17: =+'Base original'!N17+'Base original'!O17 -> 26218.65396 | Q17: 42754.37692 | R17: =+'Base original'!Y17+'Base original'!AB17 -> 1027.470298 | S17: =+'Base original'!Z17+'Base original'!AC17 -> 1990.606017 | T17: =+'Base original'!AD17+'Base original'!AA17 -> -963.135719 | U17: =+'Base original'!AQ17*-1 -> -686.2075834 | V17: =+'Base original'!AP17+'Base original'!AQ17 -> 1245.377581 | W17: =+'Base original'!AS17*-1 -> -3157.676393 | X17: =+'Base original'!AR17+'Base original'!AS17 -> 5977.208114 | Y17: =+'Base original'!AU17*-1 -> -56.21935002 | Z17: =+'Base original'!AT17+'Base original'!AU17 -> 145.0449013 | AA17: =+'Base original'!AW17*-1 -> -4228.54353 | AB17: =+'Base original'!AY17*-1 -> -63.57390871 | AC17: =+'Base original'!AV17+'Base original'!AX17 -> 4375.475299 | AD17: -4292.117438 | AE17: 8667.592738 | AF17: =+'Base original'!BA17*-1 -> -1217.717644 | AG17: =+'Base original'!AZ17+'Base original'!BA17 -> 2197.855801 | AH17: =+'Base original'!BC17*-1 -> -526.4515912 | AI17: =+'Base original'!BB17+'Base original'!BC17 -> 1091.39726 | AJ17: 19324.47639
A18: =+'Base original'!A18 -> 2007-10-01 | B18: =+'Base original'!C18*-1 -> -2562.908807 | C18: =+'Base original'!B18+'Base original'!C18 -> 8715.610384 | D18: =+'Base original'!E18*-1 -> -4847.134326 | E18: =+'Base original'!D18+'Base original'!E18 -> 5975.804632 | F18: =+'Base original'!G18*-1 -> -231.844212 | G18: =+'Base original'!F18+'Base original'!G18 -> 618.175866 | H18: =+'Base original'!I18*-1 -> -1878.7136 | I18: =+'Base original'!K18*-1 -> -139.2490761 | J18: =+'Base original'!H18+'Base original'!J18 -> 1137.077028 | K18: -2017.962676 | L18: 3155.039704 | M18: =+'Base original'!M18*-1 -> -2703.607224 | N18: =+'Base original'!L18+'Base original'!M18 -> 4333.546061 | O18: =+'Base original'!O18*-1 -> -13992.84079 | P18: =+'Base original'!N18+'Base original'!O18 -> 28045.10425 | Q18: 50843.2809 | R18: =+'Base original'!Y18+'Base original'!AB18 -> 1105.315085 | S18: =+'Base original'!Z18+'Base original'!AC18 -> 2017.863681 | T18: =+'Base original'!AD18+'Base original'!AA18 -> -912.548596 | U18: =+'Base original'!AQ18*-1 -> -1430.483864 | V18: =+'Base original'!AP18+'Base original'!AQ18 -> 2720.945652 | W18: =+'Base original'!AS18*-1 -> -4691.127699 | X18: =+'Base original'!AR18+'Base original'!AS18 -> 8995.825942 | Y18: =+'Base original'!AU18*-1 -> -61.16859178 | Z18: =+'Base original'!AT18+'Base original'!AU18 -> 138.5583028 | AA18: =+'Base original'!AW18*-1 -> -5409.401167 | AB18: =+'Base original'!AY18*-1 -> -219.2719928 | AC18: =+'Base original'!AV18+'Base original'!AX18 -> 5629.611501 | AD18: -5628.67316 | AE18: 11258.28466 | AF18: =+'Base original'!BA18*-1 -> -1673.903199 | AG18: =+'Base original'!AZ18+'Base original'!BA18 -> 2915.938243 | AH18: =+'Base original'!BC18*-1 -> -848.0634865 | AI18: =+'Base original'!BB18+'Base original'!BC18 -> 2046.263022 | AJ18: 28075.81582
A19: =+'Base original'!A19 -> 2007-11-01 | B19: =+'Base original'!C19*-1 -> -2496.662922 | C19: =+'Base original'!B19+'Base original'!C19 -> 8016.247356 | D19: =+'Base original'!E19*-1 -> -3123.036129 | E19: =+'Base original'!D19+'Base original'!E19 -> 5042.578982 | F19: =+'Base original'!G19*-1 -> -88.972564 | G19: =+'Base original'!F19+'Base original'!G19 -> 483.238461 | H19: =+'Base original'!I19*-1 -> -1527.286626 | I19: =+'Base original'!K19*-1 -> -71.39565106 | J19: =+'Base original'!H19+'Base original'!J19 -> 1238.021517 | K19: -1598.682277 | L19: 2836.703794 | M19: =+'Base original'!M19*-1 -> -1892.049277 | N19: =+'Base original'!L19+'Base original'!M19 -> 3829.098233 | O19: =+'Base original'!O19*-1 -> -15871.51205 | P19: =+'Base original'!N19+'Base original'!O19 -> 27626.81307 | Q19: 47834.67989 | R19: =+'Base original'!Y19+'Base original'!AB19 -> 1423.401947 | S19: =+'Base original'!Z19+'Base original'!AC19 -> 1742.961632 | T19: =+'Base original'!AD19+'Base original'!AA19 -> -319.559685 | U19: =+'Base original'!AQ19*-1 -> -587.2994434 | V19: =+'Base original'!AP19+'Base original'!AQ19 -> 1171.426669 | W19: =+'Base original'!AS19*-1 -> -3969.82672 | X19: =+'Base original'!AR19+'Base original'!AS19 -> 8133.652162 | Y19: =+'Base original'!AU19*-1 -> -78.66310637 | Z19: =+'Base original'!AT19+'Base original'!AU19 -> 191.8728006 | AA19: =+'Base original'!AW19*-1 -> -5130.373555 | AB19: =+'Base original'!AY19*-1 -> -161.0885241 | AC19: =+'Base original'!AV19+'Base original'!AX19 -> 5651.574377 | AD19: -5291.46208 | AE19: 10943.03646 | AF19: =+'Base original'!BA19*-1 -> -1669.410639 | AG19: =+'Base original'!AZ19+'Base original'!BA19 -> 3236.388721 | AH19: =+'Base original'!BC19*-1 -> -824.4480115 | AI19: =+'Base original'!BB19+'Base original'!BC19 -> 1768.365697 | AJ19: 25444.74251
A20: =+'Base original'!A20 -> 2007-12-01 | B20: =+'Base original'!C20*-1 -> -2734.280541 | C20: =+'Base original'!B20+'Base original'!C20 -> 7026.636402 | D20: =+'Base original'!E20*-1 -> -3642.640402 | E20: =+'Base original'!D20+'Base original'!E20 -> 5211.741763 | F20: =+'Base original'!G20*-1 -> -149.505038 | G20: =+'Base original'!F20+'Base original'!G20 -> 533.70113 | H20: =+'Base original'!I20*-1 -> -1082.214374 | I20: =+'Base original'!K20*-1 -> -208.9658422 | J20: =+'Base original'!H20+'Base original'!J20 -> 566.5327579 | K20: -1291.180216 | L20: 1857.712974 | M20: =+'Base original'!M20*-1 -> -1837.172682 | N20: =+'Base original'!L20+'Base original'!M20 -> 2813.458107 | O20: =+'Base original'!O20*-1 -> -10376.94327 | P20: =+'Base original'!N20+'Base original'!O20 -> 21617.05316 | Q20: 39060.30353 | R20: =+'Base original'!Y20+'Base original'!AB20 -> 1143.96123 | S20: =+'Base original'!Z20+'Base original'!AC20 -> 1918.338506 | T20: =+'Base original'!AD20+'Base original'!AA20 -> -774.377276 | U20: =+'Base original'!AQ20*-1 -> -645.5756193 | V20: =+'Base original'!AP20+'Base original'!AQ20 -> 1100.155756 | W20: =+'Base original'!AS20*-1 -> -4746.387256 | X20: =+'Base original'!AR20+'Base original'!AS20 -> 9328.810893 | Y20: =+'Base original'!AU20*-1 -> -108.9621412 | Z20: =+'Base original'!AT20+'Base original'!AU20 -> 231.9515058 | AA20: =+'Base original'!AW20*-1 -> -4270.131729 | AB20: =+'Base original'!AY20*-1 -> -328.879703 | AC20: =+'Base original'!AV20+'Base original'!AX20 -> 4633.296005 | AD20: -4599.011432 | AE20: 9232.307437 | AF20: =+'Base original'!BA20*-1 -> -2001.282378 | AG20: =+'Base original'!AZ20+'Base original'!BA20 -> 4066.338039 | AH20: =+'Base original'!BC20*-1 -> -681.2311737 | AI20: =+'Base original'!BB20+'Base original'!BC20 -> 1332.86583 | AJ20: 25292.42946
A21: =+'Base original'!A21 -> 2008-01-01 | B21: =+'Base original'!C21*-1 -> -3172.594856 | C21: =+'Base original'!B21+'Base original'!C21 -> 8731.667039 | D21: =+'Base original'!E21*-1 -> -5062.198532 | E21: =+'Base original'!D21+'Base original'!E21 -> 6837.802418 | F21: =+'Base original'!G21*-1 -> -210.43097 | G21: =+'Base original'!F21+'Base original'!G21 -> 643.294904 | H21: =+'Base original'!I21*-1 -> -1386.752419 | I21: =+'Base original'!K21*-1 -> -287.7827993 | J21: =+'Base original'!H21+'Base original'!J21 -> 945.236581 | K21: -1674.535218 | L21: 2619.771799 | M21: =+'Base original'!M21*-1 -> -1612.279819 | N21: =+'Base original'!L21+'Base original'!M21 -> 2903.284787 | O21: =+'Base original'!O21*-1 -> -13279.86875 | P21: =+'Base original'!N21+'Base original'!O21 -> 25994.19508 | Q21: 47730.01602 | R21: =+'Base original'!Y21+'Base original'!AB21 -> 1158.595611 | S21: =+'Base original'!Z21+'Base original'!AC21 -> 2101.812353 | T21: =+'Base original'!AD21+'Base original'!AA21 -> -943.216742 | U21: =+'Base original'!AQ21*-1 -> -714.8141588 | V21: =+'Base original'!AP21+'Base original'!AQ21 -> 952.837727 | W21: =+'Base original'!AS21*-1 -> -4953.438166 | X21: =+'Base original'!AR21+'Base original'!AS21 -> 9495.550638 | Y21: =+'Base original'!AU21*-1 -> -92.86535045 | Z21: =+'Base original'!AT21+'Base original'!AU21 -> 206.5050891 | AA21: =+'Base original'!AW21*-1 -> -4841.47369 | AB21: =+'Base original'!AY21*-1 -> -209.4968265 | AC21: =+'Base original'!AV21+'Base original'!AX21 -> 5779.865445 | AD21: -5050.970517 | AE21: 10830.83596 | AF21: =+'Base original'!BA21*-1 -> -1815.058659 | AG21: =+'Base original'!AZ21+'Base original'!BA21 -> 3677.550411 | AH21: =+'Base original'!BC21*-1 -> -738.4731491 | AI21: =+'Base original'!BB21+'Base original'!BC21 -> 1662.420837 | AJ21: 26825.70066
A22: =+'Base original'!A22 -> 2008-02-01 | B22: =+'Base original'!C22*-1 -> -4848.048843 | C22: =+'Base original'!B22+'Base original'!C22 -> 10483.4978 | D22: =+'Base original'!E22*-1 -> -3428.668269 | E22: =+'Base original'!D22+'Base original'!E22 -> 4797.532654 | F22: =+'Base original'!G22*-1 -> -144.2883106 | G22: =+'Base original'!F22+'Base original'!G22 -> 540.3627236 | H22: =+'Base original'!I22*-1 -> -951.111873 | I22: =+'Base original'!K22*-1 -> -246.9260992 | J22: =+'Base original'!H22+'Base original'!J22 -> 570.1518366 | K22: -1198.037972 | L22: 1768.189809 | M22: =+'Base original'!M22*-1 -> -1105.920504 | N22: =+'Base original'!L22+'Base original'!M22 -> 2347.667452 | O22: =+'Base original'!O22*-1 -> -7893.812227 | P22: =+'Base original'!N22+'Base original'!O22 -> 16701.21351 | Q22: 36638.46395 | R22: =+'Base original'!Y22+'Base original'!AB22 -> 916.599052 | S22: =+'Base original'!Z22+'Base original'!AC22 -> 1892.559594 | T22: =+'Base original'!AD22+'Base original'!AA22 -> -975.960542 | U22: =+'Base original'!AQ22*-1 -> -1249.51303 | V22: =+'Base original'!AP22+'Base original'!AQ22 -> 2029.00923 | W22: =+'Base original'!AS22*-1 -> -4592.455672 | X22: =+'Base original'!AR22+'Base original'!AS22 -> 8380.282729 | Y22: =+'Base original'!AU22*-1 -> -155.0744471 | Z22: =+'Base original'!AT22+'Base original'!AU22 -> 242.520411 | AA22: =+'Base original'!AW22*-1 -> -3025.589111 | AB22: =+'Base original'!AY22*-1 -> -91.22343997 | AC22: =+'Base original'!AV22+'Base original'!AX22 -> 3762.129834 | AD22: -3116.812551 | AE22: 6878.942385 | AF22: =+'Base original'!BA22*-1 -> -878.3741882 | AG22: =+'Base original'!AZ22+'Base original'!BA22 -> 1946.317755 | AH22: =+'Base original'!BC22*-1 -> -693.9901112 | AI22: =+'Base original'!BB22+'Base original'!BC22 -> 1529.474088 | AJ22: 21006.5466
A23: =+'Base original'!A23 -> 2008-03-01 | B23: =+'Base original'!C23*-1 -> -3656.607 | C23: =+'Base original'!B23+'Base original'!C23 -> 12267.40902 | D23: =+'Base original'!E23*-1 -> -3612.298813 | E23: =+'Base original'!D23+'Base original'!E23 -> 5200.606055 | F23: =+'Base original'!G23*-1 -> -160.906812 | G23: =+'Base original'!F23+'Base original'!G23 -> 699.882929 | H23: =+'Base original'!I23*-1 -> -1058.108858 | I23: =+'Base original'!K23*-1 -> -164.4453111 | J23: =+'Base original'!H23+'Base original'!J23 -> 1102.955275 | K23: -1222.554169 | L23: 2325.509444 | M23: =+'Base original'!M23*-1 -> -1607.234949 | N23: =+'Base original'!L23+'Base original'!M23 -> 3430.355823 | O23: =+'Base original'!O23*-1 -> -13231.73306 | P23: =+'Base original'!N23+'Base original'!O23 -> 23562.07218 | Q23: 47485.83546 | R23: =+'Base original'!Y23+'Base original'!AB23 -> 1001.872943 | S23: =+'Base original'!Z23+'Base original'!AC23 -> 1593.551464 | T23: =+'Base original'!AD23+'Base original'!AA23 -> -591.678521 | U23: =+'Base original'!AQ23*-1 -> -1560.392075 | V23: =+'Base original'!AP23+'Base original'!AQ23 -> 1962.736087 | W23: =+'Base original'!AS23*-1 -> -4750.266533 | X23: =+'Base original'!AR23+'Base original'!AS23 -> 10105.94384 | Y23: =+'Base original'!AU23*-1 -> -125.3146534 | Z23: =+'Base original'!AT23+'Base original'!AU23 -> 213.1150869 | AA23: =+'Base original'!AW23*-1 -> -4607.567723 | AB23: =+'Base original'!AY23*-1 -> -71.29209004 | AC23: =+'Base original'!AV23+'Base original'!AX23 -> 5161.507542 | AD23: -4678.859814 | AE23: 9840.367355 | AF23: =+'Base original'!BA23*-1 -> -1285.414895 | AG23: =+'Base original'!AZ23+'Base original'!BA23 -> 1685.407285 | AH23: =+'Base original'!BC23*-1 -> -1185.262029 | AI23: =+'Base original'!BB23+'Base original'!BC23 -> 2707.384121 | AJ23: 26514.95378
A24: =+'Base original'!A24 -> 2008-04-01 | B24: =+'Base original'!C24*-1 -> -3409.959303 | C24: =+'Base original'!B24+'Base original'!C24 -> 10537.03884 | D24: =+'Base original'!E24*-1 -> -5465.544607 | E24: =+'Base original'!D24+'Base original'!E24 -> 7026.658602 | F24: =+'Base original'!G24*-1 -> -160.016779 | G24: =+'Base original'!F24+'Base original'!G24 -> 668.885533 | H24: =+'Base original'!I24*-1 -> -952.8733544 | I24: =+'Base original'!K24*-1 -> -152.0595907 | J24: =+'Base original'!H24+'Base original'!J24 -> 832.5999727 | K24: -1104.932945 | L24: 1937.532918 | M24: =+'Base original'!M24*-1 -> -1879.333271 | N24: =+'Base original'!L24+'Base original'!M24 -> 3577.467438 | O24: =+'Base original'!O24*-1 -> -13278.2529 | P24: =+'Base original'!N24+'Base original'!O24 -> 21915.1604 | Q24: 45662.74373 | R24: =+'Base original'!Y24+'Base original'!AB24 -> 837.5024071 | S24: =+'Base original'!Z24+'Base original'!AC24 -> 1239.04597 | T24: =+'Base original'!AD24+'Base original'!AA24 -> -401.543563 | U24: =+'Base original'!AQ24*-1 -> -1640.095084 | V24: =+'Base original'!AP24+'Base original'!AQ24 -> 2298.768423 | W24: =+'Base original'!AS24*-1 -> -5720.287429 | X24: =+'Base original'!AR24+'Base original'!AS24 -> 11986.58425 | Y24: =+'Base original'!AU24*-1 -> -73.92482455 | Z24: =+'Base original'!AT24+'Base original'!AU24 -> 247.4881074 | AA24: =+'Base original'!AW24*-1 -> -4014.54697 | AB24: =+'Base original'!AY24*-1 -> -122.760776 | AC24: =+'Base original'!AV24+'Base original'!AX24 -> 5091.112065 | AD24: -4137.307746 | AE24: 9228.41981 | AF24: =+'Base original'!BA24*-1 -> -2278.65513 | AG24: =+'Base original'!AZ24+'Base original'!BA24 -> 3708.85625 | AH24: =+'Base original'!BC24*-1 -> -1205.089786 | AI24: =+'Base original'!BB24+'Base original'!BC24 -> 2501.577133 | AJ24: 29971.69397
A25: =+'Base original'!A25 -> 2008-05-01 | B25: =+'Base original'!C25*-1 -> -3469.216871 | C25: =+'Base original'!B25+'Base original'!C25 -> 11571.27771 | D25: =+'Base original'!E25*-1 -> -4340.174844 | E25: =+'Base original'!D25+'Base original'!E25 -> 5772.430037 | F25: =+'Base original'!G25*-1 -> -100.225264 | G25: =+'Base original'!F25+'Base original'!G25 -> 416.71361 | H25: =+'Base original'!I25*-1 -> -842.5328969 | I25: =+'Base original'!K25*-1 -> -138.1764639 | J25: =+'Base original'!H25+'Base original'!J25 -> 759.8680902 | K25: -980.7093607 | L25: 1740.577451 | M25: =+'Base original'!M25*-1 -> -1294.982976 | N25: =+'Base original'!L25+'Base original'!M25 -> 2961.832548 | O25: =+'Base original'!O25*-1 -> -9835.761578 | P25: =+'Base original'!N25+'Base original'!O25 -> 17099.83404 | Q25: 39562.6654 | R25: =+'Base original'!Y25+'Base original'!AB25 -> 794.0433856 | S25: =+'Base original'!Z25+'Base original'!AC25 -> 1012.024733 | T25: =+'Base original'!AD25+'Base original'!AA25 -> -217.981347 | U25: =+'Base original'!AQ25*-1 -> -1651.434245 | V25: =+'Base original'!AP25+'Base original'!AQ25 -> 2448.18781 | W25: =+'Base original'!AS25*-1 -> -5404.72037 | X25: =+'Base original'!AR25+'Base original'!AS25 -> 10392.10117 | Y25: =+'Base original'!AU25*-1 -> -76.88379849 | Z25: =+'Base original'!AT25+'Base original'!AU25 -> 185.3707382 | AA25: =+'Base original'!AW25*-1 -> -3582.183569 | AB25: =+'Base original'!AY25*-1 -> -362.6694877 | AC25: =+'Base original'!AV25+'Base original'!AX25 -> 4478.352532 | AD25: -3944.853056 | AE25: 8423.205588 | AF25: =+'Base original'!BA25*-1 -> -2419.150732 | AG25: =+'Base original'!AZ25+'Base original'!BA25 -> 3385.836325 | AH25: =+'Base original'!BC25*-1 -> -906.1077978 | AI25: =+'Base original'!BB25+'Base original'!BC25 -> 2112.285121 | AJ25: 26946.98675
A26: =+'Base original'!A26 -> 2008-06-01 | B26: =+'Base original'!C26*-1 -> -4701.518521 | C26: =+'Base original'!B26+'Base original'!C26 -> 12753.28004 | D26: =+'Base original'!E26*-1 -> -4300.230205 | E26: =+'Base original'!D26+'Base original'!E26 -> 6593.635958 | F26: =+'Base original'!G26*-1 -> -92.125264 | G26: =+'Base original'!F26+'Base original'!G26 -> 419.569858 | H26: =+'Base original'!I26*-1 -> -918.5572486 | I26: =+'Base original'!K26*-1 -> -196.527163 | J26: =+'Base original'!H26+'Base original'!J26 -> 1112.043203 | K26: -1115.084412 | L26: 2227.127615 | M26: =+'Base original'!M26*-1 -> -1413.626222 | N26: =+'Base original'!L26+'Base original'!M26 -> 3727.341934 | O26: =+'Base original'!O26*-1 -> -13118.66317 | P26: =+'Base original'!N26+'Base original'!O26 -> 23311.60027 | Q26: 49032.55568 | R26: =+'Base original'!Y26+'Base original'!AB26 -> 1062.376899 | S26: =+'Base original'!Z26+'Base original'!AC26 -> 999.0766702 | T26: =+'Base original'!AD26+'Base original'!AA26 -> 63.300229 | U26: =+'Base original'!AQ26*-1 -> -389.9225937 | V26: =+'Base original'!AP26+'Base original'!AQ26 -> 1570.771949 | W26: =+'Base original'!AS26*-1 -> -5700.080482 | X26: =+'Base original'!AR26+'Base original'!AS26 -> 11200.52274 | Y26: =+'Base original'!AU26*-1 -> -92.61923287 | Z26: =+'Base original'!AT26+'Base original'!AU26 -> 196.0014329 | AA26: =+'Base original'!AW26*-1 -> -4220.15792 | AB26: =+'Base original'!AY26*-1 -> -254.4155555 | AC26: =+'Base original'!AV26+'Base original'!AX26 -> 5015.524692 | AD26: -4474.573475 | AE26: 9490.098167 | AF26: =+'Base original'!BA26*-1 -> -2854.047687 | AG26: =+'Base original'!AZ26+'Base original'!BA26 -> 3893.228742 | AH26: =+'Base original'!BC26*-1 -> -1145.40653 | AI26: =+'Base original'!BB26+'Base original'!BC26 -> 2193.183916 | AJ26: 28543.80695
A27: =+'Base original'!A27 -> 2008-07-01 | B27: =+'Base original'!C27*-1 -> -5327.599796 | C27: =+'Base original'!B27+'Base original'!C27 -> 13677.60908 | D27: =+'Base original'!E27*-1 -> -5364.947411 | E27: =+'Base original'!D27+'Base original'!E27 -> 6963.426844 | F27: =+'Base original'!G27*-1 -> -83.081093 | G27: =+'Base original'!F27+'Base original'!G27 -> 423.026793 | H27: =+'Base original'!I27*-1 -> -965.57504 | I27: =+'Base original'!K27*-1 -> -246.1256087 | J27: =+'Base original'!H27+'Base original'!J27 -> 593.7894062 | K27: -1211.700649 | L27: 1805.490055 | M27: =+'Base original'!M27*-1 -> -1533.560255 | N27: =+'Base original'!L27+'Base original'!M27 -> 3517.853857 | O27: =+'Base original'!O27*-1 -> -11761.63226 | P27: =+'Base original'!N27+'Base original'!O27 -> 23363.79253 | Q27: 49751.19916 | R27: =+'Base original'!Y27+'Base original'!AB27 -> 798.4359371 | S27: =+'Base original'!Z27+'Base original'!AC27 -> 1048.366677 | T27: =+'Base original'!AD27+'Base original'!AA27 -> -249.93074 | U27: =+'Base original'!AQ27*-1 -> -1297.142465 | V27: =+'Base original'!AP27+'Base original'!AQ27 -> 4009.278306 | W27: =+'Base original'!AS27*-1 -> -5731.55231 | X27: =+'Base original'!AR27+'Base original'!AS27 -> 10734.06958 | Y27: =+'Base original'!AU27*-1 -> -117.1096735 | Z27: =+'Base original'!AT27+'Base original'!AU27 -> 218.4745216 | AA27: =+'Base original'!AW27*-1 -> -6336.259863 | AB27: =+'Base original'!AY27*-1 -> -170.7582877 | AC27: =+'Base original'!AV27+'Base original'!AX27 -> 5447.509128 | AD27: -6507.01815 | AE27: 11954.52728 | AF27: =+'Base original'!BA27*-1 -> -1324.688364 | AG27: =+'Base original'!AZ27+'Base original'!BA27 -> 3025.571136 | AH27: =+'Base original'!BC27*-1 -> -859.8890376 | AI27: =+'Base original'!BB27+'Base original'!BC27 -> 1834.948852 | AJ27: 31776.86967
A28: =+'Base original'!A28 -> 2008-08-01 | B28: =+'Base original'!C28*-1 -> -3904.208552 | C28: =+'Base original'!B28+'Base original'!C28 -> 9593.773604 | D28: =+'Base original'!E28*-1 -> -4461.249893 | E28: =+'Base original'!D28+'Base original'!E28 -> 6239.870746 | F28: =+'Base original'!G28*-1 -> -90.576335 | G28: =+'Base original'!F28+'Base original'!G28 -> 413.1162855 | H28: =+'Base original'!I28*-1 -> -901.35589 | I28: =+'Base original'!K28*-1 -> -163.9267646 | J28: =+'Base original'!H28+'Base original'!J28 -> 822.5522738 | K28: -1065.282655 | L28: 1887.834928 | M28: =+'Base original'!M28*-1 -> -1001.872187 | N28: =+'Base original'!L28+'Base original'!M28 -> 4229.098683 | O28: =+'Base original'!O28*-1 -> -11501.68706 | P28: =+'Base original'!N28+'Base original'!O28 -> 21158.62358 | Q28: 43522.31783 | R28: =+'Base original'!Y28+'Base original'!AB28 -> 1018.113751 | S28: =+'Base original'!Z28+'Base original'!AC28 -> 1213.770274 | T28: =+'Base original'!AD28+'Base original'!AA28 -> -195.656523 | U28: =+'Base original'!AQ28*-1 -> -1308.950654 | V28: =+'Base original'!AP28+'Base original'!AQ28 -> 2462.879764 | W28: =+'Base original'!AS28*-1 -> -5909.385129 | X28: =+'Base original'!AR28+'Base original'!AS28 -> 11222.56421 | Y28: =+'Base original'!AU28*-1 -> -78.68060523 | Z28: =+'Base original'!AT28+'Base original'!AU28 -> 208.6746725 | AA28: =+'Base original'!AW28*-1 -> -4022.849925 | AB28: =+'Base original'!AY28*-1 -> -513.8054815 | AC28: =+'Base original'!AV28+'Base original'!AX28 -> 4668.228531 | AD28: -4536.655406 | AE28: 9204.883937 | AF28: =+'Base original'!BA28*-1 -> -2701.875177 | AG28: =+'Base original'!AZ28+'Base original'!BA28 -> 4981.940497 | AH28: =+'Base original'!BC28*-1 -> -640.7830298 | AI28: =+'Base original'!BB28+'Base original'!BC28 -> 1402.708462 | AJ28: 29483.65154
A29: =+'Base original'!A29 -> 2008-09-01 | B29: =+'Base original'!C29*-1 -> -2119.118588 | C29: =+'Base original'!B29+'Base original'!C29 -> 7274.450555 | D29: =+'Base original'!E29*-1 -> -4173.025013 | E29: =+'Base original'!D29+'Base original'!E29 -> 5835.942327 | F29: =+'Base original'!G29*-1 -> -113.716263 | G29: =+'Base original'!F29+'Base original'!G29 -> 411.8844795 | H29: =+'Base original'!I29*-1 -> -1156.907001 | I29: =+'Base original'!K29*-1 -> -330.5268319 | J29: =+'Base original'!H29+'Base original'!J29 -> 1166.798281 | K29: -1487.433833 | L29: 2654.232114 | M29: =+'Base original'!M29*-1 -> -1483.024851 | N29: =+'Base original'!L29+'Base original'!M29 -> 6123.805688 | O29: =+'Base original'!O29*-1 -> -11677.08561 | P29: =+'Base original'!N29+'Base original'!O29 -> 19790.64965 | Q29: 42090.96481 | R29: =+'Base original'!Y29+'Base original'!AB29 -> 1302.451003 | S29: =+'Base original'!Z29+'Base original'!AC29 -> 1419.368944 | T29: =+'Base original'!AD29+'Base original'!AA29 -> -116.917941 | U29: =+'Base original'!AQ29*-1 -> -952.712313 | V29: =+'Base original'!AP29+'Base original'!AQ29 -> 2198.414367 | W29: =+'Base original'!AS29*-1 -> -5943.813532 | X29: =+'Base original'!AR29+'Base original'!AS29 -> 11909.10031 | Y29: =+'Base original'!AU29*-1 -> -100.8837705 | Z29: =+'Base original'!AT29+'Base original'!AU29 -> 286.8409072 | AA29: =+'Base original'!AW29*-1 -> -4639.898404 | AB29: =+'Base original'!AY29*-1 -> -182.8093612 | AC29: =+'Base original'!AV29+'Base original'!AX29 -> 5165.922703 | AD29: -4822.707766 | AE29: 9988.630468 | AF29: =+'Base original'!BA29*-1 -> -5898.757566 | AG29: =+'Base original'!AZ29+'Base original'!BA29 -> 11891.0089 | AH29: =+'Base original'!BC29*-1 -> -693.5750526 | AI29: =+'Base original'!BB29+'Base original'!BC29 -> 1860.871084 | AJ29: 38134.86604
A30: =+'Base original'!A30 -> 2008-10-01 | B30: =+'Base original'!C30*-1 -> -2423.258985 | C30: =+'Base original'!B30+'Base original'!C30 -> 4573.330089 | D30: =+'Base original'!E30*-1 -> -3762.315051 | E30: =+'Base original'!D30+'Base original'!E30 -> 6873.261271 | F30: =+'Base original'!G30*-1 -> -81.61724721 | G30: =+'Base original'!F30+'Base original'!G30 -> 531.3084989 | H30: =+'Base original'!I30*-1 -> -717.2410135 | I30: =+'Base original'!K30*-1 -> -225.6194374 | J30: =+'Base original'!H30+'Base original'!J30 -> 1037.053076 | K30: -942.8604509 | L30: 1979.913527 | M30: =+'Base original'!M30*-1 -> -1510.578 | N30: =+'Base original'!L30+'Base original'!M30 -> 3889.067234 | O30: =+'Base original'!O30*-1 -> -8816.783899 | P30: =+'Base original'!N30+'Base original'!O30 -> 15382.57878 | Q30: 33229.4594 | R30: =+'Base original'!Y30+'Base original'!AB30 -> 1333.868372 | S30: =+'Base original'!Z30+'Base original'!AC30 -> 1368.731983 | T30: =+'Base original'!AD30+'Base original'!AA30 -> -34.863611 | U30: =+'Base original'!AQ30*-1 -> -1221.145594 | V30: =+'Base original'!AP30+'Base original'!AQ30 -> 2609.146904 | W30: =+'Base original'!AS30*-1 -> -4917.047156 | X30: =+'Base original'!AR30+'Base original'!AS30 -> 9824.339876 | Y30: =+'Base original'!AU30*-1 -> -107.8543921 | Z30: =+'Base original'!AT30+'Base original'!AU30 -> 203.6512379 | AA30: =+'Base original'!AW30*-1 -> -4902.916709 | AB30: =+'Base original'!AY30*-1 -> -322.7289214 | AC30: =+'Base original'!AV30+'Base original'!AX30 -> 5931.585814 | AD30: -5225.645631 | AE30: 11157.23144 | AF30: =+'Base original'!BA30*-1 -> -3713.936217 | AG30: =+'Base original'!AZ30+'Base original'!BA30 -> 7875.203925 | AH30: =+'Base original'!BC30*-1 -> -1273.90101 | AI30: =+'Base original'!BB30+'Base original'!BC30 -> 2604.20839 | AJ30: 34273.78178
A31: =+'Base original'!A31 -> 2008-11-01 | B31: =+'Base original'!C31*-1 -> -1144.6349 | C31: =+'Base original'!B31+'Base original'!C31 -> 3930.3889 | D31: =+'Base original'!E31*-1 -> -3369.962847 | E31: =+'Base original'!D31+'Base original'!E31 -> 5208.425724 | F31: =+'Base original'!G31*-1 -> -84.22602778 | G31: =+'Base original'!F31+'Base original'!G31 -> 368.9605588 | H31: =+'Base original'!I31*-1 -> -524.8440171 | I31: =+'Base original'!K31*-1 -> -127.3042639 | J31: =+'Base original'!H31+'Base original'!J31 -> 537.391766 | K31: -652.148281 | L31: 1189.540047 | M31: =+'Base original'!M31*-1 -> -1702.556096 | N31: =+'Base original'!L31+'Base original'!M31 -> 2778.403259 | O31: =+'Base original'!O31*-1 -> -4407.371497 | P31: =+'Base original'!N31+'Base original'!O31 -> 8174.671218 | Q31: 21650.38971 | R31: =+'Base original'!Y31+'Base original'!AB31 -> 1114.008648 | S31: =+'Base original'!Z31+'Base original'!AC31 -> 1201.759761 | T31: =+'Base original'!AD31+'Base original'!AA31 -> -87.751113 | U31: =+'Base original'!AQ31*-1 -> -1347.87319 | V31: =+'Base original'!AP31+'Base original'!AQ31 -> 2143.888523 | W31: =+'Base original'!AS31*-1 -> -4208.165609 | X31: =+'Base original'!AR31+'Base original'!AS31 -> 8989.670988 | Y31: =+'Base original'!AU31*-1 -> -95.99669621 | Z31: =+'Base original'!AT31+'Base original'!AU31 -> 159.937077 | AA31: =+'Base original'!AW31*-1 -> -4428.364644 | AB31: =+'Base original'!AY31*-1 -> -385.2230917 | AC31: =+'Base original'!AV31+'Base original'!AX31 -> 4847.680474 | AD31: -4813.587736 | AE31: 9661.26821 | AF31: =+'Base original'!BA31*-1 -> -1157.474091 | AG31: =+'Base original'!AZ31+'Base original'!BA31 -> 3180.271546 | AH31: =+'Base original'!BC31*-1 -> -936.692678 | AI31: =+'Base original'!BB31+'Base original'!BC31 -> 1902.992875 | AJ31: 26038.02922
A32: =+'Base original'!A32 -> 2008-12-01 | B32: =+'Base original'!C32*-1 -> -1168.760719 | C32: =+'Base original'!B32+'Base original'!C32 -> 4961.410438 | D32: =+'Base original'!E32*-1 -> -3376.710535 | E32: =+'Base original'!D32+'Base original'!E32 -> 4463.933102 | F32: =+'Base original'!G32*-1 -> -98.65 | G32: =+'Base original'!F32+'Base original'!G32 -> 345.0895 | H32: =+'Base original'!I32*-1 -> -445.86128 | I32: =+'Base original'!K32*-1 -> -76.76574803 | J32: =+'Base original'!H32+'Base original'!J32 -> 499.7864797 | K32: -522.627028 | L32: 1022.413508 | M32: =+'Base original'!M32*-1 -> -920.0752711 | N32: =+'Base original'!L32+'Base original'!M32 -> 2343.473156 | O32: =+'Base original'!O32*-1 -> -4230.159863 | P32: =+'Base original'!N32+'Base original'!O32 -> 7497.785361 | Q32: 20634.10506 | R32: =+'Base original'!Y32+'Base original'!AB32 -> 847.0610274 | S32: =+'Base original'!Z32+'Base original'!AC32 -> 899.9607834 | T32: =+'Base original'!AD32+'Base original'!AA32 -> -52.899756 | U32: =+'Base original'!AQ32*-1 -> -1320.326072 | V32: =+'Base original'!AP32+'Base original'!AQ32 -> 2116.383063 | W32: =+'Base original'!AS32*-1 -> -4884.156546 | X32: =+'Base original'!AR32+'Base original'!AS32 -> 9218.032976 | Y32: =+'Base original'!AU32*-1 -> -73.44428192 | Z32: =+'Base original'!AT32+'Base original'!AU32 -> 129.0748835 | AA32: =+'Base original'!AW32*-1 -> -3802.890201 | AB32: =+'Base original'!AY32*-1 -> -799.3385761 | AC32: =+'Base original'!AV32+'Base original'!AX32 -> 4738.771223 | AD32: -4602.228777 | AE32: 9341 | AF32: =+'Base original'!BA32*-1 -> -1360.626075 | AG32: =+'Base original'!AZ32+'Base original'!BA32 -> 3789.481757 | AH32: =+'Base original'!BC32*-1 -> -847.3382495 | AI32: =+'Base original'!BB32+'Base original'!BC32 -> 1631.377368 | AJ32: 26225.35005
A33: =+'Base original'!A33 -> 2009-01-01 | B33: =+'Base original'!C33*-1 -> -2278.525123 | C33: =+'Base original'!B33+'Base original'!C33 -> 7155.959565 | D33: =+'Base original'!E33*-1 -> -4041.375827 | E33: =+'Base original'!D33+'Base original'!E33 -> 5473.824195 | F33: =+'Base original'!G33*-1 -> -65.032288 | G33: =+'Base original'!F33+'Base original'!G33 -> 340.539017 | H33: =+'Base original'!I33*-1 -> -721.405078 | I33: =+'Base original'!K33*-1 -> -103.6208712 | J33: =+'Base original'!H33+'Base original'!J33 -> 332.7842259 | K33: -825.0259492 | L33: 1157.810175 | M33: =+'Base original'!M33*-1 -> -620.5457787 | N33: =+'Base original'!L33+'Base original'!M33 -> 1885.234259 | O33: =+'Base original'!O33*-1 -> -7379.844188 | P33: =+'Base original'!N33+'Base original'!O33 -> 12947.54584 | Q33: 28960.91305 | R33: =+'Base original'!Y33+'Base original'!AB33 -> 693.946722 | S33: =+'Base original'!Z33+'Base original'!AC33 -> 931.50153 | T33: =+'Base original'!AD33+'Base original'!AA33 -> -237.554808 | U33: =+'Base original'!AQ33*-1 -> -957.3320485 | V33: =+'Base original'!AP33+'Base original'!AQ33 -> 1600.893762 | W33: =+'Base original'!AS33*-1 -> -4268.324437 | X33: =+'Base original'!AR33+'Base original'!AS33 -> 8872.54472 | Y33: =+'Base original'!AU33*-1 -> -83.62905548 | Z33: =+'Base original'!AT33+'Base original'!AU33 -> 254.3849602 | AA33: =+'Base original'!AW33*-1 -> -3325.74842 | AB33: =+'Base original'!AY33*-1 -> -655.54374 | AC33: =+'Base original'!AV33+'Base original'!AX33 -> 3923.707841 | AD33: -3981.292159 | AE33: 7905 | AF33: =+'Base original'!BA33*-1 -> -1030.468111 | AG33: =+'Base original'!AZ33+'Base original'!BA33 -> 2013.487501 | AH33: =+'Base original'!BC33*-1 -> -1138.214189 | AI33: =+'Base original'!BB33+'Base original'!BC33 -> 2343.036943 | AJ33: 22989.34789
A34: =+'Base original'!A34 -> 2009-02-01 | B34: =+'Base original'!C34*-1 -> -3298.915573 | C34: =+'Base original'!B34+'Base original'!C34 -> 8355.398005 | D34: =+'Base original'!E34*-1 -> -3172.002504 | E34: =+'Base original'!D34+'Base original'!E34 -> 3860.74618 | F34: =+'Base original'!G34*-1 -> -47.104848 | G34: =+'Base original'!F34+'Base original'!G34 -> 300.7303517 | H34: =+'Base original'!I34*-1 -> -593.7717345 | I34: =+'Base original'!K34*-1 -> -114.2364502 | J34: =+'Base original'!H34+'Base original'!J34 -> 491.5948174 | K34: -708.0081847 | L34: 1199.603002 | M34: =+'Base original'!M34*-1 -> -637.6375387 | N34: =+'Base original'!L34+'Base original'!M34 -> 1294.986822 | O34: =+'Base original'!O34*-1 -> -8886.837819 | P34: =+'Base original'!N34+'Base original'!O34 -> 15027.16046 | Q34: 30038.62482 | R34: =+'Base original'!Y34+'Base original'!AB34 -> 722.0969142 | S34: =+'Base original'!Z34+'Base original'!AC34 -> 977.3326452 | T34: =+'Base original'!AD34+'Base original'!AA34 -> -255.235731 | U34: =+'Base original'!AQ34*-1 -> -481.4056824 | V34: =+'Base original'!AP34+'Base original'!AQ34 -> 1422.830739 | W34: =+'Base original'!AS34*-1 -> -3231.207395 | X34: =+'Base original'!AR34+'Base original'!AS34 -> 6543.768261 | Y34: =+'Base original'!AU34*-1 -> -73.9407869 | Z34: =+'Base original'!AT34+'Base original'!AU34 -> 154.8331866 | AA34: =+'Base original'!AW34*-1 -> -2562.59499 | AB34: =+'Base original'!AY34*-1 -> -680.4600155 | AC34: =+'Base original'!AV34+'Base original'!AX34 -> 3343.944994 | AD34: -3243.055006 | AE34: 6587 | AF34: =+'Base original'!BA34*-1 -> -633.1126727 | AG34: =+'Base original'!AZ34+'Base original'!BA34 -> 1391.035715 | AH34: =+'Base original'!BC34*-1 -> -578.2384569 | AI34: =+'Base original'!BB34+'Base original'!BC34 -> 1225.46474 | AJ34: 17324.93264
A35: =+'Base original'!A35 -> 2009-03-01 | B35: =+'Base original'!C35*-1 -> -1842.523461 | C35: =+'Base original'!B35+'Base original'!C35 -> 5837.665649 | D35: =+'Base original'!E35*-1 -> -3007.386361 | E35: =+'Base original'!D35+'Base original'!E35 -> 4153.294772 | F35: =+'Base original'!G35*-1 -> -115.965351 | G35: =+'Base original'!F35+'Base original'!G35 -> 429.8080012 | H35: =+'Base original'!I35*-1 -> -653.087958 | I35: =+'Base original'!K35*-1 -> -98.20049886 | J35: =+'Base original'!H35+'Base original'!J35 -> 427.1548148 | K35: -751.2884569 | L35: 1178.443272 | M35: =+'Base original'!M35*-1 -> -640.7328799 | N35: =+'Base original'!L35+'Base original'!M35 -> 1612.79674 | O35: =+'Base original'!O35*-1 -> -6957.97824 | P35: =+'Base original'!N35+'Base original'!O35 -> 12880.12755 | Q35: 26092.13598 | R35: =+'Base original'!Y35+'Base original'!AB35 -> 707.0655651 | S35: =+'Base original'!Z35+'Base original'!AC35 -> 1010.715769 | T35: =+'Base original'!AD35+'Base original'!AA35 -> -303.650204 | U35: =+'Base original'!AQ35*-1 -> -870.4099711 | V35: =+'Base original'!AP35+'Base original'!AQ35 -> 1365.570996 | W35: =+'Base original'!AS35*-1 -> -3935.731943 | X35: =+'Base original'!AR35+'Base original'!AS35 -> 7695.127974 | Y35: =+'Base original'!AU35*-1 -> -128.2563497 | Z35: =+'Base original'!AT35+'Base original'!AU35 -> 311.6933159 | AA35: =+'Base original'!AW35*-1 -> -4338.061611 | AB35: =+'Base original'!AY35*-1 -> -407.0679739 | AC35: =+'Base original'!AV35+'Base original'!AX35 -> 5026.523373 | AD35: -4745.129585 | AE35: 9771.652958 | AF35: =+'Base original'!BA35*-1 -> -243.3202633 | AG35: =+'Base original'!AZ35+'Base original'!BA35 -> 1059.14733 | AH35: =+'Base original'!BC35*-1 -> -1143.321887 | AI35: =+'Base original'!BB35+'Base original'!BC35 -> 2075.487158 | AJ35: 22278.67973
A36: =+'Base original'!A36 -> 2009-04-01 | B36: =+'Base original'!C36*-1 -> -1627.427653 | C36: =+'Base original'!B36+'Base original'!C36 -> 6217.346306 | D36: =+'Base original'!E36*-1 -> -2636.914753 | E36: =+'Base original'!D36+'Base original'!E36 -> 3829.46844 | F36: =+'Base original'!G36*-1 -> -45.825868 | G36: =+'Base original'!F36+'Base original'!G36 -> 256.607858 | H36: =+'Base original'!I36*-1 -> -411.650558 | I36: =+'Base original'!K36*-1 -> -80.85680109 | J36: =+'Base original'!H36+'Base original'!J36 -> 303.0752315 | K36: -492.507359 | L36: 795.5825905 | M36: =+'Base original'!M36*-1 -> -741.2091849 | N36: =+'Base original'!L36+'Base original'!M36 -> 1488.8021 | O36: =+'Base original'!O36*-1 -> -6872.526575 | P36: =+'Base original'!N36+'Base original'!O36 -> 12072.12742 | Q36: 24659.93472 | R36: =+'Base original'!Y36+'Base original'!AB36 -> 662.6658217 | S36: =+'Base original'!Z36+'Base original'!AC36 -> 1036.475982 | T36: =+'Base original'!AD36+'Base original'!AA36 -> -373.81016 | U36: =+'Base original'!AQ36*-1 -> -1201.31315 | V36: =+'Base original'!AP36+'Base original'!AQ36 -> 1593.756307 | W36: =+'Base original'!AS36*-1 -> -3407.264493 | X36: =+'Base original'!AR36+'Base original'!AS36 -> 7030.291246 | Y36: =+'Base original'!AU36*-1 -> -102.0843596 | Z36: =+'Base original'!AT36+'Base original'!AU36 -> 209.8626563 | AA36: =+'Base original'!AW36*-1 -> -4127.176557 | AB36: =+'Base original'!AY36*-1 -> -474.5204487 | AC36: =+'Base original'!AV36+'Base original'!AX36 -> 4989.530743 | AD36: -4601.697006 | AE36: 9591.227749 | AF36: =+'Base original'!BA36*-1 -> -618.1434953 | AG36: =+'Base original'!AZ36+'Base original'!BA36 -> 2441.006191 | AH36: =+'Base original'!BC36*-1 -> -938.3574964 | AI36: =+'Base original'!BB36+'Base original'!BC36 -> 1628.166195 | AJ36: 22494.31034
A37: =+'Base original'!A37 -> 2009-05-01 | B37: =+'Base original'!C37*-1 -> -2551.496539 | C37: =+'Base original'!B37+'Base original'!C37 -> 9261.863109 | D37: =+'Base original'!E37*-1 -> -2938.851447 | E37: =+'Base original'!D37+'Base original'!E37 -> 3973.622059 | F37: =+'Base original'!G37*-1 -> -46.104244 | G37: =+'Base original'!F37+'Base original'!G37 -> 296.3569341 | H37: =+'Base original'!I37*-1 -> -560.6935974 | I37: =+'Base original'!K37*-1 -> -107.4952772 | J37: =+'Base original'!H37+'Base original'!J37 -> 313.7232718 | K37: -668.1888745 | L37: 981.9121463 | M37: =+'Base original'!M37*-1 -> -453.7836424 | N37: =+'Base original'!L37+'Base original'!M37 -> 1205.757024 | O37: =+'Base original'!O37*-1 -> -5488.013414 | P37: =+'Base original'!N37+'Base original'!O37 -> 10074.31783 | Q37: 25793.82911 | R37: =+'Base original'!Y37+'Base original'!AB37 -> 563.1508263 | S37: =+'Base original'!Z37+'Base original'!AC37 -> 896.5120153 | T37: =+'Base original'!AD37+'Base original'!AA37 -> -333.361189 | U37: =+'Base original'!AQ37*-1 -> -1987.266906 | V37: =+'Base original'!AP37+'Base original'!AQ37 -> 2245.157115 | W37: =+'Base original'!AS37*-1 -> -3858.282119 | X37: =+'Base original'!AR37+'Base original'!AS37 -> 7273.607477 | Y37: =+'Base original'!AU37*-1 -> -99.07580643 | Z37: =+'Base original'!AT37+'Base original'!AU37 -> 181.2998491 | AA37: =+'Base original'!AW37*-1 -> -3956.997106 | AB37: =+'Base original'!AY37*-1 -> -443.1860747 | AC37: =+'Base original'!AV37+'Base original'!AX37 -> 4262.392737 | AD37: -4400.183181 | AE37: 8662.575918 | AF37: =+'Base original'!BA37*-1 -> -779.1442493 | AG37: =+'Base original'!AZ37+'Base original'!BA37 -> 2164.120421 | AH37: =+'Base original'!BC37*-1 -> -770.3977383 | AI37: =+'Base original'!BB37+'Base original'!BC37 -> 1365.26861 | AJ37: 21892.02939
A38: =+'Base original'!A38 -> 2009-06-01 | B38: =+'Base original'!C38*-1 -> -3157.113 | C38: =+'Base original'!B38+'Base original'!C38 -> 11014.397 | D38: =+'Base original'!E38*-1 -> -4013.05955 | E38: =+'Base original'!D38+'Base original'!E38 -> 5155.417985 | F38: =+'Base original'!G38*-1 -> -142.719723 | G38: =+'Base original'!F38+'Base original'!G38 -> 566.489261 | H38: =+'Base original'!I38*-1 -> -386.3388372 | I38: =+'Base original'!K38*-1 -> -148.9704489 | J38: =+'Base original'!H38+'Base original'!J38 -> 404.4017965 | K38: -535.3092861 | L38: 939.7110826 | M38: =+'Base original'!M38*-1 -> -1533.847802 | N38: =+'Base original'!L38+'Base original'!M38 -> 3424.220796 | O38: =+'Base original'!O38*-1 -> -7811.402023 | P38: =+'Base original'!N38+'Base original'!O38 -> 14214.74553 | Q38: 35314.98166 | R38: =+'Base original'!Y38+'Base original'!AB38 -> 596.0234383 | S38: =+'Base original'!Z38+'Base original'!AC38 -> 920.0078833 | T38: =+'Base original'!AD38+'Base original'!AA38 -> -323.984445 | U38: =+'Base original'!AQ38*-1 -> -1639.637394 | V38: =+'Base original'!AP38+'Base original'!AQ38 -> 1797.109322 | W38: =+'Base original'!AS38*-1 -> -4833.361796 | X38: =+'Base original'!AR38+'Base original'!AS38 -> 8944.822646 | Y38: =+'Base original'!AU38*-1 -> -133.772593 | Z38: =+'Base original'!AT38+'Base original'!AU38 -> 290.5485204 | AA38: =+'Base original'!AW38*-1 -> -3920.742088 | AB38: =+'Base original'!AY38*-1 -> -344.3943199 | AC38: =+'Base original'!AV38+'Base original'!AX38 -> 3955.777197 | AD38: -4265.136407 | AE38: 8220.913605 | AF38: =+'Base original'!BA38*-1 -> -2236.844283 | AG38: =+'Base original'!AZ38+'Base original'!BA38 -> 6686.429635 | AH38: =+'Base original'!BC38*-1 -> -1264.907526 | AI38: =+'Base original'!BB38+'Base original'!BC38 -> 2267.329963 | AJ38: 28207.15369
A39: =+'Base original'!A39 -> 2009-07-01 | B39: =+'Base original'!C39*-1 -> -2070.896 | C39: =+'Base original'!B39+'Base original'!C39 -> 10319.045 | D39: =+'Base original'!E39*-1 -> -3757.894853 | E39: =+'Base original'!D39+'Base original'!E39 -> 4681.92845 | F39: =+'Base original'!G39*-1 -> -53.101425 | G39: =+'Base original'!F39+'Base original'!G39 -> 632.503905 | H39: =+'Base original'!I39*-1 -> -574.9714418 | I39: =+'Base original'!K39*-1 -> -120.4990353 | J39: =+'Base original'!H39+'Base original'!J39 -> 509.7555016 | K39: -695.4704771 | L39: 1205.225979 | M39: =+'Base original'!M39*-1 -> -187.574698 | N39: =+'Base original'!L39+'Base original'!M39 -> 1073.749418 | O39: =+'Base original'!O39*-1 -> -9790.716478 | P39: =+'Base original'!N39+'Base original'!O39 -> 16437.20875 | Q39: 34349.6615 | R39: =+'Base original'!Y39+'Base original'!AB39 -> 550.3146259 | S39: =+'Base original'!Z39+'Base original'!AC39 -> 538.5832609 | T39: =+'Base original'!AD39+'Base original'!AA39 -> 11.731365 | U39: =+'Base original'!AQ39*-1 -> -2043.971988 | V39: =+'Base original'!AP39+'Base original'!AQ39 -> 2508.885481 | W39: =+'Base original'!AS39*-1 -> -4523.8686 | X39: =+'Base original'!AR39+'Base original'!AS39 -> 9421.25203 | Y39: =+'Base original'!AU39*-1 -> -154.6190428 | Z39: =+'Base original'!AT39+'Base original'!AU39 -> 310.9333906 | AA39: =+'Base original'!AW39*-1 -> -4417.867177 | AB39: =+'Base original'!AY39*-1 -> -230.0914277 | AC39: =+'Base original'!AV39+'Base original'!AX39 -> 4712.228067 | AD39: -4647.958605 | AE39: 9360.186672 | AF39: =+'Base original'!BA39*-1 -> -539.45806 | AG39: =+'Base original'!AZ39+'Base original'!BA39 -> 1852.957656 | AH39: =+'Base original'!BC39*-1 -> -899.7037045 | AI39: =+'Base original'!BB39+'Base original'!BC39 -> 1771.255091 | AJ39: 25225.47032
A40: =+'Base original'!A40 -> 2009-08-01 | B40: =+'Base original'!C40*-1 -> -1962.518 | C40: =+'Base original'!B40+'Base original'!C40 -> 9986.581 | D40: =+'Base original'!E40*-1 -> -3939.79297 | E40: =+'Base original'!D40+'Base original'!E40 -> 4968.428518 | F40: =+'Base original'!G40*-1 -> -73.67362797 | G40: =+'Base original'!F40+'Base original'!G40 -> 714.9237119 | H40: =+'Base original'!I40*-1 -> -437.993658 | I40: =+'Base original'!K40*-1 -> -203.258158 | J40: =+'Base original'!H40+'Base original'!J40 -> 534.0437879 | K40: -641.251816 | L40: 1175.295604 | M40: =+'Base original'!M40*-1 -> -282.1533987 | N40: =+'Base original'!L40+'Base original'!M40 -> 2538.016466 | O40: =+'Base original'!O40*-1 -> -11382.96544 | P40: =+'Base original'!N40+'Base original'!O40 -> 18883.31188 | Q40: 38266.55718 | R40: =+'Base original'!Y40+'Base original'!AB40 -> 571.8791354 | S40: =+'Base original'!Z40+'Base original'!AC40 -> 582.9492624 | T40: =+'Base original'!AD40+'Base original'!AA40 -> -11.070127 | U40: =+'Base original'!AQ40*-1 -> -1418.442203 | V40: =+'Base original'!AP40+'Base original'!AQ40 -> 1671.28737 | W40: =+'Base original'!AS40*-1 -> -4818.673655 | X40: =+'Base original'!AR40+'Base original'!AS40 -> 9471.726831 | Y40: =+'Base original'!AU40*-1 -> -114.3983166 | Z40: =+'Base original'!AT40+'Base original'!AU40 -> 240.3578461 | AA40: =+'Base original'!AW40*-1 -> -4105.1677 | AB40: =+'Base original'!AY40*-1 -> -445.5351761 | AC40: =+'Base original'!AV40+'Base original'!AX40 -> 4754.653732 | AD40: -4550.702876 | AE40: 9305.356608 | AF40: =+'Base original'!BA40*-1 -> -1769.952099 | AG40: =+'Base original'!AZ40+'Base original'!BA40 -> 4437.027088 | AH40: =+'Base original'!BC40*-1 -> -471.0408507 | AI40: =+'Base original'!BB40+'Base original'!BC40 -> 1087.433022 | AJ40: 26213.18877
A41: =+'Base original'!A41 -> 2009-09-01 | B41: =+'Base original'!C41*-1 -> -4038.892994 | C41: =+'Base original'!B41+'Base original'!C41 -> 13714.90269 | D41: =+'Base original'!E41*-1 -> -4227.225944 | E41: =+'Base original'!D41+'Base original'!E41 -> 5198.666322 | F41: =+'Base original'!G41*-1 -> -129.805599 | G41: =+'Base original'!F41+'Base original'!G41 -> 732.466329 | H41: =+'Base original'!I41*-1 -> -753.1152034 | I41: =+'Base original'!K41*-1 -> -179.4457288 | J41: =+'Base original'!H41+'Base original'!J41 -> 818.2100973 | K41: -932.5609323 | L41: 1750.77103 | M41: =+'Base original'!M41*-1 -> -812.9554942 | N41: =+'Base original'!L41+'Base original'!M41 -> 3105.939019 | O41: =+'Base original'!O41*-1 -> -12600.26474 | P41: =+'Base original'!N41+'Base original'!O41 -> 21936.36953 | Q41: 46439.11491 | R41: =+'Base original'!Y41+'Base original'!AB41 -> 857.8273883 | S41: =+'Base original'!Z41+'Base original'!AC41 -> 807.6118383 | T41: =+'Base original'!AD41+'Base original'!AA41 -> 50.21555 | U41: =+'Base original'!AQ41*-1 -> -2351.045898 | V41: =+'Base original'!AP41+'Base original'!AQ41 -> 2605.409854 | W41: =+'Base original'!AS41*-1 -> -5598.839402 | X41: =+'Base original'!AR41+'Base original'!AS41 -> 10316.31908 | Y41: =+'Base original'!AU41*-1 -> -137.6382276 | Z41: =+'Base original'!AT41+'Base original'!AU41 -> 237.4656557 | AA41: =+'Base original'!AW41*-1 -> -4091.358507 | AB41: =+'Base original'!AY41*-1 -> -582.2848097 | AC41: =+'Base original'!AV41+'Base original'!AX41 -> 4299.371259 | AD41: -4673.643317 | AE41: 8973.014576 | AF41: =+'Base original'!BA41*-1 -> -4506.744951 | AG41: =+'Base original'!AZ41+'Base original'!BA41 -> 9566.954841 | AH41: =+'Base original'!BC41*-1 -> -860.4982043 | AI41: =+'Base original'!BB41+'Base original'!BC41 -> 2052.649408 | AJ41: 33751.81342
A42: =+'Base original'!A42 -> 2009-10-01 | B42: =+'Base original'!C42*-1 -> -2374.5672 | C42: =+'Base original'!B42+'Base original'!C42 -> 10642.00044 | D42: =+'Base original'!E42*-1 -> -4732.974786 | E42: =+'Base original'!D42+'Base original'!E42 -> 6040.655415 | F42: =+'Base original'!G42*-1 -> -62.051435 | G42: =+'Base original'!F42+'Base original'!G42 -> 651.589015 | H42: =+'Base original'!I42*-1 -> -761.5965189 | I42: =+'Base original'!K42*-1 -> -203.7775801 | J42: =+'Base original'!H42+'Base original'!J42 -> 882.3164123 | K42: -965.3740991 | L42: 1847.690511 | M42: =+'Base original'!M42*-1 -> -756.7915442 | N42: =+'Base original'!L42+'Base original'!M42 -> 3024.512711 | O42: =+'Base original'!O42*-1 -> -11719.21527 | P42: =+'Base original'!N42+'Base original'!O42 -> 20951.12667 | Q42: 43157.57477 | R42: =+'Base original'!Y42+'Base original'!AB42 -> 889.8602411 | S42: =+'Base original'!Z42+'Base original'!AC42 -> 944.9592721 | T42: =+'Base original'!AD42+'Base original'!AA42 -> -55.099031 | U42: =+'Base original'!AQ42*-1 -> -2264.37157 | V42: =+'Base original'!AP42+'Base original'!AQ42 -> 2449.737233 | W42: =+'Base original'!AS42*-1 -> -4603.445078 | X42: =+'Base original'!AR42+'Base original'!AS42 -> 9733.266932 | Y42: =+'Base original'!AU42*-1 -> -157.2212384 | Z42: =+'Base original'!AT42+'Base original'!AU42 -> 263.248102 | AA42: =+'Base original'!AW42*-1 -> -4724.852412 | AB42: =+'Base original'!AY42*-1 -> -752.8212625 | AC42: =+'Base original'!AV42+'Base original'!AX42 -> 4786.682984 | AD42: -5477.673674 | AE42: 10264.35666 | AF42: =+'Base original'!BA42*-1 -> -1967.859663 | AG42: =+'Base original'!AZ42+'Base original'!BA42 -> 4963.510959 | AH42: =+'Base original'!BC42*-1 -> -830.9287756 | AI42: =+'Base original'!BB42+'Base original'!BC42 -> 1709.49578 | AJ42: 29383.61566
A43: =+'Base original'!A43 -> 2009-11-01 | B43: =+'Base original'!C43*-1 -> -2352.711 | C43: =+'Base original'!B43+'Base original'!C43 -> 12112.847 | D43: =+'Base original'!E43*-1 -> -6155.395143 | E43: =+'Base original'!D43+'Base original'!E43 -> 7199.38327 | F43: =+'Base original'!G43*-1 -> -168.696192 | G43: =+'Base original'!F43+'Base original'!G43 -> 765 | H43: =+'Base original'!I43*-1 -> -682.5803003 | I43: =+'Base original'!K43*-1 -> -287.0779596 | J43: =+'Base original'!H43+'Base original'!J43 -> 612.3417401 | K43: -969.6582599 | L43: 1582 | M43: =+'Base original'!M43*-1 -> -1092.830023 | N43: =+'Base original'!L43+'Base original'!M43 -> 2639.55803 | O43: =+'Base original'!O43*-1 -> -11807.60529 | P43: =+'Base original'!N43+'Base original'!O43 -> 21088.4772 | Q43: 45387.2655 | R43: =+'Base original'!Y43+'Base original'!AB43 -> 830.6772089 | S43: =+'Base original'!Z43+'Base original'!AC43 -> 826.9597604 | T43: =+'Base original'!AD43+'Base original'!AA43 -> 3.7174485 | U43: =+'Base original'!AQ43*-1 -> -3155.504672 | V43: =+'Base original'!AP43+'Base original'!AQ43 -> 3405 | W43: =+'Base original'!AS43*-1 -> -5673.285582 | X43: =+'Base original'!AR43+'Base original'!AS43 -> 11339.42884 | Y43: =+'Base original'!AU43*-1 -> -162.741877 | Z43: =+'Base original'!AT43+'Base original'!AU43 -> 377 | AA43: =+'Base original'!AW43*-1 -> -4648.692384 | AB43: =+'Base original'!AY43*-1 -> -461.7781492 | AC43: =+'Base original'!AV43+'Base original'!AX43 -> 4759.529467 | AD43: -5110.470533 | AE43: 9870 | AF43: =+'Base original'!BA43*-1 -> -1152.552695 | AG43: =+'Base original'!AZ43+'Base original'!BA43 -> 3188.614542 | AH43: =+'Base original'!BC43*-1 -> -915.2960546 | AI43: =+'Base original'!BB43+'Base original'!BC43 -> 2215.083671 | AJ43: 30395.12705
A44: =+'Base original'!A44 -> 2009-12-01 | B44: =+'Base original'!C44*-1 -> -2815.69093 | C44: =+'Base original'!B44+'Base original'!C44 -> 9941.250704 | D44: =+'Base original'!E44*-1 -> -4693.099771 | E44: =+'Base original'!D44+'Base original'!E44 -> 5892.898231 | F44: =+'Base original'!G44*-1 -> -144.812345 | G44: =+'Base original'!F44+'Base original'!G44 -> 732 | H44: =+'Base original'!I44*-1 -> -437.981543 | I44: =+'Base original'!K44*-1 -> -244.915558 | J44: =+'Base original'!H44+'Base original'!J44 -> 438.102899 | K44: -682.897101 | L44: 1121 | M44: =+'Base original'!M44*-1 -> -2592.839607 | N44: =+'Base original'!L44+'Base original'!M44 -> 5485.566488 | O44: =+'Base original'!O44*-1 -> -10766.2133 | P44: =+'Base original'!N44+'Base original'!O44 -> 16813.54679 | Q44: 39986.26221 | R44: =+'Base original'!Y44+'Base original'!AB44 -> 640.8927597 | S44: =+'Base original'!Z44+'Base original'!AC44 -> 758.8927597 | T44: =+'Base original'!AD44+'Base original'!AA44 -> -118 | U44: =+'Base original'!AQ44*-1 -> -1522.041757 | V44: =+'Base original'!AP44+'Base original'!AQ44 -> 2444 | W44: =+'Base original'!AS44*-1 -> -8534.29312 | X44: =+'Base original'!AR44+'Base original'!AS44 -> 15625.37823 | Y44: =+'Base original'!AU44*-1 -> -115.3539354 | Z44: =+'Base original'!AT44+'Base original'!AU44 -> 262 | AA44: =+'Base original'!AW44*-1 -> -4042.048943 | AB44: =+'Base original'!AY44*-1 -> -349.125135 | AC44: =+'Base original'!AV44+'Base original'!AX44 -> 4622.825922 | AD44: -4391.174078 | AE44: 9014 | AF44: =+'Base original'!BA44*-1 -> -3470.893694 | AG44: =+'Base original'!AZ44+'Base original'!BA44 -> 8496.977927 | AH44: =+'Base original'!BC44*-1 -> -1834.035069 | AI44: =+'Base original'!BB44+'Base original'!BC44 -> 4214.932109 | AJ44: 40057.28826
A45: =+'Base original'!A45 -> 2010-01-01 | B45: =+'Base original'!C45*-1 -> -3949.934923 | C45: =+'Base original'!B45+'Base original'!C45 -> 11690.31585 | D45: =+'Base original'!E45*-1 -> -4939.107926 | E45: =+'Base original'!D45+'Base original'!E45 -> 6909.832413 | F45: =+'Base original'!G45*-1 -> -113.26559 | G45: =+'Base original'!F45+'Base original'!G45 -> 1007 | H45: =+'Base original'!I45*-1 -> -718.6275791 | I45: =+'Base original'!K45*-1 -> -294.8521138 | J45: =+'Base original'!H45+'Base original'!J45 -> 660.5203071 | K45: -1013.479693 | L45: 1674 | M45: =+'Base original'!M45*-1 -> -1066.006407 | N45: =+'Base original'!L45+'Base original'!M45 -> 2956.426356 | O45: =+'Base original'!O45*-1 -> -9954.306393 | P45: =+'Base original'!N45+'Base original'!O45 -> 18507.32348 | Q45: 42744.89809 | R45: =+'Base original'!Y45+'Base original'!AB45 -> 900.1120985 | S45: =+'Base original'!Z45+'Base original'!AC45 -> 1067.664162 | T45: =+'Base original'!AD45+'Base original'!AA45 -> -167.5520635 | U45: =+'Base original'!AQ45*-1 -> -1910.250905 | V45: =+'Base original'!AP45+'Base original'!AQ45 -> 2200.690905 | W45: =+'Base original'!AS45*-1 -> -4947.975629 | X45: =+'Base original'!AR45+'Base original'!AS45 -> 10740.26176 | Y45: =+'Base original'!AU45*-1 -> -274.2357038 | Z45: =+'Base original'!AT45+'Base original'!AU45 -> 524.761344 | AA45: =+'Base original'!AW45*-1 -> -3884.834812 | AB45: =+'Base original'!AY45*-1 -> -401.2941977 | AC45: =+'Base original'!AV45+'Base original'!AX45 -> 4685.676821 | AD45: -4286.129009 | AE45: 8971.805831 | AF45: =+'Base original'!BA45*-1 -> -1133.485201 | AG45: =+'Base original'!AZ45+'Base original'!BA45 -> 2422.773849 | AH45: =+'Base original'!BC45*-1 -> -655.4869481 | AI45: =+'Base original'!BB45+'Base original'!BC45 -> 1732.419676 | AJ45: 26592.71336
A46: =+'Base original'!A46 -> 2010-02-01 | B46: =+'Base original'!C46*-1 -> -4212.546 | C46: =+'Base original'!B46+'Base original'!C46 -> 8775.003 | D46: =+'Base original'!E46*-1 -> -3505.665422 | E46: =+'Base original'!D46+'Base original'!E46 -> 5204.611965 | F46: =+'Base original'!G46*-1 -> -138.737105 | G46: =+'Base original'!F46+'Base original'!G46 -> 795.4176658 | H46: =+'Base original'!I46*-1 -> -447.218513 | I46: =+'Base original'!K46*-1 -> -197.3569952 | J46: =+'Base original'!H46+'Base original'!J46 -> 438.9070729 | K46: -644.5755082 | L46: 1083.482581 | M46: =+'Base original'!M46*-1 -> -1285.166871 | N46: =+'Base original'!L46+'Base original'!M46 -> 3230.818437 | O46: =+'Base original'!O46*-1 -> -8314.307066 | P46: =+'Base original'!N46+'Base original'!O46 -> 16537.36121 | Q46: 35626.69486 | R46: =+'Base original'!Y46+'Base original'!AB46 -> 940.6354735 | S46: =+'Base original'!Z46+'Base original'!AC46 -> 989.8674294 | T46: =+'Base original'!AD46+'Base original'!AA46 -> -49.23195594 | U46: =+'Base original'!AQ46*-1 -> -555.861023 | V46: =+'Base original'!AP46+'Base original'!AQ46 -> 1153.944481 | W46: =+'Base original'!AS46*-1 -> -4179.669404 | X46: =+'Base original'!AR46+'Base original'!AS46 -> 8561.127381 | Y46: =+'Base original'!AU46*-1 -> -400.2697194 | Z46: =+'Base original'!AT46+'Base original'!AU46 -> 829.2726704 | AA46: =+'Base original'!AW46*-1 -> -3118.293926 | AB46: =+'Base original'!AY46*-1 -> -242.9626021 | AC46: =+'Base original'!AV46+'Base original'!AX46 -> 3525.133493 | AD46: -3361.256528 | AE46: 6886.390021 | AF46: =+'Base original'!BA46*-1 -> -670.7283292 | AG46: =+'Base original'!AZ46+'Base original'!BA46 -> 2057.086217 | AH46: =+'Base original'!BC46*-1 -> -1070.32949 | AI46: =+'Base original'!BB46+'Base original'!BC46 -> 2211.529605 | AJ46: 21699.35038
A47: =+'Base original'!A47 -> 2010-03-01 | B47: =+'Base original'!C47*-1 -> -2452.342 | C47: =+'Base original'!B47+'Base original'!C47 -> 9453.122672 | D47: =+'Base original'!E47*-1 -> -4646.342244 | E47: =+'Base original'!D47+'Base original'!E47 -> 6374.534868 | F47: =+'Base original'!G47*-1 -> -226.9378838 | G47: =+'Base original'!F47+'Base original'!G47 -> 1085 | H47: =+'Base original'!I47*-1 -> -594.3215223 | I47: =+'Base original'!K47*-1 -> -97.72557982 | J47: =+'Base original'!H47+'Base original'!J47 -> 678.9528979 | K47: -692.0471021 | L47: 1371 | M47: =+'Base original'!M47*-1 -> -1684.64021 | N47: =+'Base original'!L47+'Base original'!M47 -> 4267.698593 | O47: =+'Base original'!O47*-1 -> -9135.134244 | P47: =+'Base original'!N47+'Base original'!O47 -> 17509.35617 | Q47: 40060.7123 | R47: =+'Base original'!Y47+'Base original'!AB47 -> 1011.733644 | S47: =+'Base original'!Z47+'Base original'!AC47 -> 890.0939236 | T47: =+'Base original'!AD47+'Base original'!AA47 -> 121.6397202 | U47: =+'Base original'!AQ47*-1 -> -1323.322914 | V47: =+'Base original'!AP47+'Base original'!AQ47 -> 1999.399128 | W47: =+'Base original'!AS47*-1 -> -6554.219958 | X47: =+'Base original'!AR47+'Base original'!AS47 -> 12314.88781 | Y47: =+'Base original'!AU47*-1 -> -386.7336588 | Z47: =+'Base original'!AT47+'Base original'!AU47 -> 1050.530207 | AA47: =+'Base original'!AW47*-1 -> -5159.704608 | AB47: =+'Base original'!AY47*-1 -> -349.7601676 | AC47: =+'Base original'!AV47+'Base original'!AX47 -> 5070.375992 | AD47: -5509.464775 | AE47: 10579.84077 | AF47: =+'Base original'!BA47*-1 -> -1456.083291 | AG47: =+'Base original'!AZ47+'Base original'!BA47 -> 2806.305209 | AH47: =+'Base original'!BC47*-1 -> -1127.36429 | AI47: =+'Base original'!BB47+'Base original'!BC47 -> 2474.792149 | AJ47: 31225.75527
A48: =+'Base original'!A48 -> 2010-04-01 | B48: =+'Base original'!C48*-1 -> -1733.791004 | C48: =+'Base original'!B48+'Base original'!C48 -> 6782.734004 | D48: =+'Base original'!E48*-1 -> -3977.963035 | E48: =+'Base original'!D48+'Base original'!E48 -> 5370.048084 | F48: =+'Base original'!G48*-1 -> -188.5541647 | G48: =+'Base original'!F48+'Base original'!G48 -> 1001 | H48: =+'Base original'!I48*-1 -> -569.7162533 | I48: =+'Base original'!K48*-1 -> -82.03913195 | J48: =+'Base original'!H48+'Base original'!J48 -> 631.2446147 | K48: -651.7553853 | L48: 1283 | M48: =+'Base original'!M48*-1 -> -2031.221199 | N48: =+'Base original'!L48+'Base original'!M48 -> 4110.345435 | O48: =+'Base original'!O48*-1 -> -11750.30071 | P48: =+'Base original'!N48+'Base original'!O48 -> 22352.61654 | Q48: 40899.74406 | R48: =+'Base original'!Y48+'Base original'!AB48 -> 954.9899413 | S48: =+'Base original'!Z48+'Base original'!AC48 -> 857.9068143 | T48: =+'Base original'!AD48+'Base original'!AA48 -> 97.083127 | U48: =+'Base original'!AQ48*-1 -> -1038.164171 | V48: =+'Base original'!AP48+'Base original'!AQ48 -> 1557 | W48: =+'Base original'!AS48*-1 -> -4548.323636 | X48: =+'Base original'!AR48+'Base original'!AS48 -> 9700.385993 | Y48: =+'Base original'!AU48*-1 -> -436.5277501 | Z48: =+'Base original'!AT48+'Base original'!AU48 -> 1113 | AA48: =+'Base original'!AW48*-1 -> -4592.164806 | AB48: =+'Base original'!AY48*-1 -> -376.5923807 | AC48: =+'Base original'!AV48+'Base original'!AX48 -> 4956.242813 | AD48: -4968.757187 | AE48: 9925 | AF48: =+'Base original'!BA48*-1 -> -1035.527364 | AG48: =+'Base original'!AZ48+'Base original'!BA48 -> 3265.536537 | AH48: =+'Base original'!BC48*-1 -> -1118.744561 | AI48: =+'Base original'!BB48+'Base original'!BC48 -> 1872.854072 | AJ48: 27433.7766
A49: =+'Base original'!A49 -> 2010-05-01 | B49: =+'Base original'!C49*-1 -> -5095.766472 | C49: =+'Base original'!B49+'Base original'!C49 -> 10612.96325 | D49: =+'Base original'!E49*-1 -> -3673.920119 | E49: =+'Base original'!D49+'Base original'!E49 -> 6140.405022 | F49: =+'Base original'!G49*-1 -> -197.8105982 | G49: =+'Base original'!F49+'Base original'!G49 -> 1095 | H49: =+'Base original'!I49*-1 -> -676.4612309 | I49: =+'Base original'!K49*-1 -> -156.5195075 | J49: =+'Base original'!H49+'Base original'!J49 -> 617.0192616 | K49: -832.9807384 | L49: 1450 | M49: =+'Base original'!M49*-1 -> -2040.410687 | N49: =+'Base original'!L49+'Base original'!M49 -> 4133.225303 | O49: =+'Base original'!O49*-1 -> -10866.3026 | P49: =+'Base original'!N49+'Base original'!O49 -> 21013.30202 | Q49: 44444.8956 | R49: =+'Base original'!Y49+'Base original'!AB49 -> 1053.924368 | S49: =+'Base original'!Z49+'Base original'!AC49 -> 904.1658867 | T49: =+'Base original'!AD49+'Base original'!AA49 -> 149.7584818 | U49: =+'Base original'!AQ49*-1 -> -1083.51762 | V49: =+'Base original'!AP49+'Base original'!AQ49 -> 3550 | W49: =+'Base original'!AS49*-1 -> -5236.497873 | X49: =+'Base original'!AR49+'Base original'!AS49 -> 9832.305115 | Y49: =+'Base original'!AU49*-1 -> -583.580847 | Z49: =+'Base original'!AT49+'Base original'!AU49 -> 1253 | AA49: =+'Base original'!AW49*-1 -> -5161.067812 | AB49: =+'Base original'!AY49*-1 -> -232.8511725 | AC49: =+'Base original'!AV49+'Base original'!AX49 -> 5825.081016 | AD49: -5393.918984 | AE49: 11219 | AF49: =+'Base original'!BA49*-1 -> -1025.740436 | AG49: =+'Base original'!AZ49+'Base original'!BA49 -> 2362.627927 | AH49: =+'Base original'!BC49*-1 -> -1715.572286 | AI49: =+'Base original'!BB49+'Base original'!BC49 -> 3040.49453 | AJ49: 31257.42757
A50: =+'Base original'!A50 -> 2010-06-01 | B50: =+'Base original'!C50*-1 -> -2523.413897 | C50: =+'Base original'!B50+'Base original'!C50 -> 9018.067245 | D50: =+'Base original'!E50*-1 -> -4032.638499 | E50: =+'Base original'!D50+'Base original'!E50 -> 5718.240341 | F50: =+'Base original'!G50*-1 -> -264.6029583 | G50: =+'Base original'!F50+'Base original'!G50 -> 1219 | H50: =+'Base original'!I50*-1 -> -511.2968313 | I50: =+'Base original'!K50*-1 -> -106.3683193 | J50: =+'Base original'!H50+'Base original'!J50 -> 695.8239093 | K50: -617.6651506 | L50: 1313.48906 | M50: =+'Base original'!M50*-1 -> -1485.959797 | N50: =+'Base original'!L50+'Base original'!M50 -> 4270.608349 | O50: =+'Base original'!O50*-1 -> -12071.60919 | P50: =+'Base original'!N50+'Base original'!O50 -> 22568.43143 | Q50: 44107.83642 | R50: =+'Base original'!Y50+'Base original'!AB50 -> 1102.770749 | S50: =+'Base original'!Z50+'Base original'!AC50 -> 778.1025137 | T50: =+'Base original'!AD50+'Base original'!AA50 -> 324.6682354 | U50: =+'Base original'!AQ50*-1 -> -2161.686769 | V50: =+'Base original'!AP50+'Base original'!AQ50 -> 2960.642569 | W50: =+'Base original'!AS50*-1 -> -5378.117425 | X50: =+'Base original'!AR50+'Base original'!AS50 -> 9999.684559 | Y50: =+'Base original'!AU50*-1 -> -508.7568552 | Z50: =+'Base original'!AT50+'Base original'!AU50 -> 1031.9646 | AA50: =+'Base original'!AW50*-1 -> -5219.564687 | AB50: =+'Base original'!AY50*-1 -> -231.6604166 | AC50: =+'Base original'!AV50+'Base original'!AX50 -> 5225.087301 | AD50: -5451.225104 | AE50: 10676.31241 | AF50: =+'Base original'!BA50*-1 -> -1254.041518 | AG50: =+'Base original'!AZ50+'Base original'!BA50 -> 2464.423014 | AH50: =+'Base original'!BC50*-1 -> -905.3516377 | AI50: =+'Base original'!BB50+'Base original'!BC50 -> 1837.759403 | AJ50: 28970.78655
A51: =+'Base original'!A51 -> 2010-07-01 | B51: =+'Base original'!C51*-1 -> -3748.639343 | C51: =+'Base original'!B51+'Base original'!C51 -> 11601.73857 | D51: =+'Base original'!E51*-1 -> -5067.289334 | E51: =+'Base original'!D51+'Base original'!E51 -> 6205.05595 | F51: =+'Base original'!G51*-1 -> -261.3704011 | G51: =+'Base original'!F51+'Base original'!G51 -> 1214.35 | H51: =+'Base original'!I51*-1 -> -756.2513814 | I51: =+'Base original'!K51*-1 -> -284.0889051 | J51: =+'Base original'!H51+'Base original'!J51 -> 460.6597135 | K51: -1040.340286 | L51: 1501 | M51: =+'Base original'!M51*-1 -> -1849.322318 | N51: =+'Base original'!L51+'Base original'!M51 -> 4562.005238 | O51: =+'Base original'!O51*-1 -> -9966.849644 | P51: =+'Base original'!N51+'Base original'!O51 -> 20259.92906 | Q51: 45344.07881 | R51: =+'Base original'!Y51+'Base original'!AB51 -> 925.0198283 | S51: =+'Base original'!Z51+'Base original'!AC51 -> 856.7517341 | T51: =+'Base original'!AD51+'Base original'!AA51 -> 68.26809424 | U51: =+'Base original'!AQ51*-1 -> -2184.626792 | V51: =+'Base original'!AP51+'Base original'!AQ51 -> 2731.259139 | W51: =+'Base original'!AS51*-1 -> -5295.269959 | X51: =+'Base original'!AR51+'Base original'!AS51 -> 10394.98744 | Y51: =+'Base original'!AU51*-1 -> -764.6974583 | Z51: =+'Base original'!AT51+'Base original'!AU51 -> 1736.266896 | AA51: =+'Base original'!AW51*-1 -> -5078.897049 | AB51: =+'Base original'!AY51*-1 -> -323.1831732 | AC51: =+'Base original'!AV51+'Base original'!AX51 -> 5112.541658 | AD51: -5402.080222 | AE51: 10514.62188 | AF51: =+'Base original'!BA51*-1 -> -951.7594166 | AG51: =+'Base original'!AZ51+'Base original'!BA51 -> 2455.820015 | AH51: =+'Base original'!BC51*-1 -> -952.4668945 | AI51: =+'Base original'!BB51+'Base original'!BC51 -> 2123.61669 | AJ51: 29956.57206
A52: =+'Base original'!A52 -> 2010-08-01 | B52: =+'Base original'!C52*-1 -> -6176.2025 | C52: =+'Base original'!B52+'Base original'!C52 -> 14328.5345 | D52: =+'Base original'!E52*-1 -> -5949.881168 | E52: =+'Base original'!D52+'Base original'!E52 -> 7510.762638 | F52: =+'Base original'!G52*-1 -> -608.3383847 | G52: =+'Base original'!F52+'Base original'!G52 -> 1490.105858 | H52: =+'Base original'!I52*-1 -> -694.4653775 | I52: =+'Base original'!K52*-1 -> -284.2855003 | J52: =+'Base original'!H52+'Base original'!J52 -> 410.3985702 | K52: -978.7508778 | L52: 1389.149448 | M52: =+'Base original'!M52*-1 -> -2036.317558 | N52: =+'Base original'!L52+'Base original'!M52 -> 4432.332084 | O52: =+'Base original'!O52*-1 -> -11915.51106 | P52: =+'Base original'!N52+'Base original'!O52 -> 25519.45489 | Q52: 54670.33942 | R52: =+'Base original'!Y52+'Base original'!AB52 -> 919.0888891 | S52: =+'Base original'!Z52+'Base original'!AC52 -> 967.639394 | T52: =+'Base original'!AD52+'Base original'!AA52 -> -48.5505049 | U52: =+'Base original'!AQ52*-1 -> -1351.730931 | V52: =+'Base original'!AP52+'Base original'!AQ52 -> 2264.852017 | W52: =+'Base original'!AS52*-1 -> -6227.954407 | X52: =+'Base original'!AR52+'Base original'!AS52 -> 12324.81813 | Y52: =+'Base original'!AU52*-1 -> -775.2478605 | Z52: =+'Base original'!AT52+'Base original'!AU52 -> 1819.993864 | AA52: =+'Base original'!AW52*-1 -> -5653.076951 | AB52: =+'Base original'!AY52*-1 -> -449.6481483 | AC52: =+'Base original'!AV52+'Base original'!AX52 -> 5459.989662 | AD52: -6102.7251 | AE52: 11562.71476 | AF52: =+'Base original'!BA52*-1 -> -1000.149869 | AG52: =+'Base original'!AZ52+'Base original'!BA52 -> 3050.968022 | AH52: =+'Base original'!BC52*-1 -> -1515.472867 | AI52: =+'Base original'!BB52+'Base original'!BC52 -> 3034.543601 | AJ52: 34057.8904
A53: =+'Base original'!A53 -> 2010-09-01 | B53: =+'Base original'!C53*-1 -> -5369.766809 | C53: =+'Base original'!B53+'Base original'!C53 -> 11826.64498 | D53: =+'Base original'!E53*-1 -> -5574.953295 | E53: =+'Base original'!D53+'Base original'!E53 -> 6562.386436 | F53: =+'Base original'!G53*-1 -> -195.3065217 | G53: =+'Base original'!F53+'Base original'!G53 -> 802.0140364 | H53: =+'Base original'!I53*-1 -> -533.2488873 | I53: =+'Base original'!K53*-1 -> -126.9990317 | J53: =+'Base original'!H53+'Base original'!J53 -> 345.4342754 | K53: -660.247919 | L53: 1005.682194 | M53: =+'Base original'!M53*-1 -> -2832.208192 | N53: =+'Base original'!L53+'Base original'!M53 -> 5621.854454 | O53: =+'Base original'!O53*-1 -> -9289.201233 | P53: =+'Base original'!N53+'Base original'!O53 -> 21079.27757 | Q53: 46897.85968 | R53: =+'Base original'!Y53+'Base original'!AB53 -> 749.8833042 | S53: =+'Base original'!Z53+'Base original'!AC53 -> 926.5227485 | T53: =+'Base original'!AD53+'Base original'!AA53 -> -176.6394443 | U53: =+'Base original'!AQ53*-1 -> -1551.974629 | V53: =+'Base original'!AP53+'Base original'!AQ53 -> 1847.315706 | W53: =+'Base original'!AS53*-1 -> -6370.3357 | X53: =+'Base original'!AR53+'Base original'!AS53 -> 11940.87375 | Y53: =+'Base original'!AU53*-1 -> -581.5201428 | Z53: =+'Base original'!AT53+'Base original'!AU53 -> 1410.235555 | AA53: =+'Base original'!AW53*-1 -> -4837.622883 | AB53: =+'Base original'!AY53*-1 -> -250.0422531 | AC53: =+'Base original'!AV53+'Base original'!AX53 -> 4410.486948 | AD53: -5087.665136 | AE53: 9498.152084 | AF53: =+'Base original'!BA53*-1 -> -883.5181925 | AG53: =+'Base original'!AZ53+'Base original'!BA53 -> 2984.753247 | AH53: =+'Base original'!BC53*-1 -> -1844.34282 | AI53: =+'Base original'!BB53+'Base original'!BC53 -> 3525.736748 | AJ53: 31207.06709
A54: =+'Base original'!A54 -> 2010-10-01 | B54: =+'Base original'!C54*-1 -> -5444.465886 | C54: =+'Base original'!B54+'Base original'!C54 -> 14231.82872 | D54: =+'Base original'!E54*-1 -> -5493.998864 | E54: =+'Base original'!D54+'Base original'!E54 -> 6527.710554 | F54: =+'Base original'!G54*-1 -> -283.7255626 | G54: =+'Base original'!F54+'Base original'!G54 -> 588.6236531 | H54: =+'Base original'!I54*-1 -> -344.0531826 | I54: =+'Base original'!K54*-1 -> -345.6529644 | J54: =+'Base original'!H54+'Base original'!J54 -> 658.0739292 | K54: -689.706147 | L54: 1347.780076 | M54: =+'Base original'!M54*-1 -> -1997.53489 | N54: =+'Base original'!L54+'Base original'!M54 -> 4533.486858 | O54: =+'Base original'!O54*-1 -> -15998.52535 | P54: =+'Base original'!N54+'Base original'!O54 -> 28386.67981 | Q54: 55616.10968 | R54: =+'Base original'!Y54+'Base original'!AB54 -> 937.6938472 | S54: =+'Base original'!Z54+'Base original'!AC54 -> 1103.859155 | T54: =+'Base original'!AD54+'Base original'!AA54 -> -166.1653074 | U54: =+'Base original'!AQ54*-1 -> -1709.01785 | V54: =+'Base original'!AP54+'Base original'!AQ54 -> 2180.051456 | W54: =+'Base original'!AS54*-1 -> -5493.890161 | X54: =+'Base original'!AR54+'Base original'!AS54 -> 11336.06271 | Y54: =+'Base original'!AU54*-1 -> -614.3222594 | Z54: =+'Base original'!AT54+'Base original'!AU54 -> 1475.421427 | AA54: =+'Base original'!AW54*-1 -> -4802.225948 | AB54: =+'Base original'!AY54*-1 -> -620.4132545 | AC54: =+'Base original'!AV54+'Base original'!AX54 -> 4748.816573 | AD54: -5422.639202 | AE54: 10171.45577 | AF54: =+'Base original'!BA54*-1 -> -1172.695635 | AG54: =+'Base original'!AZ54+'Base original'!BA54 -> 3056.802973 | AH54: =+'Base original'!BC54*-1 -> -1459.651353 | AI54: =+'Base original'!BB54+'Base original'!BC54 -> 3187.459523 | AJ54: 31407.25386
A55: =+'Base original'!A55 -> 2010-11-01 | B55: =+'Base original'!C55*-1 -> -4074.275214 | C55: =+'Base original'!B55+'Base original'!C55 -> 10094.38236 | D55: =+'Base original'!E55*-1 -> -4918.336638 | E55: =+'Base original'!D55+'Base original'!E55 -> 6552.175703 | F55: =+'Base original'!G55*-1 -> -207.2725725 | G55: =+'Base original'!F55+'Base original'!G55 -> 803.5760762 | H55: =+'Base original'!I55*-1 -> -344.4668852 | I55: =+'Base original'!K55*-1 -> -270.4503486 | J55: =+'Base original'!H55+'Base original'!J55 -> 555.9563223 | K55: -614.9172338 | L55: 1170.873556 | M55: =+'Base original'!M55*-1 -> -2347.208262 | N55: =+'Base original'!L55+'Base original'!M55 -> 4502.820558 | O55: =+'Base original'!O55*-1 -> -13917.7746 | P55: =+'Base original'!N55+'Base original'!O55 -> 27033.42131 | Q55: 50157.24956 | R55: =+'Base original'!Y55+'Base original'!AB55 -> 879.595555 | S55: =+'Base original'!Z55+'Base original'!AC55 -> 1048.451796 | T55: =+'Base original'!AD55+'Base original'!AA55 -> -168.856241 | U55: =+'Base original'!AQ55*-1 -> -656.1372747 | V55: =+'Base original'!AP55+'Base original'!AQ55 -> 1883.106437 | W55: =+'Base original'!AS55*-1 -> -5834.0659 | X55: =+'Base original'!AR55+'Base original'!AS55 -> 11819.61101 | Y55: =+'Base original'!AU55*-1 -> -661.2149642 | Z55: =+'Base original'!AT55+'Base original'!AU55 -> 1433.957908 | AA55: =+'Base original'!AW55*-1 -> -5312.503667 | AB55: =+'Base original'!AY55*-1 -> -1036.811111 | AC55: =+'Base original'!AV55+'Base original'!AX55 -> 5790.079722 | AD55: -6349.314777 | AE55: 12139.3945 | AF55: =+'Base original'!BA55*-1 -> -1052.697526 | AG55: =+'Base original'!AZ55+'Base original'!BA55 -> 3153.264725 | AH55: =+'Base original'!BC55*-1 -> -1490.857919 | AI55: =+'Base original'!BB55+'Base original'!BC55 -> 2966.864206 | AJ55: 33396.19879
A56: =+'Base original'!A56 -> 2010-12-01 | B56: =+'Base original'!C56*-1 -> -6082.401776 | C56: =+'Base original'!B56+'Base original'!C56 -> 12967.90231 | D56: =+'Base original'!E56*-1 -> -5802.888556 | E56: =+'Base original'!D56+'Base original'!E56 -> 7645.875825 | F56: =+'Base original'!G56*-1 -> -291.5627969 | G56: =+'Base original'!F56+'Base original'!G56 -> 893.1820042 | H56: =+'Base original'!I56*-1 -> -336.9307449 | I56: =+'Base original'!K56*-1 -> -220.2305429 | J56: =+'Base original'!H56+'Base original'!J56 -> 426.2291064 | K56: -557.1612878 | L56: 983.3903942 | M56: =+'Base original'!M56*-1 -> -3743.477755 | N56: =+'Base original'!L56+'Base original'!M56 -> 7218.182749 | O56: =+'Base original'!O56*-1 -> -10199.13671 | P56: =+'Base original'!N56+'Base original'!O56 -> 23290.84863 | Q56: 52999.38191 | R56: =+'Base original'!Y56+'Base original'!AB56 -> 842.7810405 | S56: =+'Base original'!Z56+'Base original'!AC56 -> 928.2958485 | T56: =+'Base original'!AD56+'Base original'!AA56 -> -85.514808 | U56: =+'Base original'!AQ56*-1 -> -621.8703584 | V56: =+'Base original'!AP56+'Base original'!AQ56 -> 1483.767787 | W56: =+'Base original'!AS56*-1 -> -7912.950267 | X56: =+'Base original'!AR56+'Base original'!AS56 -> 13692.80172 | Y56: =+'Base original'!AU56*-1 -> -664.9103803 | Z56: =+'Base original'!AT56+'Base original'!AU56 -> 1550.334589 | AA56: =+'Base original'!AW56*-1 -> -6369.890061 | AB56: =+'Base original'!AY56*-1 -> -1255.077622 | AC56: =+'Base original'!AV56+'Base original'!AX56 -> 8235.827919 | AD56: -7624.967684 | AE56: 15860.7956 | AF56: =+'Base original'!BA56*-1 -> -1194.229541 | AG56: =+'Base original'!AZ56+'Base original'!BA56 -> 1678.690726 | AH56: =+'Base original'!BC56*-1 -> -2151.110851 | AI56: =+'Base original'!BB56+'Base original'!BC56 -> 4298.976274 | AJ56: 38565.36669
A57: =+'Base original'!A57 -> 2011-01-01 | B57: =+'Base original'!C57*-1 -> -6278.056818 | C57: =+'Base original'!B57+'Base original'!C57 -> 14768.33646 | D57: =+'Base original'!E57*-1 -> -6052.326262 | E57: =+'Base original'!D57+'Base original'!E57 -> 8796.409685 | F57: =+'Base original'!G57*-1 -> -214.0845316 | G57: =+'Base original'!F57+'Base original'!G57 -> 978.2464276 | H57: =+'Base original'!I57*-1 -> -253.8215198 | I57: =+'Base original'!K57*-1 -> -214.7711571 | J57: =+'Base original'!H57+'Base original'!J57 -> 497.8869025 | K57: -468.5926769 | L57: 966.4795794 | M57: =+'Base original'!M57*-1 -> -2322.140874 | N57: =+'Base original'!L57+'Base original'!M57 -> 5374.857819 | O57: =+'Base original'!O57*-1 -> -18910.97864 | P57: =+'Base original'!N57+'Base original'!O57 -> 32975.83833 | Q57: 63860.16829 | R57: =+'Base original'!Y57+'Base original'!AB57 -> 913.2146432 | S57: =+'Base original'!Z57+'Base original'!AC57 -> 778.7848248 | T57: =+'Base original'!AD57+'Base original'!AA57 -> 134.4298184 | U57: =+'Base original'!AQ57*-1 -> -1476.008034 | V57: =+'Base original'!AP57+'Base original'!AQ57 -> 2561.27641 | W57: =+'Base original'!AS57*-1 -> -5326.854279 | X57: =+'Base original'!AR57+'Base original'!AS57 -> 12683.6768 | Y57: =+'Base original'!AU57*-1 -> -362.0629835 | Z57: =+'Base original'!AT57+'Base original'!AU57 -> 911.5425069 | AA57: =+'Base original'!AW57*-1 -> -4654.747286 | AB57: =+'Base original'!AY57*-1 -> -911.9835924 | AC57: =+'Base original'!AV57+'Base original'!AX57 -> 5771.466408 | AD57: -5566.730878 | AE57: 11338.19729 | AF57: =+'Base original'!BA57*-1 -> -2901.256594 | AG57: =+'Base original'!AZ57+'Base original'!BA57 -> 4644.128914 | AH57: =+'Base original'!BC57*-1 -> -1906.797129 | AI57: =+'Base original'!BB57+'Base original'!BC57 -> 3901.477071 | AJ57: 36040.29898
A58: =+'Base original'!A58 -> 2011-02-01 | B58: =+'Base original'!C58*-1 -> -5538.081026 | C58: =+'Base original'!B58+'Base original'!C58 -> 12523.04294 | D58: =+'Base original'!E58*-1 -> -4548.744492 | E58: =+'Base original'!D58+'Base original'!E58 -> 6052.859215 | F58: =+'Base original'!G58*-1 -> -233.202081 | G58: =+'Base original'!F58+'Base original'!G58 -> 787.094916 | H58: =+'Base original'!I58*-1 -> -251.0444461 | I58: =+'Base original'!K58*-1 -> -85.64244046 | J58: =+'Base original'!H58+'Base original'!J58 -> 321.7871465 | K58: -336.6868865 | L58: 658.4740331 | M58: =+'Base original'!M58*-1 -> -1636.689488 | N58: =+'Base original'!L58+'Base original'!M58 -> 3513.581202 | O58: =+'Base original'!O58*-1 -> -13753.0913 | P58: =+'Base original'!N58+'Base original'!O58 -> 26010.68011 | Q58: 49545.73242 | R58: =+'Base original'!Y58+'Base original'!AB58 -> 857.3994212 | S58: =+'Base original'!Z58+'Base original'!AC58 -> 588.7481792 | T58: =+'Base original'!AD58+'Base original'!AA58 -> 268.651242 | U58: =+'Base original'!AQ58*-1 -> -1030.549482 | V58: =+'Base original'!AP58+'Base original'!AQ58 -> 2366.746671 | W58: =+'Base original'!AS58*-1 -> -4328.757676 | X58: =+'Base original'!AR58+'Base original'!AS58 -> 9743.254035 | Y58: =+'Base original'!AU58*-1 -> -252.0181559 | Z58: =+'Base original'!AT58+'Base original'!AU58 -> 561.5108725 | AA58: =+'Base original'!AW58*-1 -> -3694.443153 | AB58: =+'Base original'!AY58*-1 -> -1307.593753 | AC58: =+'Base original'!AV58+'Base original'!AX58 -> 4774.929553 | AD58: -5002.036906 | AE58: 9776.966459 | AF58: =+'Base original'!BA58*-1 -> -2950.118373 | AG58: =+'Base original'!AZ58+'Base original'!BA58 -> 3840.709418 | AH58: =+'Base original'!BC58*-1 -> -2197.199089 | AI58: =+'Base original'!BB58+'Base original'!BC58 -> 4690.334953 | AJ58: 30979.52241
A59: =+'Base original'!A59 -> 2011-03-01 | B59: =+'Base original'!C59*-1 -> -7583.0385 | C59: =+'Base original'!B59+'Base original'!C59 -> 16966.23248 | D59: =+'Base original'!E59*-1 -> -4213.363733 | E59: =+'Base original'!D59+'Base original'!E59 -> 6065.602598 | F59: =+'Base original'!G59*-1 -> -265.9801122 | G59: =+'Base original'!F59+'Base original'!G59 -> 867.7555584 | H59: =+'Base original'!I59*-1 -> -357.5444472 | I59: =+'Base original'!K59*-1 -> -145.8008282 | J59: =+'Base original'!H59+'Base original'!J59 -> 629.2557955 | K59: -503.3452754 | L59: 1132.601071 | M59: =+'Base original'!M59*-1 -> -2032.638375 | N59: =+'Base original'!L59+'Base original'!M59 -> 3969.596565 | O59: =+'Base original'!O59*-1 -> -18600.05942 | P59: =+'Base original'!N59+'Base original'!O59 -> 34813.97829 | Q59: 63815.76657 | R59: =+'Base original'!Y59+'Base original'!AB59 -> 963.7746782 | S59: =+'Base original'!Z59+'Base original'!AC59 -> 595.9097225 | T59: =+'Base original'!AD59+'Base original'!AA59 -> 367.8649557 | U59: =+'Base original'!AQ59*-1 -> -2156.027813 | V59: =+'Base original'!AP59+'Base original'!AQ59 -> 5165.91249 | W59: =+'Base original'!AS59*-1 -> -6298.144309 | X59: =+'Base original'!AR59+'Base original'!AS59 -> 12523.8148 | Y59: =+'Base original'!AU59*-1 -> -292.6759851 | Z59: =+'Base original'!AT59+'Base original'!AU59 -> 772.8959252 | AA59: =+'Base original'!AW59*-1 -> -5867.457835 | AB59: =+'Base original'!AY59*-1 -> -1266.404635 | AC59: =+'Base original'!AV59+'Base original'!AX59 -> 7227.221593 | AD59: -7133.862471 | AE59: 14361.08406 | AF59: =+'Base original'!BA59*-1 -> -2947.708372 | AG59: =+'Base original'!AZ59+'Base original'!BA59 -> 4568.548109 | AH59: =+'Base original'!BC59*-1 -> -1316.399419 | AI59: =+'Base original'!BB59+'Base original'!BC59 -> 3443.696246 | AJ59: 40835.95163
A60: =+'Base original'!A60 -> 2011-04-01 | B60: =+'Base original'!C60*-1 -> -5724.854775 | C60: =+'Base original'!B60+'Base original'!C60 -> 14203.97893 | D60: =+'Base original'!E60*-1 -> -5249.774591 | E60: =+'Base original'!D60+'Base original'!E60 -> 7174.992876 | F60: =+'Base original'!G60*-1 -> -183.2902398 | G60: =+'Base original'!F60+'Base original'!G60 -> 774.0103669 | H60: =+'Base original'!I60*-1 -> -445.1000107 | I60: =+'Base original'!K60*-1 -> -303.9514792 | J60: =+'Base original'!H60+'Base original'!J60 -> 491.5527368 | K60: -749.0514899 | L60: 1240.604227 | M60: =+'Base original'!M60*-1 -> -2272.037165 | N60: =+'Base original'!L60+'Base original'!M60 -> 4319.280712 | O60: =+'Base original'!O60*-1 -> -17025.52551 | P60: =+'Base original'!N60+'Base original'!O60 -> 32709.74104 | Q60: 60422.60815 | R60: =+'Base original'!Y60+'Base original'!AB60 -> 1013.063644 | S60: =+'Base original'!Z60+'Base original'!AC60 -> 755.3788844 | T60: =+'Base original'!AD60+'Base original'!AA60 -> 257.6847595 | U60: =+'Base original'!AQ60*-1 -> -1111.620136 | V60: =+'Base original'!AP60+'Base original'!AQ60 -> 2520.422594 | W60: =+'Base original'!AS60*-1 -> -5495.540632 | X60: =+'Base original'!AR60+'Base original'!AS60 -> 11992.61236 | Y60: =+'Base original'!AU60*-1 -> -267.8793756 | Z60: =+'Base original'!AT60+'Base original'!AU60 -> 833.8591859 | AA60: =+'Base original'!AW60*-1 -> -4934.25634 | AB60: =+'Base original'!AY60*-1 -> -1752.292632 | AC60: =+'Base original'!AV60+'Base original'!AX60 -> 6417.789117 | AD60: -6686.548972 | AE60: 13104.33809 | AF60: =+'Base original'!BA60*-1 -> -3479.323189 | AG60: =+'Base original'!AZ60+'Base original'!BA60 -> 5478.168889 | AH60: =+'Base original'!BC60*-1 -> -1174.659291 | AI60: =+'Base original'!BB60+'Base original'!BC60 -> 2479.332515 | AJ60: 36408.73363
A61: =+'Base original'!A61 -> 2011-05-01 | B61: =+'Base original'!C61*-1 -> -6830.3125 | C61: =+'Base original'!B61+'Base original'!C61 -> 15611.02528 | D61: =+'Base original'!E61*-1 -> -4977.267456 | E61: =+'Base original'!D61+'Base original'!E61 -> 6924.910482 | F61: =+'Base original'!G61*-1 -> -260.636099 | G61: =+'Base original'!F61+'Base original'!G61 -> 772.770563 | H61: =+'Base original'!I61*-1 -> -517.9512623 | I61: =+'Base original'!K61*-1 -> -427.6526748 | J61: =+'Base original'!H61+'Base original'!J61 -> 627.7144469 | K61: -945.6039371 | L61: 1573.318384 | M61: =+'Base original'!M61*-1 -> -2426.96978 | N61: =+'Base original'!L61+'Base original'!M61 -> 5394.244691 | O61: =+'Base original'!O61*-1 -> -19733.70825 | P61: =+'Base original'!N61+'Base original'!O61 -> 38133.45254 | Q61: 68409.72194 | R61: =+'Base original'!Y61+'Base original'!AB61 -> 1032.81113 | S61: =+'Base original'!Z61+'Base original'!AC61 -> 795.1107846 | T61: =+'Base original'!AD61+'Base original'!AA61 -> 237.7003449 | U61: =+'Base original'!AQ61*-1 -> -1935.115222 | V61: =+'Base original'!AP61+'Base original'!AQ61 -> 3741.148885 | W61: =+'Base original'!AS61*-1 -> -8065.83844 | X61: =+'Base original'!AR61+'Base original'!AS61 -> 16275.40948 | Y61: =+'Base original'!AU61*-1 -> -290.3851241 | Z61: =+'Base original'!AT61+'Base original'!AU61 -> 684.3320361 | AA61: =+'Base original'!AW61*-1 -> -7350.716762 | AB61: =+'Base original'!AY61*-1 -> -2499.260553 | AC61: =+'Base original'!AV61+'Base original'!AX61 -> 9239.461663 | AD61: -9849.977314 | AE61: 19089.43898 | AF61: =+'Base original'!BA61*-1 -> -2351.671937 | AG61: =+'Base original'!AZ61+'Base original'!BA61 -> 4028.673806 | AH61: =+'Base original'!BC61*-1 -> -1712.224038 | AI61: =+'Base original'!BB61+'Base original'!BC61 -> 4410.904093 | AJ61: 48229.90728
A62: =+'Base original'!A62 -> 2011-06-01 | B62: =+'Base original'!C62*-1 -> -7170.032607 | C62: =+'Base original'!B62+'Base original'!C62 -> 13714.51321 | D62: =+'Base original'!E62*-1 -> -4976.098888 | E62: =+'Base original'!D62+'Base original'!E62 -> 7025.195478 | F62: =+'Base original'!G62*-1 -> -236.9298383 | G62: =+'Base original'!F62+'Base original'!G62 -> 616.9787021 | H62: =+'Base original'!I62*-1 -> -468.0033281 | I62: =+'Base original'!K62*-1 -> -323.1831416 | J62: =+'Base original'!H62+'Base original'!J62 -> 562.7149783 | K62: -791.1864697 | L62: 1353.901448 | M62: =+'Base original'!M62*-1 -> -1754.977297 | N62: =+'Base original'!L62+'Base original'!M62 -> 3635.466929 | O62: =+'Base original'!O62*-1 -> -18763.4734 | P62: =+'Base original'!N62+'Base original'!O62 -> 34180.50524 | Q62: 60526.56101 | R62: =+'Base original'!Y62+'Base original'!AB62 -> 928.392491 | S62: =+'Base original'!Z62+'Base original'!AC62 -> 667.6732934 | T62: =+'Base original'!AD62+'Base original'!AA62 -> 260.7191976 | U62: =+'Base original'!AQ62*-1 -> -742.127006 | V62: =+'Base original'!AP62+'Base original'!AQ62 -> 2830.794478 | W62: =+'Base original'!AS62*-1 -> -8967.56653 | X62: =+'Base original'!AR62+'Base original'!AS62 -> 16559.89385 | Y62: =+'Base original'!AU62*-1 -> -240.6303823 | Z62: =+'Base original'!AT62+'Base original'!AU62 -> 595.5605514 | AA62: =+'Base original'!AW62*-1 -> -7793.892777 | AB62: =+'Base original'!AY62*-1 -> -2417.550281 | AC62: =+'Base original'!AV62+'Base original'!AX62 -> 9257.093577 | AD62: -10211.44306 | AE62: 19468.53663 | AF62: =+'Base original'!BA62*-1 -> -286.5218657 | AG62: =+'Base original'!AZ62+'Base original'!BA62 -> 1949.534554 | AH62: =+'Base original'!BC62*-1 -> -1561.907883 | AI62: =+'Base original'!BB62+'Base original'!BC62 -> 3964.935275 | AJ62: 45369.25534
A63: =+'Base original'!A63 -> 2011-07-01 | B63: =+'Base original'!C63*-1 -> -7143.120588 | C63: =+'Base original'!B63+'Base original'!C63 -> 13425.38473 | D63: =+'Base original'!E63*-1 -> -5685.515021 | E63: =+'Base original'!D63+'Base original'!E63 -> 6988.88695 | F63: =+'Base original'!G63*-1 -> -218.3038438 | G63: =+'Base original'!F63+'Base original'!G63 -> 693.478518 | H63: =+'Base original'!I63*-1 -> -355.5494259 | I63: =+'Base original'!K63*-1 -> -141.9637081 | J63: =+'Base original'!H63+'Base original'!J63 -> 581.0553521 | K63: -497.5131341 | L63: 1078.568486 | M63: =+'Base original'!M63*-1 -> -2020.676139 | N63: =+'Base original'!L63+'Base original'!M63 -> 4063.618975 | O63: =+'Base original'!O63*-1 -> -16269.3384 | P63: =+'Base original'!N63+'Base original'!O63 -> 32908.73975 | Q63: 59158.6774 | R63: =+'Base original'!Y63+'Base original'!AB63 -> 914.0738451 | S63: =+'Base original'!Z63+'Base original'!AC63 -> 609.9274541 | T63: =+'Base original'!AD63+'Base original'!AA63 -> 304.146391 | U63: =+'Base original'!AQ63*-1 -> -560.0181805 | V63: =+'Base original'!AP63+'Base original'!AQ63 -> 3155.565298 | W63: =+'Base original'!AS63*-1 -> -7273.410834 | X63: =+'Base original'!AR63+'Base original'!AS63 -> 14253.19402 | Y63: =+'Base original'!AU63*-1 -> -233.0336249 | Z63: =+'Base original'!AT63+'Base original'!AU63 -> 652.9017979 | AA63: =+'Base original'!AW63*-1 -> -6478.11775 | AB63: =+'Base original'!AY63*-1 -> -441.4428752 | AC63: =+'Base original'!AV63+'Base original'!AX63 -> 7200.654162 | AD63: -6919.560625 | AE63: 14120.21479 | AF63: =+'Base original'!BA63*-1 -> -2847.922746 | AG63: =+'Base original'!AZ63+'Base original'!BA63 -> 3340.409138 | AH63: =+'Base original'!BC63*-1 -> -1498.641324 | AI63: =+'Base original'!BB63+'Base original'!BC63 -> 3133.084888 | AJ63: 38655.36993
A64: =+'Base original'!A64 -> 2011-08-01 | B64: =+'Base original'!C64*-1 -> -11447.28384 | C64: =+'Base original'!B64+'Base original'!C64 -> 20226.41264 | D64: =+'Base original'!E64*-1 -> -4137.887822 | E64: =+'Base original'!D64+'Base original'!E64 -> 6683.691024 | F64: =+'Base original'!G64*-1 -> -303.5048769 | G64: =+'Base original'!F64+'Base original'!G64 -> 1008.403324 | H64: =+'Base original'!I64*-1 -> -318.92893 | I64: =+'Base original'!K64*-1 -> -273.417453 | J64: =+'Base original'!H64+'Base original'!J64 -> 767.5670178 | K64: -592.346383 | L64: 1359.913401 | M64: =+'Base original'!M64*-1 -> -1650.339621 | N64: =+'Base original'!L64+'Base original'!M64 -> 4080.937999 | O64: =+'Base original'!O64*-1 -> -18003.13988 | P64: =+'Base original'!N64+'Base original'!O64 -> 33793.07138 | Q64: 67152.42977 | R64: =+'Base original'!Y64+'Base original'!AB64 -> 1047.780423 | S64: =+'Base original'!Z64+'Base original'!AC64 -> 664.9733835 | T64: =+'Base original'!AD64+'Base original'!AA64 -> 382.8070391 | U64: =+'Base original'!AQ64*-1 -> -1136.902369 | V64: =+'Base original'!AP64+'Base original'!AQ64 -> 6359.791702 | W64: =+'Base original'!AS64*-1 -> -7538.36827 | X64: =+'Base original'!AR64+'Base original'!AS64 -> 14871.10785 | Y64: =+'Base original'!AU64*-1 -> -301.3496505 | Z64: =+'Base original'!AT64+'Base original'!AU64 -> 649.3764652 | AA64: =+'Base original'!AW64*-1 -> -7944.242598 | AB64: =+'Base original'!AY64*-1 -> -316.2061216 | AC64: =+'Base original'!AV64+'Base original'!AX64 -> 8092.37257 | AD64: -8260.44872 | AE64: 16352.82129 | AF64: =+'Base original'!BA64*-1 -> -2286.815576 | AG64: =+'Base original'!AZ64+'Base original'!BA64 -> 3758.5911 | AH64: =+'Base original'!BC64*-1 -> -1803.61053 | AI64: =+'Base original'!BB64+'Base original'!BC64 -> 3317.679275 | AJ64: 45309.36769
A65: =+'Base original'!A65 -> 2011-09-01 | B65: =+'Base original'!C65*-1 -> -8595.316656 | C65: =+'Base original'!B65+'Base original'!C65 -> 18527.7509 | D65: =+'Base original'!E65*-1 -> -4650.376173 | E65: =+'Base original'!D65+'Base original'!E65 -> 8932.176229 | F65: =+'Base original'!G65*-1 -> -341.6249823 | G65: =+'Base original'!F65+'Base original'!G65 -> 1126.089269 | H65: =+'Base original'!I65*-1 -> -313.8167061 | I65: =+'Base original'!K65*-1 -> -235.6787107 | J65: =+'Base original'!H65+'Base original'!J65 -> 695.4154295 | K65: -549.4954168 | L65: 1244.910846 | M65: =+'Base original'!M65*-1 -> -2051.274013 | N65: =+'Base original'!L65+'Base original'!M65 -> 4665.610915 | O65: =+'Base original'!O65*-1 -> -18988.88666 | P65: =+'Base original'!N65+'Base original'!O65 -> 32540.6448 | Q65: 67037.18296 | R65: =+'Base original'!Y65+'Base original'!AB65 -> 1029.136464 | S65: =+'Base original'!Z65+'Base original'!AC65 -> 671.4913571 | T65: =+'Base original'!AD65+'Base original'!AA65 -> 357.6451069 | U65: =+'Base original'!AQ65*-1 -> -1162.916782 | V65: =+'Base original'!AP65+'Base original'!AQ65 -> 4572.236749 | W65: =+'Base original'!AS65*-1 -> -9736.909968 | X65: =+'Base original'!AR65+'Base original'!AS65 -> 19653.30231 | Y65: =+'Base original'!AU65*-1 -> -316.0265292 | Z65: =+'Base original'!AT65+'Base original'!AU65 -> 596.5459574 | AA65: =+'Base original'!AW65*-1 -> -7038.433972 | AB65: =+'Base original'!AY65*-1 -> -269.3720618 | AC65: =+'Base original'!AV65+'Base original'!AX65 -> 7042.140757 | AD65: -7307.806033 | AE65: 14349.94679 | AF65: =+'Base original'!BA65*-1 -> -265.2766412 | AG65: =+'Base original'!AZ65+'Base original'!BA65 -> 2138.496918 | AH65: =+'Base original'!BC65*-1 -> -3248.003358 | AI65: =+'Base original'!BB65+'Base original'!BC65 -> 5988.922756 | AJ65: 47299.45148
A66: =+'Base original'!A66 -> 2011-10-01 | B66: =+'Base original'!C66*-1 -> -7978.991531 | C66: =+'Base original'!B66+'Base original'!C66 -> 17817.53809 | D66: =+'Base original'!E66*-1 -> -5290.844004 | E66: =+'Base original'!D66+'Base original'!E66 -> 7633.479607 | F66: =+'Base original'!G66*-1 -> -305.8380847 | G66: =+'Base original'!F66+'Base original'!G66 -> 1009.179239 | H66: =+'Base original'!I66*-1 -> -251.8361505 | I66: =+'Base original'!K66*-1 -> -166.3252299 | J66: =+'Base original'!H66+'Base original'!J66 -> 467.0565419 | K66: -418.1613804 | L66: 885.2179223 | M66: =+'Base original'!M66*-1 -> -2776.726767 | N66: =+'Base original'!L66+'Base original'!M66 -> 5637.459958 | O66: =+'Base original'!O66*-1 -> -17221.86943 | P66: =+'Base original'!N66+'Base original'!O66 -> 33827.79445 | Q66: 66810.66927 | R66: =+'Base original'!Y66+'Base original'!AB66 -> 943.0495869 | S66: =+'Base original'!Z66+'Base original'!AC66 -> 689.1034926 | T66: =+'Base original'!AD66+'Base original'!AA66 -> 253.9460943 | U66: =+'Base original'!AQ66*-1 -> -2855.579999 | V66: =+'Base original'!AP66+'Base original'!AQ66 -> 5355.200476 | W66: =+'Base original'!AS66*-1 -> -9517.968564 | X66: =+'Base original'!AR66+'Base original'!AS66 -> 17833.81508 | Y66: =+'Base original'!AU66*-1 -> -236.0712254 | Z66: =+'Base original'!AT66+'Base original'!AU66 -> 539.9098132 | AA66: =+'Base original'!AW66*-1 -> -6239.479013 | AB66: =+'Base original'!AY66*-1 -> -171.5088113 | AC66: =+'Base original'!AV66+'Base original'!AX66 -> 6804.023466 | AD66: -6410.987824 | AE66: 13215.01129 | AF66: =+'Base original'!BA66*-1 -> -3049.445706 | AG66: =+'Base original'!AZ66+'Base original'!BA66 -> 5757.257519 | AH66: =+'Base original'!BC66*-1 -> -1596.546695 | AI66: =+'Base original'!BB66+'Base original'!BC66 -> 3391.957935 | AJ66: 46093.15211
A67: =+'Base original'!A67 -> 2011-11-01 | B67: =+'Base original'!C67*-1 -> -7885.841175 | C67: =+'Base original'!B67+'Base original'!C67 -> 18218.85457 | D67: =+'Base original'!E67*-1 -> -4707.051541 | E67: =+'Base original'!D67+'Base original'!E67 -> 7132.913552 | F67: =+'Base original'!G67*-1 -> -323.4042158 | G67: =+'Base original'!F67+'Base original'!G67 -> 1183.967305 | H67: =+'Base original'!I67*-1 -> -228.9164391 | I67: =+'Base original'!K67*-1 -> -362.5935563 | J67: =+'Base original'!H67+'Base original'!J67 -> 502.3720452 | K67: -591.5099954 | L67: 1093.882041 | M67: =+'Base original'!M67*-1 -> -2060.688071 | N67: =+'Base original'!L67+'Base original'!M67 -> 4637.660038 | O67: =+'Base original'!O67*-1 -> -15575.54417 | P67: =+'Base original'!N67+'Base original'!O67 -> 28759.6854 | Q67: 61026.96291 | R67: =+'Base original'!Y67+'Base original'!AB67 -> 1014.340664 | S67: =+'Base original'!Z67+'Base original'!AC67 -> 686.3406644 | T67: =+'Base original'!AD67+'Base original'!AA67 -> 328 | U67: =+'Base original'!AQ67*-1 -> -1850.449176 | V67: =+'Base original'!AP67+'Base original'!AQ67 -> 3290.653249 | W67: =+'Base original'!AS67*-1 -> -6319.748597 | X67: =+'Base original'!AR67+'Base original'!AS67 -> 12942.35732 | Y67: =+'Base original'!AU67*-1 -> -350.4747631 | Z67: =+'Base original'!AT67+'Base original'!AU67 -> 615.8584424 | AA67: =+'Base original'!AW67*-1 -> -6469.177559 | AB67: =+'Base original'!AY67*-1 -> -539.1557397 | AC67: =+'Base original'!AV67+'Base original'!AX67 -> 7087.670537 | AD67: -7008.333299 | AE67: 14096.00384 | AF67: =+'Base original'!BA67*-1 -> -2358.328503 | AG67: =+'Base original'!AZ67+'Base original'!BA67 -> 4299.150292 | AH67: =+'Base original'!BC67*-1 -> -1191.68523 | AI67: =+'Base original'!BB67+'Base original'!BC67 -> 2867.857668 | AJ67: 38111.88081
A68: =+'Base original'!A68 -> 2011-12-01 | B68: =+'Base original'!C68*-1 -> -5561.8612 | C68: =+'Base original'!B68+'Base original'!C68 -> 13022.24269 | D68: =+'Base original'!E68*-1 -> -5100.855945 | E68: =+'Base original'!D68+'Base original'!E68 -> 7290.287772 | F68: =+'Base original'!G68*-1 -> -289.1890845 | G68: =+'Base original'!F68+'Base original'!G68 -> 959.0473298 | H68: =+'Base original'!I68*-1 -> -228.2289341 | I68: =+'Base original'!K68*-1 -> -241.834155 | J68: =+'Base original'!H68+'Base original'!J68 -> 441.4738309 | K68: -470.0630891 | L68: 911.53692 | M68: =+'Base original'!M68*-1 -> -1907.110004 | N68: =+'Base original'!L68+'Base original'!M68 -> 4608.229016 | O68: =+'Base original'!O68*-1 -> -13905.19301 | P68: =+'Base original'!N68+'Base original'!O68 -> 26085.38937 | Q68: 52876.7331 | R68: =+'Base original'!Y68+'Base original'!AB68 -> 871.2926996 | S68: =+'Base original'!Z68+'Base original'!AC68 -> 599.1635067 | T68: =+'Base original'!AD68+'Base original'!AA68 -> 272.1291929 | U68: =+'Base original'!AQ68*-1 -> -2316.139895 | V68: =+'Base original'!AP68+'Base original'!AQ68 -> 4386.038138 | W68: =+'Base original'!AS68*-1 -> -8159.497497 | X68: =+'Base original'!AR68+'Base original'!AS68 -> 15590.4731 | Y68: =+'Base original'!AU68*-1 -> -188.305078 | Z68: =+'Base original'!AT68+'Base original'!AU68 -> 489.1920399 | AA68: =+'Base original'!AW68*-1 -> -6428.651976 | AB68: =+'Base original'!AY68*-1 -> -425.2988034 | AC68: =+'Base original'!AV68+'Base original'!AX68 -> 7048.867668 | AD68: -6853.950779 | AE68: 13902.81845 | AF68: =+'Base original'!BA68*-1 -> -2788.177243 | AG68: =+'Base original'!AZ68+'Base original'!BA68 -> 5458.788256 | AH68: =+'Base original'!BC68*-1 -> -1452.83278 | AI68: =+'Base original'!BB68+'Base original'!BC68 -> 4022.53815 | AJ68: 43849.84813
A69: =+'Base original'!A69 -> 2012-01-01 | B69: =+'Base original'!C69*-1 -> -7807.07 | C69: =+'Base original'!B69+'Base original'!C69 -> 17858.99163 | D69: =+'Base original'!E69*-1 -> -5611.938114 | E69: =+'Base original'!D69+'Base original'!E69 -> 7890.476049 | F69: =+'Base original'!G69*-1 -> -260.535305 | G69: =+'Base original'!F69+'Base original'!G69 -> 1041.002377 | H69: =+'Base original'!I69*-1 -> -328.8246633 | I69: =+'Base original'!K69*-1 -> -98.4857528 | J69: =+'Base original'!H69+'Base original'!J69 -> 365.4795674 | K69: -427.3104161 | L69: 792.7899835 | M69: =+'Base original'!M69*-1 -> -2381.984463 | N69: =+'Base original'!L69+'Base original'!M69 -> 4900.930045 | O69: =+'Base original'!O69*-1 -> -15144.95457 | P69: =+'Base original'!N69+'Base original'!O69 -> 28393.41174 | Q69: 60877.60182 | R69: =+'Base original'!Y69+'Base original'!AB69 -> 820.3145782 | S69: =+'Base original'!Z69+'Base original'!AC69 -> 612.8402519 | T69: =+'Base original'!AD69+'Base original'!AA69 -> 207.4743264 | U69: =+'Base original'!AQ69*-1 -> -2078.305258 | V69: =+'Base original'!AP69+'Base original'!AQ69 -> 3144.479132 | W69: =+'Base original'!AS69*-1 -> -7185.801041 | X69: =+'Base original'!AR69+'Base original'!AS69 -> 14192.9228 | Y69: =+'Base original'!AU69*-1 -> -241.059111 | Z69: =+'Base original'!AT69+'Base original'!AU69 -> 426.02702 | AA69: =+'Base original'!AW69*-1 -> -5833.472349 | AB69: =+'Base original'!AY69*-1 -> -238.2381999 | AC69: =+'Base original'!AV69+'Base original'!AX69 -> 6590.857678 | AD69: -6071.710548 | AE69: 12662.56823 | AF69: =+'Base original'!BA69*-1 -> -2342.819776 | AG69: =+'Base original'!AZ69+'Base original'!BA69 -> 3933.954564 | AH69: =+'Base original'!BC69*-1 -> -1635.552518 | AI69: =+'Base original'!BB69+'Base original'!BC69 -> 3493.04739 | AJ69: 37852.99913
A70: =+'Base original'!A70 -> 2012-02-01 | B70: =+'Base original'!C70*-1 -> -6499.508469 | C70: =+'Base original'!B70+'Base original'!C70 -> 14991.18267 | D70: =+'Base original'!E70*-1 -> -4174.292855 | E70: =+'Base original'!D70+'Base original'!E70 -> 5326.768586 | F70: =+'Base original'!G70*-1 -> -267.852276 | G70: =+'Base original'!F70+'Base original'!G70 -> 1036.536832 | H70: =+'Base original'!I70*-1 -> -167.990767 | I70: =+'Base original'!K70*-1 -> -88.76827438 | J70: =+'Base original'!H70+'Base original'!J70 -> 305.2419946 | K70: -256.7590414 | L70: 562.001036 | M70: =+'Base original'!M70*-1 -> -2162.029258 | N70: =+'Base original'!L70+'Base original'!M70 -> 5677.905854 | O70: =+'Base original'!O70*-1 -> -15225.15981 | P70: =+'Base original'!N70+'Base original'!O70 -> 29160.4959 | Q70: 56754.89088 | R70: =+'Base original'!Y70+'Base original'!AB70 -> 715.2360736 | S70: =+'Base original'!Z70+'Base original'!AC70 -> 521.9231949 | T70: =+'Base original'!AD70+'Base original'!AA70 -> 193.3128787 | U70: =+'Base original'!AQ70*-1 -> -1390.536711 | V70: =+'Base original'!AP70+'Base original'!AQ70 -> 2724.972148 | W70: =+'Base original'!AS70*-1 -> -6281.3486 | X70: =+'Base original'!AR70+'Base original'!AS70 -> 12593.53376 | Y70: =+'Base original'!AU70*-1 -> -116.2272586 | Z70: =+'Base original'!AT70+'Base original'!AU70 -> 237.9698296 | AA70: =+'Base original'!AW70*-1 -> -4990.675061 | AB70: =+'Base original'!AY70*-1 -> -221.1505678 | AC70: =+'Base original'!AV70+'Base original'!AX70 -> 5505.094905 | AD70: -5211.825629 | AE70: 10716.92053 | AF70: =+'Base original'!BA70*-1 -> -3065.896455 | AG70: =+'Base original'!AZ70+'Base original'!BA70 -> 5046.205389 | AH70: =+'Base original'!BC70*-1 -> -1584.492683 | AI70: =+'Base original'!BB70+'Base original'!BC70 -> 3485.516539 | AJ70: 34805.1182
A71: =+'Base original'!A71 -> 2012-03-01 | B71: =+'Base original'!C71*-1 -> -6171.31239 | C71: =+'Base original'!B71+'Base original'!C71 -> 15411.87538 | D71: =+'Base original'!E71*-1 -> -4699.477194 | E71: =+'Base original'!D71+'Base original'!E71 -> 6805.233442 | F71: =+'Base original'!G71*-1 -> -268.898901 | G71: =+'Base original'!F71+'Base original'!G71 -> 1084.826254 | H71: =+'Base original'!I71*-1 -> -201.9689701 | I71: =+'Base original'!K71*-1 -> -56.30011937 | J71: =+'Base original'!H71+'Base original'!J71 -> 527.6177312 | K71: -258.2690894 | L71: 785.8868206 | M71: =+'Base original'!M71*-1 -> -2974.384529 | N71: =+'Base original'!L71+'Base original'!M71 -> 8101.224948 | O71: =+'Base original'!O71*-1 -> -17746.67809 | P71: =+'Base original'!N71+'Base original'!O71 -> 31900.10062 | Q71: 64089.14747 | R71: =+'Base original'!Y71+'Base original'!AB71 -> 788.8192894 | S71: =+'Base original'!Z71+'Base original'!AC71 -> 465.4705044 | T71: =+'Base original'!AD71+'Base original'!AA71 -> 323.348785 | U71: =+'Base original'!AQ71*-1 -> -2730.260647 | V71: =+'Base original'!AP71+'Base original'!AQ71 -> 3546.342683 | W71: =+'Base original'!AS71*-1 -> -8383.43628 | X71: =+'Base original'!AR71+'Base original'!AS71 -> 16965.58071 | Y71: =+'Base original'!AU71*-1 -> -199.6895366 | Z71: =+'Base original'!AT71+'Base original'!AU71 -> 402.4402471 | AA71: =+'Base original'!AW71*-1 -> -5186.856285 | AB71: =+'Base original'!AY71*-1 -> -261.9261136 | AC71: =+'Base original'!AV71+'Base original'!AX71 -> 5669.117962 | AD71: -5448.782398 | AE71: 11117.90036 | AF71: =+'Base original'!BA71*-1 -> -1422.798941 | AG71: =+'Base original'!AZ71+'Base original'!BA71 -> 3912.736245 | AH71: =+'Base original'!BC71*-1 -> -2909.19937 | AI71: =+'Base original'!BB71+'Base original'!BC71 -> 6389.623567 | AJ71: 42334.62382
A72: =+'Base original'!A72 -> 2012-04-01 | B72: =+'Base original'!C72*-1 -> -6522.744821 | C72: =+'Base original'!B72+'Base original'!C72 -> 13752.36433 | D72: =+'Base original'!E72*-1 -> -4624.801343 | E72: =+'Base original'!D72+'Base original'!E72 -> 6191.659489 | F72: =+'Base original'!G72*-1 -> -212.7244384 | G72: =+'Base original'!F72+'Base original'!G72 -> 864.516346 | H72: =+'Base original'!I72*-1 -> -201.6958291 | I72: =+'Base original'!K72*-1 -> -64.04 | J72: =+'Base original'!H72+'Base original'!J72 -> 331.581855 | K72: -265.7358291 | L72: 597.3176841 | M72: =+'Base original'!M72*-1 -> -2524.993569 | N72: =+'Base original'!L72+'Base original'!M72 -> 4849.432265 | O72: =+'Base original'!O72*-1 -> -14605.41522 | P72: =+'Base original'!N72+'Base original'!O72 -> 25791.59569 | Q72: 52046.88581 | R72: =+'Base original'!Y72+'Base original'!AB72 -> 734.5743079 | S72: =+'Base original'!Z72+'Base original'!AC72 -> 457.641172 | T72: =+'Base original'!AD72+'Base original'!AA72 -> 276.9331359 | U72: =+'Base original'!AQ72*-1 -> -1219.166397 | V72: =+'Base original'!AP72+'Base original'!AQ72 -> 3026.092765 | W72: =+'Base original'!AS72*-1 -> -7406.174474 | X72: =+'Base original'!AR72+'Base original'!AS72 -> 15232.49932 | Y72: =+'Base original'!AU72*-1 -> -238.4509588 | Z72: =+'Base original'!AT72+'Base original'!AU72 -> 417.8391447 | AA72: =+'Base original'!AW72*-1 -> -5421.634738 | AB72: =+'Base original'!AY72*-1 -> -164.5884671 | AC72: =+'Base original'!AV72+'Base original'!AX72 -> 5721.869479 | AD72: -5586.223205 | AE72: 11308.09268 | AF72: =+'Base original'!BA72*-1 -> -1743.916475 | AG72: =+'Base original'!AZ72+'Base original'!BA72 -> 3821.443947 | AH72: =+'Base original'!BC72*-1 -> -1351.37225 | AI72: =+'Base original'!BB72+'Base original'!BC72 -> 3296.786693 | AJ72: 37102.75455
A73: =+'Base original'!A73 -> 2012-05-01 | B73: =+'Base original'!C73*-1 -> -7672.573106 | C73: =+'Base original'!B73+'Base original'!C73 -> 17501.79621 | D73: =+'Base original'!E73*-1 -> -5190.283352 | E73: =+'Base original'!D73+'Base original'!E73 -> 9095.484834 | F73: =+'Base original'!G73*-1 -> -307.7130842 | G73: =+'Base original'!F73+'Base original'!G73 -> 1009.383173 | H73: =+'Base original'!I73*-1 -> -268.6132098 | I73: =+'Base original'!K73*-1 -> -188.5410948 | J73: =+'Base original'!H73+'Base original'!J73 -> 597.1164186 | K73: =+H73+I73 -> -457.1543046 | L73: 1054.270723 | M73: =+'Base original'!M73*-1 -> -3129.329528 | N73: =+'Base original'!L73+'Base original'!M73 -> 9052.013598 | O73: =+'Base original'!O73*-1 -> -19525.21219 | P73: =+'Base original'!N73+'Base original'!O73 -> 32786.44804 | Q73: 70499.39658 | R73: =+'Base original'!Y73+'Base original'!AB73 -> 948.5594302 | S73: =+'Base original'!Z73+'Base original'!AC73 -> 620.006551 | T73: =+'Base original'!AD73+'Base original'!AA73 -> 328.5528793 | U73: =+'Base original'!AQ73*-1 -> -1339.650908 | V73: =+'Base original'!AP73+'Base original'!AQ73 -> 3075.960996 | W73: =+'Base original'!AS73*-1 -> -7418.17722 | X73: =+'Base original'!AR73+'Base original'!AS73 -> 15849.06179 | Y73: =+'Base original'!AU73*-1 -> -264.1717012 | Z73: =+'Base original'!AT73+'Base original'!AU73 -> 523.1829669 | AA73: =+'Base original'!AW73*-1 -> -7334.150413 | AB73: =+'Base original'!AY73*-1 -> -97.78224972 | AC73: =+'Base original'!AV73+'Base original'!AX73 -> 7324.894123 | AD73: =+AB73+AA73 -> -7431.932663 | AE73: 14756.82679 | AF73: =+'Base original'!BA73*-1 -> -3020.245169 | AG73: =+'Base original'!AZ73+'Base original'!BA73 -> 5793.312224 | AH73: =+'Base original'!BC73*-1 -> -2544.431946 | AI73: =+'Base original'!BB73+'Base original'!BC73 -> 5007.422788 | AJ73: 45005.76755
A74: =+'Base original'!A74 -> 2012-06-01 | B74: =+'Base original'!C74*-1 -> -7871.121092 | C74: =+'Base original'!B74+'Base original'!C74 -> 16586.67167 | D74: =+'Base original'!E74*-1 -> -4893.958116 | E74: =+'Base original'!D74+'Base original'!E74 -> 7044.567304 | F74: =+'Base original'!G74*-1 -> -375.8915213 | G74: =+'Base original'!F74+'Base original'!G74 -> 1118.417608 | H74: =+'Base original'!I74*-1 -> -252.4440452 | I74: =+'Base original'!K74*-1 -> -106.1570698 | J74: =+'Base original'!H74+'Base original'!J74 -> 427.3932585 | K74: -358.601115 | L74: =+J74-K74 -> 785.9943735 | M74: =+'Base original'!M74*-1 -> -2954.726459 | N74: =+'Base original'!L74+'Base original'!M74 -> 7939.003568 | O74: =+'Base original'!O74*-1 -> -20992.1429 | P74: =+'Base original'!N74+'Base original'!O74 -> 37503.99088 | Q74: =+C74+E74+G74+L74+N74+P74 -> 70978.6454 | R74: =+'Base original'!Y74+'Base original'!AB74 -> 905.7135258 | S74: =+'Base original'!Z74+'Base original'!AC74 -> 599.466426 | T74: =+'Base original'!AD74+'Base original'!AA74 -> 306.2470999 | U74: =+'Base original'!AQ74*-1 -> -1591.027554 | V74: =+'Base original'!AP74+'Base original'!AQ74 -> 3422.930141 | W74: =+'Base original'!AS74*-1 -> -8661.197504 | X74: =+'Base original'!AR74+'Base original'!AS74 -> 16091.44314 | Y74: =+'Base original'!AU74*-1 -> -307.1682604 | Z74: =+'Base original'!AT74+'Base original'!AU74 -> 607.4474929 | AA74: =+'Base original'!AW74*-1 -> -8824.258621 | AB74: =+'Base original'!AY74*-1 -> -213.2133711 | AC74: =+'Base original'!AV74+'Base original'!AX74 -> 8703.126608 | AD74: -9037.471992 | AE74: =+AC74-AD74 -> 17740.5986 | AF74: =+'Base original'!BA74*-1 -> -2250.928711 | AG74: =+'Base original'!AZ74+'Base original'!BA74 -> 5697.489846 | AH74: =+'Base original'!BC74*-1 -> -3345.920216 | AI74: =+'Base original'!BB74+'Base original'!BC74 -> 6904.181246 | AJ74: =+V74+X74+Z74+AE74+AG74+AI74 -> 50464.09047
A75: =+'Base original'!A75 -> 2012-07-01 | B75: =+'Base original'!C75*-1 -> -7799.53456 | C75: =+'Base original'!B75+'Base original'!C75 -> 17692.2665 | D75: =+'Base original'!E75*-1 -> -5224.330662 | E75: =+'Base original'!D75+'Base original'!E75 -> 7279.649608 | F75: =+'Base original'!G75*-1 -> -405.951296 | G75: =+'Base original'!F75+'Base original'!G75 -> 1268.91196 | H75: =+'Base original'!I75*-1 -> -276.5047242 | I75: =+'Base original'!K75*-1 -> -117.5221241 | J75: =+'Base original'!H75+'Base original'!J75 -> 339.2450087 | K75: -394.0268483 | L75: 733.271857 | M75: =+'Base original'!M75*-1 -> -2841.055571 | N75: =+'Base original'!L75+'Base original'!M75 -> 6471.863738 | O75: =+'Base original'!O75*-1 -> -17406.22753 | P75: =+'Base original'!N75+'Base original'!O75 -> 32362.74904 | Q75: 65808.7127 | R75: =+'Base original'!Y75+'Base original'!AB75 -> 842.8457342 | S75: =+'Base original'!Z75+'Base original'!AC75 -> 634.184775 | T75: =+'Base original'!AD75+'Base original'!AA75 -> 208.6609593 | U75: =+'Base original'!AQ75*-1 -> -1940.022151 | V75: =+'Base original'!AP75+'Base original'!AQ75 -> 4074.54559 | W75: =+'Base original'!AS75*-1 -> -8577.684359 | X75: =+'Base original'!AR75+'Base original'!AS75 -> 16674.16063 | Y75: =+'Base original'!AU75*-1 -> -345.0511236 | Z75: =+'Base original'!AT75+'Base original'!AU75 -> 563.9352965 | AA75: =+'Base original'!AW75*-1 -> -6893.287662 | AB75: =+'Base original'!AY75*-1 -> -146.7159663 | AC75: =+'Base original'!AV75+'Base original'!AX75 -> 6351.901035 | AD75: -7040.003628 | AE75: 13391.90466 | AF75: =+'Base original'!BA75*-1 -> -1899.953995 | AG75: =+'Base original'!AZ75+'Base original'!BA75 -> 3741.780527 | AH75: =+'Base original'!BC75*-1 -> -2038.24873 | AI75: =+'Base original'!BB75+'Base original'!BC75 -> 4828.516125 | AJ75: 43274.84283
A76: =+'Base original'!A76 -> 2012-08-01 | B76: =+'Base original'!C76*-1 -> -6298.646287 | C76: =+'Base original'!B76+'Base original'!C76 -> 15046.19257 | D76: =+'Base original'!E76*-1 -> -5738.633058 | E76: =+'Base original'!D76+'Base original'!E76 -> 7434.015079 | F76: =+'Base original'!G76*-1 -> -358.3693039 | G76: =+'Base original'!F76+'Base original'!G76 -> 1142.311258 | H76: =+'Base original'!I76*-1 -> -279.819448 | I76: =+'Base original'!K76*-1 -> -150.1415336 | J76: =+'Base original'!H76+'Base original'!J76 -> 416.6173378 | K76: -429.9609816 | L76: 846.5783194 | M76: =+'Base original'!M76*-1 -> -4650.573037 | N76: =+'Base original'!L76+'Base original'!M76 -> 11429.11875 | O76: =+'Base original'!O76*-1 -> -19452.48392 | P76: =+'Base original'!N76+'Base original'!O76 -> 35173.72105 | Q76: 71071.93702 | R76: =+'Base original'!Y76+'Base original'!AB76 -> 772.0324669 | S76: =+'Base original'!Z76+'Base original'!AC76 -> 548.9534924 | T76: =+'Base original'!AD76+'Base original'!AA76 -> 223.0789745 | U76: =+'Base original'!AQ76*-1 -> -1607.11608 | V76: =+'Base original'!AP76+'Base original'!AQ76 -> 2985.469288 | W76: =+'Base original'!AS76*-1 -> -8775.979125 | X76: =+'Base original'!AR76+'Base original'!AS76 -> 19321.30558 | Y76: =+'Base original'!AU76*-1 -> -155.0817504 | Z76: =+'Base original'!AT76+'Base original'!AU76 -> 348.0823758 | AA76: =+'Base original'!AW76*-1 -> -6633.344599 | AB76: =+'Base original'!AY76*-1 -> -171.4868192 | AC76: =+'Base original'!AV76+'Base original'!AX76 -> 6168.821329 | AD76: -6804.831418 | AE76: 12973.65275 | AF76: =+'Base original'!BA76*-1 -> -3251.082112 | AG76: =+'Base original'!AZ76+'Base original'!BA76 -> 6272.886622 | AH76: =+'Base original'!BC76*-1 -> -1674.728529 | AI76: =+'Base original'!BB76+'Base original'!BC76 -> 3746.602737 | AJ76: 45647.99935
A77: =+'Base original'!A77 -> 2012-09-01 | B77: =+'Base original'!C77*-1 -> -8129.341397 | C77: =+'Base original'!B77+'Base original'!C77 -> 17303.4135 | D77: =+'Base original'!E77*-1 -> -5576.731297 | E77: =+'Base original'!D77+'Base original'!E77 -> 7466.99666 | F77: =+'Base original'!G77*-1 -> -241.014 | G77: =+'Base original'!F77+'Base original'!G77 -> 811.4052673 | H77: =+'Base original'!I77*-1 -> -182.1619882 | I77: =+'Base original'!K77*-1 -> -194.6315415 | J77: =+'Base original'!H77+'Base original'!J77 -> 427.9402992 | K77: -376.7935297 | L77: 804.7338289 | M77: =+'Base original'!M77*-1 -> -1854.664819 | N77: =+'Base original'!L77+'Base original'!M77 -> 5928.7847 | O77: =+'Base original'!O77*-1 -> -16301.20249 | P77: =+'Base original'!N77+'Base original'!O77 -> 30522.57564 | Q77: 62837.90959 | R77: =+'Base original'!Y77+'Base original'!AB77 -> 746.3742952 | S77: =+'Base original'!Z77+'Base original'!AC77 -> 502.9394675 | T77: =+'Base original'!AD77+'Base original'!AA77 -> 243.4348278 | U77: =+'Base original'!AQ77*-1 -> -1657.724194 | V77: =+'Base original'!AP77+'Base original'!AQ77 -> 3047.448444 | W77: =+'Base original'!AS77*-1 -> -7695.499195 | X77: =+'Base original'!AR77+'Base original'!AS77 -> 16100.16699 | Y77: =+'Base original'!AU77*-1 -> -197.4107248 | Z77: =+'Base original'!AT77+'Base original'!AU77 -> 351.0618666 | AA77: =+'Base original'!AW77*-1 -> -5366.540191 | AB77: =+'Base original'!AY77*-1 -> -239.8191469 | AC77: =+'Base original'!AV77+'Base original'!AX77 -> 4893.668555 | AD77: -5606.359338 | AE77: 10500.02789 | AF77: =+'Base original'!BA77*-1 -> -941.8426609 | AG77: =+'Base original'!AZ77+'Base original'!BA77 -> 1909.218928 | AH77: =+'Base original'!BC77*-1 -> -1837.943675 | AI77: =+'Base original'!BB77+'Base original'!BC77 -> 4071.307065 | AJ77: 35979.23119
A78: =+'Base original'!A78 -> 2012-10-01 | B78: =+'Base original'!C78*-1 -> -10043.8072 | C78: =+'Base original'!B78+'Base original'!C78 -> 22885.4644 | D78: =+'Base original'!E78*-1 -> -7504.194673 | E78: =+'Base original'!D78+'Base original'!E78 -> 10910.81971 | F78: =+'Base original'!G78*-1 -> -307.4722873 | G78: =+'Base original'!F78+'Base original'!G78 -> 981.263644 | H78: =+'Base original'!I78*-1 -> -251.2460721 | I78: =+'Base original'!K78*-1 -> -76.14488362 | J78: =+'Base original'!H78+'Base original'!J78 -> 388.5696373 | K78: -327.3909558 | L78: 715.9605931 | M78: =+'Base original'!M78*-1 -> -1929.531655 | N78: =+'Base original'!L78+'Base original'!M78 -> 6552.69052 | O78: =+'Base original'!O78*-1 -> -22967.56887 | P78: =+'Base original'!N78+'Base original'!O78 -> 41777.05326 | Q78: 83823.25212 | R78: =+'Base original'!Y78+'Base original'!AB78 -> 757.4954584 | S78: =+'Base original'!Z78+'Base original'!AC78 -> 435.4845913 | T78: =+'Base original'!AD78+'Base original'!AA78 -> 322.0108671 | U78: =+'Base original'!AQ78*-1 -> -2191.110111 | V78: =+'Base original'!AP78+'Base original'!AQ78 -> 3068.970199 | W78: =+'Base original'!AS78*-1 -> -9496.902114 | X78: =+'Base original'!AR78+'Base original'!AS78 -> 19009.96551 | Y78: =+'Base original'!AU78*-1 -> -240.6372398 | Z78: =+'Base original'!AT78+'Base original'!AU78 -> 443.9185862 | AA78: =+'Base original'!AW78*-1 -> -7960.219973 | AB78: =+'Base original'!AY78*-1 -> -371.8683125 | AC78: =+'Base original'!AV78+'Base original'!AX78 -> 8084.02793 | AD78: -8332.088286 | AE78: 16416.11622 | AF78: =+'Base original'!BA78*-1 -> -1371.974934 | AG78: =+'Base original'!AZ78+'Base original'!BA78 -> 2760.160934 | AH78: =+'Base original'!BC78*-1 -> -1994.02023 | AI78: =+'Base original'!BB78+'Base original'!BC78 -> 3569.406551 | AJ78: 45268.538
A79: =+'Base original'!A79 -> 2012-11-01 | B79: =+'Base original'!C79*-1 -> -8330.498147 | C79: =+'Base original'!B79+'Base original'!C79 -> 18374.37029 | D79: =+'Base original'!E79*-1 -> -8297.846618 | E79: =+'Base original'!D79+'Base original'!E79 -> 11816.00053 | F79: =+'Base original'!G79*-1 -> -395.4272545 | G79: =+'Base original'!F79+'Base original'!G79 -> 1261.263134 | H79: =+'Base original'!I79*-1 -> -246.29595 | I79: =+'Base original'!K79*-1 -> -163.8958482 | J79: =+'Base original'!H79+'Base original'!J79 -> 551.6860704 | K79: -410.1917982 | L79: 961.8778686 | M79: =+'Base original'!M79*-1 -> -3407.827592 | N79: =+'Base original'!L79+'Base original'!M79 -> 9253.170116 | O79: =+'Base original'!O79*-1 -> -20275.27973 | P79: =+'Base original'!N79+'Base original'!O79 -> 37775.32945 | Q79: 79442.01139 | R79: =+'Base original'!Y79+'Base original'!AB79 -> 831.8992865 | S79: =+'Base original'!Z79+'Base original'!AC79 -> 482.4415803 | T79: =+'Base original'!AD79+'Base original'!AA79 -> 349.4577062 | U79: =+'Base original'!AQ79*-1 -> -2003.163049 | V79: =+'Base original'!AP79+'Base original'!AQ79 -> 2391.453816 | W79: =+'Base original'!AS79*-1 -> -9383.326192 | X79: =+'Base original'!AR79+'Base original'!AS79 -> 18697.72849 | Y79: =+'Base original'!AU79*-1 -> -325.4658107 | Z79: =+'Base original'!AT79+'Base original'!AU79 -> 483.7633944 | AA79: =+'Base original'!AW79*-1 -> -6934.623421 | AB79: =+'Base original'!AY79*-1 -> -188.8487719 | AC79: =+'Base original'!AV79+'Base original'!AX79 -> 7130.49524 | AD79: -7123.472193 | AE79: 14253.96743 | AF79: =+'Base original'!BA79*-1 -> -2711.959572 | AG79: =+'Base original'!AZ79+'Base original'!BA79 -> 6051.639495 | AH79: =+'Base original'!BC79*-1 -> -1736.116661 | AI79: =+'Base original'!BB79+'Base original'!BC79 -> 3413.475074 | AJ79: 45292.0277
A80: =+'Base original'!A80 -> 2012-12-01 | B80: =+'Base original'!C80*-1 -> -7663.689674 | C80: =+'Base original'!B80+'Base original'!C80 -> 13488.54569 | D80: =+'Base original'!E80*-1 -> -8172.355438 | E80: =+'Base original'!D80+'Base original'!E80 -> 11791.23905 | F80: =+'Base original'!G80*-1 -> -339.577364 | G80: =+'Base original'!F80+'Base original'!G80 -> 1033.777823 | H80: =+'Base original'!I80*-1 -> -264.960043 | I80: =+'Base original'!K80*-1 -> -82.96553 | J80: =+'Base original'!H80+'Base original'!J80 -> 417.4592935 | K80: -347.925573 | L80: 765.3848665 | M80: =+'Base original'!M80*-1 -> -2759.647222 | N80: =+'Base original'!L80+'Base original'!M80 -> 6935.919122 | O80: =+'Base original'!O80*-1 -> -13568.78197 | P80: =+'Base original'!N80+'Base original'!O80 -> 26730.95211 | Q80: 60745.81866 | R80: =+'Base original'!Y80+'Base original'!AB80 -> 807.3308094 | S80: =+'Base original'!Z80+'Base original'!AC80 -> 437.3773899 | T80: =+'Base original'!AD80+'Base original'!AA80 -> 369.9534195 | U80: =+'Base original'!AQ80*-1 -> -1375.61342 | V80: =+'Base original'!AP80+'Base original'!AQ80 -> 2376.612598 | W80: =+'Base original'!AS80*-1 -> -12597.48755 | X80: =+'Base original'!AR80+'Base original'!AS80 -> 24501.81076 | Y80: =+'Base original'!AU80*-1 -> -219.6459936 | Z80: =+'Base original'!AT80+'Base original'!AU80 -> 345.9882523 | AA80: =+'Base original'!AW80*-1 -> -5531.274462 | AB80: =+'Base original'!AY80*-1 -> -213.7568973 | AC80: =+'Base original'!AV80+'Base original'!AX80 -> 5508.166916 | AD80: -5745.031359 | AE80: 11253.19828 | AF80: =+'Base original'!BA80*-1 -> -2038.227558 | AG80: =+'Base original'!AZ80+'Base original'!BA80 -> 5489.195116 | AH80: =+'Base original'!BC80*-1 -> -2257.744699 | AI80: =+'Base original'!BB80+'Base original'!BC80 -> 4727.622969 | AJ80: 48694.42797
A81: =+'Base original'!A81 -> 2013-01-01 | B81: =+'Base original'!C81*-1 -> -10005.67684 | C81: =+'Base original'!B81+'Base original'!C81 -> 19362.14039 | D81: =+'Base original'!E81*-1 -> -9203.890804 | E81: =+'Base original'!D81+'Base original'!E81 -> 12234.58404 | F81: =+'Base original'!G81*-1 -> -396.8387546 | G81: =+'Base original'!F81+'Base original'!G81 -> 1077.828487 | H81: =+'Base original'!I81*-1 -> -320.6419335 | I81: =+'Base original'!K81*-1 -> -60.86763538 | J81: =+'Base original'!H81+'Base original'!J81 -> 393.0429494 | K81: -381.5095688 | L81: 774.5525183 | M81: =+'Base original'!M81*-1 -> -2806.122708 | N81: =+'Base original'!L81+'Base original'!M81 -> 7622.808786 | O81: =+'Base original'!O81*-1 -> -17252.12718 | P81: =+'Base original'!N81+'Base original'!O81 -> 35089.6597 | Q81: 76161.57391 | R81: =+'Base original'!Y81+'Base original'!AB81 -> 743.8401154 | S81: =+'Base original'!Z81+'Base original'!AC81 -> 397.9637453 | T81: =+'Base original'!AD81+'Base original'!AA81 -> 345.87637 | U81: =+'Base original'!AQ81*-1 -> -3367.935792 | V81: =+'Base original'!AP81+'Base original'!AQ81 -> 4200.035792 | W81: =+'Base original'!AS81*-1 -> -10651.90884 | X81: =+'Base original'!AR81+'Base original'!AS81 -> 21852.90644 | Y81: =+'Base original'!AU81*-1 -> -244.1205893 | Z81: =+'Base original'!AT81+'Base original'!AU81 -> 523.1144461 | AA81: =+'Base original'!AW81*-1 -> -6681.889383 | AB81: =+'Base original'!AY81*-1 -> -222.6888313 | AC81: =+'Base original'!AV81+'Base original'!AX81 -> 6341.814811 | AD81: -6904.578214 | AE81: 13246.39303 | AF81: =+'Base original'!BA81*-1 -> -1050.010503 | AG81: =+'Base original'!AZ81+'Base original'!BA81 -> 2981.596249 | AH81: =+'Base original'!BC81*-1 -> -1973.05224 | AI81: =+'Base original'!BB81+'Base original'!BC81 -> 5066.940211 | AJ81: 47870.98616
A82: =+'Base original'!A82 -> 2013-02-01 | B82: =+'Base original'!C82*-1 -> -6205.437047 | C82: =+'Base original'!B82+'Base original'!C82 -> 12740.82739 | D82: =+'Base original'!E82*-1 -> -6500.566176 | E82: =+'Base original'!D82+'Base original'!E82 -> 11625.6324 | F82: =+'Base original'!G82*-1 -> -485.6894953 | G82: =+'Base original'!F82+'Base original'!G82 -> 1395.503473 | H82: =+'Base original'!I82*-1 -> -138.8 | I82: =+'Base original'!K82*-1 -> -32.24681694 | J82: =+'Base original'!H82+'Base original'!J82 -> 342.1564726 | K82: -171.0468169 | L82: 513.2032895 | M82: =+'Base original'!M82*-1 -> -2963.155223 | N82: =+'Base original'!L82+'Base original'!M82 -> 8068.594545 | O82: =+'Base original'!O82*-1 -> -17752.44441 | P82: =+'Base original'!N82+'Base original'!O82 -> 34797.77107 | Q82: 69141.53217 | R82: =+'Base original'!Y82+'Base original'!AB82 -> 681.2931271 | S82: =+'Base original'!Z82+'Base original'!AC82 -> 322.5590626 | T82: =+'Base original'!AD82+'Base original'!AA82 -> 358.7340645 | U82: =+'Base original'!AQ82*-1 -> -1769.03444 | V82: =+'Base original'!AP82+'Base original'!AQ82 -> 3416.69644 | W82: =+'Base original'!AS82*-1 -> -10143.85649 | X82: =+'Base original'!AR82+'Base original'!AS82 -> 20674.50301 | Y82: =+'Base original'!AU82*-1 -> -396.9939322 | Z82: =+'Base original'!AT82+'Base original'!AU82 -> 651.5195625 | AA82: =+'Base original'!AW82*-1 -> -3956.332836 | AB82: =+'Base original'!AY82*-1 -> -182.5488778 | AC82: =+'Base original'!AV82+'Base original'!AX82 -> 3886.941096 | AD82: -4138.881714 | AE82: 8025.822811 | AF82: =+'Base original'!BA82*-1 -> -1081.201359 | AG82: =+'Base original'!AZ82+'Base original'!BA82 -> 2677.522987 | AH82: =+'Base original'!BC82*-1 -> -1467.262179 | AI82: =+'Base original'!BB82+'Base original'!BC82 -> 3482.143074 | AJ82: 38928.20788
A83: =+'Base original'!A83 -> 2013-03-01 | B83: =+'Base original'!C83*-1 -> -5976.943294 | C83: =+'Base original'!B83+'Base original'!C83 -> 12365.69912 | D83: =+'Base original'!E83*-1 -> -8516.442171 | E83: =+'Base original'!D83+'Base original'!E83 -> 13891.20355 | F83: =+'Base original'!G83*-1 -> -308.5590098 | G83: =+'Base original'!F83+'Base original'!G83 -> 930.5522845 | H83: =+'Base original'!I83*-1 -> -238.5716693 | I83: =+'Base original'!K83*-1 -> -75.13738203 | J83: =+'Base original'!H83+'Base original'!J83 -> 359.2843287 | K83: -313.7090513 | L83: 672.99338 | M83: =+'Base original'!M83*-1 -> -1981.766921 | N83: =+'Base original'!L83+'Base original'!M83 -> 5539.875178 | O83: =+'Base original'!O83*-1 -> -18282.06777 | P83: =+'Base original'!N83+'Base original'!O83 -> 35272.31917 | Q83: 68672.64268 | R83: =+'Base original'!Y83+'Base original'!AB83 -> 724.2997098 | S83: =+'Base original'!Z83+'Base original'!AC83 -> 339.0293491 | T83: =+'Base original'!AD83+'Base original'!AA83 -> 385.2703607 | U83: =+'Base original'!AQ83*-1 -> -922.8883835 | V83: =+'Base original'!AP83+'Base original'!AQ83 -> 1836.499829 | W83: =+'Base original'!AS83*-1 -> -13908.96637 | X83: =+'Base original'!AR83+'Base original'!AS83 -> 27193.01882 | Y83: =+'Base original'!AU83*-1 -> -173.3595197 | Z83: =+'Base original'!AT83+'Base original'!AU83 -> 272.7230865 | AA83: =+'Base original'!AW83*-1 -> -5615.055044 | AB83: =+'Base original'!AY83*-1 -> -272.1193956 | AC83: =+'Base original'!AV83+'Base original'!AX83 -> 5681.624327 | AD83: -5887.174439 | AE83: 11568.79877 | AF83: =+'Base original'!BA83*-1 -> -1369.987864 | AG83: =+'Base original'!AZ83+'Base original'!BA83 -> 3064.062729 | AH83: =+'Base original'!BC83*-1 -> -2386.59728 | AI83: =+'Base original'!BB83+'Base original'!BC83 -> 5061.839424 | AJ83: 48996.94265
A84: =+'Base original'!A84 -> 2013-04-01 | B84: =+'Base original'!C84*-1 -> -10662.88272 | C84: =+'Base original'!B84+'Base original'!C84 -> 20325.39213 | D84: =+'Base original'!E84*-1 -> -9623.251519 | E84: =+'Base original'!D84+'Base original'!E84 -> 16464.42744 | F84: =+'Base original'!G84*-1 -> -603.000514 | G84: =+'Base original'!F84+'Base original'!G84 -> 1388.894972 | H84: =+'Base original'!I84*-1 -> -551.5084261 | I84: =+'Base original'!K84*-1 -> -198.0893427 | J84: =+'Base original'!H84+'Base original'!J84 -> 784.5061114 | K84: -749.5977688 | L84: 1534.10388 | M84: =+'Base original'!M84*-1 -> -2742.249089 | N84: =+'Base original'!L84+'Base original'!M84 -> 7874.949272 | O84: =+'Base original'!O84*-1 -> -24004.45144 | P84: =+'Base original'!N84+'Base original'!O84 -> 46344.7635 | Q84: 93932.53119 | R84: =+'Base original'!Y84+'Base original'!AB84 -> 981.6713362 | S84: =+'Base original'!Z84+'Base original'!AC84 -> 527.9157232 | T84: =+'Base original'!AD84+'Base original'!AA84 -> 453.755613 | U84: =+'Base original'!AQ84*-1 -> -853.0398229 | V84: =+'Base original'!AP84+'Base original'!AQ84 -> 4565.794207 | W84: =+'Base original'!AS84*-1 -> -13593.53526 | X84: =+'Base original'!AR84+'Base original'!AS84 -> 26980.67442 | Y84: =+'Base original'!AU84*-1 -> -234.1131812 | Z84: =+'Base original'!AT84+'Base original'!AU84 -> 430.5141489 | AA84: =+'Base original'!AW84*-1 -> -6378.624914 | AB84: =+'Base original'!AY84*-1 -> -341.9286466 | AC84: =+'Base original'!AV84+'Base original'!AX84 -> 6772.347536 | AD84: -6720.55356 | AE84: 13492.9011 | AF84: =+'Base original'!BA84*-1 -> -1801.755035 | AG84: =+'Base original'!AZ84+'Base original'!BA84 -> 2724.632365 | AH84: =+'Base original'!BC84*-1 -> -2007.999243 | AI84: =+'Base original'!BB84+'Base original'!BC84 -> 5716.618809 | AJ84: 53911.13504
A85: =+'Base original'!A85 -> 2013-05-01 | B85: =+'Base original'!C85*-1 -> -7482.059523 | C85: =+'Base original'!B85+'Base original'!C85 -> 18223.34808 | D85: =+'Base original'!E85*-1 -> -9425.195992 | E85: =+'Base original'!D85+'Base original'!E85 -> 17744.62899 | F85: =+'Base original'!G85*-1 -> -434.2633494 | G85: =+'Base original'!F85+'Base original'!G85 -> 1278.912742 | H85: =+'Base original'!I85*-1 -> -270.8761 | I85: =+'Base original'!K85*-1 -> -62.24644702 | J85: =+'Base original'!H85+'Base original'!J85 -> 952.8630427 | K85: -333.122547 | L85: 1285.98559 | M85: =+'Base original'!M85*-1 -> -2805.074389 | N85: =+'Base original'!L85+'Base original'!M85 -> 8388.997824 | O85: =+'Base original'!O85*-1 -> -29327.74959 | P85: =+'Base original'!N85+'Base original'!O85 -> 47263.63376 | Q85: 94185.50698 | R85: =+'Base original'!Y85+'Base original'!AB85 -> 1261.028845 | S85: =+'Base original'!Z85+'Base original'!AC85 -> 345.5996254 | T85: =+'Base original'!AD85+'Base original'!AA85 -> 915.4292191 | U85: =+'Base original'!AQ85*-1 -> -1838.099315 | V85: =+'Base original'!AP85+'Base original'!AQ85 -> 3630.488413 | W85: =+'Base original'!AS85*-1 -> -12528.36885 | X85: =+'Base original'!AR85+'Base original'!AS85 -> 26828.58365 | Y85: =+'Base original'!AU85*-1 -> -334.0997843 | Z85: =+'Base original'!AT85+'Base original'!AU85 -> 594.4042628 | AA85: =+'Base original'!AW85*-1 -> -8131.138747 | AB85: =+'Base original'!AY85*-1 -> -453.0411586 | AC85: =+'Base original'!AV85+'Base original'!AX85 -> 8757.251787 | AD85: -8584.179905 | AE85: 17341.43169 | AF85: =+'Base original'!BA85*-1 -> -1247.313796 | AG85: =+'Base original'!AZ85+'Base original'!BA85 -> 2619.191283 | AH85: =+'Base original'!BC85*-1 -> -1837.847645 | AI85: =+'Base original'!BB85+'Base original'!BC85 -> 4528.193977 | AJ85: 55542.29328
A86: =+'Base original'!A86 -> 2013-06-01 | B86: =+'Base original'!C86*-1 -> -7721.017668 | C86: =+'Base original'!B86+'Base original'!C86 -> 18230.04234 | D86: =+'Base original'!E86*-1 -> -5521.787226 | E86: =+'Base original'!D86+'Base original'!E86 -> 9193.005105 | F86: =+'Base original'!G86*-1 -> -666.3295173 | G86: =+'Base original'!F86+'Base original'!G86 -> 1721.572983 | H86: =+'Base original'!I86*-1 -> -445.859178 | I86: =+'Base original'!K86*-1 -> -100.947 | J86: =+'Base original'!H86+'Base original'!J86 -> 735.5621465 | K86: -546.806178 | L86: 1282.368325 | M86: =+'Base original'!M86*-1 -> -2805.001925 | N86: =+'Base original'!L86+'Base original'!M86 -> 8787.954832 | O86: =+'Base original'!O86*-1 -> -24575.30074 | P86: =+'Base original'!N86+'Base original'!O86 -> 45237.1821 | Q86: 84452.12568 | R86: =+'Base original'!Y86+'Base original'!AB86 -> 1231.326622 | S86: =+'Base original'!Z86+'Base original'!AC86 -> 463.4292081 | T86: =+'Base original'!AD86+'Base original'!AA86 -> 767.8974143 | U86: =+'Base original'!AQ86*-1 -> -1206.373413 | V86: =+'Base original'!AP86+'Base original'!AQ86 -> 2877.391923 | W86: =+'Base original'!AS86*-1 -> -9497.998331 | X86: =+'Base original'!AR86+'Base original'!AS86 -> 18181.75207 | Y86: =+'Base original'!AU86*-1 -> -527.8178062 | Z86: =+'Base original'!AT86+'Base original'!AU86 -> 705.3779922 | AA86: =+'Base original'!AW86*-1 -> -8107.778282 | AB86: =+'Base original'!AY86*-1 -> -907.2820361 | AC86: =+'Base original'!AV86+'Base original'!AX86 -> 8692.650243 | AD86: -9015.060319 | AE86: 17707.71056 | AF86: =+'Base original'!BA86*-1 -> -1409.091383 | AG86: =+'Base original'!AZ86+'Base original'!BA86 -> 5356.636204 | AH86: =+'Base original'!BC86*-1 -> -2559.628901 | AI86: =+'Base original'!BB86+'Base original'!BC86 -> 4714.597201 | AJ86: 49543.46596
A87: =+'Base original'!A87 -> 2013-07-01 | B87: =+'Base original'!C87*-1 -> -9216.544993 | C87: =+'Base original'!B87+'Base original'!C87 -> 19944.96009 | D87: =+'Base original'!E87*-1 -> -4831.344723 | E87: =+'Base original'!D87+'Base original'!E87 -> 8422.075271 | F87: =+'Base original'!G87*-1 -> -354.3253694 | G87: =+'Base original'!F87+'Base original'!G87 -> 1145.569493 | H87: =+'Base original'!I87*-1 -> -279.348253 | I87: =+'Base original'!K87*-1 -> -154.7142337 | J87: =+'Base original'!H87+'Base original'!J87 -> 1044.490659 | K87: -434.0624867 | L87: 1478.553146 | M87: =+'Base original'!M87*-1 -> -2226.977741 | N87: =+'Base original'!L87+'Base original'!M87 -> 5742.353831 | O87: =+'Base original'!O87*-1 -> -22835.50909 | P87: =+'Base original'!N87+'Base original'!O87 -> 43491.45809 | Q87: 80224.96992 | R87: =+'Base original'!Y87+'Base original'!AB87 -> 1103.313722 | S87: =+'Base original'!Z87+'Base original'!AC87 -> 309.1604783 | T87: =+'Base original'!AD87+'Base original'!AA87 -> 794.1532439 | U87: =+'Base original'!AQ87*-1 -> -3300.534986 | V87: =+'Base original'!AP87+'Base original'!AQ87 -> 5135.960054 | W87: =+'Base original'!AS87*-1 -> -10029.60241 | X87: =+'Base original'!AR87+'Base original'!AS87 -> 18915.52608 | Y87: =+'Base original'!AU87*-1 -> -178.8503564 | Z87: =+'Base original'!AT87+'Base original'!AU87 -> 315.2637925 | AA87: =+'Base original'!AW87*-1 -> -8438.389344 | AB87: =+'Base original'!AY87*-1 -> -1306.172636 | AC87: =+'Base original'!AV87+'Base original'!AX87 -> 9352.654683 | AD87: -9744.56198 | AE87: 19097.21666 | AF87: =+'Base original'!BA87*-1 -> -563.2823677 | AG87: =+'Base original'!AZ87+'Base original'!BA87 -> 2417.94483 | AH87: =+'Base original'!BC87*-1 -> -1870.442629 | AI87: =+'Base original'!BB87+'Base original'!BC87 -> 3838.724 | AJ87: 49720.63542
A88: =+'Base original'!A88 -> 2013-08-01 | B88: =+'Base original'!C88*-1 -> -7828.994972 | C88: =+'Base original'!B88+'Base original'!C88 -> 15533.37394 | D88: =+'Base original'!E88*-1 -> -6311.95749 | E88: =+'Base original'!D88+'Base original'!E88 -> 10685.6438 | F88: =+'Base original'!G88*-1 -> -249.1955198 | G88: =+'Base original'!F88+'Base original'!G88 -> 1156.946218 | H88: =+'Base original'!I88*-1 -> -246.403108 | I88: =+'Base original'!K88*-1 -> -209.9432999 | J88: =+'Base original'!H88+'Base original'!J88 -> 664.2858138 | K88: -456.3464079 | L88: 1120.632222 | M88: =+'Base original'!M88*-1 -> -2871.840332 | N88: =+'Base original'!L88+'Base original'!M88 -> 6294.174349 | O88: =+'Base original'!O88*-1 -> -19025.04562 | P88: =+'Base original'!N88+'Base original'!O88 -> 37539.45401 | Q88: 72330.22454 | R88: =+'Base original'!Y88+'Base original'!AB88 -> 1126.898315 | S88: =+'Base original'!Z88+'Base original'!AC88 -> 486.5235321 | T88: =+'Base original'!AD88+'Base original'!AA88 -> 640.3747833 | U88: =+'Base original'!AQ88*-1 -> -1447.619795 | V88: =+'Base original'!AP88+'Base original'!AQ88 -> 4676.030651 | W88: =+'Base original'!AS88*-1 -> -10520.30557 | X88: =+'Base original'!AR88+'Base original'!AS88 -> 20081.85226 | Y88: =+'Base original'!AU88*-1 -> -324.439325 | Z88: =+'Base original'!AT88+'Base original'!AU88 -> 572.5352343 | AA88: =+'Base original'!AW88*-1 -> -6861.921899 | AB88: =+'Base original'!AY88*-1 -> -902.2526036 | AC88: =+'Base original'!AV88+'Base original'!AX88 -> 7492.776446 | AD88: -7764.174503 | AE88: 15256.95095 | AF88: =+'Base original'!BA88*-1 -> -1738.129718 | AG88: =+'Base original'!AZ88+'Base original'!BA88 -> 3412.566119 | AH88: =+'Base original'!BC88*-1 -> -1645.992182 | AI88: =+'Base original'!BB88+'Base original'!BC88 -> 3225.604597 | AJ88: 47225.53981
A89: =+'Base original'!A89 -> 2013-09-01 | B89: =+'Base original'!C89*-1 -> -7455.64037 | C89: =+'Base original'!B89+'Base original'!C89 -> 16154.11074 | D89: =+'Base original'!E89*-1 -> -5677.475136 | E89: =+'Base original'!D89+'Base original'!E89 -> 7821.623324 | F89: =+'Base original'!G89*-1 -> -309.3070531 | G89: =+'Base original'!F89+'Base original'!G89 -> 1135.758213 | H89: =+'Base original'!I89*-1 -> -221.65597 | I89: =+'Base original'!K89*-1 -> -154.1683793 | J89: =+'Base original'!H89+'Base original'!J89 -> 394.8690391 | K89: -375.8243493 | L89: 770.6933883 | M89: =+'Base original'!M89*-1 -> -1716.177818 | N89: =+'Base original'!L89+'Base original'!M89 -> 4313.210383 | O89: =+'Base original'!O89*-1 -> -18528.09412 | P89: =+'Base original'!N89+'Base original'!O89 -> 39620.80433 | Q89: 69816.20038 | R89: =+'Base original'!Y89+'Base original'!AB89 -> 843.6636401 | S89: =+'Base original'!Z89+'Base original'!AC89 -> 433.9542815 | T89: =+'Base original'!AD89+'Base original'!AA89 -> 409.7093585 | U89: =+'Base original'!AQ89*-1 -> -4331.792436 | V89: =+'Base original'!AP89+'Base original'!AQ89 -> 7678.785029 | W89: =+'Base original'!AS89*-1 -> -8362.110796 | X89: =+'Base original'!AR89+'Base original'!AS89 -> 16856.95926 | Y89: =+'Base original'!AU89*-1 -> -265.7904066 | Z89: =+'Base original'!AT89+'Base original'!AU89 -> 432.8391406 | AA89: =+'Base original'!AW89*-1 -> -5590.246965 | AB89: =+'Base original'!AY89*-1 -> -560.9767859 | AC89: =+'Base original'!AV89+'Base original'!AX89 -> 5853.062834 | AD89: -6151.223751 | AE89: 12004.28658 | AF89: =+'Base original'!BA89*-1 -> -1311.874664 | AG89: =+'Base original'!AZ89+'Base original'!BA89 -> 2763.479798 | AH89: =+'Base original'!BC89*-1 -> -1830.355223 | AI89: =+'Base original'!BB89+'Base original'!BC89 -> 4044.955979 | AJ89: 43781.30579
A90: =+'Base original'!A90 -> 2013-10-01 | B90: =+'Base original'!C90*-1 -> -5289.767184 | C90: =+'Base original'!B90+'Base original'!C90 -> 12486.14137 | D90: =+'Base original'!E90*-1 -> -6275.495442 | E90: =+'Base original'!D90+'Base original'!E90 -> 8926.804681 | F90: =+'Base original'!G90*-1 -> -271.7405424 | G90: =+'Base original'!F90+'Base original'!G90 -> 1098.706176 | H90: =+'Base original'!I90*-1 -> -372.2151053 | I90: =+'Base original'!K90*-1 -> -139.9311943 | J90: =+'Base original'!H90+'Base original'!J90 -> 671.1017574 | K90: -512.1462995 | L90: 1183.248057 | M90: =+'Base original'!M90*-1 -> -4099.749273 | N90: =+'Base original'!L90+'Base original'!M90 -> 8463.069053 | O90: =+'Base original'!O90*-1 -> -18527.85991 | P90: =+'Base original'!N90+'Base original'!O90 -> 35188.21493 | Q90: 67346.18427 | R90: =+'Base original'!Y90+'Base original'!AB90 -> 926.3825264 | S90: =+'Base original'!Z90+'Base original'!AC90 -> 418.1294745 | T90: =+'Base original'!AD90+'Base original'!AA90 -> 508.2530519 | U90: =+'Base original'!AQ90*-1 -> -2306.190429 | V90: =+'Base original'!AP90+'Base original'!AQ90 -> 4256.495883 | W90: =+'Base original'!AS90*-1 -> -9472.076719 | X90: =+'Base original'!AR90+'Base original'!AS90 -> 18808.53107 | Y90: =+'Base original'!AU90*-1 -> -189.2556894 | Z90: =+'Base original'!AT90+'Base original'!AU90 -> 326.44074 | AA90: =+'Base original'!AW90*-1 -> -6830.056422 | AB90: =+'Base original'!AY90*-1 -> -933.401011 | AC90: =+'Base original'!AV90+'Base original'!AX90 -> 7436.571343 | AD90: -7763.457433 | AE90: 15200.02878 | AF90: =+'Base original'!BA90*-1 -> -1069.554562 | AG90: =+'Base original'!AZ90+'Base original'!BA90 -> 2298.844975 | AH90: =+'Base original'!BC90*-1 -> -1702.727349 | AI90: =+'Base original'!BB90+'Base original'!BC90 -> 3694.649914 | AJ90: 44584.99136
A91: =+'Base original'!A91 -> 2013-11-01 | B91: =+'Base original'!C91*-1 -> -5094.62 | C91: =+'Base original'!B91+'Base original'!C91 -> 15652.55 | D91: =+'Base original'!E91*-1 -> -6122.530134 | E91: =+'Base original'!D91+'Base original'!E91 -> 10056.57329 | F91: =+'Base original'!G91*-1 -> -258.2115791 | G91: =+'Base original'!F91+'Base original'!G91 -> 1202.386667 | H91: =+'Base original'!I91*-1 -> -223.3252649 | I91: =+'Base original'!K91*-1 -> -92.45411452 | J91: =+'Base original'!H91+'Base original'!J91 -> 625.5467073 | K91: -315.7793794 | L91: 941.3260867 | M91: =+'Base original'!M91*-1 -> -2747.052773 | N91: =+'Base original'!L91+'Base original'!M91 -> 6876.243693 | O91: =+'Base original'!O91*-1 -> -21567.35962 | P91: =+'Base original'!N91+'Base original'!O91 -> 38938.10932 | Q91: 73667.18906 | R91: =+'Base original'!Y91+'Base original'!AB91 -> 1080.359302 | S91: =+'Base original'!Z91+'Base original'!AC91 -> 425.2284619 | T91: =+'Base original'!AD91+'Base original'!AA91 -> 655.13084 | U91: =+'Base original'!AQ91*-1 -> -3960.367209 | V91: =+'Base original'!AP91+'Base original'!AQ91 -> 5258.469286 | W91: =+'Base original'!AS91*-1 -> -9618.915958 | X91: =+'Base original'!AR91+'Base original'!AS91 -> 20756.12744 | Y91: =+'Base original'!AU91*-1 -> -308.8282042 | Z91: =+'Base original'!AT91+'Base original'!AU91 -> 482.1097031 | AA91: =+'Base original'!AW91*-1 -> -7796.768448 | AB91: =+'Base original'!AY91*-1 -> -262.3299889 | AC91: =+'Base original'!AV91+'Base original'!AX91 -> 8330.147921 | AD91: -8059.098437 | AE91: 16389.24636 | AF91: =+'Base original'!BA91*-1 -> -1418.115583 | AG91: =+'Base original'!AZ91+'Base original'!BA91 -> 2763.545602 | AH91: =+'Base original'!BC91*-1 -> -1613.000976 | AI91: =+'Base original'!BB91+'Base original'!BC91 -> 3158.907392 | AJ91: 48808.40578
A92: =+'Base original'!A92 -> 2013-12-01 | B92: =+'Base original'!C92*-1 -> -3988.161164 | C92: =+'Base original'!B92+'Base original'!C92 -> 10939.90233 | D92: =+'Base original'!E92*-1 -> -5822.014024 | E92: =+'Base original'!D92+'Base original'!E92 -> 8827.870898 | F92: =+'Base original'!G92*-1 -> -272.6413719 | G92: =+'Base original'!F92+'Base original'!G92 -> 1216.571916 | H92: =+'Base original'!I92*-1 -> -338.4549144 | I92: =+'Base original'!K92*-1 -> -58.659847 | J92: =+'Base original'!H92+'Base original'!J92 -> 438.5515653 | K92: -397.1147614 | L92: 835.6663267 | M92: =+'Base original'!M92*-1 -> -2320.710288 | N92: =+'Base original'!L92+'Base original'!M92 -> 5610.186412 | O92: =+'Base original'!O92*-1 -> -16170.25369 | P92: =+'Base original'!N92+'Base original'!O92 -> 31108.00635 | Q92: 58538.20423 | R92: =+'Base original'!Y92+'Base original'!AB92 -> 956.0782454 | S92: =+'Base original'!Z92+'Base original'!AC92 -> 524.03799 | T92: =+'Base original'!AD92+'Base original'!AA92 -> 432.0402554 | U92: =+'Base original'!AQ92*-1 -> -1692.55773 | V92: =+'Base original'!AP92+'Base original'!AQ92 -> 3437.345567 | W92: =+'Base original'!AS92*-1 -> -13207.18687 | X92: =+'Base original'!AR92+'Base original'!AS92 -> 25707.86296 | Y92: =+'Base original'!AU92*-1 -> -289.6527867 | Z92: =+'Base original'!AT92+'Base original'!AU92 -> 385.6736271 | AA92: =+'Base original'!AW92*-1 -> -6817.771146 | AB92: =+'Base original'!AY92*-1 -> -253.2483001 | AC92: =+'Base original'!AV92+'Base original'!AX92 -> 6616.144381 | AD92: -7071.019446 | AE92: 13687.16383 | AF92: =+'Base original'!BA92*-1 -> -1438.096368 | AG92: =+'Base original'!AZ92+'Base original'!BA92 -> 3258.771109 | AH92: =+'Base original'!BC92*-1 -> -2416.616966 | AI92: =+'Base original'!BB92+'Base original'!BC92 -> 4610.353671 | AJ92: 51087.17076
A93: =+'Base original'!A93 -> 2014-01-01 | B93: =+'Base original'!C93*-1 -> -7362.92998 | C93: =+'Base original'!B93+'Base original'!C93 -> 17454.49628 | D93: =+'Base original'!E93*-1 -> -7373.616791 | E93: =+'Base original'!D93+'Base original'!E93 -> 11264.68573 | F93: =+'Base original'!G93*-1 -> -497.5906073 | G93: =+'Base original'!F93+'Base original'!G93 -> 1708.454764 | H93: =+'Base original'!I93*-1 -> -281.0267879 | I93: =+'Base original'!K93*-1 -> -124.5958744 | J93: =+'Base original'!H93+'Base original'!J93 -> 834.1487142 | K93: -405.6226622 | L93: 1239.771376 | M93: =+'Base original'!M93*-1 -> -2815.810266 | N93: =+'Base original'!L93+'Base original'!M93 -> 6597.573413 | O93: =+'Base original'!O93*-1 -> -23822.20218 | P93: =+'Base original'!N93+'Base original'!O93 -> 42196.3904 | Q93: 80461.37197 | R93: =+'Base original'!Y93+'Base original'!AB93 -> 947.2609906 | S93: =+'Base original'!Z93+'Base original'!AC93 -> 394.4994889 | T93: =+'Base original'!AD93+'Base original'!AA93 -> 552.7615017 | U93: =+'Base original'!AQ93*-1 -> -1237.548809 | V93: =+'Base original'!AP93+'Base original'!AQ93 -> 4254.728678 | W93: =+'Base original'!AS93*-1 -> -10452.53804 | X93: =+'Base original'!AR93+'Base original'!AS93 -> 21576.64758 | Y93: =+'Base original'!AU93*-1 -> -423.1961222 | Z93: =+'Base original'!AT93+'Base original'!AU93 -> 676.2952661 | AA93: =+'Base original'!AW93*-1 -> -6323.927779 | AB93: =+'Base original'!AY93*-1 -> -348.9908006 | AC93: =+'Base original'!AV93+'Base original'!AX93 -> 6506.55126 | AD93: -6672.91858 | AE93: 13179.46984 | AF93: =+'Base original'!BA93*-1 -> -1200.608324 | AG93: =+'Base original'!AZ93+'Base original'!BA93 -> 2855.562861 | AH93: =+'Base original'!BC93*-1 -> -1752.791062 | AI93: =+'Base original'!BB93+'Base original'!BC93 -> 3456.128301 | AJ93: 45998.83252
A94: =+'Base original'!A94 -> 2014-02-01 | B94: =+'Base original'!C94*-1 -> -6427.868504 | C94: =+'Base original'!B94+'Base original'!C94 -> 15366.29701 | D94: =+'Base original'!E94*-1 -> -6838.158277 | E94: =+'Base original'!D94+'Base original'!E94 -> 9605.548671 | F94: =+'Base original'!G94*-1 -> -272.528074 | G94: =+'Base original'!F94+'Base original'!G94 -> 1462.474407 | H94: =+'Base original'!I94*-1 -> -265.641 | I94: =+'Base original'!K94*-1 -> -76.52975229 | J94: =+'Base original'!H94+'Base original'!J94 -> 479.4924309 | K94: -342.1707523 | L94: 821.6631832 | M94: =+'Base original'!M94*-1 -> -2437.437469 | N94: =+'Base original'!L94+'Base original'!M94 -> 5649.176742 | O94: =+'Base original'!O94*-1 -> -17609.6511 | P94: =+'Base original'!N94+'Base original'!O94 -> 34580.49433 | Q94: 67485.65433 | R94: =+'Base original'!Y94+'Base original'!AB94 -> 1006.26641 | S94: =+'Base original'!Z94+'Base original'!AC94 -> 485.7689498 | T94: =+'Base original'!AD94+'Base original'!AA94 -> 520.4974598 | U94: =+'Base original'!AQ94*-1 -> -962.6776547 | V94: =+'Base original'!AP94+'Base original'!AQ94 -> 2097.954893 | W94: =+'Base original'!AS94*-1 -> -11519.13321 | X94: =+'Base original'!AR94+'Base original'!AS94 -> 23304.78939 | Y94: =+'Base original'!AU94*-1 -> -278.82068 | Z94: =+'Base original'!AT94+'Base original'!AU94 -> 491.0238636 | AA94: =+'Base original'!AW94*-1 -> -5289.2799 | AB94: =+'Base original'!AY94*-1 -> -212.28252 | AC94: =+'Base original'!AV94+'Base original'!AX94 -> 5324.691812 | AD94: -5501.56242 | AE94: 10826.25423 | AF94: =+'Base original'!BA94*-1 -> -1018.5196 | AG94: =+'Base original'!AZ94+'Base original'!BA94 -> 1844.19263 | AH94: =+'Base original'!BC94*-1 -> -1994.585902 | AI94: =+'Base original'!BB94+'Base original'!BC94 -> 3539.442443 | AJ94: 42103.65745
A95: =+'Base original'!A95 -> 2014-03-01 | B95: =+'Base original'!C95*-1 -> -5823.97227 | C95: =+'Base original'!B95+'Base original'!C95 -> 13172.64954 | D95: =+'Base original'!E95*-1 -> -8523.181424 | E95: =+'Base original'!D95+'Base original'!E95 -> 11287.04355 | F95: =+'Base original'!G95*-1 -> -391.0482728 | G95: =+'Base original'!F95+'Base original'!G95 -> 1388.792497 | H95: =+'Base original'!I95*-1 -> -370.9516511 | I95: =+'Base original'!K95*-1 -> -112.919117 | J95: =+'Base original'!H95+'Base original'!J95 -> 479.8839668 | K95: -483.8707681 | L95: 963.7547349 | M95: =+'Base original'!M95*-1 -> -2856.203921 | N95: =+'Base original'!L95+'Base original'!M95 -> 7435.650262 | O95: =+'Base original'!O95*-1 -> -17418.52221 | P95: =+'Base original'!N95+'Base original'!O95 -> 36905.2763 | Q95: 71153.16688 | R95: =+'Base original'!Y95+'Base original'!AB95 -> 996.4918583 | S95: =+'Base original'!Z95+'Base original'!AC95 -> 629.867211 | T95: =+'Base original'!AD95+'Base original'!AA95 -> 366.6246474 | U95: =+'Base original'!AQ95*-1 -> -1146.385858 | V95: =+'Base original'!AP95+'Base original'!AQ95 -> 2078.985894 | W95: =+'Base original'!AS95*-1 -> -12721.71633 | X95: =+'Base original'!AR95+'Base original'!AS95 -> 24950.13238 | Y95: =+'Base original'!AU95*-1 -> -266.7716781 | Z95: =+'Base original'!AT95+'Base original'!AU95 -> 580.274496 | AA95: =+'Base original'!AW95*-1 -> -6965.632381 | AB95: =+'Base original'!AY95*-1 -> -255.9003095 | AC95: =+'Base original'!AV95+'Base original'!AX95 -> 6858.242845 | AD95: -7221.532691 | AE95: 14079.77554 | AF95: =+'Base original'!BA95*-1 -> -1403.558068 | AG95: =+'Base original'!AZ95+'Base original'!BA95 -> 3051.821851 | AH95: =+'Base original'!BC95*-1 -> -2117.601984 | AI95: =+'Base original'!BB95+'Base original'!BC95 -> 4037.941366 | AJ95: 48778.93152
A96: =+'Base original'!A96 -> 2014-04-01 | B96: =+'Base original'!C96*-1 -> -8087.852595 | C96: =+'Base original'!B96+'Base original'!C96 -> 17929.75019 | D96: =+'Base original'!E96*-1 -> -8031.965902 | E96: =+'Base original'!D96+'Base original'!E96 -> 11918.42057 | F96: =+'Base original'!G96*-1 -> -393.1307078 | G96: =+'Base original'!F96+'Base original'!G96 -> 1626.786595 | H96: =+'Base original'!I96*-1 -> -254.2441689 | I96: =+'Base original'!K96*-1 -> -81.730965 | J96: =+'Base original'!H96+'Base original'!J96 -> 703.6811123 | K96: -335.9751339 | L96: 1039.656246 | M96: =+'Base original'!M96*-1 -> -2263.615692 | N96: =+'Base original'!L96+'Base original'!M96 -> 4821.644164 | O96: =+'Base original'!O96*-1 -> -22723.49692 | P96: =+'Base original'!N96+'Base original'!O96 -> 44061.4522 | Q96: 81397.70997 | R96: =+'Base original'!Y96+'Base original'!AB96 -> 1112.108348 | S96: =+'Base original'!Z96+'Base original'!AC96 -> 543.3158138 | T96: =+'Base original'!AD96+'Base original'!AA96 -> 568.7925342 | U96: =+'Base original'!AQ96*-1 -> -1559.410186 | V96: =+'Base original'!AP96+'Base original'!AQ96 -> 2509.497266 | W96: =+'Base original'!AS96*-1 -> -13298.88284 | X96: =+'Base original'!AR96+'Base original'!AS96 -> 27280.92907 | Y96: =+'Base original'!AU96*-1 -> -163.2181001 | Z96: =+'Base original'!AT96+'Base original'!AU96 -> 375.4212357 | AA96: =+'Base original'!AW96*-1 -> -6250.165219 | AB96: =+'Base original'!AY96*-1 -> -483.294076 | AC96: =+'Base original'!AV96+'Base original'!AX96 -> 6606.99025 | AD96: -6733.459295 | AE96: 13340.44954 | AF96: =+'Base original'!BA96*-1 -> -1424.033271 | AG96: =+'Base original'!AZ96+'Base original'!BA96 -> 3518.202394 | AH96: =+'Base original'!BC96*-1 -> -1715.044754 | AI96: =+'Base original'!BB96+'Base original'!BC96 -> 3867.704449 | AJ96: 50892.20396
A97: =+'Base original'!A97 -> 2014-05-01 | B97: =+'Base original'!C97*-1 -> -7365.304903 | C97: =+'Base original'!B97+'Base original'!C97 -> 15327.1622 | D97: =+'Base original'!E97*-1 -> -7003.247435 | E97: =+'Base original'!D97+'Base original'!E97 -> 9895.900164 | F97: =+'Base original'!G97*-1 -> -573.768964 | G97: =+'Base original'!F97+'Base original'!G97 -> 1929.3526 | H97: =+'Base original'!I97*-1 -> -379.5729121 | I97: =+'Base original'!K97*-1 -> -106.97 | J97: =+'Base original'!H97+'Base original'!J97 -> 609.9919673 | K97: -486.5429121 | L97: 1096.534879 | M97: =+'Base original'!M97*-1 -> -1492.899834 | N97: =+'Base original'!L97+'Base original'!M97 -> 4857.1285 | O97: =+'Base original'!O97*-1 -> -18662.3757 | P97: =+'Base original'!N97+'Base original'!O97 -> 40259.17935 | Q97: 73365.25769 | R97: =+'Base original'!Y97+'Base original'!AB97 -> 983.1816058 | S97: =+'Base original'!Z97+'Base original'!AC97 -> 593.3457464 | T97: =+'Base original'!AD97+'Base original'!AA97 -> 389.8358595 | U97: =+'Base original'!AQ97*-1 -> -1233.814751 | V97: =+'Base original'!AP97+'Base original'!AQ97 -> 1645.445997 | W97: =+'Base original'!AS97*-1 -> -11858.12079 | X97: =+'Base original'!AR97+'Base original'!AS97 -> 22625.00638 | Y97: =+'Base original'!AU97*-1 -> -403.2114666 | Z97: =+'Base original'!AT97+'Base original'!AU97 -> 777.5754316 | AA97: =+'Base original'!AW97*-1 -> -5690.196282 | AB97: =+'Base original'!AY97*-1 -> -527.1607685 | AC97: =+'Base original'!AV97+'Base original'!AX97 -> 5776.746669 | AD97: -6217.35705 | AE97: 11994.10372 | AF97: =+'Base original'!BA97*-1 -> -1289.50809 | AG97: =+'Base original'!AZ97+'Base original'!BA97 -> 2640.705354 | AH97: =+'Base original'!BC97*-1 -> -2380.998409 | AI97: =+'Base original'!BB97+'Base original'!BC97 -> 4917.208 | AJ97: 44600.04488
A98: =+'Base original'!A98 -> 2014-06-01 | B98: =+'Base original'!C98*-1 -> -6556.030242 | C98: =+'Base original'!B98+'Base original'!C98 -> 14922.42035 | D98: =+'Base original'!E98*-1 -> -5837.817573 | E98: =+'Base original'!D98+'Base original'!E98 -> 7942.02462 | F98: =+'Base original'!G98*-1 -> -432.506913 | G98: =+'Base original'!F98+'Base original'!G98 -> 1761.666194 | H98: =+'Base original'!I98*-1 -> -261.6718709 | I98: =+'Base original'!K98*-1 -> -150.643177 | J98: =+'Base original'!H98+'Base original'!J98 -> 401.1894665 | K98: -412.3150479 | L98: 813.5045145 | M98: =+'Base original'!M98*-1 -> -1341.682497 | N98: =+'Base original'!L98+'Base original'!M98 -> 3768.678574 | O98: =+'Base original'!O98*-1 -> -18562.65514 | P98: =+'Base original'!N98+'Base original'!O98 -> 37356.1581 | Q98: 66564.45236 | R98: =+'Base original'!Y98+'Base original'!AB98 -> 900.0064172 | S98: =+'Base original'!Z98+'Base original'!AC98 -> 633.9295541 | T98: =+'Base original'!AD98+'Base original'!AA98 -> 266.0768631 | U98: =+'Base original'!AQ98*-1 -> -1908.095713 | V98: =+'Base original'!AP98+'Base original'!AQ98 -> 2627.79134 | W98: =+'Base original'!AS98*-1 -> -9405.271841 | X98: =+'Base original'!AR98+'Base original'!AS98 -> 18807.34045 | Y98: =+'Base original'!AU98*-1 -> -196.8908268 | Z98: =+'Base original'!AT98+'Base original'!AU98 -> 368.7939651 | AA98: =+'Base original'!AW98*-1 -> -5942.333581 | AB98: =+'Base original'!AY98*-1 -> -296.5486387 | AC98: =+'Base original'!AV98+'Base original'!AX98 -> 6026.608755 | AD98: -6238.88222 | AE98: 12265.49098 | AF98: =+'Base original'!BA98*-1 -> -1318.918485 | AG98: =+'Base original'!AZ98+'Base original'!BA98 -> 2688.994194 | AH98: =+'Base original'!BC98*-1 -> -1607.105556 | AI98: =+'Base original'!BB98+'Base original'!BC98 -> 3478.498491 | AJ98: 40236.90941
A99: =+'Base original'!A99 -> 2014-07-01 | B99: =+'Base original'!C99*-1 -> -5923.469356 | C99: =+'Base original'!B99+'Base original'!C99 -> 14478.15817 | D99: =+'Base original'!E99*-1 -> -8056.56512 | E99: =+'Base original'!D99+'Base original'!E99 -> 10789.42196 | F99: =+'Base original'!G99*-1 -> -432.1016565 | G99: =+'Base original'!F99+'Base original'!G99 -> 2144.105451 | H99: =+'Base original'!I99*-1 -> -266.4696661 | I99: =+'Base original'!K99*-1 -> -102.232059 | J99: =+'Base original'!H99+'Base original'!J99 -> 664.975603 | K99: -368.7017251 | L99: 1033.677328 | M99: =+'Base original'!M99*-1 -> -1320.666422 | N99: =+'Base original'!L99+'Base original'!M99 -> 4322.78837 | O99: =+'Base original'!O99*-1 -> -16370.45761 | P99: =+'Base original'!N99+'Base original'!O99 -> 30864.81933 | Q99: 63632.97061 | R99: =+'Base original'!Y99+'Base original'!AB99 -> 1004.141981 | S99: =+'Base original'!Z99+'Base original'!AC99 -> 583.1211009 | T99: =+'Base original'!AD99+'Base original'!AA99 -> 421.0208802 | U99: =+'Base original'!AQ99*-1 -> -1794.987149 | V99: =+'Base original'!AP99+'Base original'!AQ99 -> 2634.988131 | W99: =+'Base original'!AS99*-1 -> -10714.95642 | X99: =+'Base original'!AR99+'Base original'!AS99 -> 22566.90107 | Y99: =+'Base original'!AU99*-1 -> -480.899771 | Z99: =+'Base original'!AT99+'Base original'!AU99 -> 641.717147 | AA99: =+'Base original'!AW99*-1 -> -6313.997092 | AB99: =+'Base original'!AY99*-1 -> -259.3615042 | AC99: =+'Base original'!AV99+'Base original'!AX99 -> 6369.188911 | AD99: -6573.358597 | AE99: 12942.54751 | AF99: =+'Base original'!BA99*-1 -> -1475.57002 | AG99: =+'Base original'!AZ99+'Base original'!BA99 -> 2862.739545 | AH99: =+'Base original'!BC99*-1 -> -1301.878576 | AI99: =+'Base original'!BB99+'Base original'!BC99 -> 3179.031772 | AJ99: 44827.92517
A100: =+'Base original'!A100 -> 2014-08-01 | B100: =+'Base original'!C100*-1 -> -7161.676887 | C100: =+'Base original'!B100+'Base original'!C100 -> 17964.55533 | D100: =+'Base original'!E100*-1 -> -7400.139071 | E100: =+'Base original'!D100+'Base original'!E100 -> 10362.01596 | F100: =+'Base original'!G100*-1 -> -692.5102612 | G100: =+'Base original'!F100+'Base original'!G100 -> 2303.63238 | H100: =+'Base original'!I100*-1 -> -360.3430518 | I100: =+'Base original'!K100*-1 -> -120.048093 | J100: =+'Base original'!H100+'Base original'!J100 -> 726.5074381 | K100: -480.3911448 | L100: 1206.898583 | M100: =+'Base original'!M100*-1 -> -1516.003213 | N100: =+'Base original'!L100+'Base original'!M100 -> 3951.933439 | O100: =+'Base original'!O100*-1 -> -17887.26331 | P100: =+'Base original'!N100+'Base original'!O100 -> 34126.95204 | Q100: 69915.98773 | R100: =+'Base original'!Y100+'Base original'!AB100 -> 1179.050825 | S100: =+'Base original'!Z100+'Base original'!AC100 -> 612.9471987 | T100: =+'Base original'!AD100+'Base original'!AA100 -> 566.1036267 | U100: =+'Base original'!AQ100*-1 -> -2469.935179 | V100: =+'Base original'!AP100+'Base original'!AQ100 -> 4236.004778 | W100: =+'Base original'!AS100*-1 -> -10835.83367 | X100: =+'Base original'!AR100+'Base original'!AS100 -> 20680.59688 | Y100: =+'Base original'!AU100*-1 -> -326.8424572 | Z100: =+'Base original'!AT100+'Base original'!AU100 -> 593.8245977 | AA100: =+'Base original'!AW100*-1 -> -6365.617154 | AB100: =+'Base original'!AY100*-1 -> -439.1290292 | AC100: =+'Base original'!AV100+'Base original'!AX100 -> 6402.840794 | AD100: -6804.746183 | AE100: 13207.58698 | AF100: =+'Base original'!BA100*-1 -> -1235.086597 | AG100: =+'Base original'!AZ100+'Base original'!BA100 -> 3613.069349 | AH100: =+'Base original'!BC100*-1 -> -992.391973 | AI100: =+'Base original'!BB100+'Base original'!BC100 -> 2640.241837 | AJ100: 44971.32442
